Workbook

Sheet Introduction
B2: GACMO version 2.2 | I2: Current step | J2: 3
B3: Welcome to the Greenhouse gas Abatement Cost MOdel - GACMO
B4: The GACMO tool was developed by the UNEP Copenhagen Climate Centre In case of questions or feedback on GACMO, please contact Aiymgul Kerimray (aiymgul.kerimray@un.org) or Denis Desgain (denis.desgain@un.org)
B6: What is GACMO?
B7: The GACMO (Greenhouse Gas Abatement Cost Model) tool is a GHG emissions bottom-up modelling tool developed by the UNEP Copenhagen Climate Centre (UNEP-CCC) over more than 20 years. The GACMO tool allows countries to carry out rapid but accurate evaluations of the GHG emissions impacts of a variety of mitigation options. The tool is used to calculate the GHG emissions reductions resulting from specific mitigation actions and to establish a mitigation scenario built on the specific mitigation actions compared to a BAU scenario. It must be noted that GACMO does not integrate the interactions among measures assessed simultaneously. The GACMO tool can thus support technical experts and decision-makers to assess and understand the GHG emissions impacts of climate mitigation actions. This version of the GACMO tool includes 9 spreadsheets with technical data that the user needs to consider following a stepwise approach. The interface of the tool is made so that the user is taken from the first spreadsheet to the last spreadsheet following a logical order. The calculations and the generation of graphs are done in an automated way. This means that the user, who has the data required to use GACMO, does not need to be familiar with the calculations themselves in order to use the tool, but only with how to enter the inputs, as well as interpret the results. The formulas included in the GACMO tool are based on the mitigation methodologies proposed under the Clean Development Mechanism (CDM) as well as on the IPCC methodologies. Therefore, GACMO is in line with the most recent internationally approved GHG emission calculation methodologies. | G7: •
B8: The GACMO tool includes a series of default values, that are already pre-loaded in the tool and that the user does not have to update unless the user has better inputs and wants to make more precise estimates. These default values are all visible and accessible by the user. The first group of data with default values are those of key mitigation parameters, such as the IPCC database of emission factors (2006 IPCC Guidelines) and the global warming potential (GWP). In the case of GWP, GACMO uses by default the most recent values of those parameters established by the IPCC, although previous GWP values are also available in GACMO. The second group of data with default values are those for the mitigation potential parameters and economic-financial parameters of each mitigation option and their corresponding reference option in the baseline situation. In this case, GACMO uses by default, average values calculated from relevant CDM projects available on the CDM website and summarized in the project pipeline developed at UNEP-CCC. Experience has shown that the use of default values for data related to baseline and mitigation options works well in GACMO. However, it is possible for a GACMO user to modify those default values for data related to the mitigation and reference options to replace them with values specific to their case (country, city region, industrial activity). This allows the user to get more accurate results out of the GACMO application. The main data required to use GACMO are those of the energy balance for a specific year (considered as the start year), that is the data of the sectoral energy consumption of fossil fuels and electricity of a country, as well as the GHG emissions for the other non-energy sectors for the same year (taken for example from a national GHG inventory report). From these data, GACMO calculates the GHG emissions for the start year, that is, for the year in which the data were collected (generally the most recent year for which the necessary data is available). Then, applying growth factors for each sector (these factors are specific to the country and are estimated and entered in GACMO by the user), GACMO will project the GHG emissions to build a reference scenario also called baseline scenario (or Business as Usual - BAU), towards the years 2025, 2030, 2035, 2040, 2045 and/or 2050. To build the GHG mitigation scenario, GACMO proposes a list of 119 mitigation options for the different sectors. These mitigation options are organized into 26 categories of activities, such as agriculture, biomass energy, energy efficiency in homes, forestry, as well as geothermal, hydroelectric, solar, wind energy, among others. Once the mitigation options of interest have been selected by the user, the tool projects the emissions based on the previous growth factors and establishes a mitigation scenario for the years 2025, 2030, 2035, 2040, 2045 and/or 2050. GACMO calculates also the GHG emissions reductions and an approximation of the investment costs, as well as operation and maintenance costs, which result from each selected mitigation action. In summary, the key data used as inputs and required for running GACMO are:
B9: • Basic data about the country, such as the local currency, the exchange rate with the dollar, the discount rate; • Cost and technical data related to the different fossil fuels and electricity; • Energy balance data in the start year, that is, the production/consumption data of fossil fuels and electricity for a country; • Data on the GHG emissions for the key non-energy sectors in the start year: Agriculture, Forests, Waste, and Industrial processes; • Growth factors estimated over specific time periods for different sectors of activities; • The number of units of each mitigation option (selected by the user) penetrating toward the years 2025, 2030, 2035, 2040, 2045 and/or 2050.
B10: Finally, the GACMO tool can also be used to monitor the GHG emission reductions achieved through the effective implementation of mitigation options. Therefore, GACMO can be used additionally as a tool for tracking the progress made in implementing climate change mitigation options. The GACMO tool can be used at the national level (country level) but can also be adapted to be used at sub-national level (region or city). GACMO can be very useful for the preparation of national reports such as National Communications, Biennial Update Reports (BURs), Biennial Transparency Reports (BTRs), or for the preparation and update of Nationally Determined Contributions (NDCs).
B11: What is the structure of GACMO?
B12: This version of the GACMO tool includes different spreadsheets contained in an Excel file that the user needs to consider following a stepwise approach. The interface of the tool is made so that the user is taken from the first spreadsheet to the last spreadsheet following a logical order. The two first sheets are the Introduction and the Guidance. We strongly recommend the user to read these two sheets before starting using the tool. The tool includes seven technical sheets: Assumptions, Energy Balance, GHG Balance, Growth, BAU projected Energy Balances, BAU projected GHG Balances, and Mitigation Options. These sheets include a series of tables that the user needs to consider and where the user will have to introduce the data inputs required to run the GACMO tool. Each sheet starts with an introductory text explaining the purpose of the sheet and what data and inputs need to be considered by the user. The next sheet Results includes all the results and graphics resulting from the application of the GACMO tool run by the user. Each sheet starts with an introductory text describing the results found on the sheet. Note that a button is also provided to the user to automatically produce a summary of the results as a PDF document.
B13: The last sheet Tracking progress is the sheet that can be used by the user to monitor the progress made in implementing each mitigation action. The Tracking progress sheet is thus used ex-post, that is, once the mitigation options are under implementation or have been implemented, to estimate and monitor the effective reductions of GHG emissions. Finally, GACMO includes a long list of technology sheets, including "Agriculture", "Biomass Energy", "CCS", "Cement", "Coalmine CH4", "EE households", "EE Industry", "EE own generation", "EE service", "EE supply side", "EE distribution", "Forestry", "Fossil fuel switch" …. These sheets include the tables with the specific cost and technical data of each mitigation option, as well as the corresponding reference option. Note that these sheets are hidden by default, but the user can access those sheets and the data table of each mitigation option by clicking on the name of the mitigation option in the Mitigation Options sheet.
B14: GACMO has around 40 spreadsheets contained in an Excel file. These sheets can be divided into 3 large groups: • Sheets of data or inputs, including "Start year balance", "Growth", "Assumptions", "Main 25/30/50". These are the sheets in which the user enters the data required to define the particular inputs of the case under study; • Sheets of outputs or results, including "Growth", "Graph". These are the sheets in which the main results are found; • Technology sheets, including "Agriculture", "Biomass Energy", "CCS", "Cement", "Coalmine CH4", "EE households", "EE Industry", "EE own generation", "EE service", "EE supply side", "E distribution", "Forestry", "Fossil fuel switch",…. These are the sheets in which the specific data of each mitigation option, as well as of the corresponding reference option, are found. The appendixes 1 and 2 list respectively all the categories of activities and all the mitigation options included in GACMO. In addition, GACMO includes a spreadsheet called “MRV” in which the progress in implementing each mitigation action selected by the user can be monitored. This sheet is used ex-post, that is, once the mitigation options have been implemented, to estimate and monitor the effective reductions of the GHG emissions.
B16: GACMO COPYRIGHTS
B17: The GACMO tool has been developed by the UNEP Copenhagen Climate Centre (UNEP-CCC). Note that the tool is regularly updated. The last version of GACMO is always made available on the UNEP-CCC website at https://unepccc.org/gacmo-tool/ All the versions of the GACMO tool can be downloaded and used free of charge by any user and can be installed on a personal computer. However, it is not allowed to make any commercial use of the GACMO tool without the prior authorization of UNEP-CCC. For any inquiries and authorization requests, please contact UNEP-CCC at unep-ccc@un.org.
B19: This version of the tool has been developed under the Initiative for Climate Action Transparency (ICAT).

Sheet Print Guide (hidden)
B2: Quick step by step guidance for using GACMO:
B4: How to start
B5: This version of the GACMO tool includes different spreadsheets contained in an Excel file that the user needs to consider following a stepwise approach. The interface of the tool is made so that the user is taken from the first spreadsheet to the last spreadsheet following a logical order. The two first sheets are the Introduction and the Guidance. We strongly recommend the user to read these two sheets before starting using the tool. The tool includes seven technical sheets: Assumptions, Energy Balance, GHG Balance, Growth, BAU projected Energy Balances, BAU projected GHG Balances, and Mitigation Options. These sheets include a series of tables that the user needs to consider and where the user will have to introduce the data inputs required to run the GACMO tool. Each sheet starts with an introductory text explaining the purpose of the sheet and what data and inputs need to be considered by the user. The next sheet Results includes all the results and graphics resulting from the application of the GACMO tool run by the user. Each sheet starts with an introductory text describing the results found on the sheet. Note that a button is also provided to the user to automatically produce a summary of the results as a PDF document.
B8: The last sheet Tracking progress is the sheet that can be used by the user to monitor the progress made in implementing each mitigation action. The Tracking progress sheet is thus used ex-post, that is, once the mitigation options are under implementation or have been implemented, to estimate and monitor the effective reductions of GHG emissions. Finally, GACMO includes a long list of technology sheets, including "Agriculture", "Biomass Energy", "CCS", "Cement", "Coalmine CH4", "EE households", "EE Industry", "EE own generation", "EE service", "EE supply side", "E distribution", "Forestry", "Fossil fuel switch",…. These sheets include the tables with the specific cost and technical data of each mitigation option, as well as the corresponding reference option. Note that these sheets are hidden by default, but the user can access those sheets and the data table of each mitigation option by clicking on the name of the mitigation option in the Mitigation Options sheet. A more detailed guidance for the use of each sheet is provided below. This guidance can also be opened in PDF and printed by clicking on the two buttons located in the upper-right corner of this Guidance sheet.
B12: Step 1: Assumptions
B13: The Assumption sheet includes all the basic country, cost, and technical data that the GACMO tool needs as inputs for the calculations. First, in the Basic country information table, the user must introduce:
B14: • • • • • | C14: The name of the country. The start year = the year in which the data of the energy balance and GHG emissions of non-energy sectors are collected. This is generally the most recent year for which the necessary data are available. The currency = the system of money in general use in the country The exchange rate used (1US$=) = the price of the country's money in relation to the US dollar. Discount rate = the interest rate used to determine the present value of future cash flows in a discounted cash flow analysis.
B15: Second, in the Energy prices used for the entire future period and Fuel prices (all in 2020 prices) tables, the user must introduce:
B16: • | C16: The Energy prices in US$/unit for crude oil, all distillates, coal, lignite, and natural gas used in the energy mix of the country. The model uses the historical relationship between the price of crude oil/liter and the price of distillate/liter. These prices can be entered as constant fuel prices estimated for the future.
B17: Third, in the Electricity table, the user must introduce:
B18: • • • | C18: US$/kWh = The price of electricity in US$/kWh Combined Margin (CM) Other = the grid emission factor or CO2 emission factor for electricity production. Note that the value for the Electricity grid losses & own consumption is calculated by the GACMO tool and imported from the Energy Balance sheet.
B19: Fourth, in the Sector specific Emission factors (kg GHG/GJ) table, the user must introduce:
B20: • | C20: The greenhouse gas emission factor for all the fossil fuels. It has to be noted that average default values for those fuel emissions factors are provided by GACMO, but the user can adjust them if national values are available for the same fuels.
B21: Fifth, in the Global warming potentials tables, the user must introduce:
B22: • | C22: The Global Warming Potential (GWP) for methane (CH4) and for nitrous oxide (N2O). GACMO provides the IPCC GWP as default values. It has to be noted that the GWP of PFC gas is also included in GACMO but it is at the level of the "HFC PFC SF6 technology sheet"
B23: Finally, in the Population and GDP in Start year table, the user must introduce:
B24: • | C24: The Population and the Gross Domestic Product in the start year
B25: ONCE THE DATA HAVE BEEN INSERTED IN THE ASSUMPTION SHEET, YOU CAN CLICK “GO TO STEP 2: ENERGY BALANCE”.
B27: Step 2: Energy Balance
B28: The Energy Balance sheet includes the energy data disaggregated by sector of activity for the start year. In the two first tables Energy balance in TJ – Country X - Base year and Base year energy balance in mega tonnes and million cubic meters, the balance contains columns for all the fossil fuels, and rows for all the normal sectors of the energy balance.
B29: • | C29: For the fossil fuels used in the country's energy mix at the start year, the user must include the amounts of the different fuels used by each normal sector of activity. Usually, the input unit for this energy balance is TJ. However, the user can choose to insert the data in units of mass or volume (mega tonnes and million cubic meters). The user can select either one or another input by clicking the button “Select unit for input (TJ or Mass/volume)”.
B30: Once the user has included the energy balance data in TJ or mass/volume units, GACMO automatically calculates the energy balance in ktoe unit. For those calculations, GACMO uses the default IPCC emission factors in tCO2/toe, and calorific values in toe/(ton or m3). The table with the energy balance calculated in ktoe can be shown (or hidden) by clicking the button “Show/Hide table in ktoe values”. Finally, in the last table Base year electricity balance in GWh, the user must include:
B31: • • | C31: Electricity consumption data = amounts of electricity (in GWh unit) used by each normal sector of activity Electricity production data = amounts of electricity (in GWh unit) produced with each fossil fuel or renewable energy source
B32: ONCE THE DATA HAVE BEEN INSERTED IN THE ENERGY BALANCE SHEET, YOU CAN CLICK “GO TO STEP 3: GHG BALANCE”.
B34: Step 3: GHG Balance
B35: The GHG Balance sheet includes the GHG emissions data disaggregated by sector of activity for the start year. The first table CO2 Emissions – Country X - Start year includes the balance for the CO2 emissions at the start year expressed in ktCO2 equivalents unit. GACMO automatically calculates the data in this table. The user should not insert or modify the data in this table. In the second table Non-CO2 emissions, non-fuel combustion sectors, the user must include:
B36: • | C36: The CH4 and N2O data, expressed in ktCO2 equivalent units for each sector/sub-sector as defined by the IPCC. Those data can be found in the greenhouse gas national inventory of the country calculated for the start year. If no data are available for the start year, the user can alternatively take the data for the year closest to the start year.
B37: ONCE THE DATA HAVE BEEN INSERTED IN THE GHG BALANCE SHEET, YOU CAN CLICK “GO TO STEP 4: GROWTH FACTORS”.
B39: Step 4: Growth factors
B40: The Growth sheet includes the expected growth in energy consumption for the different sectors of activity for different periods of time. In the table Growth from the start year – Country X, the user must include:
B41: • • | C41: The Population growth, estimated for the different periods: start year-2025, 2025-2030, 2030-2035, and 2030-2050. The GDP growth, estimated for the different periods: start year-2025, 2025-2030, 2030-2035, and 2030-2050.
B42: Note that these two parameters Population growth and GDP growth are only used by GACMO to calculate the GHG emissions of the country expressed per capita or per GDP units.
B43: • | C43: The annual growth in energy consumption estimated for each sector of activity for the different periods: start year-2025, 2025-2030, and 2030-2050. It must be noted that those data can be estimated from the historical values of each sector of activity. Alternatively, those estimations can eventually be found in national or sectoral documents (for example energy plan of the country) or can be estimated by national experts to the best of their knowledge.
B44: GACMO automatically calculates the percentage increase from the start year to 2025, 2030, 2035, 2040, 2045 and 2050.
B45: ONCE THE DATA HAVE BEEN INSERTED IN THE GROWTH SHEET, YOU CAN CLICK “GO TO STEP 5: BAU ENERGY BALANCES”. Note that after the user clicks on “Go to Step 5”, the sheets Steps 1-4 will be hidden. This is because Step 4 finishes the process of input data collection for the Start Year and for the BAU scenario. The next steps depict the results for the BAU scenario (Steps 5-6) and the calculations for building the Mitigation Scenario (Step 7). If the user needs to change the input data, it is possible to go back to the initial sheets at any moment by clicking on “Go back to Step 1-4”.
B47: Step 5: BAU Energy balances
B48: The BAU projected energy balances sheet includes the future energy balances for the years 2025, 2030, 2035, 2040, 2045, and 2050. Based on the energy balance data for the start year and on the growth factors introduced by the user, GACMO calculates the data for the Fossil fuel balance and for the Electricity balance projected for the future years 2025, 2030, 2035, 2040, 2045, and 2050. The user can navigate between the energy balance tables for the different years (2025, 2030, 2035, 2040, 2045, 2050) expressed in TJ or ktoe units by clicking the corresponding buttons in the upper part of this sheet. It must be noted that the user should not modify any of the data calculated by GACMO shown in the tables Fossil fuel balance – year – Country X and Electricity balance – year. However, a user may exceptionally decide to modify a specific data in one of these tables in the case that the user would like to reflect a change in the energy matrix which is not taken into account by the projections made by GACMO. The user should only make such a change if he/she is completely familiar with those types of data as the change will have an impact on the emissions scenarios and results obtained.
B49: ONCE YOU HAVE REVIEWED THE TABLES OF THE BAU PROJECTED ENERGY BALANCES SHEET, YOU CAN CLICK “GO TO STEP 6: BAU GHG BALANCES”.
B51: Step 6: BAU projected GHG balances
B52: The BAU projected GHG balances sheet includes the future greenhouse gas emissions balances for the years 2025, 2030, 2035, 2040, 2045, and 2050. Based on the greenhouse gas balance data for the start year and on the growth factors introduced by the user, GACMO calculates the data for the greenhouse gas balances projected for the future years 2025, 2030, 2035, 2040, 2045, and 2050. These data are shown in two tables respectively for the CO2 balance and for the CH4 and N20 balances expressed in ktCO2e. The user can navigate between the greenhouse gas balance tables for the different years (2025, 2030, 2035, 2040, 2045, 2050) by clicking the corresponding buttons in the upper part of this sheet.
B53: It must be noted that the user should not modify any of the data calculated by GACMO shown in the tables CO2 balance and CH4 and N20 balances. However, a user may exceptionally decide to modify a specific data in one of these tables in the case that the user would like to reflect a change in the greenhouse gas balance which is not taken into account by the projections made by GACMO. The user should only make such a change if he/she is completely familiar with those types of data as the change will have an impact on the emissions scenarios and results obtained. In this BAU projected GHG balances sheet, GACMO calculates the total greenhouse gas emissions for the future years 2025, 2030, 2035, 2040, 2045, and 2050 in the BAU scenario. By connecting the points corresponding to those emissions in the start year, 2025, 2030, 2035, 2040, 2045 and 2050, GACMO draws a greenhouse gas emissions curve corresponding to the BAU scenario. This curve can be seen in a graph in the Results sheet.
B54: ONCE YOU HAVE REVIEWED THE TABLES OF THE BAU PROJECTED GHG BALANCES SHEET, YOU CAN CLICK “GO TO STEP 7: MITIGATION OPTIONS”.
B56: Step 7: Mitigations Options
B57: The Mitigation Options sheet includes the mitigation options that will be under implementation in the country by the years 2025, 2030, 2035, 2040, 2045, and 2050. This sheet is used by GACMO to build the greenhouse gas mitigation scenario. GACMO includes 119 mitigation options (Reduction options in column C) grouped by category or activity types (Type in column B). All 119 mitigation options are shown by default for the years 2025, 2030, 2035, 2040, 2045 and 2050. The user can shift between each year by clicking the corresponding year button in the upper part of the sheet. In addition, if the user wants to see only the mitigation options for a specific group of category or activity types, the user can select the corresponding category/ies or activity/ies by clicking the button Select reduction option sector/type in the upper part of the sheet. If the user notices that a specific mitigation option relevant to the country is not included in GACMO, the user can contact UNEP-CCC using the email mentioned in the Introduction sheet, and we will try to include the missing mitigation option.
B58: For each year 2025, 2030, 2035, 2040, 2045 and 2050, the user has to consider the mitigation options that are relevant to the national context and that will be included in the greenhouse gas mitigation scenario. Then for each mitigation option considered, in column I (Units penetrating in 2025/2030/2035/2040/2045/2050) the user needs to indicate the number of units expected to be under implementation by the year 2025 (/2030/2035/2040/2045/2050). For each mitigation option, the number introduced by the user in column I has to take into account the sub-type unit described in column E. This can for example be in “ha” in the case of mitigation options in agriculture, in ”MW” in the case of mitigation options in the energy power sector, in “number of bulbs” in the case of mitigation options in lighting, etc. The number in column I has also to take into account the value already included in the sub-type unit described in column E. For example, for the mitigation option “Efficient lighting with LEDs” (line 33), the value of the sub-type unit is “1000 bulbs”. In this example, if the user expects to have 1 million LED bulbs under implementation by 2025, the number that will be included in column I is 1000, as 1000 x 1000 bulbs = 1 million. Finally, it has to be noted that the numbers indicated for the years 2025, 2030, 2035, 2040, 2045, and 2050 are total numbers (and not cumulative numbers). In our LEDs example, if the user expects to have 1 million LED bulbs under implementation by 2025 and 2 million LED bulbs under implementation by 2030, the numbers that will be included in column I are 1000 for 2025 (as 1000 x 1000 bulbs = 1 million) and 2000 for 2030 (as 2000 x 1000 bulbs = 2 million). Remember that the user only needs to indicate a number in column I for the mitigation options considered relevant in a certain year as per the country's national context. For the mitigation options that are not considered relevant, the corresponding cells in column I are left blank.
B59: In the table of the Mitigation Options sheet, GACMO provides also other information or data for each mitigation option, in many cases calculated from the number of penetrating units included in the column I by the user. These additional information or data are found in the columns D, F, G, H, J, K, L, M, N, O, and P.
B60: • • • • • • • • • • | C60: Column D = abatement cost reduction in US$/ton CO2e. Column F = GHG emissions reduction in tCO2 equivalent per unit of the mitigation option as defined in column E. Column G = total investment cost in Millions of US$ for the mitigation option, as additional cost compared to the total investment cost of the reference option. Column H = total annual operational cost in Millions of US$/year for the mitigation option, as additional cost compared to the total annual operational cost of the reference option. ______________ Column J = total GHG emissions reduction in ktco2 equivalent achieved by the implementation of the number of units of the mitigation option penetrating by the year 2025/2030/2035/2040/2045/2050 (as per column I). Column K = cumulative GHG emissions reduction in ktco2 equivalent achieved by the implementation of the number of units of all the mitigation options penetrating by the year 2025/2030/2035/2040/2045/2050 (as per column I). Column L = cumulative GHG emissions reduction as the % of the total reduction achieved in the year 2025/2030/2035/2040/2045/2050 in comparison to the baseline emissions for this year, by the implementation of the number of units of all the mitigation options penetrating by the year. Columns M, N = savings of diesel and gasoline, which cannot be replaced by biodiesel and bioethanol. Column O = the reduction (savings) in electricity consumption in GWh achieved by the implementation of the number of units of the mitigation option penetrating by the year 2025/2030/2035/2040/2045/2050 (as per column I). Column P = electricity produced in GWh by the implementation of the number of units of the mitigation option penetrating by the year 2025/2030/2035/2040/2045/2050 (as per column I).
B61: In this Mitigation Options sheet, GACMO calculates thus the total greenhouse gas emissions for the future years 2025, 2030, 2035, 2040, 2045, and 2050 in the mitigation scenario, that is including the implementation of the mitigation options considered by the user. By connecting the points corresponding to those emissions in the start year, 2025, 2030, 2035, 2040, 2045, and 2050, GACMO draws a greenhouse gas emissions curve corresponding to the mitigation scenario. This curve can be seen in a graph in the Results sheet.
B62: It must be noted that all the calculations for emissions reductions and costs made by GACMO use default technical and cost values specific to each mitigation option. These default values have been calculated as average values out of the CDM projects pipeline developed at UNEP-CCC. The use of these average default values for emissions reductions and cost data constitutes a good approximation and allows the user to get good results out of GACMO. If the user wishes to have access to the default technical and cost values for a specific mitigation option, he/she can click on the name of the corresponding mitigation option in column C of the Mitigation Options sheet. This will bring the user to a table including all the technical and cost data of the specific mitigation option used in the calculations (please refer to the next section Technology Sheets in case you would like to learn more about these mitigation options table).
B63: ONCE THE DATA HAVE BEEN INSERTED IN THE MITIGATION OPTIONS SHEET AND ONCE YOU HAVE REVIEWED THE TABLES OF THE TECHNOLOGY SHEETS FOR EACH MITIGATION OPTION (see step Technology Sheets below), YOU CAN CLICK “GO TO STEP 8: RESULTS”.
B65: Step - Technology Sheets
B66: All the calculations for emissions reductions and costs made by GACMO use default technical and cost values specific to each mitigation option. These default values have been calculated as average values out of the CDM projects pipeline developed at UNEP-CCC. The use of these average default values for emissions reductions and cost data constitutes a good approximation and allows the user to get good results out of GACMO. To access the table with the default technical and cost values for a specific mitigation option, the user can click on the name of the corresponding mitigation option in column C of the Mitigation Options sheet. This will bring the user to a Technology sheet grouping all the mitigation options of the same category and to a table including all the technical and cost data of the specific mitigation option used in the calculations. Once the user is done reviewing the table in the Technology sheet, click on “Return to Mitigation options” to go back to the Mitigation Options sheet.
B67: It is always recommended that the user takes the time to review the tables including all the default values for technical and cost data of the relevant mitigation options. If the user has values specific to the country's national context for some of the technical and cost data of the relevant mitigation options, the user can replace the corresponding default values with these specific values. By doing so, the user will increase the quality of the results out of GACMO. All the tables including the technical and cost data of the specific mitigation options in the Technology sheets are built in the same way:
B68: • • • • • • • • • • | C68: The top line contains the name of the mitigation option. The upper left table contains the economic calculation with a column for the reduction option (or mitigation option), a column for the reference option (without the implementation of the mitigation action), and a column with the cost impact (can be positive or negative) between the reduction and the reference options. The next line in this part contains the investment in US$ for the reduction and for the reference option (sometimes only the induced increase of the reduction option compared to the reference option, i.e. only the additionality, appears in the table). first column). The next line shows the project life, that is the number of years corresponding to the average life of the reduction or the reference option. The next line shows the annual payment (= levelized cost) of the investment according to the discount rate used (shown in the general inputs table on the right) and the project life. The following lines show the annual cost of operation and maintenance, fuel costs, and, in some cases, material costs. The last line in this part shows the total costs. The lower left table contains the GHG emission calculations with a column for the reduction option, a column for the reference option, and a column with the GHG reduction, that is, the difference between both options. Below this, the resulting abatement cost (also referred to as average abatement cost) in US$/ton CO2 equivalent is calculated. At the bottom, some notes explaining the option/action, if applicable, are displayed. Here the user will often see that an MDL PDD has been used to make the default data.
B69: To make calculations transparent, a table indicating all inputs is displayed on the right.
B70: • • • | C70: The upper part shows the general inputs used for the reference and reduction options. Several of these are taken from the Assumptions sheet. Below this part are the entries for the reduction option, including technical characteristics and unit costs. Below this part are the entries for the reference option.
B72: Step 8: Result sheet
B73: The Results sheet includes all the final results for the greenhouse gas emissions reductions and for the cost calculations. The sheet also displays the graphical results from the data analysis. In the Results sheet, the user will find the following information:
B74: • | C74: A Marginal Abatement Revenue Curve (MAR curve) comparing the relevant mitigation options for the years 2025, 2030, 2035, 2040, 2045, or 2050.
B75: A MAR curve corresponds to an inverted marginal abatement costs curve. The MAR curve is calculated based on the cost (investment and operational costs) of a mitigation option for reducing one unit of greenhouse gas emission – in US$/tCO2 equivalent - (y-axis), and on the total greenhouse gas emission reduction achieved by the same mitigation option per year – in ktCO2 equivalent/year - (x-axis). For a specific mitigation option, the MAR curve provides a graphical representation of the reduction potential of the option versus its cost. By integrating all the relevant mitigation options, the MAR curve compares the potential reductions among all the options versus their costs. Therefore, the MAR curve provides a very easy and quick way for the user, to identify the “win-win” mitigation options, that is the options that allow reducing the greenhouse gas emissions while having positive savings compared to their reference option. It must be noted that in the case of the MAR curve, the “win-win” mitigation options are located above the x-axis.
B76: • • • • • | C76: A table with the total greenhouse gas emissions levels reached in the different years (start year, 2025, 2030, 2035, 2040, 2045, and 2050) for the BAU scenario and for the mitigation scenario. The graph showing the curves for the total emissions in the BAU and the mitigation scenarios. A table showing the sectoral split of the emissions in the different years (start year, 2025, 2030, 2035, 2040, 2045, and 2050) for the BAU scenario. The graph showing the curves for the sectoral emissions in the BAU scenario. A table showing the sectoral split of the emissions in the different years (start year, 2025, 2030, 2035, 2040, 2045, and 2050) for the mitigation scenario.
B77: IN CASE THE USER WOULD LIKE TO USE GACMO FOR TRACKING PURPOSES, THAT IS FOR EX-POST ESTIMATIONS, CLICK “GO TO STEP 9: TRACKING PROGRESS".
B79: Step 9: Tracking Progress
B80: The Tracking progress sheet is used by the user to monitor the progress made in implementing each mitigation action. The Tracking progress sheet is thus used ex-post, that is, once the mitigation options are under implementation or have been implemented, to estimate and monitor the effective reductions of GHG emissions. The sheet includes a table with a structure similar to the table found in the Mitigation Options sheet. The table includes the 119 mitigation options (Reduction options in column C) grouped by category or activity types (Type in column B). All 119 mitigation options are shown by default. If the user wants to see only the mitigation options for a specific group of category or activity types, the user can select the corresponding category/ies or activity/ies by clicking the button "Select sector/type for Tracking input" in the upper part of the sheet.
B81: For the relevant mitigation options, the user has to introduce the number of units which has been effectively installed or implemented at the end of each year. The number of units inserted by the user has to take into account the value already included in the sub-type unit described in column D (as explained in the section about the Mitigation Options sheet). Once the number of units of a specific mitigation option has been introduced in the column of a specific year, GACMO automatically calculates the total greenhouse gas emissions reduction achieved by the implementation of the corresponding units (in ktCO2 equivalent/year). These results can thus be used to monitor the real greenhouse gas emissions reduction achieved by a country by implementing a specific mitigation option or a group of options. In addition, GACMO includes three additional columns (AC, AD, and AE) where the user can introduce information related to the sources of finance used to implement the options and other information such as the entity responsible for implementing the option.

Sheet Guidance (hidden)
B2: Quick step by step guidance for using GACMO: | S2: Guidance sheet headings! | U2: Start row | V2: End row
S3: How to Start | U3: 11 | V3: 16
B4: All cells in the worksheets where inputs are needed are | D4: yellow. | S4: Assumptions | U4: 19 | V4: 31
B5: Most of these cells contain default values. Those can be modified where appropriate. | S5: Energy Balance | U5: =V4+3 -> 34 | V5: 38
S6: GHG Balance | U6: =V5+3 -> 41 | V6: 43
S7: Growth | U7: =V6+3 -> 46 | V7: 51
S8: BAU projected energy balances | U8: 54 | V8: 55
S9: BAU projected GHG balances | U9: 58 | V9: 60
B10: How to start | S10: Mitigations Options | U10: 63 | V10: 69
B11: This version of the GACMO tool includes different spreadsheets contained in an Excel file that the user needs to consider following a stepwise approach. The interface of the tool is made so that the user is taken from the first spreadsheet to the last spreadsheet following a logical order. The two first sheets are the Introduction and the Guidance. We strongly recommend the user to read these two sheets before starting using the tool. The tool includes seven technical sheets: Assumptions, Energy Balance, GHG Balance, Growth, BAU projected Energy Balances, BAU projected GHG Balances, and Mitigation Options. These sheets include a series of tables that the user needs to consider and where the user will have to introduce the data inputs required to run the GACMO tool. Each sheet starts with an introductory text explaining the purpose of the sheet and what data and inputs need to be considered by the user. The next sheet Results includes all the results and graphics resulting from the application of the GACMO tool run by the user. Each sheet starts with an introductory text describing the results found on the sheet. Note that a button is also provided to the user to automatically produce a summary of the results as a PDF document. | S11: Technology sheets (optional step) | U11: 72 | V11: 76
S12: Results | U12: 79 | V12: 83
S13: MRV | U13: 86 | V13: 87
B14: The last sheet Tracking progress is the sheet that can be used by the user to monitor the progress made in implementing each mitigation action. The Tracking progress sheet is thus used ex-post, that is, once the mitigation options are under implementation or have been implemented, to estimate and monitor the effective reductions of GHG emissions. Finally, GACMO includes a long list of technology sheets, including "Agriculture", "Biomass Energy", "CCS", "Cement", "Coalmine CH4", "EE households", "EE Industry", "EE own generation", "EE service", "EE supply side", "E distribution", "Forestry", "Fossil fuel switch",…. These sheets include the tables with the specific cost and technical data of each mitigation option, as well as the corresponding reference option. Note that these sheets are hidden by default, but the user can access those sheets and the data table of each mitigation option by clicking on the name of the mitigation option in the Mitigation Options sheet. A more detailed guidance for the use of each sheet is provided below. This guidance can also be opened in PDF and printed by clicking on the two buttons located in the upper-right corner of this Guidance sheet. | U14: 90 | V14: 105
B18: Step 1: Assumptions
B19: The Assumption sheet includes all the basic country, cost, and technical data that the GACMO tool needs as inputs for the calculations. First, in the Basic country information table, the user must introduce:
B20: • • • • • | C20: The name of the country. The start year = the year in which the data of the energy balance and GHG emissions of non-energy sectors are collected. This is generally the most recent year for which the necessary data are available. The currency = the system of money in general use in the country The exchange rate used (1US$=) = the price of the country's money in relation to the US dollar. Discount rate = the interest rate used to determine the present value of future cash flows in a discounted cash flow analysis.
B21: Second, in the Energy prices used for the entire future period and Fuel prices for the entire future period tables, the user must introduce:
B22: • | C22: The Energy prices in US$/unit for crude oil, all distillates, coal, lignite, and natural gas used in the energy mix of the country. The model uses the historical relationship between the price of crude oil/liter and the price of distillate/liter. These prices can be entered as constant fuel prices estimated for the future.
B23: Third, in the Electricity and in the Grid Emission Factor tables, the user must introduce:
B24: • • • | C24: US$/kWh = The price of electricity in US$/kWh Combined Margin (CM) Other = the grid emission factor or CO2 emission factor for electricity production. Note that the value for the Electricity grid losses & own consumption is calculated by the GACMO tool and imported from the Energy Balance sheet.
B25: Fourth, in the Sector specific Emission factors (kg GHG/GJ) table, the user must introduce:
B26: • | C26: The greenhouse gas emission factor for all the fossil fuels. It has to be noted that average default values for those fuel emissions factors are provided by GACMO, but the user can adjust them if national values are available for the same fuels.
B27: Fifth, in the Global warming potentials tables, the user must introduce:
B28: • | C28: The Global Warming Potential (GWP) for methane (CH4) and for nitrous oxide (N2O). GACMO provides the IPCC GWP as default values. It has to be noted that the GWP of PFC gas is also included in GACMO but it is at the level of the "HFC PFC SF6 technology sheet"
B29: Finally, in the Population and GDP in Start year table, the user must introduce:
B30: • | C30: The Population and the Gross Domestic Product in the start year
B31: ONCE THE DATA HAVE BEEN INSERTED IN THE ASSUMPTION SHEET, YOU CAN CLICK “GO TO STEP 2: ENERGY BALANCE”.
B33: Step 2: Energy Balance
B34: The Energy Balance sheet includes the energy data disaggregated by sector of activity for the start year. In the two first tables Energy balance in TJ – Country X - Base year and Base year energy balance in mega tonnes and million cubic meters, the balance contains columns for all the fossil fuels, and rows for all the normal sectors of the energy balance.
B35: • | C35: For the fossil fuels used in the country's energy mix at the start year, the user must include the amounts of the different fuels used by each normal sector of activity. Usually, the input unit for this energy balance is TJ. However, the user can choose to insert the data in units of mass or volume (mega tonnes and million cubic meters). The user can select either one or another input by clicking the button “Select unit for input (TJ or Mass/volume)”.
B36: Once the user has included the energy balance data in TJ or mass/volume units, GACMO automatically calculates the energy balance in ktoe unit. For those calculations, GACMO uses the default IPCC emission factors in tCO2/toe, and calorific values in toe/(ton or m3). The table with the energy balance calculated in ktoe can be shown (or hidden) by clicking the button “Show/Hide table in ktoe values”. Finally, in the last table Base year electricity balance in GWh, the user must include:
B37: • • | C37: Electricity consumption data = amounts of electricity (in GWh unit) used by each normal sector of activity Electricity production data = amounts of electricity (in GWh unit) produced with each fossil fuel or renewable energy source
B38: ONCE THE DATA HAVE BEEN INSERTED IN THE ENERGY BALANCE SHEET, YOU CAN CLICK “GO TO STEP 3: GHG BALANCE”.
B40: Step 3: GHG Balance
B41: The GHG Balance sheet includes the GHG emissions data disaggregated by sector of activity for the start year. The first table CO2 Emissions – Country X - Start year includes the balance for the CO2 emissions at the start year expressed in ktCO2 equivalents unit. GACMO automatically calculates the data in this table. The user should not insert or modify the data in this table. In the second table Non-CO2 emissions, non-fuel combustion sectors, the user must include:
B42: • | C42: The CH4 and N2O data, expressed in ktCO2 equivalent units for each sector/sub-sector as defined by the IPCC. Those data can be found in the greenhouse gas national inventory of the country calculated for the start year. If no data are available for the start year, the user can alternatively take the data for the year closest to the start year.
B43: ONCE THE DATA HAVE BEEN INSERTED IN THE GHG BALANCE SHEET, YOU CAN CLICK “GO TO STEP 4: GROWTH FACTORS”.
B45: Step 4: Growth factors
B46: The Growth sheet includes the expected growth in energy consumption for the different sectors of activity for different periods of time. In the table Growth from the start year – Country X, the user must include:
B47: • • | C47: The Population growth, estimated for the different periods: start year-2025, 2025-2030, 2030-2035, 2035-2040, 2040-2045 and 2045-2050. The GDP growth, estimated for the different periods: start year-2025, 2025-2030, 2030-2035, 2035-2040, 2040-2045 and 2045-2050.
B48: Note that these two parameters Population growth and GDP growth are only used by GACMO to calculate the GHG emissions of the country expressed per capita or per GDP units.
B49: • | C49: The annual growth in energy consumption estimated for each sector of activity for the different periods: start year-2025, 2025-2030, 2030-2035, 2035-2040, 2040-2045 and 2045-2050. It must be noted that those data can be estimated from the historical values of each sector of activity. Alternatively, those estimations can eventually be found in national or sectoral documents (for example energy plan of the country) or can be estimated by national experts to the best of their knowledge.
B50: GACMO automatically calculates the percentage increase from the start year to 2025, 2030, 2035, 2040, 2045 and 2050.
B51: ONCE THE DATA HAVE BEEN INSERTED IN THE GROWTH SHEET, YOU CAN CLICK “GO TO STEP 5: BAU ENERGY BALANCES”. Note that after the user clicks on “Go to Step 5”, the sheets Steps 1-4 will be hidden. This is because Step 4 finishes the process of input data collection for the Start Year and for the BAU scenario. The next steps depict the results for the BAU scenario (Steps 5-6) and the calculations for building the Mitigation Scenario (Step 7). If the user needs to change the input data, it is possible to go back to the initial sheets at any moment by clicking on “Go back to Step 1-4”.
B53: Step 5: BAU Energy balances
B54: The BAU projected energy balances sheet includes the future energy balances for the years 2025, 2030, 2035, 2040, 2045, and 2050. Based on the energy balance data for the start year and on the growth factors introduced by the user, GACMO calculates the data for the Fossil fuel balance and for the Electricity balance projected for the future years 2025, 2030, 2035, 2040, 2045, and 2050. The user can navigate between the energy balance tables for the different years (2025, 2030, 2035, 2040, 2045, 2050) expressed in TJ or ktoe units by clicking the corresponding buttons in the upper part of this sheet. It must be noted that the user should not modify any of the data calculated by GACMO shown in the tables Fossil fuel balance – year – Country X and Electricity balance – year. However, a user may exceptionally decide to modify a specific data in one of these tables in the case that the user would like to reflect a change in the energy matrix which is not taken into account by the projections made by GACMO. The user should only make such a change if he/she is completely familiar with those types of data as the change will have an impact on the emissions scenarios and results obtained.
B55: ONCE YOU HAVE REVIEWED THE TABLES OF THE BAU PROJECTED ENERGY BALANCES SHEET, YOU CAN CLICK “GO TO STEP 6: BAU GHG BALANCES”.
B57: Step 6: BAU projected GHG balances
B58: The BAU projected GHG balances sheet includes the future greenhouse gas emissions balances for the years 2025, 2030, 2035, 2040, 2045, and 2050. Based on the greenhouse gas balance data for the start year and on the growth factors introduced by the user, GACMO calculates the data for the greenhouse gas balances projected for the future years 2025, 2030, 2035, 2040, 2045, and 2050. These data are shown in two tables respectively for the CO2 balance and for the CH4 and N20 balances expressed in ktCO2e. The user can navigate between the greenhouse gas balance tables for the different years (2025, 2030, 2035, 2040, 2045, 2050) by clicking the corresponding buttons in the upper part of this sheet.
B59: It must be noted that the user should not modify any of the data calculated by GACMO shown in the tables CO2 balance and CH4 and N20 balances. However, a user may exceptionally decide to modify a specific data in one of these tables in the case that the user would like to reflect a change in the greenhouse gas balance which is not taken into account by the projections made by GACMO. The user should only make such a change if he/she is completely familiar with those types of data as the change will have an impact on the emissions scenarios and results obtained. In this BAU projected GHG balances sheet, GACMO calculates the total greenhouse gas emissions for the future years 2025, 2030, 2035, 2040, 2045, and 2050 in the BAU scenario. By connecting the points corresponding to those emissions in the start year, 2025, 2030, 2035, 2040, 2045, and 2050, GACMO draws a greenhouse gas emissions curve corresponding to the BAU scenario. This curve can be seen in a graph in the Results sheet.
B60: ONCE YOU HAVE REVIEWED THE TABLES OF THE BAU PROJECTED GHG BALANCES SHEET, YOU CAN CLICK “GO TO STEP 7: MITIGATION OPTIONS”.
B62: Step 7: Mitigations Options
B63: The Mitigation Options sheet includes the mitigation options that will be under implementation in the country by the years 2025, 2030, 2035, 2040, 2045, and 2050. This sheet is used by GACMO to build the greenhouse gas mitigation scenario. GACMO includes 119 mitigation options (Reduction options in column C) grouped by category or activity types (Type in column B). All 119 mitigation options are shown by default for the years 2025, 2030, 2035, 2040, 2045, and 2050. The user can shift between each year by clicking the corresponding year button in the upper part of the sheet. In addition, if the user wants to see only the mitigation options for a specific group of category or activity types, the user can select the corresponding category/ies or activity/ies by clicking the button Select reduction option sector/type in the upper part of the sheet. If the user notices that a specific mitigation option relevant to the country is not included in GACMO, the user can contact UNEP-CCC using the email mentioned in the Introduction sheet, and we will try to include the missing mitigation option.
B64: For each year 2025, 2030, 2035, 2040, 2045, and 2050, the user has to consider the mitigation options that are relevant to the national context and that will be included in the greenhouse gas mitigation scenario. Then for each mitigation option considered, in column I (Units penetrating in 2025/2030/2035/2040/2045/2050) the user needs to indicate the number of units expected to be under implementation by the year 2025 (/2030/2035/2040/2045/2050). For each mitigation option, the number introduced by the user in column I has to take into account the sub-type unit described in column E. This can for example be in “ha” in the case of mitigation options in agriculture, in ”MW” in the case of mitigation options in the energy power sector, in “number of bulbs” in the case of mitigation options in lighting, etc. The number in column I has also to take into account the value already included in the sub-type unit described in column E. For example, for the mitigation option “Efficient lighting with LEDs” (line 33), the value of the sub-type unit is “1000 bulbs”. In this example, if the user expects to have 1 million LED bulbs under implementation by 2025, the number that will be included in column I is 1000, as 1000 x 1000 bulbs = 1 million. Finally, it has to be noted that the numbers indicated for the years 2025, 2030, 2035, 2040, 2045, and 2050 are total numbers (and not cumulative numbers). In our LEDs example, if the user expects to have 1 million LED bulbs under implementation by 2025 and 2 million LED bulbs under implementation by 2030, the numbers that will be included in column I are 1000 for 2025 (as 1000 x 1000 bulbs = 1 million) and 2000 for 2030 (as 2000 x 1000 bulbs = 2 million). Remember that the user only needs to indicate a number in column I for the mitigation options considered relevant in a certain year as per the country's national context. For the mitigation options that are not considered relevant, the corresponding cells in column I are left blank.
B65: In the table of the Mitigation Options sheet, GACMO provides also other information or data for each mitigation option, in many cases calculated from the number of penetrating units included in the column I by the user. These additional information or data are found in the columns D, F, G, H, J, K, L, M, N, O, and P.
B66: • • • • • • • • • • | C66: Column D = abatement cost reduction in US$/ton CO2e. Column F = GHG emissions reduction in tCO2 equivalent per unit of the mitigation option as defined in column E. Column G = total investment cost in Millions of US$ for the mitigation option, as additional cost compared to the total investment cost of the reference option. Column H = total annual operational cost in Millions of US$/year for the mitigation option, as additional cost compared to the total annual operational cost of the reference option. ______________ Column J = total GHG emissions reduction in ktco2 equivalent achieved by the implementation of the number of units of the mitigation option penetrating by the year 2025/2030/2035/2040/2045/2050 (as per column I). Column K = cumulative GHG emissions reduction in ktco2 equivalent achieved by the implementation of the number of units of all the mitigation options penetrating by the year 2025/2030/2035/2040/2045/2050 (as per column I). Column L = cumulative GHG emissions reduction as the % of the total reduction achieved in the year 2025/2030/2035/2040/2045/2050 in comparison to the baseline emissions for this year, by the implementation of the number of units of all the mitigation options penetrating by the year. Columns M, N = savings of diesel and gasoline, which cannot be replaced by biodiesel and bioethanol. Column O = the reduction (savings) in electricity consumption in GWh achieved by the implementation of the number of units of the mitigation option penetrating by the year 2025/2030/2035/2040/2045/2050 (as per column I). Column P = electricity produced in GWh by the implementation of the number of units of the mitigation option penetrating by the year 2025/2030/2035/2040/2045/2050 (as per column I).
B67: In this Mitigation Options sheet, GACMO calculates thus the total greenhouse gas emissions for the future years 2025, 2030, 2035, 2040, 2045 and 2050 in the mitigation scenario, that is including the implementation of the mitigation options considered by the user. By connecting the points corresponding to those emissions in the start year, 2025, 2030, 2035, 2040, 2045, and 2050, GACMO draws a greenhouse gas emissions curve corresponding to the mitigation scenario. This curve can be seen in a graph in the Results sheet.
B68: It must be noted that all the calculations for emissions reductions and costs made by GACMO use default technical and cost values specific to each mitigation option. These default values have been calculated as average values out of the CDM projects pipeline developed at UNEP-CCC. The use of these average default values for emissions reductions and cost data constitutes a good approximation and allows the user to get good results out of GACMO. If the user wishes to have access to the default technical and cost values for a specific mitigation option, he/she can click on the name of the corresponding mitigation option in column C of the Mitigation Options sheet. This will bring the user to a table including all the technical and cost data of the specific mitigation option used in the calculations (please refer to the next section Technology Sheets in case you would like to learn more about these mitigation options table).
B69: ONCE THE DATA HAVE BEEN INSERTED IN THE MITIGATION OPTIONS SHEET AND ONCE YOU HAVE REVIEWED THE TABLES OF THE TECHNOLOGY SHEETS FOR EACH MITIGATION OPTION (see step Technology Sheets below), YOU CAN CLICK “GO TO STEP 8: RESULTS”.
B71: Step - Technology Sheets
B72: All the calculations for emissions reductions and costs made by GACMO use default technical and cost values specific to each mitigation option. These default values have been calculated as average values out of the CDM projects pipeline developed at UNEP-CCC. The use of these average default values for emissions reductions and cost data constitutes a good approximation and allows the user to get good results out of GACMO. To access the table with the default technical and cost values for a specific mitigation option, the user can click on the name of the corresponding mitigation option in column C of the Mitigation Options sheet. This will bring the user to a Technology sheet grouping all the mitigation options of the same category and to a table including all the technical and cost data of the specific mitigation option used in the calculations. Once the user is done reviewing the table in the Technology sheet, click on “Return to Mitigation options” to go back to the Mitigation Options sheet.
B73: It is always recommended that the user takes the time to review the tables including all the default values for technical and cost data of the relevant mitigation options. If the user has values specific to the country's national context for some of the technical and cost data of the relevant mitigation options, the user can replace the corresponding default values with these specific values. By doing so, the user will increase the quality of the results out of GACMO. All the tables including the technical and cost data of the specific mitigation options in the Technology sheets are built in the same way:
B74: • • • • • • • • • • | C74: The top line contains the name of the mitigation option. The upper left table contains the economic calculation with a column for the reduction option (or mitigation option), a column for the reference option (without the implementation of the mitigation action), and a column with the cost impact (can be positive or negative) between the reduction and the reference options. The next line in this part contains the investment in US$ for the reduction and for the reference option (sometimes only the induced increase of the reduction option compared to the reference option, i.e. only the additionality, appears in the table). first column). The next line shows the project life, that is the number of years corresponding to the average life of the reduction or the reference option. The next line shows the annual payment (= levelized cost) of the investment according to the discount rate used (shown in the general inputs table on the right) and the project life. The following lines show the annual cost of operation and maintenance, fuel costs, and, in some cases, material costs. The last line in this part shows the total costs. The lower left table contains the GHG emission calculations with a column for the reduction option, a column for the reference option, and a column with the GHG reduction, that is, the difference between both options. Below this, the resulting abatement cost (also referred to as average abatement cost) in US$/ton CO2 equivalent is calculated. At the bottom, some notes explaining the option/action, if applicable, are displayed. Here the user will often see that an MDL PDD has been used to make the default data.
B75: To make calculations transparent, a table indicating all inputs is displayed on the right.
B76: • • • | C76: The upper part shows the general inputs used for the reference and reduction options. Several of these are taken from the Assumptions sheet. Below this part are the entries for the reduction option, including technical characteristics and unit costs. Below this part are the entries for the reference option.
B78: Step 8: Results
B79: The Results sheet includes all the final results for the greenhouse gas emissions reductions and for the cost calculations. The sheet also displays the graphical results from the data analysis. In the Results sheet, the user will find the following information:
B80: • | C80: A Marginal Abatement Revenue Curve (MAR curve) comparing the relevant mitigation options for the years 2025, 2030, 2035, 2040, 2045 or 2050.
B81: A MAR curve corresponds to an inverted marginal abatement costs curve. The MAR curve is calculated based on the cost (investment and operational costs) of a mitigation option for reducing one unit of greenhouse gas emission – in US$/tCO2 equivalent - (y-axis), and on the total greenhouse gas emission reduction achieved by the same mitigation option per year – in ktCO2 equivalent/year - (x-axis). For a specific mitigation option, the MAR curve provides a graphical representation of the reduction potential of the option versus its cost. By integrating all the relevant mitigation options, the MAR curve compares the potential reductions among all the options versus their costs. Therefore, the MAR curve provides a very easy and quick way for the user, to identify the “win-win” mitigation options, that is the options that allow reducing the greenhouse gas emissions while having positive savings compared to their reference option. It must be noted that in the case of the MAR curve, the “win-win” mitigation options are located above the x-axis.
B82: • • • • • | C82: A table with the total greenhouse gas emissions levels reached in the different years (start year, 2025, 2030, 2035, 2040, 2045 and 2050) for the BAU scenario and for the mitigation scenario._____________ The graph showing the curves for the total emissions in the BAU and the mitigation scenarios. A table showing the sectoral split of the emissions in the different years (start year, 2025, 2030, 2035, 2040, 2045 and 2050) for the BAU scenario. The graph showing the curves for the sectoral emissions in the BAU scenario. A table showing the sectoral split of the emissions in the different years (start year, 2025, 2030, 2035, 2040, 2045 and 2050) for the mitigation scenario.
B83: IN CASE THE USER WOULD LIKE TO USE GACMO FOR TRACKING PURPOSES, THAT IS FOR EX-POST ESTIMATIONS, CLICK “GO TO STEP 9: TRACKING PROGRESS".
B85: Step 9: Results BTR
B86: Use Results BTR sheet if you plan to utilize GACMO results for the Biennial Transparency Report (BTR). The Common Tabular Formats (CTFs) are integral to the BTRs under the Paris Agreement. The tables in this Sheet correspond to the CTF Table 9 “Information on projections of greenhouse gas emissions and removals under a ‘without measures’ scenario” and CTF Table 7 “Information on projections of greenhouse gas emissions and removals under a ‘with measures’ scenario”. Therefore, you can directly incorporate the data from these tables into CTF Tables 7 and 9.
B87: Additionally, CTF Table 8, “Information on projections of greenhouse gas emissions and removals under a ‘with additional measures’ scenario” is provided in this Sheet. (The GACMO tool can generate one Business-As-Usual scenario and one mitigation scenario within a single GACMO file. If needed, a second mitigation scenario can be added by creating an additional GACMO file. Copy the results for the third “with additional measures” scenario into this third table.)
B89: Step 10: Tracking progress
B90: The Tracking progress sheet is used by the user to monitor the progress made in implementing each mitigation action. The Tracking progress sheet is thus used ex-post, that is, once the mitigation options are under implementation or have been implemented, to estimate and monitor the effective reductions of GHG emissions. The sheet includes a table with a structure similar to the table found in the Mitigation Options sheet. The table includes the 119 mitigation options (Reduction options in column C) grouped by category or activity types (Type in column B). All 119 mitigation options are shown by default. If the user wants to see only the mitigation options for a specific group of category or activity types, the user can select the corresponding category/ies or activity/ies by clicking the button "Select sector/type for Tracking input" in the upper part of the sheet.
B98: For the relevant mitigation options, the user has to introduce the number of units which has been effectively installed or implemented at the end of each year. The number of units inserted by the user has to take into account the value already included in the sub-type unit described in column D (as explained in the section about the Mitigation Options sheet). Once the number of units of a specific mitigation option has been introduced in the column of a specific year, GACMO automatically calculates the total greenhouse gas emissions reduction achieved by the implementation of the corresponding units (in ktCO2 equivalent/year). These results can thus be used to monitor the real greenhouse gas emissions reduction achieved by a country by implementing a specific mitigation option or a group of options. In addition, GACMO includes three additional columns (AC, AD, and AE) where the user can introduce information related to the sources of finance used to implement the options and other information such as the entity responsible for implementing the option.

Sheet Assumptions (hidden)
B1: Step 1 - Assumptions
B8: Basic country information | F8: The Assumptions sheet includes all the basic country, cost, and technical data that the GACMO tool needs as inputs for the calculations. This sheet must be filled in by the user. All the cells in the eight tables displayed on the sheet must be considered by the user. Some of these cells may already include default values for some data, but the user can adjust those values if national values are available. Please refer to the Guidance for further details on the data included in this sheet and on how to fill it in. Once all the data have been inserted in the Assumptions sheet, you can click “Go to step 2: Energy balance”. | T8: Guidance sheet headings! | V8: Start row | W8: End row
B9: Country: | S9: 1 | T9: How to Start | V9: 11 | W9: 16
B10: Start year (latest inventory): | S10: 2 | T10: Assumptions | V10: 19 | W10: 29
B11: Currency: | S11: 3 | T11: Energy Balance | V11: 32 | W11: 36
B12: Exchange rate used (1US$=): | D12: =IF(Currency="Currency Y","",Currency) ->  | S12: 4 | T12: GHG Balance | V12: =W11+3 -> 39 | W12: 41
B13: Discount rate = | S13: 5 | T13: Growth | V13: =W12+3 -> 44 | W13: 49
S14: 6 | T14: BAU projected energy balances | V14: 52 | W14: 53
S15: 7 | T15: BAU projected GHG balances | V15: 56 | W15: 58
B16: Energy prices used for the entire future period: | S16: 8 | T16: Mitigations Options | V16: 61 | W16: 67
B17: Crude oil | C17: 50 | D17: US$/bbl | S17: 9 | T17: Technology sheets (optional step) | V17: 70 | W17: 74
B18: Crude oil | C18: =C17/159 -> 0.3144654088 | D18: US$/litre | S18: 10 | T18: Results | V18: 77 | W18: 81
B19: LNG | C19: 3.25 | D19: US$/MBTU | S19: 11 | T19: MRV | V19: 84 | W19: 85
B20: Natural gas | C20: =C19/1.055 -> 3.08056872 | D20: US$/GJ
B21: Coal | C21: 50 | D21: US$/ton
B25: Fuel prices for the entire future period & fuel physical-chemical properties
C26: LPG | D26: Gasoline | E26: Bioethanol | F26: Jet Fuel | G26: Diesel oil | H26: Biodiesel | I26: Heavy Fuel Oil | J26: Kerosene | K26: Coal | L26: Coke | M26: Petroleum coke | N26: Lignite | O26: Natural Gas
B27: Distillate price/crude oil price (litre/litre) | C27: 0.9 | D27: 1.4 | F27: 1.4 | G27: 1.2 | I27: 0.8 | J27: 1.4
B28: Fuel price (US$/liter) | C28: =$C$18*C27 -> 0.2830188679 | D28: =$C$18*D27 -> 0.4402515723 | E28: 0.83 | F28: =$C$18*F27 -> 0.4402515723 | G28: =$C$18*G27 -> 0.3773584906 | H28: 1.2 | I28: =$C$18*I27 -> 0.251572327 | J28: =$C$18*J27 -> 0.4402515723
B29: Fuel price (US$/GJ) | C29: =C28*1000/C31/C30 -> 11.08052885 | D29: =D28*1000/D31/D30 -> 13.10272537 | F29: =(F28*1000/F30)/F31 -> 12.34165655 | G29: =G28*1000/G31/G30 -> 10.36778902 | I29: =(I28*1000/I30)/I31 -> 6.387321626 | J29: =(J28*1000/J30)/J31 -> 12.29752995 | K29: =C21/K31 -> 2.003205128 | L29: =K29 -> 2.003205128 | M29: =L29 -> 2.003205128 | O29: =+C20 -> 3.08056872
B30: Fuel density (t/m3) | C30: 0.54 | D30: 0.75 | E30: =1/(D76/1000) -> 0.7552870091 | F30: 0.8 | G30: 0.84 | H30: =1/(D77/1000) -> 0.8833922261 | I30: 0.98 | J30: 0.8 | O30: (MJ/Nm3)
B31: Fuel calorific value (GJ/t) | C31: 47.3 | D31: 44.8 | E31: =+F76 -> 26.79552 | F31: 44.59 | G31: 43.33 | H31: =+F76 -> 26.79552 | I31: 40.19 | J31: 44.75 | K31: 24.96 | L31: 28 | M31: 31 | N31: 18.3 | O31: 39
B33: Electricity
B34: Electricity price and grid information | C34: Grid 1
B35: US$/kWh
B37: Grid Emission Factor (tCO2/MWh)
B38: Combined Margin (CM) Solar & Wind
B39: Combined Margin (CM) Other
B40: Electricity grid losses & own consumption | C40: ='Energy Balance'!H103 -> 1 | D40: This value will be imported from step 2
B43: Sector specific Emission factors (kg GHG/GJ)
B44: Sector | C44: Emission factors | D44: CO2 | E44: CH4 | F44: N2O
B45: Power plant | C45: Fuel oil | D45: =21.1*44/12 -> 77.36666667 | E45: 0.003 | F45: 0.0006
C46: Diesel oil | D46: =20.2*44/12 -> 74.06666667 | E46: 0.003 | F46: 0.0006
C47: Gasoline | D47: =18.9*44/12 -> 69.3 | E47: 0.003 | F47: 0.0006
C48: Jet fuel | D48: =19.5*44/12 -> 71.5 | E48: 0.003 | F48: 0.0006
C49: Kerosene | D49: =19.6*44/12 -> 71.86666667 | E49: 0.003 | F49: 0.0006
C50: LPG | D50: =17.2*44/12 -> 63.06666667 | E50: 0.001 | F50: 0.0001
C51: Natural gas | D51: 56.1 | E51: 0.001 | F51: 0.0001
C52: Coal | D52: =25.8*44/12 -> 94.6 | E52: 0.001 | F52: 0.0014
C53: Lignite | D53: =27.6*44/12 -> 101.2 | E53: =+E52 -> 0.001 | F53: 0.0014
B54: Industry | C54: Oil | D54: as above | E54: 0.002 | F54: 0.0006
C55: Natural gas | E55: 0.005 | F55: 0.0001
C56: Coal | E56: 0.01 | F56: 0.0014
C57: Charcoal | E57: 0.2 | F57: 0.004
B58: Residential | C58: Oil | D58: as above | E58: 0.01 | F58: 0.0006
C59: Natural gas | E59: 0.005 | F59: 0.0001
C60: Coal | E60: 0.3 | F60: 0.0014
C61: Charcoal | E61: 0.2 | F61: 0.004
B63: Global warming potentials: | C63: SAR | D63: AR4 | E63: AR5 | F63: GWP used | G63: Unit | H63: TAR
B64: 1 Ton CH4 = | C64: 21 | D64: 25 | E64: 28 | F64: =+E64 -> 28 | G64: Ton CO2 | H64: 23
B65: 1 Ton N2O = | C65: 310 | D65: 298 | E65: 265 | F65: =+E65 -> 265 | G65: Ton CO2 | H65: 296
B67: Population and GDP in start year | C67: =C10 -> 0
B68: Population (thousands)
B69: GDP (Current MUS$)
B72: Source:
B73: http://www.iisd.org/gsi/sites/default/files/bf_uk_fqdmodel.pdf
B74: CONVERSION FACTORS
C75: Tonnes | D75: Litres | E75: TOE | F75: GJ
B76: Ethanol | C76: 1 | D76: 1324 | E76: 0.64 | F76: =E76*D$86 -> 26.79552
B77: Biodiesel | C77: 1 | D77: 1132 | E77: 0.86 | F77: =E77*D$86 -> 36.00648
B78: Diesel | C78: 1 | D78: =1/0.84*1000 -> 1190.47619 | E78: =43.33/41.868 -> 1.03491927 | F78: =E78*D$86 -> 43.33
B79: Gasoline | C79: 1 | D79: =1/0.75*1000 -> 1333.333333 | E79: =44.8/41.868 -> 1.070029617 | F79: =E79*D$86 -> 44.8
C80: Tonnes
B81: Ethanol | C81: 1
B82: Biodiesel | C82: 1 | G82: 1 toe costs | H82: =+D77/E77*H28 -> 1579.534884 | I82: US $
B83: Diesel | C83: 1
B84: Gasoline | C84: 1
C86: 1 toe = | D86: 41.868 | E86: GJ
C88: LPG | D88: Gasoline | E88: Jet Fuel | F88: Diesel | G88: HFO | H88: Kerosene and other | I88: Total oil products | J88: Coal | K88: Lignite | L88: Natural Gas | M88: Coke | N88: Petrocoke | O88: Total energy (fossil)
C89: =C31 -> 47.3 | D89: =D31 -> 44.8 | E89: =F31 -> 44.59 | F89: =G31 -> 43.33 | G89: =I31 -> 40.19 | H89: =J31 -> 44.75 | J89: =K31 -> 24.96 | K89: =N31 -> 18.3 | L89: =O31 -> 39 | M89: =L31 -> 28 | N89: =M31 -> 31

Sheet Energy Balance (hidden)
B2: Step 2 - Input start year energy balance
B4: The Energy Balance sheet includes the energy data disaggregated by sector of activity for the start year. This sheet must be filled in by the user. The user has to fill in one of the two first tables (Energy balance in TJ – Country X - Start year or Start year energy balance in mega tonnes and million cubic meters) corresponding to the fossil fuels balance for the start year expressed in TJ or in mass/volume units). Once the user has included the energy balance data in TJ or mass/volume units, GACMO automatically calculates the energy balance in ktoe unit. Then, the user has to fill in the table Start year electricity balance in GWh, corresponding to the electricity balance for the start year in GWh. Please refer to the Guidance for further details on the data included in this sheet and on how to fill in it. Once all the data have been inserted in the Energy Balance sheet, you can click “Go to step 3: GHG balance”.
B15: ="Energy balance in TJ - "&Assumptions!C9&" - Start year - "&Assumptions!$C$10 -> Energy balance in TJ - - Start year -
B16: Fossil fuel energy balance in TJ | D16: LPG | E16: Gasoline | F16: Jet Fuel | G16: Diesel | H16: HFO | I16: Kerosene and other | J16: Total oil products | K16: Coal | L16: Lignite | M16: Natural Gas | N16: Coke | O16: Petrocoke | P16: Total energy (fossil)
B17: Unit | D17: TJ | E17: TJ | F17: TJ | G17: TJ | H17: TJ | I17: TJ | J17: TJ | K17: TJ | L17: TJ | M17: TJ | N17: TJ | O17: TJ | P17: TJ
B18: Total all energy consumption | D18: =+D19+D20 -> 0 | E18: 0 | F18: 0 | G18: 0 | H18: 0 | I18: 0 | J18: 0 | K18: 0 | L18: 0 | M18: 0 | N18: 0 | O18: 0 | P18: =SUM(J18:O18) -> 0
B19: Fossil power plants | J19: =SUM(D19:I19) -> 0 | K19: =K47*Assumptions!J$89*1000 -> 0 | L19: =L47*Assumptions!K$89*1000 -> 0 | M19: =M47*Assumptions!L$89 -> 0 | N19: =N47*Assumptions!M$89*1000 -> 0 | O19: =O47*Assumptions!N$89*1000 -> 0 | P19: 0
B20: Final sector consumption | D20: =SUM(D21:D40) -> 0 | E20: 0 | F20: 0 | G20: 0 | H20: 0 | I20: 0 | J20: 0 | K20: 0 | L20: 0 | M20: 0 | N20: 0 | O20: 0 | P20: 0
B21: Industry - steel | J21: =SUM(D21:I21) -> 0 | K21: =K49*Assumptions!J$89*1000 -> 0 | L21: =L49*Assumptions!K$89*1000 -> 0 | M21: =M49*Assumptions!L$89 -> 0 | N21: =N49*Assumptions!M$89*1000 -> 0 | O21: =O49*Assumptions!N$89*1000 -> 0 | P21: 0
B22: Industry - chemical | J22: 0 | K22: =K50*Assumptions!J$89*1000 -> 0 | L22: =L50*Assumptions!K$89*1000 -> 0 | M22: =M50*Assumptions!L$89 -> 0 | N22: =N50*Assumptions!M$89*1000 -> 0 | O22: =O50*Assumptions!N$89*1000 -> 0 | P22: 0
B23: Industry - non metallic mineral | J23: 0 | K23: =K51*Assumptions!J$89*1000 -> 0 | L23: =L51*Assumptions!K$89*1000 -> 0 | M23: =M51*Assumptions!L$89 -> 0 | N23: =N51*Assumptions!M$89*1000 -> 0 | O23: =O51*Assumptions!N$89*1000 -> 0 | P23: 0
B24: Industry - food processing and beverage | J24: 0 | K24: =K52*Assumptions!J$89*1000 -> 0 | L24: =L52*Assumptions!K$89*1000 -> 0 | M24: =M52*Assumptions!L$89 -> 0 | N24: =N52*Assumptions!M$89*1000 -> 0 | O24: =O52*Assumptions!N$89*1000 -> 0 | P24: 0
B25: Industry - construction | J25: 0 | K25: =K53*Assumptions!J$89*1000 -> 0 | L25: =L53*Assumptions!K$89*1000 -> 0 | M25: =M53*Assumptions!L$89 -> 0 | N25: =N53*Assumptions!M$89*1000 -> 0 | O25: =O53*Assumptions!N$89*1000 -> 0 | P25: 0
B26: Industry - mining | J26: =SUM(D26:I26) -> 0 | K26: =K54*Assumptions!J$89*1000 -> 0 | L26: =L54*Assumptions!K$89*1000 -> 0 | M26: =M54*Assumptions!L$89 -> 0 | N26: =N54*Assumptions!M$89*1000 -> 0 | O26: =O54*Assumptions!N$89*1000 -> 0 | P26: 0
B27: Industry - machinery | J27: 0 | K27: =K55*Assumptions!J$89*1000 -> 0 | L27: =L55*Assumptions!K$89*1000 -> 0 | M27: =M55*Assumptions!L$89 -> 0 | N27: =N55*Assumptions!M$89*1000 -> 0 | O27: =O55*Assumptions!N$89*1000 -> 0 | P27: =SUM(J27:O27) -> 0
B28: Industry - non ferrous metals | J28: 0 | K28: =K56*Assumptions!J$89*1000 -> 0 | L28: =L56*Assumptions!K$89*1000 -> 0 | M28: =M56*Assumptions!L$89 -> 0 | N28: =N56*Assumptions!M$89*1000 -> 0 | O28: =O56*Assumptions!N$89*1000 -> 0 | P28: 0
B29: Industry - paper and pulp | J29: 0 | K29: =K57*Assumptions!J$89*1000 -> 0 | L29: =L57*Assumptions!K$89*1000 -> 0 | M29: =M57*Assumptions!L$89 -> 0 | N29: =N57*Assumptions!M$89*1000 -> 0 | O29: =O57*Assumptions!N$89*1000 -> 0 | P29: 0
B30: Industry - transport equipment | J30: 0 | K30: =K58*Assumptions!J$89*1000 -> 0 | L30: =L58*Assumptions!K$89*1000 -> 0 | M30: =M58*Assumptions!L$89 -> 0 | N30: =N58*Assumptions!M$89*1000 -> 0 | O30: =O58*Assumptions!N$89*1000 -> 0 | P30: 0
B31: Industry - textile and leather | J31: 0 | K31: =K59*Assumptions!J$89*1000 -> 0 | L31: =L59*Assumptions!K$89*1000 -> 0 | M31: =M59*Assumptions!L$89 -> 0 | N31: =N59*Assumptions!M$89*1000 -> 0 | O31: =O59*Assumptions!N$89*1000 -> 0 | P31: 0
B32: Industry - miscellaneous | J32: 0 | K32: =K60*Assumptions!J$89*1000 -> 0 | L32: =L60*Assumptions!K$89*1000 -> 0 | M32: =M60*Assumptions!L$89 -> 0 | N32: =N60*Assumptions!M$89*1000 -> 0 | O32: =O60*Assumptions!N$89*1000 -> 0 | P32: 0
B33: Transport - road | J33: 0 | K33: =K61*Assumptions!J$89*1000 -> 0 | L33: =L61*Assumptions!K$89*1000 -> 0 | M33: =M61*Assumptions!L$89 -> 0 | N33: =N61*Assumptions!M$89*1000 -> 0 | O33: =O61*Assumptions!N$89*1000 -> 0 | P33: 0
B34: Transport - rail | J34: 0 | K34: =K62*Assumptions!J$89*1000 -> 0 | L34: =L62*Assumptions!K$89*1000 -> 0 | M34: =M62*Assumptions!L$89 -> 0 | N34: =N62*Assumptions!M$89*1000 -> 0 | O34: =O62*Assumptions!N$89*1000 -> 0 | P34: 0
B35: Transport - domestic air | J35: 0 | K35: =K63*Assumptions!J$89*1000 -> 0 | L35: =L63*Assumptions!K$89*1000 -> 0 | M35: =M63*Assumptions!L$89 -> 0 | N35: =N63*Assumptions!M$89*1000 -> 0 | O35: =O63*Assumptions!N$89*1000 -> 0 | P35: 0
B36: Transport - navigation | J36: 0 | K36: =K64*Assumptions!J$89*1000 -> 0 | L36: =L64*Assumptions!K$89*1000 -> 0 | M36: =M64*Assumptions!L$89 -> 0 | N36: =N64*Assumptions!M$89*1000 -> 0 | O36: =O64*Assumptions!N$89*1000 -> 0 | P36: 0
B37: Households | J37: 0 | K37: =K65*Assumptions!J$89*1000 -> 0 | L37: =L65*Assumptions!K$89*1000 -> 0 | M37: =M65*Assumptions!L$89 -> 0 | N37: =N65*Assumptions!M$89*1000 -> 0 | O37: =O65*Assumptions!N$89*1000 -> 0 | P37: 0
B38: Services | J38: 0 | K38: =K66*Assumptions!J$89*1000 -> 0 | L38: =L66*Assumptions!K$89*1000 -> 0 | M38: =M66*Assumptions!L$89 -> 0 | N38: =N66*Assumptions!M$89*1000 -> 0 | O38: =O66*Assumptions!N$89*1000 -> 0 | P38: 0
B39: Agriculture & Fishery | J39: 0 | K39: =K67*Assumptions!J$89*1000 -> 0 | L39: =L67*Assumptions!K$89*1000 -> 0 | M39: =M67*Assumptions!L$89 -> 0 | N39: =N67*Assumptions!M$89*1000 -> 0 | O39: =O67*Assumptions!N$89*1000 -> 0 | P39: 0
B40: Non energy - chemical feedstocs | J40: 0 | K40: =K68*Assumptions!J$89*1000 -> 0 | L40: =L68*Assumptions!K$89*1000 -> 0 | M40: =M68*Assumptions!L$89 -> 0 | N40: =N68*Assumptions!M$89*1000 -> 0 | O40: =O68*Assumptions!N$89*1000 -> 0 | P40: 0
B43: Start year energy balance in mega tonnes and million cubic meters
B44: Fossil fuel energy balance in mass and volume | D44: LPG | E44: Gasoline | F44: Jet Fuel | G44: Diesel | H44: HFO | I44: Kerosene and other | J44: Total oil products | K44: Coal | L44: Lignite | M44: Gas | N44: Coke | O44: Petrocoke
B45: Unit | D45: Mega tonnes | E45: Mega tonnes | F45: Mega tonnes | G45: Mega tonnes | H45: Mega tonnes | I45: Mega tonnes | J45: Mega tonnes | K45: Mega tonnes | L45: Mega tonnes | M45: Million m3 | N45: Mega tonnes | O45: Mega tonnes
B46: Total all energy consumption | D46: =+D47+D48 -> 0 | E46: =+E47+E48 -> 0 | F46: 0 | G46: 0 | H46: 0 | I46: 0 | J46: 0 | K46: 0 | L46: 0 | M46: 0 | N46: 0 | O46: 0
B47: Fossil power plants | J47: =SUM(D47:I47) -> 0
B48: Final sector consumption | D48: =SUM(D49:D68) -> 0 | E48: =SUM(E49:E68) -> 0 | F48: 0 | G48: 0 | H48: 0 | I48: 0 | J48: 0 | K48: 0 | L48: 0 | M48: 0 | N48: 0 | O48: 0
B49: Industry - steel | J49: =SUM(D49:I49) -> 0
B50: Industry - chemical | J50: 0
B51: Industry - non metallic mineral | J51: 0
B52: Industry - food processing and beverage | J52: 0
B53: Industry - construction | J53: 0
B54: Industry - mining | J54: 0
B55: Industry - machinery | J55: 0
B56: Industry - non ferrous metals | J56: 0
B57: Industry - paper and pulp | J57: 0
B58: Industry - transport equipment | J58: 0
B59: Industry - textile and leather | J59: 0
B60: Industry - miscellaneous | J60: 0
B61: Transport - road | J61: 0
B62: Transport - rail | J62: 0
B63: Transport - domestic air | J63: 0
B64: Transport - navigation | J64: 0
B65: Households | J65: 0
B66: Services | J66: 0
B67: Agriculture & Fishery | J67: 0
B68: Non energy - chemical feedstocs | J68: 0
B74: Fossil fuel energy balance balance in ktoe (1 ktoe = 41.868 TJ) | D74: LPG | E74: Gasoline | F74: Jet Fuel | G74: Diesel | H74: HFO | I74: Kerosene and other | J74: Total oil products | K74: Coal | L74: Lignite | M74: Natural Gas | N74: Coke | O74: Petrocoke | P74: Total
B75: Total consumption | D75: =+D76+D77 -> 0 | E75: =+E76+E77 -> 0 | F75: 0 | G75: 0 | H75: 0 | I75: 0 | J75: 0 | K75: 0 | L75: 0 | M75: 0 | N75: 0 | O75: 0 | P75: 0
B76: Fossil power plants | D76: =D19*(1/41.868) -> 0 | E76: 0 | F76: 0 | G76: 0 | H76: 0 | I76: 0 | J76: =SUM(D76:I76) -> 0 | K76: =K19*(1/41.868) -> 0 | L76: =L19*(1/41.868) -> 0 | M76: =M19*(1/41.868) -> 0 | N76: =N19*(1/41.868) -> 0 | O76: =O19*(1/41.868) -> 0 | P76: =SUM(J76:O76) -> 0
B77: FINAL CONSUMPTION | D77: =SUM(D78:D97) -> 0 | E77: 0 | F77: 0 | G77: =SUM(G78:G97) -> 0 | H77: 0 | I77: 0 | J77: 0 | K77: 0 | L77: 0 | M77: 0 | N77: 0 | O77: 0 | P77: 0
B78: Industry - steel | D78: =D21*(1/41.868) -> 0 | E78: =E21*(1/41.868) -> 0 | F78: 0 | G78: 0 | H78: 0 | I78: 0 | J78: =SUM(D78:I78) -> 0 | K78: =K21*(1/41.868) -> 0 | L78: 0 | M78: 0 | N78: 0 | O78: 0 | P78: 0
B79: Industry - chemical | D79: =D22*(1/41.868) -> 0 | E79: 0 | F79: 0 | G79: 0 | H79: 0 | I79: 0 | J79: =SUM(D79:I79) -> 0 | K79: 0 | L79: 0 | M79: 0 | N79: 0 | O79: 0 | P79: 0
B80: Industry - non metallic mineral | D80: 0 | E80: 0 | F80: 0 | G80: 0 | H80: 0 | I80: 0 | J80: 0 | K80: 0 | L80: 0 | M80: 0 | N80: 0 | O80: 0 | P80: 0
B81: Industry - food processing and beverage | D81: 0 | E81: 0 | F81: 0 | G81: 0 | H81: 0 | I81: 0 | J81: 0 | K81: 0 | L81: 0 | M81: 0 | N81: 0 | O81: 0 | P81: 0
B82: Industry - construction | D82: 0 | E82: 0 | F82: 0 | G82: 0 | H82: 0 | I82: 0 | J82: 0 | K82: 0 | L82: 0 | M82: 0 | N82: 0 | O82: 0 | P82: 0
B83: Industry - mining | D83: 0 | E83: 0 | F83: 0 | G83: 0 | H83: 0 | I83: 0 | J83: 0 | K83: 0 | L83: 0 | M83: 0 | N83: 0 | O83: 0 | P83: 0
B84: Industry - machinery | D84: 0 | E84: 0 | F84: 0 | G84: 0 | H84: 0 | I84: 0 | J84: 0 | K84: 0 | L84: 0 | M84: 0 | N84: 0 | O84: 0 | P84: 0
B85: Industry - non ferrous metals | D85: 0 | E85: 0 | F85: 0 | G85: 0 | H85: 0 | I85: 0 | J85: 0 | K85: 0 | L85: 0 | M85: 0 | N85: 0 | O85: 0 | P85: 0
B86: Industry - paper and pulp | D86: 0 | E86: 0 | F86: 0 | G86: 0 | H86: 0 | I86: 0 | J86: 0 | K86: 0 | L86: 0 | M86: 0 | N86: 0 | O86: 0 | P86: 0
B87: Industry - transport equipment | D87: 0 | E87: 0 | F87: 0 | G87: 0 | H87: 0 | I87: 0 | J87: 0 | K87: 0 | L87: 0 | M87: 0 | N87: 0 | O87: 0 | P87: 0
B88: Industry - textile and leather | D88: =D31*(1/41.868) -> 0 | E88: 0 | F88: 0 | G88: 0 | H88: 0 | I88: 0 | J88: 0 | K88: =K31*(1/41.868) -> 0 | L88: 0 | M88: 0 | N88: 0 | O88: 0 | P88: 0
B89: Industry - miscellaneous | D89: 0 | E89: 0 | F89: 0 | G89: 0 | H89: 0 | I89: 0 | J89: 0 | K89: 0 | L89: 0 | M89: 0 | N89: 0 | O89: 0 | P89: 0
B90: Transport - road | D90: 0 | E90: 0 | F90: 0 | G90: 0 | H90: 0 | I90: 0 | J90: 0 | K90: 0 | L90: 0 | M90: 0 | N90: 0 | O90: 0 | P90: 0
B91: Transport - rail | D91: 0 | E91: 0 | F91: 0 | G91: 0 | H91: 0 | I91: 0 | J91: 0 | K91: 0 | L91: 0 | M91: 0 | N91: 0 | O91: 0 | P91: 0
B92: Transport - domestic air | D92: 0 | E92: 0 | F92: 0 | G92: 0 | H92: 0 | I92: 0 | J92: 0 | K92: 0 | L92: 0 | M92: 0 | N92: 0 | O92: 0 | P92: 0
B93: Transport - navigation | D93: 0 | E93: 0 | F93: 0 | G93: 0 | H93: 0 | I93: 0 | J93: 0 | K93: 0 | L93: 0 | M93: 0 | N93: 0 | O93: 0 | P93: 0
B94: Households | D94: 0 | E94: 0 | F94: 0 | G94: 0 | H94: 0 | I94: 0 | J94: 0 | K94: 0 | L94: 0 | M94: 0 | N94: 0 | O94: 0 | P94: 0
B95: Services | D95: 0 | E95: 0 | F95: 0 | G95: 0 | H95: 0 | I95: 0 | J95: 0 | K95: 0 | L95: 0 | M95: 0 | N95: 0 | O95: 0 | P95: 0
B96: Agriculture & Fishery | D96: 0 | E96: 0 | F96: 0 | G96: 0 | H96: 0 | I96: 0 | J96: 0 | K96: 0 | L96: 0 | M96: 0 | N96: 0 | O96: 0 | P96: 0
B97: Non energy - chemical feedstocs | D97: 0 | E97: 0 | F97: 0 | G97: 0 | H97: 0 | I97: 0 | J97: 0 | K97: 0 | L97: 0 | M97: 0 | N97: 0 | O97: 0 | P97: 0
B100: Start year electricity balance in GWh
B101: Electricity consumption | D101: GWh | F101: Electricity production | G101: GWh | H101: Share of production | I101: Efficiency
B102: Total consumption | D102: =SUM(D103:D122) -> 0 | F102: Total | G102: =+G104+G111+G109+G110 -> 0
B103: Industry - steel | F103: Losses | G103: =G102-D102 -> 0 | H103: =IF(G$102=0,1,G103/G$102) -> 1
B104: Industry - chemical | F104: Fossil | G104: =SUM(G105:G108) -> 0 | H104: =SUM(H105:H108) -> 4
B105: Industry - non metallic mineral | F105: Lignite | H105: =IF(G$102=0,1,G105/G$102) -> 1 | I105: =IF(L76>0,G105/11.63/L76,0) -> 0
B106: Industry - food processing and beverage | F106: Coal | H106: 1 | I106: =IF( K76>0,G106/11.63/K76,0) -> 0
B107: Industry - construction | F107: Oil | H107: 1 | I107: =IF( J76>0,G107/11.63/J76,0) -> 0
B108: Industry - mining | F108: Natural Gas | H108: 1 | I108: =IF( M76>0,G108/11.63/M76,0) -> 0
B109: Industry - machinery | F109: Nuclear | H109: 1
B110: Industry - non ferrous metals | F110: Net import | G110: =G119-G120 -> 0 | H110: 1
B111: Industry - paper and pulp | F111: Renewables | G111: =SUM(G112:G116) -> 0 | H111: =SUM(H112:H116) -> 5
B112: Industry - transport equipment | F112: Hydro | H112: =IF(G$102=0,1,G112/G$102) -> 1
B113: Industry - textile and leather | F113: Wind | H113: =IF(G$102=0,1,G113/G$102) -> 1
B114: Industry - miscellaneous | F114: Solar | H114: =IF(G$102=0,1,G114/G$102) -> 1
B115: Transport - road | F115: Biomass | H115: =IF(G$102=0,1,G115/G$102) -> 1
B116: Transport - rail | F116: Geothermal | H116: =IF(G$102=0,1,G116/G$102) -> 1
B117: Transport - domestic air
B118: Transport - navigation | F118: Electricity import and export | G118: GWh
B119: Households | F119: Import
B120: Services | F120: Export
B121: Agriculture & Fishery
B122: Non energy - chemical feedstocs

Sheet GHG Balance (hidden)
B2: Step 3 - GHG Balance
B4: The GHG Balance sheet includes the GHG emissions data disaggregated by sector of activity and by gases for the start year. The first table CO2 balance – Country X - Base year includes the balance for the CO2 emissions at the start year expressed in ktCO2 equivalents unit. GACMO automatically calculates the data in this table. The user should not insert or modify the data in this table. The user needs to complete the second table titled "Emissions by sectors and gases" with the CO2, CH4, and N2O emissions from non-fuel combustion sectors and non-CO2 emissions from fuel combustion, expressed in ktCO2 equivalents for each sector/sub-sector. The definitions of the categories in this table align with the Common Reporting Tables (CRT) agreed upon by Parties to the Paris Agreement. The CRTs are included in Annex I to decision 5/CMA.3 and can be downloaded from the following link: https://unfccc.int/documents/311076. Please refer to the Guidance for further details on the data included in this sheet and on how to fill it in. Once all the data have been inserted in the GHG balance sheet, you can click “Go to step 4: Growth factors”.
B11: Indsæt land og basisår I tabel titler I stedet! Også på Energy balances
B12: ="CO2 Balance - "&Assumptions!C9&" - Start year - "&Assumptions!$C$10 -> CO2 Balance - - Start year -
B13: Unit : ktCO2-equivalents | D13: LPG | E13: Gasoline | F13: Jet Fuel | G13: Diesel | H13: HFO | I13: Kerosene and other | J13: Total oil products | K13: Coal | L13: Lignite | M13: Natural Gas | N13: Coke | O13: Petrocoke | P13: Total
B14: Ton CO2/Toe (IPCC): | D14: =41.868*Assumptions!D50/1000 -> 2.6404752 | E14: =41.868*Assumptions!D47/1000 -> 2.9014524 | F14: =41.868*Assumptions!D48/1000 -> 2.993562 | G14: =41.868*Assumptions!D46/1000 -> 3.1010232 | H14: =41.868*Assumptions!D45/1000 -> 3.2391876 | I14: =41.868*Assumptions!D49/1000 -> 3.0089136 | K14: =41.868*Assumptions!D52/1000 -> 3.9607128 | L14: =41.868*Assumptions!D53/1000 -> 4.2370416 | M14: =41.868*Assumptions!D51/1000 -> 2.3487948 | N14: =41.868*108.2/1000 -> 4.5301176 | O14: =41.868*100.3/1000 -> 4.1993604
B15: Total | D15: =+D16+D17 -> 0 | E15: 0 | F15: 0 | G15: 0 | H15: 0 | I15: 0 | J15: 0 | K15: 0 | L15: 0 | M15: 0 | N15: 0 | O15: 0 | P15: 0
B16: Fossil power plants | D16: ='Energy Balance'!D76*D$14 -> 0 | E16: ='Energy Balance'!E76*E$14 -> 0 | F16: ='Energy Balance'!F76*F$14 -> 0 | G16: ='Energy Balance'!G76*G$14 -> 0 | H16: ='Energy Balance'!H76*H$14 -> 0 | I16: ='Energy Balance'!I76*I$14 -> 0 | J16: =SUM(D16:I16) -> 0 | K16: ='Energy Balance'!K76*K$14 -> 0 | L16: ='Energy Balance'!L76*L$14 -> 0 | M16: ='Energy Balance'!M76*M$14 -> 0 | N16: ='Energy Balance'!N76*N$14 -> 0 | O16: ='Energy Balance'!O76*O$14 -> 0 | P16: =SUM(J16:O16) -> 0
B17: FINAL CONSUMPTION | D17: =SUM(D18:D37) -> 0 | E17: 0 | F17: 0 | G17: 0 | H17: 0 | I17: 0 | J17: 0 | K17: 0 | L17: 0 | M17: 0 | N17: 0 | O17: 0 | P17: 0
B18: Industry - steel | D18: ='Energy Balance'!D78*D$14 -> 0 | E18: ='Energy Balance'!E78*E$14 -> 0 | F18: ='Energy Balance'!F78*F$14 -> 0 | G18: ='Energy Balance'!G78*G$14 -> 0 | H18: ='Energy Balance'!H78*H$14 -> 0 | I18: ='Energy Balance'!I78*I$14 -> 0 | J18: =SUM(D18:I18) -> 0 | K18: ='Energy Balance'!K78*K$14 -> 0 | L18: ='Energy Balance'!L78*L$14 -> 0 | M18: ='Energy Balance'!M78*M$14 -> 0 | N18: ='Energy Balance'!N78*N$14 -> 0 | O18: ='Energy Balance'!O78*O$14 -> 0 | P18: 0
B19: Industry - chemical | D19: ='Energy Balance'!D79*D$14 -> 0 | E19: ='Energy Balance'!E79*E$14 -> 0 | F19: ='Energy Balance'!F79*F$14 -> 0 | G19: ='Energy Balance'!G79*G$14 -> 0 | H19: ='Energy Balance'!H79*H$14 -> 0 | I19: ='Energy Balance'!I79*I$14 -> 0 | J19: 0 | K19: ='Energy Balance'!K79*K$14 -> 0 | L19: ='Energy Balance'!L79*L$14 -> 0 | M19: ='Energy Balance'!M79*M$14 -> 0 | N19: ='Energy Balance'!N79*N$14 -> 0 | O19: ='Energy Balance'!O79*O$14 -> 0 | P19: 0
B20: Industry - non metallic mineral | D20: ='Energy Balance'!D80*D$14 -> 0 | E20: ='Energy Balance'!E80*E$14 -> 0 | F20: ='Energy Balance'!F80*F$14 -> 0 | G20: ='Energy Balance'!G80*G$14 -> 0 | H20: ='Energy Balance'!H80*H$14 -> 0 | I20: ='Energy Balance'!I80*I$14 -> 0 | J20: 0 | K20: ='Energy Balance'!K80*K$14 -> 0 | L20: ='Energy Balance'!L80*L$14 -> 0 | M20: ='Energy Balance'!M80*M$14 -> 0 | N20: ='Energy Balance'!N80*N$14 -> 0 | O20: ='Energy Balance'!O80*O$14 -> 0 | P20: 0
B21: Industry - food processing and beverage | D21: ='Energy Balance'!D81*D$14 -> 0 | E21: ='Energy Balance'!E81*E$14 -> 0 | F21: ='Energy Balance'!F81*F$14 -> 0 | G21: ='Energy Balance'!G81*G$14 -> 0 | H21: ='Energy Balance'!H81*H$14 -> 0 | I21: ='Energy Balance'!I81*I$14 -> 0 | J21: 0 | K21: ='Energy Balance'!K81*K$14 -> 0 | L21: ='Energy Balance'!L81*L$14 -> 0 | M21: ='Energy Balance'!M81*M$14 -> 0 | N21: ='Energy Balance'!N81*N$14 -> 0 | O21: ='Energy Balance'!O81*O$14 -> 0 | P21: 0
B22: Industry - construction | D22: ='Energy Balance'!D82*D$14 -> 0 | E22: ='Energy Balance'!E82*E$14 -> 0 | F22: ='Energy Balance'!F82*F$14 -> 0 | G22: ='Energy Balance'!G82*G$14 -> 0 | H22: ='Energy Balance'!H82*H$14 -> 0 | I22: ='Energy Balance'!I82*I$14 -> 0 | J22: 0 | K22: ='Energy Balance'!K82*K$14 -> 0 | L22: ='Energy Balance'!L82*L$14 -> 0 | M22: ='Energy Balance'!M82*M$14 -> 0 | N22: ='Energy Balance'!N82*N$14 -> 0 | O22: ='Energy Balance'!O82*O$14 -> 0 | P22: 0
B23: Industry - mining | D23: ='Energy Balance'!D83*D$14 -> 0 | E23: ='Energy Balance'!E83*E$14 -> 0 | F23: ='Energy Balance'!F83*F$14 -> 0 | G23: ='Energy Balance'!G83*G$14 -> 0 | H23: ='Energy Balance'!H83*H$14 -> 0 | I23: ='Energy Balance'!I83*I$14 -> 0 | J23: 0 | K23: ='Energy Balance'!K83*K$14 -> 0 | L23: ='Energy Balance'!L83*L$14 -> 0 | M23: ='Energy Balance'!M83*M$14 -> 0 | N23: ='Energy Balance'!N83*N$14 -> 0 | O23: ='Energy Balance'!O83*O$14 -> 0 | P23: 0
B24: Industry - machinery | D24: ='Energy Balance'!D84*D$14 -> 0 | E24: ='Energy Balance'!E84*E$14 -> 0 | F24: ='Energy Balance'!F84*F$14 -> 0 | G24: ='Energy Balance'!G84*G$14 -> 0 | H24: ='Energy Balance'!H84*H$14 -> 0 | I24: ='Energy Balance'!I84*I$14 -> 0 | J24: 0 | K24: ='Energy Balance'!K84*K$14 -> 0 | L24: ='Energy Balance'!L84*L$14 -> 0 | M24: ='Energy Balance'!M84*M$14 -> 0 | N24: ='Energy Balance'!N84*N$14 -> 0 | O24: ='Energy Balance'!O84*O$14 -> 0 | P24: 0
B25: Industry - non ferrous metals | D25: ='Energy Balance'!D85*D$14 -> 0 | E25: ='Energy Balance'!E85*E$14 -> 0 | F25: ='Energy Balance'!F85*F$14 -> 0 | G25: ='Energy Balance'!G85*G$14 -> 0 | H25: ='Energy Balance'!H85*H$14 -> 0 | I25: ='Energy Balance'!I85*I$14 -> 0 | J25: 0 | K25: ='Energy Balance'!K85*K$14 -> 0 | L25: ='Energy Balance'!L85*L$14 -> 0 | M25: ='Energy Balance'!M85*M$14 -> 0 | N25: ='Energy Balance'!N85*N$14 -> 0 | O25: ='Energy Balance'!O85*O$14 -> 0 | P25: 0
B26: Industry - paper and pulp | D26: ='Energy Balance'!D86*D$14 -> 0 | E26: ='Energy Balance'!E86*E$14 -> 0 | F26: ='Energy Balance'!F86*F$14 -> 0 | G26: ='Energy Balance'!G86*G$14 -> 0 | H26: ='Energy Balance'!H86*H$14 -> 0 | I26: ='Energy Balance'!I86*I$14 -> 0 | J26: 0 | K26: ='Energy Balance'!K86*K$14 -> 0 | L26: ='Energy Balance'!L86*L$14 -> 0 | M26: ='Energy Balance'!M86*M$14 -> 0 | N26: ='Energy Balance'!N86*N$14 -> 0 | O26: ='Energy Balance'!O86*O$14 -> 0 | P26: 0
B27: Industry - transport equipment | D27: ='Energy Balance'!D87*D$14 -> 0 | E27: ='Energy Balance'!E87*E$14 -> 0 | F27: ='Energy Balance'!F87*F$14 -> 0 | G27: ='Energy Balance'!G87*G$14 -> 0 | H27: ='Energy Balance'!H87*H$14 -> 0 | I27: ='Energy Balance'!I87*I$14 -> 0 | J27: 0 | K27: ='Energy Balance'!K87*K$14 -> 0 | L27: ='Energy Balance'!L87*L$14 -> 0 | M27: ='Energy Balance'!M87*M$14 -> 0 | N27: ='Energy Balance'!N87*N$14 -> 0 | O27: ='Energy Balance'!O87*O$14 -> 0 | P27: 0
B28: Industry - textile and leather | D28: ='Energy Balance'!D88*D$14 -> 0 | E28: ='Energy Balance'!E88*E$14 -> 0 | F28: ='Energy Balance'!F88*F$14 -> 0 | G28: ='Energy Balance'!G88*G$14 -> 0 | H28: ='Energy Balance'!H88*H$14 -> 0 | I28: ='Energy Balance'!I88*I$14 -> 0 | J28: 0 | K28: ='Energy Balance'!K88*K$14 -> 0 | L28: ='Energy Balance'!L88*L$14 -> 0 | M28: ='Energy Balance'!M88*M$14 -> 0 | N28: ='Energy Balance'!N88*N$14 -> 0 | O28: ='Energy Balance'!O88*O$14 -> 0 | P28: 0
B29: Industry - miscellaneous | D29: ='Energy Balance'!D89*D$14 -> 0 | E29: ='Energy Balance'!E89*E$14 -> 0 | F29: ='Energy Balance'!F89*F$14 -> 0 | G29: ='Energy Balance'!G89*G$14 -> 0 | H29: ='Energy Balance'!H89*H$14 -> 0 | I29: ='Energy Balance'!I89*I$14 -> 0 | J29: 0 | K29: ='Energy Balance'!K89*K$14 -> 0 | L29: ='Energy Balance'!L89*L$14 -> 0 | M29: ='Energy Balance'!M89*M$14 -> 0 | N29: ='Energy Balance'!N89*N$14 -> 0 | O29: ='Energy Balance'!O89*O$14 -> 0 | P29: 0
B30: Transport - road | D30: ='Energy Balance'!D90*D$14 -> 0 | E30: ='Energy Balance'!E90*E$14 -> 0 | F30: ='Energy Balance'!F90*F$14 -> 0 | G30: ='Energy Balance'!G90*G$14 -> 0 | H30: ='Energy Balance'!H90*H$14 -> 0 | I30: ='Energy Balance'!I90*I$14 -> 0 | J30: 0 | K30: ='Energy Balance'!K90*K$14 -> 0 | L30: ='Energy Balance'!L90*L$14 -> 0 | M30: ='Energy Balance'!M90*M$14 -> 0 | N30: ='Energy Balance'!N90*N$14 -> 0 | O30: ='Energy Balance'!O90*O$14 -> 0 | P30: 0
B31: Transport - rail | D31: ='Energy Balance'!D91*D$14 -> 0 | E31: ='Energy Balance'!E91*E$14 -> 0 | F31: ='Energy Balance'!F91*F$14 -> 0 | G31: ='Energy Balance'!G91*G$14 -> 0 | H31: ='Energy Balance'!H91*H$14 -> 0 | I31: ='Energy Balance'!I91*I$14 -> 0 | J31: 0 | K31: ='Energy Balance'!K91*K$14 -> 0 | L31: ='Energy Balance'!L91*L$14 -> 0 | M31: ='Energy Balance'!M91*M$14 -> 0 | N31: ='Energy Balance'!N91*N$14 -> 0 | O31: ='Energy Balance'!O91*O$14 -> 0 | P31: 0
B32: Transport - domestic air | D32: ='Energy Balance'!D92*D$14 -> 0 | E32: ='Energy Balance'!E92*E$14 -> 0 | F32: ='Energy Balance'!F92*F$14 -> 0 | G32: ='Energy Balance'!G92*G$14 -> 0 | H32: ='Energy Balance'!H92*H$14 -> 0 | I32: ='Energy Balance'!I92*I$14 -> 0 | J32: 0 | K32: ='Energy Balance'!K92*K$14 -> 0 | L32: ='Energy Balance'!L92*L$14 -> 0 | M32: ='Energy Balance'!M92*M$14 -> 0 | N32: ='Energy Balance'!N92*N$14 -> 0 | O32: ='Energy Balance'!O92*O$14 -> 0 | P32: 0
B33: Transport - navigation | D33: ='Energy Balance'!D93*D$14 -> 0 | E33: ='Energy Balance'!E93*E$14 -> 0 | F33: ='Energy Balance'!F93*F$14 -> 0 | G33: ='Energy Balance'!G93*G$14 -> 0 | H33: ='Energy Balance'!H93*H$14 -> 0 | I33: ='Energy Balance'!I93*I$14 -> 0 | J33: 0 | K33: ='Energy Balance'!K93*K$14 -> 0 | L33: ='Energy Balance'!L93*L$14 -> 0 | M33: ='Energy Balance'!M93*M$14 -> 0 | N33: ='Energy Balance'!N93*N$14 -> 0 | O33: ='Energy Balance'!O93*O$14 -> 0 | P33: 0
B34: Households | D34: ='Energy Balance'!D94*D$14 -> 0 | E34: ='Energy Balance'!E94*E$14 -> 0 | F34: ='Energy Balance'!F94*F$14 -> 0 | G34: ='Energy Balance'!G94*G$14 -> 0 | H34: ='Energy Balance'!H94*H$14 -> 0 | I34: ='Energy Balance'!I94*I$14 -> 0 | J34: 0 | K34: ='Energy Balance'!K94*K$14 -> 0 | L34: ='Energy Balance'!L94*L$14 -> 0 | M34: ='Energy Balance'!M94*M$14 -> 0 | N34: ='Energy Balance'!N94*N$14 -> 0 | O34: ='Energy Balance'!O94*O$14 -> 0 | P34: 0
B35: Services | D35: ='Energy Balance'!D95*D$14 -> 0 | E35: ='Energy Balance'!E95*E$14 -> 0 | F35: ='Energy Balance'!F95*F$14 -> 0 | G35: ='Energy Balance'!G95*G$14 -> 0 | H35: ='Energy Balance'!H95*H$14 -> 0 | I35: ='Energy Balance'!I95*I$14 -> 0 | J35: 0 | K35: ='Energy Balance'!K95*K$14 -> 0 | L35: ='Energy Balance'!L95*L$14 -> 0 | M35: ='Energy Balance'!M95*M$14 -> 0 | N35: ='Energy Balance'!N95*N$14 -> 0 | O35: ='Energy Balance'!O95*O$14 -> 0 | P35: 0
B36: Agriculture & Fishery | D36: ='Energy Balance'!D96*D$14 -> 0 | E36: ='Energy Balance'!E96*E$14 -> 0 | F36: ='Energy Balance'!F96*F$14 -> 0 | G36: ='Energy Balance'!G96*G$14 -> 0 | H36: ='Energy Balance'!H96*H$14 -> 0 | I36: ='Energy Balance'!I96*I$14 -> 0 | J36: 0 | K36: ='Energy Balance'!K96*K$14 -> 0 | L36: ='Energy Balance'!L96*L$14 -> 0 | M36: ='Energy Balance'!M96*M$14 -> 0 | N36: ='Energy Balance'!N96*N$14 -> 0 | O36: ='Energy Balance'!O96*O$14 -> 0 | P36: 0
B37: Non energy - chemical feedstocs | D37: ='Energy Balance'!D97*D$14 -> 0 | E37: ='Energy Balance'!E97*E$14 -> 0 | F37: ='Energy Balance'!F97*F$14 -> 0 | G37: ='Energy Balance'!G97*G$14 -> 0 | H37: ='Energy Balance'!H97*H$14 -> 0 | I37: ='Energy Balance'!I97*I$14 -> 0 | J37: 0 | K37: ='Energy Balance'!K97*K$14 -> 0 | L37: ='Energy Balance'!L97*L$14 -> 0 | M37: ='Energy Balance'!M97*M$14 -> 0 | N37: ='Energy Balance'!N97*N$14 -> 0 | O37: ='Energy Balance'!O97*O$14 -> 0 | P37: 0
B40: Emissions by sectors and gases
B41: Unit : ktCO2-equivalent | D41: CO2 | E41: CH4 | F41: N2O | G41: Total GHG emissions
B42: 1. Energy | D42: =D43+D44 -> 0 | E42: =E43+E44 -> 0 | F42: 0 | G42: =G43+G44 -> 0
B43: 1.A. Fuel combustion | D43: =P15 -> 0 | G43: =SUM(D43:F43) -> 0
B44: 1.B. Fugitive emissions from fuels | G44: =SUM(D44:F44) -> 0
B45: 2. Industrial processes and product use | D45: =SUM(D46:D50) -> 0 | E45: =SUM(E46:E50) -> 0 | F45: 0 | G45: =SUM(G46:G50) -> 0
B46: 2.A. Mineral industry | G46: =SUM(D46:F46) -> 0
B47: 2.B. Chemical industry | G47: =SUM(D47:F47) -> 0
B48: 2.C. Metal industry | G48: 0
B49: 2.F. Product uses as ODS substitutes | G49: 0
B50: Other (2.D, 2.E, 2.G. 2.H) | G50: 0
B51: 3. Agriculture | D51: =SUM(D52:D55) -> 0 | E51: =SUM(E52:E55) -> 0 | F51: =SUM(F52:F55) -> 0 | G51: =SUM(D51:F51) -> 0
B52: 3.A. Enteric fermentation | G52: =SUM(D52:F52) -> 0
B53: 3.B. Manure management | G53: =SUM(D53:F53) -> 0
B54: 3.D. Agricultural soils | G54: =SUM(D54:F54) -> 0
B55: Other (3.C, 3.E-3.J) | G55: 0
B56: 4. Land use, land-use change and forestry | D56: =SUM(D57:D61) -> 0 | E56: =SUM(E57:E61) -> 0 | F56: =SUM(F57:F61) -> 0 | G56: =SUM(D56:F56) -> 0
B57: 4.A. Forest land | G57: 0
B58: 4.B. Cropland | G58: 0
B59: 4.C. Grassland | G59: 0
B60: 4.G. Harvested wood products | G60: 0
B61: Other (4.D, 4.E, 4.F, 4.H) | G61: 0
B62: 5. Waste | D62: =SUM(D63:D66) -> 0 | E62: =SUM(E63:E66) -> 0 | F62: =SUM(F63:F66) -> 0 | G62: =SUM(D62:F62) -> 0
B63: 5.A. Solid waste disposal | G63: =SUM(D63:F63) -> 0
B64: 5.B. Biological treatment of solid waste | G64: 0
B65: 5.D. Waste water treatment and discharge | G65: 0
B66: Other (5.C, 5.E) | G66: =SUM(D66:F66) -> 0
B67: Total (including LULUCF) | D67: =D42+D45+D51+D56+D62 -> 0 | E67: =E42+E45+E51+E56+E62 -> 0 | F67: 0 | G67: =G42+G45+G51+G56+G62 -> 0
B68: Total (excluding LULUCF) | D68: =D67-D56 -> 0 | E68: =E67-E56 -> 0 | F68: 0 | G68: 0

Sheet Growth (hidden)
B2: Step 4 - Growth
B4: The Growth sheet includes the expected growth in energy consumption for the different sectors of activity for different periods of time. This sheet must be filled in by the user. The user has to fill in the table Growth from the start year – Country X, including the Population growth factor, the GDP growth factor, and the annual growth in energy consumption estimated for each sector of activity for the different periods: start year-2025, 2025-2030, 2030-2035, 2035-2040, 2040-2045 and 2045-2050. Please refer to the Guidance for further details on the data included in this sheet and on how to fill it in. Once all the data have been inserted in the Growth sheet, you can click “Go to step 5: BAU energy balances”.
B13: ="Growth from the start year - "&Assumptions!C9 -> Growth from the start year -
B14: Growth and multiplication factors | D14: Annual % increase in the period | J14: % increase from start year values
D15: =Assumptions!$C$10&" to 2025" -> to 2025 | E15: 2025 to 2030 | F15: 2030 to 2035 | G15: 2035 to 2040 | H15: 2040 to 2045 | I15: 2045 to 2050 | J15: 2025 | K15: 2030 | L15: 2035 | M15: 2040 | N15: 2045 | O15: 2050
B16: Population growth | J16: =(1+D16)^(2025-Assumptions!$C$10)-1 -> 0 | K16: =(1+J16)*(1+E16)^5-1 -> 0 | L16: 0 | M16: 0 | N16: 0 | O16: 0
B17: GDP growth | J17: =(1+D17)^(2025-Assumptions!$C$10)-1 -> 0 | K17: 0 | L17: 0 | M17: 0 | N17: 0 | O17: 0
B18: 1. Energy
B19: 1.A. Fuel combustion
B20: 1.A.2. Manufacturing industries and construction
B21: Industry - fuel in steel | J21: =(1+D21)^(2025-Assumptions!$C$10)-1 -> 0 | K21: =(1+J21)*(1+E21)^5-1 -> 0 | L21: =(1+K21)*(1+F21)^5-1 -> 0 | M21: =(1+L21)*(1+G21)^5-1 -> 0 | N21: =(1+M21)*(1+H21)^5-1 -> 0 | O21: =(1+N21)*(1+I21)^5-1 -> 0
B22: Industry - fuel in chemical | J22: =(1+D22)^(2025-Assumptions!$C$10)-1 -> 0 | K22: 0 | L22: =(1+K22)*(1+F22)^5-1 -> 0 | M22: =(1+L22)*(1+G22)^5-1 -> 0 | N22: =(1+M22)*(1+H22)^5-1 -> 0 | O22: =(1+N22)*(1+I22)^5-1 -> 0
B23: Industry - fuel in non metallic mineral | J23: =(1+D23)^(2025-Assumptions!$C$10)-1 -> 0 | K23: 0 | L23: 0 | M23: 0 | N23: 0 | O23: 0
B24: Industry - fuel in food and beverage | J24: =(1+D24)^(2025-Assumptions!$C$10)-1 -> 0 | K24: 0 | L24: 0 | M24: 0 | N24: 0 | O24: 0
B25: Industry - fuel in construction | J25: =(1+D25)^(2025-Assumptions!$C$10)-1 -> 0 | K25: 0 | L25: 0 | M25: 0 | N25: 0 | O25: 0
B26: Industry - fuel in mining | J26: =(1+D26)^(2025-Assumptions!$C$10)-1 -> 0 | K26: 0 | L26: 0 | M26: 0 | N26: 0 | O26: 0
B27: Industry - fuel in machinery | J27: =(1+D27)^(2025-Assumptions!$C$10)-1 -> 0 | K27: 0 | L27: 0 | M27: 0 | N27: 0 | O27: 0
B28: Industry - fuel in non ferrous metals | J28: =(1+D28)^(2025-Assumptions!$C$10)-1 -> 0 | K28: 0 | L28: 0 | M28: 0 | N28: 0 | O28: 0
B29: Industry - fuel in paper and pulp | J29: =(1+D29)^(2025-Assumptions!$C$10)-1 -> 0 | K29: 0 | L29: 0 | M29: 0 | N29: 0 | O29: 0
B30: Industry - fuel in transport equipment | J30: =(1+D30)^(2025-Assumptions!$C$10)-1 -> 0 | K30: 0 | L30: =(1+K30)*(1+F30)^5-1 -> 0 | M30: 0 | N30: 0 | O30: 0
B31: Industry - fuel in textile and leather | J31: =(1+D31)^(2025-Assumptions!$C$10)-1 -> 0 | K31: 0 | L31: 0 | M31: 0 | N31: 0 | O31: 0
B32: Industry - fuel in miscellaneous | J32: =(1+D32)^(2025-Assumptions!$C$10)-1 -> 0 | K32: 0 | L32: 0 | M32: 0 | N32: 0 | O32: 0
B33: Industry - electricity consumption | J33: =(1+D33)^(2025-Assumptions!$C$10)-1 -> 0 | K33: 0 | L33: 0 | M33: 0 | N33: 0 | O33: 0
B34: 1.A.3. Transport
B35: Transport - fuel in road | J35: =(1+D35)^(2025-Assumptions!$C$10)-1 -> 0 | K35: =(1+J35)*(1+E35)^5-1 -> 0 | L35: 0 | M35: =(1+L35)*(1+G35)^5-1 -> 0 | N35: =(1+M35)*(1+H35)^5-1 -> 0 | O35: =(1+N35)*(1+I35)^5-1 -> 0
B36: Transport - fuel in rail | J36: =(1+D36)^(2025-Assumptions!$C$10)-1 -> 0 | K36: =(1+J36)*(1+E36)^5-1 -> 0 | L36: 0 | M36: =(1+L36)*(1+G36)^5-1 -> 0 | N36: =(1+M36)*(1+H36)^5-1 -> 0 | O36: =(1+N36)*(1+I36)^5-1 -> 0
B37: Transport - fuel in air | J37: =(1+D37)^(2025-Assumptions!$C$10)-1 -> 0 | K37: =(1+J37)*(1+E37)^5-1 -> 0 | L37: 0 | M37: 0 | N37: 0 | O37: 0
B38: Transport - fuel in navigation | J38: =(1+D38)^(2025-Assumptions!$C$10)-1 -> 0 | K38: =(1+J38)*(1+E38)^5-1 -> 0 | L38: 0 | M38: 0 | N38: 0 | O38: 0
B39: Transport - electricity consumption | J39: =(1+D39)^(2025-Assumptions!$C$10)-1 -> 0 | K39: =(1+J39)*(1+E39)^5-1 -> 0 | L39: 0 | M39: 0 | N39: 0 | O39: =(1+N39)*(1+I39)^5-1 -> 0
B40: 1.A.4. Other sectors
B41: 1.A.4.b. Residential
B42: Households - LPG | J42: =(1+D42)^(2025-Assumptions!$C$10)-1 -> 0 | K42: =(1+J42)*(1+E42)^5-1 -> 0 | L42: 0 | M42: =(1+L42)*(1+G42)^5-1 -> 0 | N42: =(1+M42)*(1+H42)^5-1 -> 0 | O42: =(1+N42)*(1+I42)^5-1 -> 0
B43: Households - Kerosene | J43: =(1+D43)^(2025-Assumptions!$C$10)-1 -> 0 | K43: =(1+J43)*(1+E43)^5-1 -> 0 | L43: 0 | M43: =(1+L43)*(1+G43)^5-1 -> 0 | N43: =(1+M43)*(1+H43)^5-1 -> 0 | O43: =(1+N43)*(1+I43)^5-1 -> 0
B44: Households - electricity consumption | J44: =(1+D44)^(2025-Assumptions!$C$10)-1 -> 0 | K44: =(1+J44)*(1+E44)^5-1 -> 0 | L44: 0 | M44: 0 | N44: 0 | O44: =(1+N44)*(1+I44)^5-1 -> 0
B45: 1.A.4.a. Commercial/institutional
B46: Services - fuel | J46: =(1+D46)^(2025-Assumptions!$C$10)-1 -> 0 | K46: =(1+J46)*(1+E46)^5-1 -> 0 | L46: =(1+K46)*(1+F46)^5-1 -> 0 | M46: =(1+L46)*(1+G46)^5-1 -> 0 | N46: =(1+M46)*(1+H46)^5-1 -> 0 | O46: =(1+N46)*(1+I46)^5-1 -> 0
B47: Services - electricity consumption | J47: =(1+D47)^(2025-Assumptions!$C$10)-1 -> 0 | K47: =(1+J47)*(1+E47)^5-1 -> 0 | L47: 0 | M47: =(1+L47)*(1+G47)^5-1 -> 0 | N47: =(1+M47)*(1+H47)^5-1 -> 0 | O47: =(1+N47)*(1+I47)^5-1 -> 0
B48: 1.A.4.c. Agriculture/forestry/fishing
B49: Agriculture - fuel | J49: =(1+D49)^(2025-Assumptions!$C$10)-1 -> 0 | K49: =(1+J49)*(1+E49)^5-1 -> 0 | L49: =(1+K49)*(1+F49)^5-1 -> 0 | M49: =(1+L49)*(1+G49)^5-1 -> 0 | N49: =(1+M49)*(1+H49)^5-1 -> 0 | O49: =(1+N49)*(1+I49)^5-1 -> 0
B50: Agriculture - electricity consumption | J50: =(1+D50)^(2025-Assumptions!$C$10)-1 -> 0 | K50: 0 | L50: 0 | M50: =(1+L50)*(1+G50)^5-1 -> 0 | N50: =(1+M50)*(1+H50)^5-1 -> 0 | O50: =(1+N50)*(1+I50)^5-1 -> 0
B51: 2. Industrial processes and product use
B52: 2.A. Mineral industry | J52: =(1+D52)^(2025-Assumptions!$C$10)-1 -> 0 | K52: =(1+J52)*(1+E52)^5-1 -> 0 | L52: =(1+K52)*(1+F52)^5-1 -> 0 | M52: =(1+L52)*(1+G52)^5-1 -> 0 | N52: =(1+M52)*(1+H52)^5-1 -> 0 | O52: =(1+N52)*(1+I52)^5-1 -> 0
B53: 2.B. Chemical industry | J53: =(1+D53)^(2025-Assumptions!$C$10)-1 -> 0 | K53: =(1+J53)*(1+E53)^5-1 -> 0 | L53: =(1+K53)*(1+F53)^5-1 -> 0 | M53: =(1+L53)*(1+G53)^5-1 -> 0 | N53: =(1+M53)*(1+H53)^5-1 -> 0 | O53: =(1+N53)*(1+I53)^5-1 -> 0
B54: 2.C. Metal industry | J54: =(1+D54)^(2025-Assumptions!$C$10)-1 -> 0 | K54: 0 | L54: 0 | M54: 0 | N54: 0 | O54: 0
B55: 2.F. Product uses as ODS substitutes
B56: Other (2.D, 2.E, 2.G. 2.H) | J56: =(1+D56)^(2025-Assumptions!$C$10)-1 -> 0 | K56: 0 | L56: 0 | M56: 0 | N56: =(1+M56)*(1+H56)^5-1 -> 0 | O56: =(1+N56)*(1+I56)^5-1 -> 0
B57: 3. Agriculture
B58: 3.A. Enteric fermentation | J58: =(1+D58)^(2025-Assumptions!$C$10)-1 -> 0 | K58: =(1+J58)*(1+E58)^5-1 -> 0 | L58: =(1+K58)*(1+F58)^5-1 -> 0 | M58: =(1+L58)*(1+G58)^5-1 -> 0 | N58: =(1+M58)*(1+H58)^5-1 -> 0 | O58: =(1+N58)*(1+I58)^5-1 -> 0
B59: 3.B. Manure management | J59: =(1+D59)^(2025-Assumptions!$C$10)-1 -> 0 | K59: 0 | L59: =(1+K59)*(1+F59)^5-1 -> 0 | M59: 0 | N59: =(1+M59)*(1+H59)^5-1 -> 0 | O59: =(1+N59)*(1+I59)^5-1 -> 0
B60: 3.D. Agricultural soils | J60: =(1+D60)^(2025-Assumptions!$C$10)-1 -> 0 | K60: 0 | L60: 0 | M60: 0 | N60: 0 | O60: 0
B61: Other (3.C, 3.E-3.J) | J61: =(1+D61)^(2025-Assumptions!$C$10)-1 -> 0 | K61: 0 | L61: 0 | M61: 0 | N61: =(1+M61)*(1+H61)^5-1 -> 0 | O61: =(1+N61)*(1+I61)^5-1 -> 0
B62: 4. Land use, land-use change and forestry
B63: 4.A. Forest land | J63: =(1+D63)^(2025-Assumptions!$C$10)-1 -> 0 | K63: =(1+J63)*(1+E63)^5-1 -> 0 | L63: =(1+K63)*(1+F63)^5-1 -> 0 | M63: =(1+L63)*(1+G63)^5-1 -> 0 | N63: =(1+M63)*(1+H63)^5-1 -> 0 | O63: =(1+N63)*(1+I63)^5-1 -> 0
B64: 4.B. Cropland | J64: =(1+D64)^(2025-Assumptions!$C$10)-1 -> 0 | K64: 0 | L64: =(1+K64)*(1+F64)^5-1 -> 0 | M64: 0 | N64: =(1+M64)*(1+H64)^5-1 -> 0 | O64: =(1+N64)*(1+I64)^5-1 -> 0
B65: 4.C. Grassland | J65: =(1+D65)^(2025-Assumptions!$C$10)-1 -> 0 | K65: 0 | L65: 0 | M65: 0 | N65: 0 | O65: 0
B66: 4.G. Harvested wood products
B67: Other (4.D, 4.E, 4.F, 4.H) | J67: =(1+D67)^(2025-Assumptions!$C$10)-1 -> 0 | K67: 0 | L67: 0 | M67: 0 | N67: =(1+M67)*(1+H67)^5-1 -> 0 | O67: =(1+N67)*(1+I67)^5-1 -> 0
B68: 5. Waste
B69: 5.A. Solid waste disposal | J69: =(1+D69)^(2025-Assumptions!$C$10)-1 -> 0 | K69: =(1+J69)*(1+E69)^5-1 -> 0 | L69: =(1+K69)*(1+F69)^5-1 -> 0 | M69: =(1+L69)*(1+G69)^5-1 -> 0 | N69: =(1+M69)*(1+H69)^5-1 -> 0 | O69: =(1+N69)*(1+I69)^5-1 -> 0
B70: 5.B. Biological treatment of solid waste | J70: =(1+D70)^(2025-Assumptions!$C$10)-1 -> 0 | K70: 0 | L70: =(1+K70)*(1+F70)^5-1 -> 0 | M70: 0 | N70: =(1+M70)*(1+H70)^5-1 -> 0 | O70: =(1+N70)*(1+I70)^5-1 -> 0
B71: 5.D. Waste water treatment and discharge | J71: =(1+D71)^(2025-Assumptions!$C$10)-1 -> 0 | K71: 0 | L71: 0 | M71: 0 | N71: 0 | O71: 0
B72: Other (5.C, 5.E) | J72: =(1+D72)^(2025-Assumptions!$C$10)-1 -> 0 | K72: 0 | L72: 0 | M72: 0 | N72: =(1+M72)*(1+H72)^5-1 -> 0 | O72: =(1+N72)*(1+I72)^5-1 -> 0
B73: Non energy - fuel in chemical feedstocs
B74: Non energy - fuel in chemical feedstocs | J74: =(1+D74)^(2025-Assumptions!$C$10)-1 -> 0 | K74: 0 | L74: 0 | M74: 0 | N74: 0 | O74: 0

Sheet BAU projected Energy Balances (hidden)
B2: Step 5: BAU projected Energy Balances for year 2025, 2030, 2035, 2040, 2045 and 2050 | U2: Year
B4: Select year to display: | L4: The BAU projected energy balances sheet includes the future energy balances for the years 2025, 2030, 2035, 2040, 2045 and 2050. The data in this sheet are automatically calculated by GACMO. The user should not modify any of the data in the tables Fossil fuel balance – year – Country X and Electricity balance – year. However, a user may exceptionally decide to modify a specific data in one of these tables in the case that the user would like to reflect a change in the energy matrix which is not taken into account by the projections made by GACMO. The user should only make such a change if he/she is completely familiar with those types of data as the change will have an impact on the emissions scenarios and results obtained. Please refer to the Guidance for further details on the data included in this sheet and on how to fill it in. Once you have reviewed the tables of the BAU projected Energy Balances sheet, you can click “Go to step 6: BAU GHG balances”. | U4: Unit
B7: Select unit to display:
C10: Selected year: | D10: 2035
C11: Selected unit: | D11: TJ
B14: ="Fossil fuel balance - 2025 - "&Assumptions!C9 -> Fossil fuel balance - 2025 - | M14: 2025
B15: TJ units | D15: LPG | E15: Gasoline | F15: Jet Fuel | G15: Diesel | H15: Fueloil | I15: Kerosene and other | J15: Total oil products | K15: Coal | L15: Lignite | M15: Gas | N15: Coke | O15: Petrocoke | P15: Total energy (fossil)
B16: Unit | D16: TJ | E16: TJ | F16: TJ | G16: TJ | H16: TJ | I16: TJ | J16: TJ | K16: TJ | L16: TJ | M16: TJ | N16: TJ | O16: TJ | P16: TJ
B17: Total | D17: =+D18+D19 -> 0 | E17: 0 | F17: 0 | G17: 0 | H17: 0 | I17: 0 | J17: 0 | K17: 0 | L17: 0 | M17: 0 | N17: =+N18+N19 -> 0 | O17: 0 | P17: =SUM(J17:O17) -> 0
B18: Fossil power plants | D18: =D47/E41 -> 0 | E18: 0 | F18: 0 | G18: 0 | H18: 0 | I18: 0 | J18: =SUM(D18:I18) -> 0 | K18: =K47/L41 -> 0 | L18: =L47/M41 -> 0 | M18: =M47/N41 -> 0 | P18: 0
B19: FINAL CONSUMPTION | D19: =SUM(D20:D39) -> 0 | E19: 0 | F19: 0 | G19: 0 | H19: 0 | I19: 0 | J19: 0 | K19: 0 | L19: 0 | M19: 0 | N19: 0 | O19: 0 | P19: 0
B20: Industry - steel | D20: =+'Energy Balance'!D21*(1+Growth!$J21) -> 0 | E20: =+'Energy Balance'!E21*(1+Growth!$J21) -> 0 | F20: =+'Energy Balance'!F21*(1+Growth!$J21) -> 0 | G20: =+'Energy Balance'!G21*(1+Growth!$J21) -> 0 | H20: =+'Energy Balance'!H21*(1+Growth!$J21) -> 0 | I20: =+'Energy Balance'!I21*(1+Growth!$J21) -> 0 | J20: =SUM(D20:I20) -> 0 | K20: =+'Energy Balance'!K21*(1+Growth!$J21) -> 0 | L20: =+'Energy Balance'!L21*(1+Growth!$J21) -> 0 | M20: =+'Energy Balance'!M21*(1+Growth!$J21) -> 0 | N20: =+'Energy Balance'!N21*(1+Growth!$J21) -> 0 | O20: =+'Energy Balance'!O21*(1+Growth!$J21) -> 0 | P20: 0
B21: Industry - chemical | D21: =+'Energy Balance'!D22*(1+Growth!$J22) -> 0 | E21: =+'Energy Balance'!E22*(1+Growth!$J22) -> 0 | F21: =+'Energy Balance'!F22*(1+Growth!$J22) -> 0 | G21: =+'Energy Balance'!G22*(1+Growth!$J22) -> 0 | H21: =+'Energy Balance'!H22*(1+Growth!$J22) -> 0 | I21: =+'Energy Balance'!I22*(1+Growth!$J22) -> 0 | J21: 0 | K21: =+'Energy Balance'!K22*(1+Growth!$J22) -> 0 | L21: =+'Energy Balance'!L22*(1+Growth!$J22) -> 0 | M21: =+'Energy Balance'!M22*(1+Growth!$J22) -> 0 | N21: =+'Energy Balance'!N22*(1+Growth!$J22) -> 0 | O21: =+'Energy Balance'!O22*(1+Growth!$J22) -> 0 | P21: 0
B22: Industry - non metallic mineral | D22: =+'Energy Balance'!D23*(1+Growth!$J23) -> 0 | E22: =+'Energy Balance'!E23*(1+Growth!$J23) -> 0 | F22: =+'Energy Balance'!F23*(1+Growth!$J23) -> 0 | G22: =+'Energy Balance'!G23*(1+Growth!$J23) -> 0 | H22: =+'Energy Balance'!H23*(1+Growth!$J23) -> 0 | I22: =+'Energy Balance'!I23*(1+Growth!$J23) -> 0 | J22: 0 | K22: =+'Energy Balance'!K23*(1+Growth!$J23) -> 0 | L22: =+'Energy Balance'!L23*(1+Growth!$J23) -> 0 | M22: =+'Energy Balance'!M23*(1+Growth!$J23) -> 0 | N22: =+'Energy Balance'!N23*(1+Growth!$J23) -> 0 | O22: =+'Energy Balance'!O23*(1+Growth!$J23) -> 0 | P22: 0
B23: Industry - food processing and beverage | D23: =+'Energy Balance'!D24*(1+Growth!$J24) -> 0 | E23: =+'Energy Balance'!E24*(1+Growth!$J24) -> 0 | F23: =+'Energy Balance'!F24*(1+Growth!$J24) -> 0 | G23: =+'Energy Balance'!G24*(1+Growth!$J24) -> 0 | H23: =+'Energy Balance'!H24*(1+Growth!$J24) -> 0 | I23: =+'Energy Balance'!I24*(1+Growth!$J24) -> 0 | J23: 0 | K23: =+'Energy Balance'!K24*(1+Growth!$J24) -> 0 | L23: =+'Energy Balance'!L24*(1+Growth!$J24) -> 0 | M23: =+'Energy Balance'!M24*(1+Growth!$J24) -> 0 | N23: =+'Energy Balance'!N24*(1+Growth!$J24) -> 0 | O23: =+'Energy Balance'!O24*(1+Growth!$J24) -> 0 | P23: 0
B24: Industry - construction | D24: =+'Energy Balance'!D25*(1+Growth!$J25) -> 0 | E24: =+'Energy Balance'!E25*(1+Growth!$J25) -> 0 | F24: =+'Energy Balance'!F25*(1+Growth!$J25) -> 0 | G24: =+'Energy Balance'!G25*(1+Growth!$J25) -> 0 | H24: =+'Energy Balance'!H25*(1+Growth!$J25) -> 0 | I24: =+'Energy Balance'!I25*(1+Growth!$J25) -> 0 | J24: 0 | K24: =+'Energy Balance'!K25*(1+Growth!$J25) -> 0 | L24: =+'Energy Balance'!L25*(1+Growth!$J25) -> 0 | M24: =+'Energy Balance'!M25*(1+Growth!$J25) -> 0 | N24: =+'Energy Balance'!N25*(1+Growth!$J25) -> 0 | O24: =+'Energy Balance'!O25*(1+Growth!$J25) -> 0 | P24: 0
B25: Industry - mining | D25: =+'Energy Balance'!D26*(1+Growth!$J26) -> 0 | E25: =+'Energy Balance'!E26*(1+Growth!$J26) -> 0 | F25: =+'Energy Balance'!F26*(1+Growth!$J26) -> 0 | G25: =+'Energy Balance'!G26*(1+Growth!$J26) -> 0 | H25: =+'Energy Balance'!H26*(1+Growth!$J26) -> 0 | I25: =+'Energy Balance'!I26*(1+Growth!$J26) -> 0 | J25: 0 | K25: =+'Energy Balance'!K26*(1+Growth!$J26) -> 0 | L25: =+'Energy Balance'!L26*(1+Growth!$J26) -> 0 | M25: =+'Energy Balance'!M26*(1+Growth!$J26) -> 0 | N25: =+'Energy Balance'!N26*(1+Growth!$J26) -> 0 | O25: =+'Energy Balance'!O26*(1+Growth!$J26) -> 0 | P25: 0
B26: Industry - machinery | D26: =+'Energy Balance'!D27*(1+Growth!$J27) -> 0 | E26: =+'Energy Balance'!E27*(1+Growth!$J27) -> 0 | F26: =+'Energy Balance'!F27*(1+Growth!$J27) -> 0 | G26: =+'Energy Balance'!G27*(1+Growth!$J27) -> 0 | H26: =+'Energy Balance'!H27*(1+Growth!$J27) -> 0 | I26: =+'Energy Balance'!I27*(1+Growth!$J27) -> 0 | J26: 0 | K26: =+'Energy Balance'!K27*(1+Growth!$J27) -> 0 | L26: =+'Energy Balance'!L27*(1+Growth!$J27) -> 0 | M26: =+'Energy Balance'!M27*(1+Growth!$J27) -> 0 | N26: =+'Energy Balance'!N27*(1+Growth!$J27) -> 0 | O26: =+'Energy Balance'!O27*(1+Growth!$J27) -> 0 | P26: 0
B27: Industry - non ferrous metals | D27: =+'Energy Balance'!D28*(1+Growth!$J28) -> 0 | E27: =+'Energy Balance'!E28*(1+Growth!$J28) -> 0 | F27: =+'Energy Balance'!F28*(1+Growth!$J28) -> 0 | G27: =+'Energy Balance'!G28*(1+Growth!$J28) -> 0 | H27: =+'Energy Balance'!H28*(1+Growth!$J28) -> 0 | I27: =+'Energy Balance'!I28*(1+Growth!$J28) -> 0 | J27: 0 | K27: =+'Energy Balance'!K28*(1+Growth!$J28) -> 0 | L27: =+'Energy Balance'!L28*(1+Growth!$J28) -> 0 | M27: =+'Energy Balance'!M28*(1+Growth!$J28) -> 0 | N27: =+'Energy Balance'!N28*(1+Growth!$J28) -> 0 | O27: =+'Energy Balance'!O28*(1+Growth!$J28) -> 0 | P27: 0
B28: Industry - paper and pulp | D28: =+'Energy Balance'!D29*(1+Growth!$J29) -> 0 | E28: =+'Energy Balance'!E29*(1+Growth!$J29) -> 0 | F28: =+'Energy Balance'!F29*(1+Growth!$J29) -> 0 | G28: =+'Energy Balance'!G29*(1+Growth!$J29) -> 0 | H28: =+'Energy Balance'!H29*(1+Growth!$J29) -> 0 | I28: =+'Energy Balance'!I29*(1+Growth!$J29) -> 0 | J28: 0 | K28: =+'Energy Balance'!K29*(1+Growth!$J29) -> 0 | L28: =+'Energy Balance'!L29*(1+Growth!$J29) -> 0 | M28: =+'Energy Balance'!M29*(1+Growth!$J29) -> 0 | N28: =+'Energy Balance'!N29*(1+Growth!$J29) -> 0 | O28: =+'Energy Balance'!O29*(1+Growth!$J29) -> 0 | P28: 0
B29: Industry - transport equipment | D29: =+'Energy Balance'!D30*(1+Growth!$J30) -> 0 | E29: =+'Energy Balance'!E30*(1+Growth!$J30) -> 0 | F29: =+'Energy Balance'!F30*(1+Growth!$J30) -> 0 | G29: =+'Energy Balance'!G30*(1+Growth!$J30) -> 0 | H29: =+'Energy Balance'!H30*(1+Growth!$J30) -> 0 | I29: =+'Energy Balance'!I30*(1+Growth!$J30) -> 0 | J29: 0 | K29: =+'Energy Balance'!K30*(1+Growth!$J30) -> 0 | L29: =+'Energy Balance'!L30*(1+Growth!$J30) -> 0 | M29: =+'Energy Balance'!M30*(1+Growth!$J30) -> 0 | N29: =+'Energy Balance'!N30*(1+Growth!$J30) -> 0 | O29: =+'Energy Balance'!O30*(1+Growth!$J30) -> 0 | P29: 0
B30: Industry - textile and leather | D30: =+'Energy Balance'!D31*(1+Growth!$J31) -> 0 | E30: =+'Energy Balance'!E31*(1+Growth!$J31) -> 0 | F30: =+'Energy Balance'!F31*(1+Growth!$J31) -> 0 | G30: =+'Energy Balance'!G31*(1+Growth!$J31) -> 0 | H30: =+'Energy Balance'!H31*(1+Growth!$J31) -> 0 | I30: =+'Energy Balance'!I31*(1+Growth!$J31) -> 0 | J30: 0 | K30: =+'Energy Balance'!K31*(1+Growth!$J31) -> 0 | L30: =+'Energy Balance'!L31*(1+Growth!$J31) -> 0 | M30: =+'Energy Balance'!M31*(1+Growth!$J31) -> 0 | N30: =+'Energy Balance'!N31*(1+Growth!$J31) -> 0 | O30: =+'Energy Balance'!O31*(1+Growth!$J31) -> 0 | P30: 0
B31: Industry - miscellaneous | D31: =+'Energy Balance'!D32*(1+Growth!$J32) -> 0 | E31: =+'Energy Balance'!E32*(1+Growth!$J32) -> 0 | F31: =+'Energy Balance'!F32*(1+Growth!$J32) -> 0 | G31: =+'Energy Balance'!G32*(1+Growth!$J32) -> 0 | H31: =+'Energy Balance'!H32*(1+Growth!$J32) -> 0 | I31: =+'Energy Balance'!I32*(1+Growth!$J32) -> 0 | J31: 0 | K31: =+'Energy Balance'!K32*(1+Growth!$J32) -> 0 | L31: =+'Energy Balance'!L32*(1+Growth!$J32) -> 0 | M31: =+'Energy Balance'!M32*(1+Growth!$J32) -> 0 | N31: =+'Energy Balance'!N32*(1+Growth!$J32) -> 0 | O31: =+'Energy Balance'!O32*(1+Growth!$J32) -> 0 | P31: 0
B32: Transport - road | D32: =+'Energy Balance'!D33*(1+Growth!$J35) -> 0 | E32: =+'Energy Balance'!E33*(1+Growth!$J35) -> 0 | F32: =+'Energy Balance'!F33*(1+Growth!$J35) -> 0 | G32: =+'Energy Balance'!G33*(1+Growth!$J35) -> 0 | H32: =+'Energy Balance'!H33*(1+Growth!$J35) -> 0 | I32: =+'Energy Balance'!I33*(1+Growth!$J35) -> 0 | J32: 0 | K32: =+'Energy Balance'!K33*(1+Growth!$J35) -> 0 | L32: =+'Energy Balance'!L33*(1+Growth!$J35) -> 0 | M32: =+'Energy Balance'!M33*(1+Growth!$J35) -> 0 | N32: =+'Energy Balance'!N33*(1+Growth!$J35) -> 0 | O32: =+'Energy Balance'!O33*(1+Growth!$J35) -> 0 | P32: 0
B33: Transport - rail | D33: =+'Energy Balance'!D34*(1+Growth!$J36) -> 0 | E33: =+'Energy Balance'!E34*(1+Growth!$J36) -> 0 | F33: =+'Energy Balance'!F34*(1+Growth!$J36) -> 0 | G33: =+'Energy Balance'!G34*(1+Growth!$J36) -> 0 | H33: =+'Energy Balance'!H34*(1+Growth!$J36) -> 0 | I33: =+'Energy Balance'!I34*(1+Growth!$J36) -> 0 | J33: 0 | K33: =+'Energy Balance'!K34*(1+Growth!$J36) -> 0 | L33: =+'Energy Balance'!L34*(1+Growth!$J36) -> 0 | M33: =+'Energy Balance'!M34*(1+Growth!$J36) -> 0 | N33: =+'Energy Balance'!N34*(1+Growth!$J36) -> 0 | O33: =+'Energy Balance'!O34*(1+Growth!$J36) -> 0 | P33: 0
B34: Transport - domestic air | D34: =+'Energy Balance'!D35*(1+Growth!$J37) -> 0 | E34: =+'Energy Balance'!E35*(1+Growth!$J37) -> 0 | F34: =+'Energy Balance'!F35*(1+Growth!$J37) -> 0 | G34: =+'Energy Balance'!G35*(1+Growth!$J37) -> 0 | H34: =+'Energy Balance'!H35*(1+Growth!$J37) -> 0 | I34: =+'Energy Balance'!I35*(1+Growth!$J37) -> 0 | J34: 0 | K34: =+'Energy Balance'!K35*(1+Growth!$J37) -> 0 | L34: =+'Energy Balance'!L35*(1+Growth!$J37) -> 0 | M34: =+'Energy Balance'!M35*(1+Growth!$J37) -> 0 | N34: =+'Energy Balance'!N35*(1+Growth!$J37) -> 0 | O34: =+'Energy Balance'!O35*(1+Growth!$J37) -> 0 | P34: 0
B35: Transport - navigation | D35: =+'Energy Balance'!D36*(1+Growth!$J38) -> 0 | E35: =+'Energy Balance'!E36*(1+Growth!$J38) -> 0 | F35: =+'Energy Balance'!F36*(1+Growth!$J38) -> 0 | G35: =+'Energy Balance'!G36*(1+Growth!$J38) -> 0 | H35: =+'Energy Balance'!H36*(1+Growth!$J38) -> 0 | I35: =+'Energy Balance'!I36*(1+Growth!$J38) -> 0 | J35: 0 | K35: =+'Energy Balance'!K36*(1+Growth!$J38) -> 0 | L35: =+'Energy Balance'!L36*(1+Growth!$J38) -> 0 | M35: =+'Energy Balance'!M36*(1+Growth!$J38) -> 0 | N35: =+'Energy Balance'!N36*(1+Growth!$J38) -> 0 | O35: =+'Energy Balance'!O36*(1+Growth!$J38) -> 0 | P35: 0
B36: Households | D36: =+'Energy Balance'!D37*(1+Growth!$J42) -> 0 | E36: =+'Energy Balance'!E37*(1+Growth!$J42) -> 0 | F36: =+'Energy Balance'!F37*(1+Growth!$J42) -> 0 | G36: =+'Energy Balance'!G37*(1+Growth!$J42) -> 0 | H36: =+'Energy Balance'!H37*(1+Growth!$J42) -> 0 | I36: =+'Energy Balance'!I37*(1+Growth!$J43) -> 0 | J36: 0 | K36: =+'Energy Balance'!K37*(1+Growth!$J42) -> 0 | L36: =+'Energy Balance'!L37*(1+Growth!$J42) -> 0 | M36: =+'Energy Balance'!M37*(1+Growth!$J42) -> 0 | N36: =+'Energy Balance'!N37*(1+Growth!$J42) -> 0 | O36: =+'Energy Balance'!O37*(1+Growth!$J42) -> 0 | P36: 0
B37: Services | D37: =+'Energy Balance'!D38*(1+Growth!$J46) -> 0 | E37: =+'Energy Balance'!E38*(1+Growth!$J46) -> 0 | F37: =+'Energy Balance'!F38*(1+Growth!$J46) -> 0 | G37: =+'Energy Balance'!G38*(1+Growth!$J46) -> 0 | H37: =+'Energy Balance'!H38*(1+Growth!$J46) -> 0 | I37: =+'Energy Balance'!I38*(1+Growth!$J46) -> 0 | J37: 0 | K37: =+'Energy Balance'!K38*(1+Growth!$J46) -> 0 | L37: =+'Energy Balance'!L38*(1+Growth!$J46) -> 0 | M37: =+'Energy Balance'!M38*(1+Growth!$J46) -> 0 | N37: =+'Energy Balance'!N38*(1+Growth!$J46) -> 0 | O37: =+'Energy Balance'!O38*(1+Growth!$J46) -> 0 | P37: 0
B38: Agriculture & Fishery | D38: =+'Energy Balance'!D39*(1+Growth!$J49) -> 0 | E38: =+'Energy Balance'!E39*(1+Growth!$J49) -> 0 | F38: =+'Energy Balance'!F39*(1+Growth!$J49) -> 0 | G38: =+'Energy Balance'!G39*(1+Growth!$J49) -> 0 | H38: =+'Energy Balance'!H39*(1+Growth!$J49) -> 0 | I38: =+'Energy Balance'!I39*(1+Growth!$J49) -> 0 | J38: 0 | K38: =+'Energy Balance'!K39*(1+Growth!$J49) -> 0 | L38: =+'Energy Balance'!L39*(1+Growth!$J49) -> 0 | M38: =+'Energy Balance'!M39*(1+Growth!$J49) -> 0 | N38: =+'Energy Balance'!N39*(1+Growth!$J49) -> 0 | O38: =+'Energy Balance'!O39*(1+Growth!$J49) -> 0 | P38: 0
B39: Non energy uses | D39: =+'Energy Balance'!D40*(1+Growth!$J74) -> 0 | E39: =+'Energy Balance'!E40*(1+Growth!$J74) -> 0 | F39: =+'Energy Balance'!F40*(1+Growth!$J74) -> 0 | G39: =+'Energy Balance'!G40*(1+Growth!$J74) -> 0 | H39: =+'Energy Balance'!H40*(1+Growth!$J74) -> 0 | I39: =+'Energy Balance'!I40*(1+Growth!$J74) -> 0 | J39: 0 | K39: =+'Energy Balance'!K40*(1+Growth!$J74) -> 0 | L39: =+'Energy Balance'!L40*(1+Growth!$J74) -> 0 | M39: =+'Energy Balance'!M40*(1+Growth!$J74) -> 0 | N39: =+'Energy Balance'!N40*(1+Growth!$J74) -> 0 | O39: =+'Energy Balance'!O40*(1+Growth!$J74) -> 0 | P39: 0
E41: 0.02388458966 | F41: 0.02388458966 | G41: 0.02388458966 | H41: 0.02388458966 | I41: 0.02388458966 | J41: 0.02388458966 | L41: 0.02388458966 | M41: 0.02388458966 | N41: 0.02388458966 | O41: 0.02388458966 | P41: 0.02388458966
B43: ="Fossil fuel balance - 2025 - "&Assumptions!C9 -> Fossil fuel balance - 2025 -
B44: ktoe units | D44: LPG | E44: Gasoline | F44: Jet Fuel | G44: Diesel | H44: Fueloil | I44: Kerosene and other | J44: Total oil products | K44: Coal | L44: Lignite | M44: Gas | N44: Coke | O44: Petrocoke | P44: Total
B45: Unit | D45: ktoe | E45: ktoe | F45: ktoe | G45: ktoe | H45: ktoe | I45: ktoe | J45: ktoe | K45: ktoe | L45: ktoe | M45: ktoe | N45: ktoe | O45: ktoe | P45: ktoe
B46: Total consumption | D46: =+D47+D48 -> 0 | E46: 0 | F46: 0 | G46: 0 | H46: 0 | I46: 0 | J46: 0 | K46: 0 | L46: 0 | M46: 0 | N46: 0 | O46: 0 | P46: 0
B47: Fossil power plants | D47: =IFERROR(IF(G75=0,0,$J47*IF('Energy Balance'!$J76>0,'Energy Balance'!D76/'Energy Balance'!$J76,0)),0) -> 0 | E47: =IFERROR(IF(G75=0,0,$J47*IF('Energy Balance'!$J76>0,'Energy Balance'!E76/'Energy Balance'!$J76,0)),0) -> 0 | F47: =IFERROR(IF(G75=0,0,$J47*IF('Energy Balance'!$J76>0,'Energy Balance'!F76/'Energy Balance'!$J76,0)),0) -> 0 | G47: =IFERROR(IF(G75=0,0,$J47*IF('Energy Balance'!$J76>0,'Energy Balance'!G76/'Energy Balance'!$J76,0)),0) -> 0 | H47: =IFERROR(IF(G75=0,0,$J47*IF('Energy Balance'!$J76>0,'Energy Balance'!H76/'Energy Balance'!$J76,0)),0) -> 0 | I47: =IFERROR(IF(G75=0,0,$J47*IF('Energy Balance'!$J76>0,'Energy Balance'!I76/'Energy Balance'!$J76,0)),0) -> 0 | J47: =IFERROR(IF(G75=0,0,G78/11.63/I78),0) -> 0 | K47: =IF(I77>0,G77/11.63/I77,0) -> 0 | L47: =IF(I76>0,G76/11.63/I76,0) -> 0 | M47: =IF(I79>0,G79/11.63/I79,0) -> 0 | P47: =SUM(J47:O47) -> 0
B48: FINAL CONSUMPTION | D48: =SUM(D49:D68) -> 0 | E48: 0 | F48: 0 | G48: 0 | H48: 0 | I48: 0 | J48: =SUM(D48:I48) -> 0 | K48: =SUM(K49:K68) -> 0 | L48: 0 | M48: 0 | N48: 0 | O48: 0 | P48: 0
B49: Industry - steel | D49: =+'Energy Balance'!D78*(1+Growth!$J21) -> 0 | E49: =+'Energy Balance'!E78*(1+Growth!$J21) -> 0 | F49: =+'Energy Balance'!F78*(1+Growth!$J21) -> 0 | G49: =+'Energy Balance'!G78*(1+Growth!$J21) -> 0 | H49: =+'Energy Balance'!H78*(1+Growth!$J21) -> 0 | I49: =+'Energy Balance'!I78*(1+Growth!$J21) -> 0 | J49: 0 | K49: =+'Energy Balance'!K78*(1+Growth!$J21) -> 0 | L49: =+'Energy Balance'!L78*(1+Growth!$J21) -> 0 | M49: =+'Energy Balance'!M78*(1+Growth!$J21) -> 0 | N49: =+'Energy Balance'!N78*(1+Growth!$J21) -> 0 | O49: =+'Energy Balance'!O78*(1+Growth!$J21) -> 0 | P49: =SUM(J49:O49) -> 0
B50: Industry - chemical | D50: =+'Energy Balance'!D79*(1+Growth!$J22) -> 0 | E50: =+'Energy Balance'!E79*(1+Growth!$J22) -> 0 | F50: =+'Energy Balance'!F79*(1+Growth!$J22) -> 0 | G50: =+'Energy Balance'!G79*(1+Growth!$J22) -> 0 | H50: =+'Energy Balance'!H79*(1+Growth!$J22) -> 0 | I50: =+'Energy Balance'!I79*(1+Growth!$J22) -> 0 | J50: 0 | K50: =+'Energy Balance'!K79*(1+Growth!$J22) -> 0 | L50: =+'Energy Balance'!L79*(1+Growth!$J22) -> 0 | M50: =+'Energy Balance'!M79*(1+Growth!$J22) -> 0 | N50: =+'Energy Balance'!N79*(1+Growth!$J22) -> 0 | O50: =+'Energy Balance'!O79*(1+Growth!$J22) -> 0 | P50: 0
B51: Industry - non metallic mineral | D51: =+'Energy Balance'!D80*(1+Growth!$J23) -> 0 | E51: =+'Energy Balance'!E80*(1+Growth!$J23) -> 0 | F51: =+'Energy Balance'!F80*(1+Growth!$J23) -> 0 | G51: =+'Energy Balance'!G80*(1+Growth!$J23) -> 0 | H51: =+'Energy Balance'!H80*(1+Growth!$J23) -> 0 | I51: =+'Energy Balance'!I80*(1+Growth!$J23) -> 0 | J51: 0 | K51: =+'Energy Balance'!K80*(1+Growth!$J23) -> 0 | L51: =+'Energy Balance'!L80*(1+Growth!$J23) -> 0 | M51: =+'Energy Balance'!M80*(1+Growth!$J23) -> 0 | N51: =+'Energy Balance'!N80*(1+Growth!$J23) -> 0 | O51: =+'Energy Balance'!O80*(1+Growth!$J23) -> 0 | P51: 0
B52: Industry - food processing and beverage | D52: =+'Energy Balance'!D81*(1+Growth!$J24) -> 0 | E52: =+'Energy Balance'!E81*(1+Growth!$J24) -> 0 | F52: =+'Energy Balance'!F81*(1+Growth!$J24) -> 0 | G52: =+'Energy Balance'!G81*(1+Growth!$J24) -> 0 | H52: =+'Energy Balance'!H81*(1+Growth!$J24) -> 0 | I52: =+'Energy Balance'!I81*(1+Growth!$J24) -> 0 | J52: 0 | K52: =+'Energy Balance'!K81*(1+Growth!$J24) -> 0 | L52: =+'Energy Balance'!L81*(1+Growth!$J24) -> 0 | M52: =+'Energy Balance'!M81*(1+Growth!$J24) -> 0 | N52: =+'Energy Balance'!N81*(1+Growth!$J24) -> 0 | O52: =+'Energy Balance'!O81*(1+Growth!$J24) -> 0 | P52: 0
B53: Industry - construction | D53: =+'Energy Balance'!D82*(1+Growth!$J25) -> 0 | E53: =+'Energy Balance'!E82*(1+Growth!$J25) -> 0 | F53: =+'Energy Balance'!F82*(1+Growth!$J25) -> 0 | G53: =+'Energy Balance'!G82*(1+Growth!$J25) -> 0 | H53: =+'Energy Balance'!H82*(1+Growth!$J25) -> 0 | I53: =+'Energy Balance'!I82*(1+Growth!$J25) -> 0 | J53: 0 | K53: =+'Energy Balance'!K82*(1+Growth!$J25) -> 0 | L53: =+'Energy Balance'!L82*(1+Growth!$J25) -> 0 | M53: =+'Energy Balance'!M82*(1+Growth!$J25) -> 0 | N53: =+'Energy Balance'!N82*(1+Growth!$J25) -> 0 | O53: =+'Energy Balance'!O82*(1+Growth!$J25) -> 0 | P53: 0
B54: Industry - mining | D54: =+'Energy Balance'!D83*(1+Growth!$J26) -> 0 | E54: =+'Energy Balance'!E83*(1+Growth!$J26) -> 0 | F54: =+'Energy Balance'!F83*(1+Growth!$J26) -> 0 | G54: =+'Energy Balance'!G83*(1+Growth!$J26) -> 0 | H54: =+'Energy Balance'!H83*(1+Growth!$J26) -> 0 | I54: =+'Energy Balance'!I83*(1+Growth!$J26) -> 0 | J54: 0 | K54: =+'Energy Balance'!K83*(1+Growth!$J26) -> 0 | L54: =+'Energy Balance'!L83*(1+Growth!$J26) -> 0 | M54: =+'Energy Balance'!M83*(1+Growth!$J26) -> 0 | N54: =+'Energy Balance'!N83*(1+Growth!$J26) -> 0 | O54: =+'Energy Balance'!O83*(1+Growth!$J26) -> 0 | P54: 0
B55: Industry - machinery | D55: =+'Energy Balance'!D84*(1+Growth!$J27) -> 0 | E55: =+'Energy Balance'!E84*(1+Growth!$J27) -> 0 | F55: =+'Energy Balance'!F84*(1+Growth!$J27) -> 0 | G55: =+'Energy Balance'!G84*(1+Growth!$J27) -> 0 | H55: =+'Energy Balance'!H84*(1+Growth!$J27) -> 0 | I55: =+'Energy Balance'!I84*(1+Growth!$J27) -> 0 | J55: 0 | K55: =+'Energy Balance'!K84*(1+Growth!$J27) -> 0 | L55: =+'Energy Balance'!L84*(1+Growth!$J27) -> 0 | M55: =+'Energy Balance'!M84*(1+Growth!$J27) -> 0 | N55: =+'Energy Balance'!N84*(1+Growth!$J27) -> 0 | O55: =+'Energy Balance'!O84*(1+Growth!$J27) -> 0 | P55: 0
B56: Industry - non ferrous metals | D56: =+'Energy Balance'!D85*(1+Growth!$J28) -> 0 | E56: =+'Energy Balance'!E85*(1+Growth!$J28) -> 0 | F56: =+'Energy Balance'!F85*(1+Growth!$J28) -> 0 | G56: =+'Energy Balance'!G85*(1+Growth!$J28) -> 0 | H56: =+'Energy Balance'!H85*(1+Growth!$J28) -> 0 | I56: =+'Energy Balance'!I85*(1+Growth!$J28) -> 0 | J56: 0 | K56: =+'Energy Balance'!K85*(1+Growth!$J28) -> 0 | L56: =+'Energy Balance'!L85*(1+Growth!$J28) -> 0 | M56: =+'Energy Balance'!M85*(1+Growth!$J28) -> 0 | N56: =+'Energy Balance'!N85*(1+Growth!$J28) -> 0 | O56: =+'Energy Balance'!O85*(1+Growth!$J28) -> 0 | P56: 0
B57: Industry - paper and pulp | D57: =+'Energy Balance'!D86*(1+Growth!$J29) -> 0 | E57: =+'Energy Balance'!E86*(1+Growth!$J29) -> 0 | F57: =+'Energy Balance'!F86*(1+Growth!$J29) -> 0 | G57: =+'Energy Balance'!G86*(1+Growth!$J29) -> 0 | H57: =+'Energy Balance'!H86*(1+Growth!$J29) -> 0 | I57: =+'Energy Balance'!I86*(1+Growth!$J29) -> 0 | J57: 0 | K57: =+'Energy Balance'!K86*(1+Growth!$J29) -> 0 | L57: =+'Energy Balance'!L86*(1+Growth!$J29) -> 0 | M57: =+'Energy Balance'!M86*(1+Growth!$J29) -> 0 | N57: =+'Energy Balance'!N86*(1+Growth!$J29) -> 0 | O57: =+'Energy Balance'!O86*(1+Growth!$J29) -> 0 | P57: 0
B58: Industry - transport equipment | D58: =+'Energy Balance'!D87*(1+Growth!$J30) -> 0 | E58: =+'Energy Balance'!E87*(1+Growth!$J30) -> 0 | F58: =+'Energy Balance'!F87*(1+Growth!$J30) -> 0 | G58: =+'Energy Balance'!G87*(1+Growth!$J30) -> 0 | H58: =+'Energy Balance'!H87*(1+Growth!$J30) -> 0 | I58: =+'Energy Balance'!I87*(1+Growth!$J30) -> 0 | J58: 0 | K58: =+'Energy Balance'!K87*(1+Growth!$J30) -> 0 | L58: =+'Energy Balance'!L87*(1+Growth!$J30) -> 0 | M58: =+'Energy Balance'!M87*(1+Growth!$J30) -> 0 | N58: =+'Energy Balance'!N87*(1+Growth!$J30) -> 0 | O58: =+'Energy Balance'!O87*(1+Growth!$J30) -> 0 | P58: 0
B59: Industry - textile and leather | D59: =+'Energy Balance'!D88*(1+Growth!$J31) -> 0 | E59: =+'Energy Balance'!E88*(1+Growth!$J31) -> 0 | F59: =+'Energy Balance'!F88*(1+Growth!$J31) -> 0 | G59: =+'Energy Balance'!G88*(1+Growth!$J31) -> 0 | H59: =+'Energy Balance'!H88*(1+Growth!$J31) -> 0 | I59: =+'Energy Balance'!I88*(1+Growth!$J31) -> 0 | J59: 0 | K59: =+'Energy Balance'!K88*(1+Growth!$J31) -> 0 | L59: =+'Energy Balance'!L88*(1+Growth!$J31) -> 0 | M59: =+'Energy Balance'!M88*(1+Growth!$J31) -> 0 | N59: =+'Energy Balance'!N88*(1+Growth!$J31) -> 0 | O59: =+'Energy Balance'!O88*(1+Growth!$J31) -> 0 | P59: 0
B60: Industry - miscellaneous | D60: =+'Energy Balance'!D89*(1+Growth!$J32) -> 0 | E60: =+'Energy Balance'!E89*(1+Growth!$J32) -> 0 | F60: =+'Energy Balance'!F89*(1+Growth!$J32) -> 0 | G60: =+'Energy Balance'!G89*(1+Growth!$J32) -> 0 | H60: =+'Energy Balance'!H89*(1+Growth!$J32) -> 0 | I60: =+'Energy Balance'!I89*(1+Growth!$J32) -> 0 | J60: 0 | K60: =+'Energy Balance'!K89*(1+Growth!$J32) -> 0 | L60: =+'Energy Balance'!L89*(1+Growth!$J32) -> 0 | M60: =+'Energy Balance'!M89*(1+Growth!$J32) -> 0 | N60: =+'Energy Balance'!N89*(1+Growth!$J32) -> 0 | O60: =+'Energy Balance'!O89*(1+Growth!$J32) -> 0 | P60: 0
B61: Transport - road | D61: =+'Energy Balance'!D90*(1+Growth!$J35) -> 0 | E61: =+'Energy Balance'!E90*(1+Growth!$J35) -> 0 | F61: =+'Energy Balance'!F90*(1+Growth!$J35) -> 0 | G61: =+'Energy Balance'!G90*(1+Growth!$J35) -> 0 | H61: =+'Energy Balance'!H90*(1+Growth!$J35) -> 0 | I61: =+'Energy Balance'!I90*(1+Growth!$J35) -> 0 | J61: 0 | K61: =+'Energy Balance'!K90*(1+Growth!$J35) -> 0 | L61: =+'Energy Balance'!L90*(1+Growth!$J35) -> 0 | M61: =+'Energy Balance'!M90*(1+Growth!$J35) -> 0 | N61: =+'Energy Balance'!N90*(1+Growth!$J35) -> 0 | O61: =+'Energy Balance'!O90*(1+Growth!$J35) -> 0 | P61: 0
B62: Transport - rail | D62: =+'Energy Balance'!D91*(1+Growth!$J36) -> 0 | E62: =+'Energy Balance'!E91*(1+Growth!$J36) -> 0 | F62: =+'Energy Balance'!F91*(1+Growth!$J36) -> 0 | G62: =+'Energy Balance'!G91*(1+Growth!$J36) -> 0 | H62: =+'Energy Balance'!H91*(1+Growth!$J36) -> 0 | I62: =+'Energy Balance'!I91*(1+Growth!$J36) -> 0 | J62: 0 | K62: =+'Energy Balance'!K91*(1+Growth!$J36) -> 0 | L62: =+'Energy Balance'!L91*(1+Growth!$J36) -> 0 | M62: =+'Energy Balance'!M91*(1+Growth!$J36) -> 0 | N62: =+'Energy Balance'!N91*(1+Growth!$J36) -> 0 | O62: =+'Energy Balance'!O91*(1+Growth!$J36) -> 0 | P62: 0
B63: Transport - domestic air | D63: =+'Energy Balance'!D92*(1+Growth!$J37) -> 0 | E63: =+'Energy Balance'!E92*(1+Growth!$J37) -> 0 | F63: =+'Energy Balance'!F92*(1+Growth!$J37) -> 0 | G63: =+'Energy Balance'!G92*(1+Growth!$J37) -> 0 | H63: =+'Energy Balance'!H92*(1+Growth!$J37) -> 0 | I63: =+'Energy Balance'!I92*(1+Growth!$J37) -> 0 | J63: 0 | K63: =+'Energy Balance'!K92*(1+Growth!$J37) -> 0 | L63: =+'Energy Balance'!L92*(1+Growth!$J37) -> 0 | M63: =+'Energy Balance'!M92*(1+Growth!$J37) -> 0 | N63: =+'Energy Balance'!N92*(1+Growth!$J37) -> 0 | O63: =+'Energy Balance'!O92*(1+Growth!$J37) -> 0 | P63: 0
B64: Transport - navigation | D64: =+'Energy Balance'!D93*(1+Growth!$J38) -> 0 | E64: =+'Energy Balance'!E93*(1+Growth!$J38) -> 0 | F64: =+'Energy Balance'!F93*(1+Growth!$J38) -> 0 | G64: =+'Energy Balance'!G93*(1+Growth!$J38) -> 0 | H64: =+'Energy Balance'!H93*(1+Growth!$J38) -> 0 | I64: =+'Energy Balance'!I93*(1+Growth!$J38) -> 0 | J64: 0 | K64: =+'Energy Balance'!K93*(1+Growth!$J38) -> 0 | L64: =+'Energy Balance'!L93*(1+Growth!$J38) -> 0 | M64: =+'Energy Balance'!M93*(1+Growth!$J38) -> 0 | N64: =+'Energy Balance'!N93*(1+Growth!$J38) -> 0 | O64: =+'Energy Balance'!O93*(1+Growth!$J38) -> 0 | P64: 0
B65: Households | D65: =+'Energy Balance'!D94*(1+Growth!$J42) -> 0 | E65: =+'Energy Balance'!E94*(1+Growth!$J42) -> 0 | F65: =+'Energy Balance'!F94*(1+Growth!$J42) -> 0 | G65: =+'Energy Balance'!G94*(1+Growth!$J42) -> 0 | H65: =+'Energy Balance'!H94*(1+Growth!$J42) -> 0 | I65: =+'Energy Balance'!I94*(1+Growth!$J43) -> 0 | J65: 0 | K65: =+'Energy Balance'!K94*(1+Growth!$J42) -> 0 | L65: =+'Energy Balance'!L94*(1+Growth!$J42) -> 0 | M65: =+'Energy Balance'!M94*(1+Growth!$J42) -> 0 | N65: =+'Energy Balance'!N94*(1+Growth!$J42) -> 0 | O65: =+'Energy Balance'!O94*(1+Growth!$J42) -> 0 | P65: 0
B66: Services | D66: =+'Energy Balance'!D95*(1+Growth!$J46) -> 0 | E66: =+'Energy Balance'!E95*(1+Growth!$J46) -> 0 | F66: =+'Energy Balance'!F95*(1+Growth!$J46) -> 0 | G66: =+'Energy Balance'!G95*(1+Growth!$J46) -> 0 | H66: =+'Energy Balance'!H95*(1+Growth!$J46) -> 0 | I66: =+'Energy Balance'!I95*(1+Growth!$J46) -> 0 | J66: 0 | K66: =+'Energy Balance'!K95*(1+Growth!$J46) -> 0 | L66: =+'Energy Balance'!L95*(1+Growth!$J46) -> 0 | M66: =+'Energy Balance'!M95*(1+Growth!$J46) -> 0 | N66: =+'Energy Balance'!N95*(1+Growth!$J46) -> 0 | O66: =+'Energy Balance'!O95*(1+Growth!$J46) -> 0 | P66: 0
B67: Agriculture & Fishery | D67: =+'Energy Balance'!D96*(1+Growth!$J49) -> 0 | E67: =+'Energy Balance'!E96*(1+Growth!$J49) -> 0 | F67: =+'Energy Balance'!F96*(1+Growth!$J49) -> 0 | G67: =+'Energy Balance'!G96*(1+Growth!$J49) -> 0 | H67: =+'Energy Balance'!H96*(1+Growth!$J49) -> 0 | I67: =+'Energy Balance'!I96*(1+Growth!$J49) -> 0 | J67: 0 | K67: =+'Energy Balance'!K96*(1+Growth!$J49) -> 0 | L67: =+'Energy Balance'!L96*(1+Growth!$J49) -> 0 | M67: =+'Energy Balance'!M96*(1+Growth!$J49) -> 0 | N67: =+'Energy Balance'!N96*(1+Growth!$J49) -> 0 | O67: =+'Energy Balance'!O96*(1+Growth!$J49) -> 0 | P67: 0
B68: Non energy uses | D68: =+'Energy Balance'!D97*(1+Growth!$J74) -> 0 | E68: =+'Energy Balance'!E97*(1+Growth!$J74) -> 0 | F68: =+'Energy Balance'!F97*(1+Growth!$J74) -> 0 | G68: =+'Energy Balance'!G97*(1+Growth!$J74) -> 0 | H68: =+'Energy Balance'!H97*(1+Growth!$J74) -> 0 | I68: =+'Energy Balance'!I97*(1+Growth!$J74) -> 0 | J68: 0 | K68: =+'Energy Balance'!K97*(1+Growth!$J74) -> 0 | L68: =+'Energy Balance'!L97*(1+Growth!$J74) -> 0 | M68: =+'Energy Balance'!M97*(1+Growth!$J74) -> 0 | N68: =+'Energy Balance'!N97*(1+Growth!$J74) -> 0 | O68: =+'Energy Balance'!O97*(1+Growth!$J74) -> 0 | P68: 0
B71: Electricity balance - 2025
B72: Electricity consumption | D72: GWh | F72: Electricity production | G72: Gwh | H72: Share of production | I72: Efficiency
B73: Total consumption | D73: =SUM(D74:D93) -> 0 | F73: Total | G73: =IF(H74=1,0,D73/(1-H74)) -> 0
B74: Industry - steel | D74: =+'Energy Balance'!D103*(1+Growth!J$33) -> 0 | F74: Losses | G74: =G73*H74 -> 0 | H74: =+'Energy Balance'!H103 -> 1
B75: Industry - chemical | D75: =+'Energy Balance'!D104*(1+Growth!J$33) -> 0 | F75: Fossil | G75: =SUM(G76:G79) -> 0 | H75: =SUM(H76:H79) -> 4
B76: Industry - non metallic mineral | D76: =+'Energy Balance'!D105*(1+Growth!J$33) -> 0 | F76: Lignite | G76: =G$73*H76 -> 0 | H76: =+'Energy Balance'!H105 -> 1 | I76: =+'Energy Balance'!I105 -> 0
B77: Industry - food processing and beverage | D77: =+'Energy Balance'!D106*(1+Growth!J$33) -> 0 | F77: Coal | G77: =G$73*H77 -> 0 | H77: =+'Energy Balance'!H106 -> 1 | I77: =+'Energy Balance'!I106 -> 0
B78: Industry - construction | D78: =+'Energy Balance'!D107*(1+Growth!J$33) -> 0 | F78: Oil | G78: 0 | H78: =+'Energy Balance'!H107 -> 1 | I78: =+'Energy Balance'!I107 -> 0
B79: Industry - mining | D79: =+'Energy Balance'!D108*(1+Growth!J$33) -> 0 | F79: Natural Gas | G79: 0 | H79: =+'Energy Balance'!H108 -> 1 | I79: =+'Energy Balance'!I108 -> 0
B80: Industry - machinery | D80: =+'Energy Balance'!D109*(1+Growth!J$33) -> 0 | F80: Nuclear | G80: 0 | H80: =+'Energy Balance'!H109 -> 1
B81: Industry - non ferrous metals | D81: =+'Energy Balance'!D110*(1+Growth!J$33) -> 0 | F81: Net import | G81: 0 | H81: =+'Energy Balance'!H110 -> 1
B82: Industry - paper and pulp | D82: =+'Energy Balance'!D111*(1+Growth!J$33) -> 0 | F82: Renewables | G82: =SUM(G83:G87) -> 0 | H82: =SUM(H83:H87) -> 5
B83: Industry - transport equipment | D83: =+'Energy Balance'!D112*(1+Growth!J$33) -> 0 | F83: Hydro | G83: =G$73*H83 -> 0 | H83: =+'Energy Balance'!H112 -> 1
B84: Industry - textile and leather | D84: =+'Energy Balance'!D113*(1+Growth!J$33) -> 0 | F84: Wind | G84: =G$73*H84 -> 0 | H84: =+'Energy Balance'!H113 -> 1
B85: Industry - miscellaneous | D85: =+'Energy Balance'!D114*(1+Growth!J$33) -> 0 | F85: Solar | G85: =G$73*H85 -> 0 | H85: =+'Energy Balance'!H114 -> 1
B86: Transport - road | D86: =+'Energy Balance'!D115*(1+Growth!J$39) -> 0 | F86: Biomass | G86: =G$73*H86 -> 0 | H86: =+'Energy Balance'!H115 -> 1
B87: Transport - rail | D87: =+'Energy Balance'!D116*(1+Growth!J$39) -> 0 | F87: Geothermal | G87: =G$73*H87 -> 0 | H87: =+'Energy Balance'!H116 -> 1
B88: Transport - domestic air | D88: =+'Energy Balance'!D117*(1+Growth!J$39) -> 0
B89: Transport - navigation | D89: =+'Energy Balance'!D118*(1+Growth!J$39) -> 0
B90: Households | D90: =+'Energy Balance'!D119*(1+Growth!J44) -> 0
B91: Services | D91: =+'Energy Balance'!D120*(1+Growth!J47) -> 0
B92: Agriculture & Fishery | D92: =+'Energy Balance'!D121*(1+Growth!J50) -> 0
B93: Non energy - chemical feedstocs | D93: =+'Energy Balance'!D122*(1+Growth!J74) -> 0
B100: ="Fossil fuel balance - 2030 - "&Assumptions!C9 -> Fossil fuel balance - 2030 -
B101: TJ units | D101: LPG | E101: Gasoline | F101: Jet Fuel | G101: Diesel | H101: Fueloil | I101: Kerosene and other | J101: Total oil products | K101: Coal | L101: Lignite | M101: Gas | N101: Coke | O101: Petrocoke | P101: Total energy (fossil)
B102: Unit | D102: TJ | E102: TJ | F102: TJ | G102: TJ | H102: TJ | I102: TJ | J102: TJ | K102: TJ | L102: TJ | M102: TJ | N102: TJ | O102: TJ | P102: TJ
B103: Total | D103: =+D104+D105 -> 0 | E103: 0 | F103: 0 | G103: 0 | H103: 0 | I103: 0 | J103: 0 | K103: 0 | L103: 0 | M103: 0 | N103: 0 | O103: 0 | P103: =SUM(J103:O103) -> 0
B104: Fossil power plants | D104: =D133/E127 -> 0 | E104: 0 | F104: 0 | G104: 0 | H104: 0 | I104: 0 | J104: =SUM(D104:I104) -> 0 | K104: =K133/L127 -> 0 | L104: =L133/M127 -> 0 | M104: =M133/N127 -> 0 | P104: 0
B105: FINAL CONSUMPTION | D105: =SUM(D106:D125) -> 0 | E105: 0 | F105: 0 | G105: 0 | H105: 0 | I105: 0 | J105: 0 | K105: 0 | L105: 0 | M105: 0 | N105: 0 | O105: 0 | P105: 0
B106: Industry - steel | D106: =+'Energy Balance'!D21*(1+Growth!$K21) -> 0 | E106: =+'Energy Balance'!E21*(1+Growth!$K21) -> 0 | F106: =+'Energy Balance'!F21*(1+Growth!$K21) -> 0 | G106: =+'Energy Balance'!G21*(1+Growth!$K21) -> 0 | H106: =+'Energy Balance'!H21*(1+Growth!$K21) -> 0 | I106: =+'Energy Balance'!I21*(1+Growth!$K21) -> 0 | J106: =SUM(D106:I106) -> 0 | K106: =+'Energy Balance'!K21*(1+Growth!$K21) -> 0 | L106: =+'Energy Balance'!L21*(1+Growth!$K21) -> 0 | M106: =+'Energy Balance'!M21*(1+Growth!$K21) -> 0 | N106: =+'Energy Balance'!N21*(1+Growth!$K21) -> 0 | O106: =+'Energy Balance'!O21*(1+Growth!$K21) -> 0 | P106: 0
B107: Industry - chemical | D107: =+'Energy Balance'!D22*(1+Growth!$K22) -> 0 | E107: =+'Energy Balance'!E22*(1+Growth!$K22) -> 0 | F107: =+'Energy Balance'!F22*(1+Growth!$K22) -> 0 | G107: =+'Energy Balance'!G22*(1+Growth!$K22) -> 0 | H107: =+'Energy Balance'!H22*(1+Growth!$K22) -> 0 | I107: =+'Energy Balance'!I22*(1+Growth!$K22) -> 0 | J107: 0 | K107: =+'Energy Balance'!K22*(1+Growth!$K22) -> 0 | L107: =+'Energy Balance'!L22*(1+Growth!$K22) -> 0 | M107: =+'Energy Balance'!M22*(1+Growth!$K22) -> 0 | N107: =+'Energy Balance'!N22*(1+Growth!$K22) -> 0 | O107: =+'Energy Balance'!O22*(1+Growth!$K22) -> 0 | P107: 0
B108: Industry - non metallic mineral | D108: =+'Energy Balance'!D23*(1+Growth!$K23) -> 0 | E108: =+'Energy Balance'!E23*(1+Growth!$K23) -> 0 | F108: =+'Energy Balance'!F23*(1+Growth!$K23) -> 0 | G108: =+'Energy Balance'!G23*(1+Growth!$K23) -> 0 | H108: =+'Energy Balance'!H23*(1+Growth!$K23) -> 0 | I108: =+'Energy Balance'!I23*(1+Growth!$K23) -> 0 | J108: 0 | K108: =+'Energy Balance'!K23*(1+Growth!$K23) -> 0 | L108: =+'Energy Balance'!L23*(1+Growth!$K23) -> 0 | M108: =+'Energy Balance'!M23*(1+Growth!$K23) -> 0 | N108: =+'Energy Balance'!N23*(1+Growth!$K23) -> 0 | O108: =+'Energy Balance'!O23*(1+Growth!$K23) -> 0 | P108: 0
B109: Industry - food processing and beverage | D109: =+'Energy Balance'!D24*(1+Growth!$K24) -> 0 | E109: =+'Energy Balance'!E24*(1+Growth!$K24) -> 0 | F109: =+'Energy Balance'!F24*(1+Growth!$K24) -> 0 | G109: =+'Energy Balance'!G24*(1+Growth!$K24) -> 0 | H109: =+'Energy Balance'!H24*(1+Growth!$K24) -> 0 | I109: =+'Energy Balance'!I24*(1+Growth!$K24) -> 0 | J109: 0 | K109: =+'Energy Balance'!K24*(1+Growth!$K24) -> 0 | L109: =+'Energy Balance'!L24*(1+Growth!$K24) -> 0 | M109: =+'Energy Balance'!M24*(1+Growth!$K24) -> 0 | N109: =+'Energy Balance'!N24*(1+Growth!$K24) -> 0 | O109: =+'Energy Balance'!O24*(1+Growth!$K24) -> 0 | P109: 0
B110: Industry - construction | D110: =+'Energy Balance'!D25*(1+Growth!$K25) -> 0 | E110: =+'Energy Balance'!E25*(1+Growth!$K25) -> 0 | F110: =+'Energy Balance'!F25*(1+Growth!$K25) -> 0 | G110: =+'Energy Balance'!G25*(1+Growth!$K25) -> 0 | H110: =+'Energy Balance'!H25*(1+Growth!$K25) -> 0 | I110: =+'Energy Balance'!I25*(1+Growth!$K25) -> 0 | J110: 0 | K110: =+'Energy Balance'!K25*(1+Growth!$K25) -> 0 | L110: =+'Energy Balance'!L25*(1+Growth!$K25) -> 0 | M110: =+'Energy Balance'!M25*(1+Growth!$K25) -> 0 | N110: =+'Energy Balance'!N25*(1+Growth!$K25) -> 0 | O110: =+'Energy Balance'!O25*(1+Growth!$K25) -> 0 | P110: 0
B111: Industry - mining | D111: =+'Energy Balance'!D26*(1+Growth!$K26) -> 0 | E111: =+'Energy Balance'!E26*(1+Growth!$K26) -> 0 | F111: =+'Energy Balance'!F26*(1+Growth!$K26) -> 0 | G111: =+'Energy Balance'!G26*(1+Growth!$K26) -> 0 | H111: =+'Energy Balance'!H26*(1+Growth!$K26) -> 0 | I111: =+'Energy Balance'!I26*(1+Growth!$K26) -> 0 | J111: 0 | K111: =+'Energy Balance'!K26*(1+Growth!$K26) -> 0 | L111: =+'Energy Balance'!L26*(1+Growth!$K26) -> 0 | M111: =+'Energy Balance'!M26*(1+Growth!$K26) -> 0 | N111: =+'Energy Balance'!N26*(1+Growth!$K26) -> 0 | O111: =+'Energy Balance'!O26*(1+Growth!$K26) -> 0 | P111: 0
B112: Industry - machinery | D112: =+'Energy Balance'!D27*(1+Growth!$K27) -> 0 | E112: =+'Energy Balance'!E27*(1+Growth!$K27) -> 0 | F112: =+'Energy Balance'!F27*(1+Growth!$K27) -> 0 | G112: =+'Energy Balance'!G27*(1+Growth!$K27) -> 0 | H112: =+'Energy Balance'!H27*(1+Growth!$K27) -> 0 | I112: =+'Energy Balance'!I27*(1+Growth!$K27) -> 0 | J112: 0 | K112: =+'Energy Balance'!K27*(1+Growth!$K27) -> 0 | L112: =+'Energy Balance'!L27*(1+Growth!$K27) -> 0 | M112: =+'Energy Balance'!M27*(1+Growth!$K27) -> 0 | N112: =+'Energy Balance'!N27*(1+Growth!$K27) -> 0 | O112: =+'Energy Balance'!O27*(1+Growth!$K27) -> 0 | P112: 0
B113: Industry - non ferrous metals | D113: =+'Energy Balance'!D28*(1+Growth!$K28) -> 0 | E113: =+'Energy Balance'!E28*(1+Growth!$K28) -> 0 | F113: =+'Energy Balance'!F28*(1+Growth!$K28) -> 0 | G113: =+'Energy Balance'!G28*(1+Growth!$K28) -> 0 | H113: =+'Energy Balance'!H28*(1+Growth!$K28) -> 0 | I113: =+'Energy Balance'!I28*(1+Growth!$K28) -> 0 | J113: 0 | K113: =+'Energy Balance'!K28*(1+Growth!$K28) -> 0 | L113: =+'Energy Balance'!L28*(1+Growth!$K28) -> 0 | M113: =+'Energy Balance'!M28*(1+Growth!$K28) -> 0 | N113: =+'Energy Balance'!N28*(1+Growth!$K28) -> 0 | O113: =+'Energy Balance'!O28*(1+Growth!$K28) -> 0 | P113: 0
B114: Industry - paper and pulp | D114: =+'Energy Balance'!D29*(1+Growth!$K29) -> 0 | E114: =+'Energy Balance'!E29*(1+Growth!$K29) -> 0 | F114: =+'Energy Balance'!F29*(1+Growth!$K29) -> 0 | G114: =+'Energy Balance'!G29*(1+Growth!$K29) -> 0 | H114: =+'Energy Balance'!H29*(1+Growth!$K29) -> 0 | I114: =+'Energy Balance'!I29*(1+Growth!$K29) -> 0 | J114: 0 | K114: =+'Energy Balance'!K29*(1+Growth!$K29) -> 0 | L114: =+'Energy Balance'!L29*(1+Growth!$K29) -> 0 | M114: =+'Energy Balance'!M29*(1+Growth!$K29) -> 0 | N114: =+'Energy Balance'!N29*(1+Growth!$K29) -> 0 | O114: =+'Energy Balance'!O29*(1+Growth!$K29) -> 0 | P114: 0
B115: Industry - transport equipment | D115: =+'Energy Balance'!D30*(1+Growth!$K30) -> 0 | E115: =+'Energy Balance'!E30*(1+Growth!$K30) -> 0 | F115: =+'Energy Balance'!F30*(1+Growth!$K30) -> 0 | G115: =+'Energy Balance'!G30*(1+Growth!$K30) -> 0 | H115: =+'Energy Balance'!H30*(1+Growth!$K30) -> 0 | I115: =+'Energy Balance'!I30*(1+Growth!$K30) -> 0 | J115: 0 | K115: =+'Energy Balance'!K30*(1+Growth!$K30) -> 0 | L115: =+'Energy Balance'!L30*(1+Growth!$K30) -> 0 | M115: =+'Energy Balance'!M30*(1+Growth!$K30) -> 0 | N115: =+'Energy Balance'!N30*(1+Growth!$K30) -> 0 | O115: =+'Energy Balance'!O30*(1+Growth!$K30) -> 0 | P115: 0
B116: Industry - textile and leather | D116: =+'Energy Balance'!D31*(1+Growth!$K31) -> 0 | E116: =+'Energy Balance'!E31*(1+Growth!$K31) -> 0 | F116: =+'Energy Balance'!F31*(1+Growth!$K31) -> 0 | G116: =+'Energy Balance'!G31*(1+Growth!$K31) -> 0 | H116: =+'Energy Balance'!H31*(1+Growth!$K31) -> 0 | I116: =+'Energy Balance'!I31*(1+Growth!$K31) -> 0 | J116: 0 | K116: =+'Energy Balance'!K31*(1+Growth!$K31) -> 0 | L116: =+'Energy Balance'!L31*(1+Growth!$K31) -> 0 | M116: =+'Energy Balance'!M31*(1+Growth!$K31) -> 0 | N116: =+'Energy Balance'!N31*(1+Growth!$K31) -> 0 | O116: =+'Energy Balance'!O31*(1+Growth!$K31) -> 0 | P116: 0
B117: Industry - miscellaneous | D117: =+'Energy Balance'!D32*(1+Growth!$K32) -> 0 | E117: =+'Energy Balance'!E32*(1+Growth!$K32) -> 0 | F117: =+'Energy Balance'!F32*(1+Growth!$K32) -> 0 | G117: =+'Energy Balance'!G32*(1+Growth!$K32) -> 0 | H117: =+'Energy Balance'!H32*(1+Growth!$K32) -> 0 | I117: =+'Energy Balance'!I32*(1+Growth!$K32) -> 0 | J117: 0 | K117: =+'Energy Balance'!K32*(1+Growth!$K32) -> 0 | L117: =+'Energy Balance'!L32*(1+Growth!$K32) -> 0 | M117: =+'Energy Balance'!M32*(1+Growth!$K32) -> 0 | N117: =+'Energy Balance'!N32*(1+Growth!$K32) -> 0 | O117: =+'Energy Balance'!O32*(1+Growth!$K32) -> 0 | P117: 0
B118: Transport - road | D118: =+'Energy Balance'!D33*(1+Growth!$K35) -> 0 | E118: =+'Energy Balance'!E33*(1+Growth!$K35) -> 0 | F118: =+'Energy Balance'!F33*(1+Growth!$K35) -> 0 | G118: =+'Energy Balance'!G33*(1+Growth!$K35) -> 0 | H118: =+'Energy Balance'!H33*(1+Growth!$K35) -> 0 | I118: =+'Energy Balance'!I33*(1+Growth!$K35) -> 0 | J118: 0 | K118: =+'Energy Balance'!K33*(1+Growth!$K35) -> 0 | L118: =+'Energy Balance'!L33*(1+Growth!$K35) -> 0 | M118: =+'Energy Balance'!M33*(1+Growth!$K35) -> 0 | N118: =+'Energy Balance'!N33*(1+Growth!$K35) -> 0 | O118: =+'Energy Balance'!O33*(1+Growth!$K35) -> 0 | P118: 0
B119: Transport - rail | D119: =+'Energy Balance'!D34*(1+Growth!$K36) -> 0 | E119: =+'Energy Balance'!E34*(1+Growth!$K36) -> 0 | F119: =+'Energy Balance'!F34*(1+Growth!$K36) -> 0 | G119: =+'Energy Balance'!G34*(1+Growth!$K36) -> 0 | H119: =+'Energy Balance'!H34*(1+Growth!$K36) -> 0 | I119: =+'Energy Balance'!I34*(1+Growth!$K36) -> 0 | J119: 0 | K119: =+'Energy Balance'!K34*(1+Growth!$K36) -> 0 | L119: =+'Energy Balance'!L34*(1+Growth!$K36) -> 0 | M119: =+'Energy Balance'!M34*(1+Growth!$K36) -> 0 | N119: =+'Energy Balance'!N34*(1+Growth!$K36) -> 0 | O119: =+'Energy Balance'!O34*(1+Growth!$K36) -> 0 | P119: 0
B120: Transport - domestic air | D120: =+'Energy Balance'!D35*(1+Growth!$K37) -> 0 | E120: =+'Energy Balance'!E35*(1+Growth!$K37) -> 0 | F120: =+'Energy Balance'!F35*(1+Growth!$K37) -> 0 | G120: =+'Energy Balance'!G35*(1+Growth!$K37) -> 0 | H120: =+'Energy Balance'!H35*(1+Growth!$K37) -> 0 | I120: =+'Energy Balance'!I35*(1+Growth!$K37) -> 0 | J120: 0 | K120: =+'Energy Balance'!K35*(1+Growth!$K37) -> 0 | L120: =+'Energy Balance'!L35*(1+Growth!$K37) -> 0 | M120: =+'Energy Balance'!M35*(1+Growth!$K37) -> 0 | N120: =+'Energy Balance'!N35*(1+Growth!$K37) -> 0 | O120: =+'Energy Balance'!O35*(1+Growth!$K37) -> 0 | P120: 0
B121: Transport - navigation | D121: =+'Energy Balance'!D36*(1+Growth!$K38) -> 0 | E121: =+'Energy Balance'!E36*(1+Growth!$K38) -> 0 | F121: =+'Energy Balance'!F36*(1+Growth!$K38) -> 0 | G121: =+'Energy Balance'!G36*(1+Growth!$K38) -> 0 | H121: =+'Energy Balance'!H36*(1+Growth!$K38) -> 0 | I121: =+'Energy Balance'!I36*(1+Growth!$K38) -> 0 | J121: 0 | K121: =+'Energy Balance'!K36*(1+Growth!$K38) -> 0 | L121: =+'Energy Balance'!L36*(1+Growth!$K38) -> 0 | M121: =+'Energy Balance'!M36*(1+Growth!$K38) -> 0 | N121: =+'Energy Balance'!N36*(1+Growth!$K38) -> 0 | O121: =+'Energy Balance'!O36*(1+Growth!$K38) -> 0 | P121: 0
B122: Households | D122: =+'Energy Balance'!D37*(1+Growth!$K42) -> 0 | E122: =+'Energy Balance'!E37*(1+Growth!$K42) -> 0 | F122: =+'Energy Balance'!F37*(1+Growth!$K42) -> 0 | G122: =+'Energy Balance'!G37*(1+Growth!$K42) -> 0 | H122: =+'Energy Balance'!H37*(1+Growth!$K42) -> 0 | I122: =+'Energy Balance'!I37*(1+Growth!$K43) -> 0 | J122: 0 | K122: =+'Energy Balance'!K37*(1+Growth!$K42) -> 0 | L122: =+'Energy Balance'!L37*(1+Growth!$K42) -> 0 | M122: =+'Energy Balance'!M37*(1+Growth!$K42) -> 0 | N122: =+'Energy Balance'!N37*(1+Growth!$K42) -> 0 | O122: =+'Energy Balance'!O37*(1+Growth!$K42) -> 0 | P122: 0
B123: Services | D123: =+'Energy Balance'!D38*(1+Growth!$K46) -> 0 | E123: =+'Energy Balance'!E38*(1+Growth!$K46) -> 0 | F123: =+'Energy Balance'!F38*(1+Growth!$K46) -> 0 | G123: =+'Energy Balance'!G38*(1+Growth!$K46) -> 0 | H123: =+'Energy Balance'!H38*(1+Growth!$K46) -> 0 | I123: =+'Energy Balance'!I38*(1+Growth!$K46) -> 0 | J123: 0 | K123: =+'Energy Balance'!K38*(1+Growth!$K46) -> 0 | L123: =+'Energy Balance'!L38*(1+Growth!$K46) -> 0 | M123: =+'Energy Balance'!M38*(1+Growth!$K46) -> 0 | N123: =+'Energy Balance'!N38*(1+Growth!$K46) -> 0 | O123: =+'Energy Balance'!O38*(1+Growth!$K46) -> 0 | P123: 0
B124: Agriculture & Fishery | D124: =+'Energy Balance'!D39*(1+Growth!$K49) -> 0 | E124: =+'Energy Balance'!E39*(1+Growth!$K49) -> 0 | F124: =+'Energy Balance'!F39*(1+Growth!$K49) -> 0 | G124: =+'Energy Balance'!G39*(1+Growth!$K49) -> 0 | H124: =+'Energy Balance'!H39*(1+Growth!$K49) -> 0 | I124: =+'Energy Balance'!I39*(1+Growth!$K49) -> 0 | J124: 0 | K124: =+'Energy Balance'!K39*(1+Growth!$K49) -> 0 | L124: =+'Energy Balance'!L39*(1+Growth!$K49) -> 0 | M124: =+'Energy Balance'!M39*(1+Growth!$K49) -> 0 | N124: =+'Energy Balance'!N39*(1+Growth!$K49) -> 0 | O124: =+'Energy Balance'!O39*(1+Growth!$K49) -> 0 | P124: 0
B125: Non energy uses | D125: =+'Energy Balance'!D40*(1+Growth!$K74) -> 0 | E125: =+'Energy Balance'!E40*(1+Growth!$K74) -> 0 | F125: =+'Energy Balance'!F40*(1+Growth!$K74) -> 0 | G125: =+'Energy Balance'!G40*(1+Growth!$K74) -> 0 | H125: =+'Energy Balance'!H40*(1+Growth!$K74) -> 0 | I125: =+'Energy Balance'!I40*(1+Growth!$K74) -> 0 | J125: 0 | K125: =+'Energy Balance'!K40*(1+Growth!$K74) -> 0 | L125: =+'Energy Balance'!L40*(1+Growth!$K74) -> 0 | M125: =+'Energy Balance'!M40*(1+Growth!$K74) -> 0 | N125: =+'Energy Balance'!N40*(1+Growth!$K74) -> 0 | O125: =+'Energy Balance'!O40*(1+Growth!$K74) -> 0 | P125: 0
E127: 0.02388458966 | F127: 0.02388458966 | G127: 0.02388458966 | H127: 0.02388458966 | I127: 0.02388458966 | J127: 0.02388458966 | L127: 0.02388458966 | M127: 0.02388458966 | N127: 0.02388458966 | O127: 0.02388458966 | P127: 0.02388458966
B129: ="Fossil fuel balance - 2030 - "&Assumptions!C9 -> Fossil fuel balance - 2030 -
B130: ktoe units | D130: LPG | E130: Gasoline | F130: Jet Fuel | G130: Diesel | H130: Fueloil | I130: Kerosene and other | J130: Total oil products | K130: Coal | L130: Lignite | M130: Gas | N130: Coke | O130: Petrocoke | P130: Total
B131: Unit | D131: ktoe | E131: ktoe | F131: ktoe | G131: ktoe | H131: ktoe | I131: ktoe | J131: ktoe | K131: ktoe | L131: ktoe | M131: ktoe | N131: ktoe | O131: ktoe | P131: ktoe
B132: Total consumption | D132: =+D133+D134 -> 0 | E132: 0 | F132: 0 | G132: 0 | H132: 0 | I132: 0 | J132: 0 | K132: 0 | L132: 0 | M132: 0 | N132: 0 | O132: 0 | P132: 0
B133: Fossil power plants | D133: =IFERROR(IF($G161=0,0,$J133*IF('Energy Balance'!$J76>0,'Energy Balance'!D76/'Energy Balance'!$J76,0)),0) -> 0 | E133: =IFERROR(IF($G161=0,0,$J133*IF('Energy Balance'!$J76>0,'Energy Balance'!E76/'Energy Balance'!$J76,0)),0) -> 0 | F133: =IFERROR(IF($G161=0,0,$J133*IF('Energy Balance'!$J76>0,'Energy Balance'!F76/'Energy Balance'!$J76,0)),0) -> 0 | G133: =IFERROR(IF($G161=0,0,$J133*IF('Energy Balance'!$J76>0,'Energy Balance'!G76/'Energy Balance'!$J76,0)),0) -> 0 | H133: =IFERROR(IF($G161=0,0,$J133*IF('Energy Balance'!$J76>0,'Energy Balance'!H76/'Energy Balance'!$J76,0)),0) -> 0 | I133: =IFERROR(IF($G161=0,0,$J133*IF('Energy Balance'!$J76>0,'Energy Balance'!I76/'Energy Balance'!$J76,0)),0) -> 0 | J133: =IFERROR(IF(G161=0,0,G164/11.63/I164),0) -> 0 | K133: =IF(I163>0,G163/11.63/I163,0) -> 0 | L133: =IF(I162>0,G162/11.63/I162,0) -> 0 | M133: =IF(I165>0,G165/11.63/I165,0) -> 0 | P133: =SUM(J133:O133) -> 0
B134: FINAL CONSUMPTION | D134: =SUM(D135:D154) -> 0 | E134: 0 | F134: 0 | G134: 0 | H134: 0 | I134: 0 | J134: =SUM(D134:I134) -> 0 | K134: =SUM(K135:K154) -> 0 | L134: 0 | M134: 0 | N134: 0 | O134: 0 | P134: 0
B135: Industry - steel | D135: =+'Energy Balance'!D78*(1+Growth!$K21) -> 0 | E135: =+'Energy Balance'!E78*(1+Growth!$K21) -> 0 | F135: =+'Energy Balance'!F78*(1+Growth!$K21) -> 0 | G135: =+'Energy Balance'!G78*(1+Growth!$K21) -> 0 | H135: =+'Energy Balance'!H78*(1+Growth!$K21) -> 0 | I135: =+'Energy Balance'!I78*(1+Growth!$K21) -> 0 | J135: 0 | K135: =+'Energy Balance'!K78*(1+Growth!$K21) -> 0 | L135: =+'Energy Balance'!L78*(1+Growth!$K21) -> 0 | M135: =+'Energy Balance'!M78*(1+Growth!$K21) -> 0 | N135: =+'Energy Balance'!N78*(1+Growth!$K21) -> 0 | O135: =+'Energy Balance'!O78*(1+Growth!$K21) -> 0 | P135: =SUM(J135:O135) -> 0
B136: Industry - chemical | D136: =+'Energy Balance'!D79*(1+Growth!$K22) -> 0 | E136: =+'Energy Balance'!E79*(1+Growth!$K22) -> 0 | F136: =+'Energy Balance'!F79*(1+Growth!$K22) -> 0 | G136: =+'Energy Balance'!G79*(1+Growth!$K22) -> 0 | H136: =+'Energy Balance'!H79*(1+Growth!$K22) -> 0 | I136: =+'Energy Balance'!I79*(1+Growth!$K22) -> 0 | J136: 0 | K136: =+'Energy Balance'!K79*(1+Growth!$K22) -> 0 | L136: =+'Energy Balance'!L79*(1+Growth!$K22) -> 0 | M136: =+'Energy Balance'!M79*(1+Growth!$K22) -> 0 | N136: =+'Energy Balance'!N79*(1+Growth!$K22) -> 0 | O136: =+'Energy Balance'!O79*(1+Growth!$K22) -> 0 | P136: 0
B137: Industry - non metallic mineral | D137: =+'Energy Balance'!D80*(1+Growth!$K23) -> 0 | E137: =+'Energy Balance'!E80*(1+Growth!$K23) -> 0 | F137: =+'Energy Balance'!F80*(1+Growth!$K23) -> 0 | G137: =+'Energy Balance'!G80*(1+Growth!$K23) -> 0 | H137: =+'Energy Balance'!H80*(1+Growth!$K23) -> 0 | I137: =+'Energy Balance'!I80*(1+Growth!$K23) -> 0 | J137: 0 | K137: =+'Energy Balance'!K80*(1+Growth!$K23) -> 0 | L137: =+'Energy Balance'!L80*(1+Growth!$K23) -> 0 | M137: =+'Energy Balance'!M80*(1+Growth!$K23) -> 0 | N137: =+'Energy Balance'!N80*(1+Growth!$K23) -> 0 | O137: =+'Energy Balance'!O80*(1+Growth!$K23) -> 0 | P137: 0
B138: Industry - food processing and beverage | D138: =+'Energy Balance'!D81*(1+Growth!$K24) -> 0 | E138: =+'Energy Balance'!E81*(1+Growth!$K24) -> 0 | F138: =+'Energy Balance'!F81*(1+Growth!$K24) -> 0 | G138: =+'Energy Balance'!G81*(1+Growth!$K24) -> 0 | H138: =+'Energy Balance'!H81*(1+Growth!$K24) -> 0 | I138: =+'Energy Balance'!I81*(1+Growth!$K24) -> 0 | J138: 0 | K138: =+'Energy Balance'!K81*(1+Growth!$K24) -> 0 | L138: =+'Energy Balance'!L81*(1+Growth!$K24) -> 0 | M138: =+'Energy Balance'!M81*(1+Growth!$K24) -> 0 | N138: =+'Energy Balance'!N81*(1+Growth!$K24) -> 0 | O138: =+'Energy Balance'!O81*(1+Growth!$K24) -> 0 | P138: 0
B139: Industry - construction | D139: =+'Energy Balance'!D82*(1+Growth!$K25) -> 0 | E139: =+'Energy Balance'!E82*(1+Growth!$K25) -> 0 | F139: =+'Energy Balance'!F82*(1+Growth!$K25) -> 0 | G139: =+'Energy Balance'!G82*(1+Growth!$K25) -> 0 | H139: =+'Energy Balance'!H82*(1+Growth!$K25) -> 0 | I139: =+'Energy Balance'!I82*(1+Growth!$K25) -> 0 | J139: 0 | K139: =+'Energy Balance'!K82*(1+Growth!$K25) -> 0 | L139: =+'Energy Balance'!L82*(1+Growth!$K25) -> 0 | M139: =+'Energy Balance'!M82*(1+Growth!$K25) -> 0 | N139: =+'Energy Balance'!N82*(1+Growth!$K25) -> 0 | O139: =+'Energy Balance'!O82*(1+Growth!$K25) -> 0 | P139: 0
B140: Industry - mining | D140: =+'Energy Balance'!D83*(1+Growth!$K26) -> 0 | E140: =+'Energy Balance'!E83*(1+Growth!$K26) -> 0 | F140: =+'Energy Balance'!F83*(1+Growth!$K26) -> 0 | G140: =+'Energy Balance'!G83*(1+Growth!$K26) -> 0 | H140: =+'Energy Balance'!H83*(1+Growth!$K26) -> 0 | I140: =+'Energy Balance'!I83*(1+Growth!$K26) -> 0 | J140: 0 | K140: =+'Energy Balance'!K83*(1+Growth!$K26) -> 0 | L140: =+'Energy Balance'!L83*(1+Growth!$K26) -> 0 | M140: =+'Energy Balance'!M83*(1+Growth!$K26) -> 0 | N140: =+'Energy Balance'!N83*(1+Growth!$K26) -> 0 | O140: =+'Energy Balance'!O83*(1+Growth!$K26) -> 0 | P140: 0
B141: Industry - machinery | D141: =+'Energy Balance'!D84*(1+Growth!$K27) -> 0 | E141: =+'Energy Balance'!E84*(1+Growth!$K27) -> 0 | F141: =+'Energy Balance'!F84*(1+Growth!$K27) -> 0 | G141: =+'Energy Balance'!G84*(1+Growth!$K27) -> 0 | H141: =+'Energy Balance'!H84*(1+Growth!$K27) -> 0 | I141: =+'Energy Balance'!I84*(1+Growth!$K27) -> 0 | J141: 0 | K141: =+'Energy Balance'!K84*(1+Growth!$K27) -> 0 | L141: =+'Energy Balance'!L84*(1+Growth!$K27) -> 0 | M141: =+'Energy Balance'!M84*(1+Growth!$K27) -> 0 | N141: =+'Energy Balance'!N84*(1+Growth!$K27) -> 0 | O141: =+'Energy Balance'!O84*(1+Growth!$K27) -> 0 | P141: 0
B142: Industry - non ferrous metals | D142: =+'Energy Balance'!D85*(1+Growth!$K28) -> 0 | E142: =+'Energy Balance'!E85*(1+Growth!$K28) -> 0 | F142: =+'Energy Balance'!F85*(1+Growth!$K28) -> 0 | G142: =+'Energy Balance'!G85*(1+Growth!$K28) -> 0 | H142: =+'Energy Balance'!H85*(1+Growth!$K28) -> 0 | I142: =+'Energy Balance'!I85*(1+Growth!$K28) -> 0 | J142: 0 | K142: =+'Energy Balance'!K85*(1+Growth!$K28) -> 0 | L142: =+'Energy Balance'!L85*(1+Growth!$K28) -> 0 | M142: =+'Energy Balance'!M85*(1+Growth!$K28) -> 0 | N142: =+'Energy Balance'!N85*(1+Growth!$K28) -> 0 | O142: =+'Energy Balance'!O85*(1+Growth!$K28) -> 0 | P142: 0
B143: Industry - paper and pulp | D143: =+'Energy Balance'!D86*(1+Growth!$K29) -> 0 | E143: =+'Energy Balance'!E86*(1+Growth!$K29) -> 0 | F143: =+'Energy Balance'!F86*(1+Growth!$K29) -> 0 | G143: =+'Energy Balance'!G86*(1+Growth!$K29) -> 0 | H143: =+'Energy Balance'!H86*(1+Growth!$K29) -> 0 | I143: =+'Energy Balance'!I86*(1+Growth!$K29) -> 0 | J143: 0 | K143: =+'Energy Balance'!K86*(1+Growth!$K29) -> 0 | L143: =+'Energy Balance'!L86*(1+Growth!$K29) -> 0 | M143: =+'Energy Balance'!M86*(1+Growth!$K29) -> 0 | N143: =+'Energy Balance'!N86*(1+Growth!$K29) -> 0 | O143: =+'Energy Balance'!O86*(1+Growth!$K29) -> 0 | P143: 0
B144: Industry - transport equipment | D144: =+'Energy Balance'!D87*(1+Growth!$K30) -> 0 | E144: =+'Energy Balance'!E87*(1+Growth!$K30) -> 0 | F144: =+'Energy Balance'!F87*(1+Growth!$K30) -> 0 | G144: =+'Energy Balance'!G87*(1+Growth!$K30) -> 0 | H144: =+'Energy Balance'!H87*(1+Growth!$K30) -> 0 | I144: =+'Energy Balance'!I87*(1+Growth!$K30) -> 0 | J144: 0 | K144: =+'Energy Balance'!K87*(1+Growth!$K30) -> 0 | L144: =+'Energy Balance'!L87*(1+Growth!$K30) -> 0 | M144: =+'Energy Balance'!M87*(1+Growth!$K30) -> 0 | N144: =+'Energy Balance'!N87*(1+Growth!$K30) -> 0 | O144: =+'Energy Balance'!O87*(1+Growth!$K30) -> 0 | P144: 0
B145: Industry - textile and leather | D145: =+'Energy Balance'!D88*(1+Growth!$K31) -> 0 | E145: =+'Energy Balance'!E88*(1+Growth!$K31) -> 0 | F145: =+'Energy Balance'!F88*(1+Growth!$K31) -> 0 | G145: =+'Energy Balance'!G88*(1+Growth!$K31) -> 0 | H145: =+'Energy Balance'!H88*(1+Growth!$K31) -> 0 | I145: =+'Energy Balance'!I88*(1+Growth!$K31) -> 0 | J145: 0 | K145: =+'Energy Balance'!K88*(1+Growth!$K31) -> 0 | L145: =+'Energy Balance'!L88*(1+Growth!$K31) -> 0 | M145: =+'Energy Balance'!M88*(1+Growth!$K31) -> 0 | N145: =+'Energy Balance'!N88*(1+Growth!$K31) -> 0 | O145: =+'Energy Balance'!O88*(1+Growth!$K31) -> 0 | P145: 0
B146: Industry - miscellaneous | D146: =+'Energy Balance'!D89*(1+Growth!$K32) -> 0 | E146: =+'Energy Balance'!E89*(1+Growth!$K32) -> 0 | F146: =+'Energy Balance'!F89*(1+Growth!$K32) -> 0 | G146: =+'Energy Balance'!G89*(1+Growth!$K32) -> 0 | H146: =+'Energy Balance'!H89*(1+Growth!$K32) -> 0 | I146: =+'Energy Balance'!I89*(1+Growth!$K32) -> 0 | J146: 0 | K146: =+'Energy Balance'!K89*(1+Growth!$K32) -> 0 | L146: =+'Energy Balance'!L89*(1+Growth!$K32) -> 0 | M146: =+'Energy Balance'!M89*(1+Growth!$K32) -> 0 | N146: =+'Energy Balance'!N89*(1+Growth!$K32) -> 0 | O146: =+'Energy Balance'!O89*(1+Growth!$K32) -> 0 | P146: 0
B147: Transport - road | D147: =+'Energy Balance'!D90*(1+Growth!$K35) -> 0 | E147: =+'Energy Balance'!E90*(1+Growth!$K35) -> 0 | F147: =+'Energy Balance'!F90*(1+Growth!$K35) -> 0 | G147: =+'Energy Balance'!G90*(1+Growth!$K35) -> 0 | H147: =+'Energy Balance'!H90*(1+Growth!$K35) -> 0 | I147: =+'Energy Balance'!I90*(1+Growth!$K35) -> 0 | J147: 0 | K147: =+'Energy Balance'!K90*(1+Growth!$K35) -> 0 | L147: =+'Energy Balance'!L90*(1+Growth!$K35) -> 0 | M147: =+'Energy Balance'!M90*(1+Growth!$K35) -> 0 | N147: =+'Energy Balance'!N90*(1+Growth!$K35) -> 0 | O147: =+'Energy Balance'!O90*(1+Growth!$K35) -> 0 | P147: 0
B148: Transport - rail | D148: =+'Energy Balance'!D91*(1+Growth!$K36) -> 0 | E148: =+'Energy Balance'!E91*(1+Growth!$K36) -> 0 | F148: =+'Energy Balance'!F91*(1+Growth!$K36) -> 0 | G148: =+'Energy Balance'!G91*(1+Growth!$K36) -> 0 | H148: =+'Energy Balance'!H91*(1+Growth!$K36) -> 0 | I148: =+'Energy Balance'!I91*(1+Growth!$K36) -> 0 | J148: 0 | K148: =+'Energy Balance'!K91*(1+Growth!$K36) -> 0 | L148: =+'Energy Balance'!L91*(1+Growth!$K36) -> 0 | M148: =+'Energy Balance'!M91*(1+Growth!$K36) -> 0 | N148: =+'Energy Balance'!N91*(1+Growth!$K36) -> 0 | O148: =+'Energy Balance'!O91*(1+Growth!$K36) -> 0 | P148: 0
B149: Transport - domestic air | D149: =+'Energy Balance'!D92*(1+Growth!$K37) -> 0 | E149: =+'Energy Balance'!E92*(1+Growth!$K37) -> 0 | F149: =+'Energy Balance'!F92*(1+Growth!$K37) -> 0 | G149: =+'Energy Balance'!G92*(1+Growth!$K37) -> 0 | H149: =+'Energy Balance'!H92*(1+Growth!$K37) -> 0 | I149: =+'Energy Balance'!I92*(1+Growth!$K37) -> 0 | J149: 0 | K149: =+'Energy Balance'!K92*(1+Growth!$K37) -> 0 | L149: =+'Energy Balance'!L92*(1+Growth!$K37) -> 0 | M149: =+'Energy Balance'!M92*(1+Growth!$K37) -> 0 | N149: =+'Energy Balance'!N92*(1+Growth!$K37) -> 0 | O149: =+'Energy Balance'!O92*(1+Growth!$K37) -> 0 | P149: 0
B150: Transport - navigation | D150: =+'Energy Balance'!D93*(1+Growth!$K38) -> 0 | E150: =+'Energy Balance'!E93*(1+Growth!$K38) -> 0 | F150: =+'Energy Balance'!F93*(1+Growth!$K38) -> 0 | G150: =+'Energy Balance'!G93*(1+Growth!$K38) -> 0 | H150: =+'Energy Balance'!H93*(1+Growth!$K38) -> 0 | I150: =+'Energy Balance'!I93*(1+Growth!$K38) -> 0 | J150: 0 | K150: =+'Energy Balance'!K93*(1+Growth!$K38) -> 0 | L150: =+'Energy Balance'!L93*(1+Growth!$K38) -> 0 | M150: =+'Energy Balance'!M93*(1+Growth!$K38) -> 0 | N150: =+'Energy Balance'!N93*(1+Growth!$K38) -> 0 | O150: =+'Energy Balance'!O93*(1+Growth!$K38) -> 0 | P150: 0
B151: Households | D151: =+'Energy Balance'!D94*(1+Growth!$K42) -> 0 | E151: =+'Energy Balance'!E94*(1+Growth!$K42) -> 0 | F151: =+'Energy Balance'!F94*(1+Growth!$K42) -> 0 | G151: =+'Energy Balance'!G94*(1+Growth!$K42) -> 0 | H151: =+'Energy Balance'!H94*(1+Growth!$K42) -> 0 | I151: =+'Energy Balance'!I94*(1+Growth!$K43) -> 0 | J151: 0 | K151: =+'Energy Balance'!K94*(1+Growth!$K42) -> 0 | L151: =+'Energy Balance'!L94*(1+Growth!$K42) -> 0 | M151: =+'Energy Balance'!M94*(1+Growth!$K42) -> 0 | N151: =+'Energy Balance'!N94*(1+Growth!$K42) -> 0 | O151: =+'Energy Balance'!O94*(1+Growth!$K42) -> 0 | P151: 0
B152: Services | D152: =+'Energy Balance'!D95*(1+Growth!$K46) -> 0 | E152: =+'Energy Balance'!E95*(1+Growth!$K46) -> 0 | F152: =+'Energy Balance'!F95*(1+Growth!$K46) -> 0 | G152: =+'Energy Balance'!G95*(1+Growth!$K46) -> 0 | H152: =+'Energy Balance'!H95*(1+Growth!$K46) -> 0 | I152: =+'Energy Balance'!I95*(1+Growth!$K46) -> 0 | J152: 0 | K152: =+'Energy Balance'!K95*(1+Growth!$K46) -> 0 | L152: =+'Energy Balance'!L95*(1+Growth!$K46) -> 0 | M152: =+'Energy Balance'!M95*(1+Growth!$K46) -> 0 | N152: =+'Energy Balance'!N95*(1+Growth!$K46) -> 0 | O152: =+'Energy Balance'!O95*(1+Growth!$K46) -> 0 | P152: 0
B153: Agriculture & Fishery | D153: =+'Energy Balance'!D96*(1+Growth!$K49) -> 0 | E153: =+'Energy Balance'!E96*(1+Growth!$K49) -> 0 | F153: =+'Energy Balance'!F96*(1+Growth!$K49) -> 0 | G153: =+'Energy Balance'!G96*(1+Growth!$K49) -> 0 | H153: =+'Energy Balance'!H96*(1+Growth!$K49) -> 0 | I153: =+'Energy Balance'!I96*(1+Growth!$K49) -> 0 | J153: 0 | K153: =+'Energy Balance'!K96*(1+Growth!$K49) -> 0 | L153: =+'Energy Balance'!L96*(1+Growth!$K49) -> 0 | M153: =+'Energy Balance'!M96*(1+Growth!$K49) -> 0 | N153: =+'Energy Balance'!N96*(1+Growth!$K49) -> 0 | O153: =+'Energy Balance'!O96*(1+Growth!$K49) -> 0 | P153: 0
B154: Non energy uses | D154: =+'Energy Balance'!D97*(1+Growth!$K74) -> 0 | E154: =+'Energy Balance'!E97*(1+Growth!$K74) -> 0 | F154: =+'Energy Balance'!F97*(1+Growth!$K74) -> 0 | G154: =+'Energy Balance'!G97*(1+Growth!$K74) -> 0 | H154: =+'Energy Balance'!H97*(1+Growth!$K74) -> 0 | I154: =+'Energy Balance'!I97*(1+Growth!$K74) -> 0 | J154: 0 | K154: =+'Energy Balance'!K97*(1+Growth!$K74) -> 0 | L154: =+'Energy Balance'!L97*(1+Growth!$K74) -> 0 | M154: =+'Energy Balance'!M97*(1+Growth!$K74) -> 0 | N154: =+'Energy Balance'!N97*(1+Growth!$K74) -> 0 | O154: =+'Energy Balance'!O97*(1+Growth!$K74) -> 0 | P154: 0
B157: Electricity balance in GWh - 2030
B158: Electricity consumption | D158: Gwh | F158: Electricity production | G158: Gwh | H158: Share of production | I158: Efficiency
B159: Total consumption | D159: =SUM(D160:D179) -> 0 | F159: Total | G159: =IF(H160=1,0,D159/(1-H160)) -> 0
B160: Industry - steel | D160: =+'Energy Balance'!D103*(1+Growth!K$33) -> 0 | F160: Losses | G160: =G159*H160 -> 0 | H160: =+'BAU projected Energy Balances'!H74 -> 1
B161: Industry - chemical | D161: =+'Energy Balance'!D104*(1+Growth!K$33) -> 0 | F161: Fossil | G161: =SUM(G162:G165) -> 0 | H161: =SUM(H162:H165) -> 4
B162: Industry - non metallic mineral | D162: =+'Energy Balance'!D105*(1+Growth!K$33) -> 0 | F162: Lignite | G162: =G$159*H162 -> 0 | H162: =+'BAU projected Energy Balances'!H76 -> 1 | I162: =+'BAU projected Energy Balances'!I76 -> 0
B163: Industry - food processing and beverage | D163: =+'Energy Balance'!D106*(1+Growth!K$33) -> 0 | F163: Coal | G163: 0 | H163: =+'BAU projected Energy Balances'!H77 -> 1 | I163: =+'BAU projected Energy Balances'!I77 -> 0
B164: Industry - construction | D164: =+'Energy Balance'!D107*(1+Growth!K$33) -> 0 | F164: Oil | G164: 0 | H164: =+'BAU projected Energy Balances'!H78 -> 1 | I164: =+'BAU projected Energy Balances'!I78 -> 0
B165: Industry - mining | D165: =+'Energy Balance'!D108*(1+Growth!K$33) -> 0 | F165: Natural Gas | G165: 0 | H165: =+'BAU projected Energy Balances'!H79 -> 1 | I165: =+'BAU projected Energy Balances'!I79 -> 0
B166: Industry - machinery | D166: =+'Energy Balance'!D109*(1+Growth!K$33) -> 0 | F166: Nuclear | G166: 0 | H166: =+'BAU projected Energy Balances'!H80 -> 1
B167: Industry - non ferrous metals | D167: =+'Energy Balance'!D110*(1+Growth!K$33) -> 0 | F167: Net import | G167: 0 | H167: =+'BAU projected Energy Balances'!H81 -> 1
B168: Industry - paper and pulp | D168: =+'Energy Balance'!D111*(1+Growth!K$33) -> 0 | F168: Renewables | G168: =SUM(G169:G173) -> 0 | H168: =SUM(H169:H173) -> 5
B169: Industry - transport equipment | D169: =+'Energy Balance'!D112*(1+Growth!K$33) -> 0 | F169: Hydro | G169: =G$159*H169 -> 0 | H169: =+'BAU projected Energy Balances'!H83 -> 1
B170: Industry - textile and leather | D170: =+'Energy Balance'!D113*(1+Growth!K$33) -> 0 | F170: Wind | G170: =G$159*H170 -> 0 | H170: =+'BAU projected Energy Balances'!H84 -> 1
B171: Industry - miscellaneous | D171: =+'Energy Balance'!D114*(1+Growth!K$33) -> 0 | F171: Solar | G171: =G$159*H171 -> 0 | H171: =+'BAU projected Energy Balances'!H85 -> 1
B172: Transport - road | D172: =+'Energy Balance'!D115*(1+Growth!K$39) -> 0 | F172: Biomass | G172: =G$159*H172 -> 0 | H172: =+'BAU projected Energy Balances'!H86 -> 1
B173: Transport - rail | D173: =+'Energy Balance'!D116*(1+Growth!K$39) -> 0 | F173: Geothermal | G173: =G$159*H173 -> 0 | H173: =+'BAU projected Energy Balances'!H87 -> 1
B174: Transport - domestic air | D174: =+'Energy Balance'!D117*(1+Growth!K$39) -> 0
B175: Transport - navigation | D175: =+'Energy Balance'!D118*(1+Growth!K$39) -> 0
B176: Households | D176: =+'Energy Balance'!D119*(1+Growth!K44) -> 0
B177: Services | D177: =+'Energy Balance'!D120*(1+Growth!K47) -> 0
B178: Agriculture & Fishery | D178: =+'Energy Balance'!D121*(1+Growth!K50) -> 0
B179: Non energy - chemical feedstocs | D179: =+'Energy Balance'!D122*(1+Growth!K74) -> 0
B186: ="Fossil fuel balance - 2035 - "&Assumptions!C9 -> Fossil fuel balance - 2035 -
B187: TJ units | D187: LPG | E187: Gasoline | F187: Jet Fuel | G187: Diesel | H187: Fueloil | I187: Kerosene and other | J187: Total oil products | K187: Coal | L187: Lignite | M187: Gas | N187: Coke | O187: Petrocoke | P187: Total energy (fossil)
B188: Unit | D188: TJ | E188: TJ | F188: TJ | G188: TJ | H188: TJ | I188: TJ | J188: TJ | K188: TJ | L188: TJ | M188: TJ | N188: TJ | O188: TJ | P188: TJ
B189: Total | D189: =+D190+D191 -> 0 | E189: 0 | F189: 0 | G189: 0 | H189: 0 | I189: 0 | J189: 0 | K189: 0 | L189: 0 | M189: 0 | N189: 0 | O189: 0 | P189: =SUM(J189:O189) -> 0
B190: Fossil power plants | D190: =D219/E213 -> 0 | E190: =E219/F213 -> 0 | F190: =F219/G213 -> 0 | G190: =G219/H213 -> 0 | H190: =H219/I213 -> 0 | I190: =I219/J213 -> 0 | J190: =SUM(D190:I190) -> 0 | K190: =K219/L213 -> 0 | L190: =L219/M213 -> 0 | M190: =M219/N213 -> 0 | P190: 0
B191: FINAL CONSUMPTION | D191: =SUM(D192:D211) -> 0 | E191: 0 | F191: 0 | G191: 0 | H191: 0 | I191: 0 | J191: 0 | K191: 0 | L191: 0 | M191: 0 | N191: 0 | O191: 0 | P191: 0
B192: Industry - steel | D192: =+'Energy Balance'!D21*(1+Growth!$L21) -> 0 | E192: =+'Energy Balance'!E21*(1+Growth!$L21) -> 0 | F192: =+'Energy Balance'!F21*(1+Growth!$L21) -> 0 | G192: =+'Energy Balance'!G21*(1+Growth!$L21) -> 0 | H192: =+'Energy Balance'!H21*(1+Growth!$L21) -> 0 | I192: =+'Energy Balance'!I21*(1+Growth!$L21) -> 0 | J192: =+'Energy Balance'!J21*(1+Growth!$L21) -> 0 | K192: =+'Energy Balance'!K21*(1+Growth!$L21) -> 0 | L192: =+'Energy Balance'!L21*(1+Growth!$L21) -> 0 | M192: =+'Energy Balance'!M21*(1+Growth!$L21) -> 0 | N192: =+'Energy Balance'!N21*(1+Growth!$L21) -> 0 | O192: =+'Energy Balance'!O21*(1+Growth!$L21) -> 0 | P192: 0
B193: Industry - chemical | D193: =+'Energy Balance'!D22*(1+Growth!$L22) -> 0 | E193: =+'Energy Balance'!E22*(1+Growth!$L22) -> 0 | F193: =+'Energy Balance'!F22*(1+Growth!$L22) -> 0 | G193: =+'Energy Balance'!G22*(1+Growth!$L22) -> 0 | H193: =+'Energy Balance'!H22*(1+Growth!$L22) -> 0 | I193: =+'Energy Balance'!I22*(1+Growth!$L22) -> 0 | J193: =+'Energy Balance'!J22*(1+Growth!$L22) -> 0 | K193: =+'Energy Balance'!K22*(1+Growth!$L22) -> 0 | L193: =+'Energy Balance'!L22*(1+Growth!$L22) -> 0 | M193: =+'Energy Balance'!M22*(1+Growth!$L22) -> 0 | N193: =+'Energy Balance'!N22*(1+Growth!$L22) -> 0 | O193: =+'Energy Balance'!O22*(1+Growth!$L22) -> 0 | P193: 0
B194: Industry - non metallic mineral | D194: =+'Energy Balance'!D23*(1+Growth!$L23) -> 0 | E194: =+'Energy Balance'!E23*(1+Growth!$L23) -> 0 | F194: =+'Energy Balance'!F23*(1+Growth!$L23) -> 0 | G194: =+'Energy Balance'!G23*(1+Growth!$L23) -> 0 | H194: =+'Energy Balance'!H23*(1+Growth!$L23) -> 0 | I194: =+'Energy Balance'!I23*(1+Growth!$L23) -> 0 | J194: =+'Energy Balance'!J23*(1+Growth!$L23) -> 0 | K194: =+'Energy Balance'!K23*(1+Growth!$L23) -> 0 | L194: =+'Energy Balance'!L23*(1+Growth!$L23) -> 0 | M194: =+'Energy Balance'!M23*(1+Growth!$L23) -> 0 | N194: =+'Energy Balance'!N23*(1+Growth!$L23) -> 0 | O194: =+'Energy Balance'!O23*(1+Growth!$L23) -> 0 | P194: 0
B195: Industry - food processing and beverage | D195: =+'Energy Balance'!D24*(1+Growth!$L24) -> 0 | E195: =+'Energy Balance'!E24*(1+Growth!$L24) -> 0 | F195: =+'Energy Balance'!F24*(1+Growth!$L24) -> 0 | G195: =+'Energy Balance'!G24*(1+Growth!$L24) -> 0 | H195: =+'Energy Balance'!H24*(1+Growth!$L24) -> 0 | I195: =+'Energy Balance'!I24*(1+Growth!$L24) -> 0 | J195: =+'Energy Balance'!J24*(1+Growth!$L24) -> 0 | K195: =+'Energy Balance'!K24*(1+Growth!$L24) -> 0 | L195: =+'Energy Balance'!L24*(1+Growth!$L24) -> 0 | M195: =+'Energy Balance'!M24*(1+Growth!$L24) -> 0 | N195: =+'Energy Balance'!N24*(1+Growth!$L24) -> 0 | O195: =+'Energy Balance'!O24*(1+Growth!$L24) -> 0 | P195: 0
B196: Industry - construction | D196: =+'Energy Balance'!D25*(1+Growth!$L25) -> 0 | E196: =+'Energy Balance'!E25*(1+Growth!$L25) -> 0 | F196: =+'Energy Balance'!F25*(1+Growth!$L25) -> 0 | G196: =+'Energy Balance'!G25*(1+Growth!$L25) -> 0 | H196: =+'Energy Balance'!H25*(1+Growth!$L25) -> 0 | I196: =+'Energy Balance'!I25*(1+Growth!$L25) -> 0 | J196: =+'Energy Balance'!J25*(1+Growth!$L25) -> 0 | K196: =+'Energy Balance'!K25*(1+Growth!$L25) -> 0 | L196: =+'Energy Balance'!L25*(1+Growth!$L25) -> 0 | M196: =+'Energy Balance'!M25*(1+Growth!$L25) -> 0 | N196: =+'Energy Balance'!N25*(1+Growth!$L25) -> 0 | O196: =+'Energy Balance'!O25*(1+Growth!$L25) -> 0 | P196: 0
B197: Industry - mining | D197: =+'Energy Balance'!D26*(1+Growth!$L26) -> 0 | E197: =+'Energy Balance'!E26*(1+Growth!$L26) -> 0 | F197: =+'Energy Balance'!F26*(1+Growth!$L26) -> 0 | G197: =+'Energy Balance'!G26*(1+Growth!$L26) -> 0 | H197: =+'Energy Balance'!H26*(1+Growth!$L26) -> 0 | I197: =+'Energy Balance'!I26*(1+Growth!$L26) -> 0 | J197: =+'Energy Balance'!J26*(1+Growth!$L26) -> 0 | K197: =+'Energy Balance'!K26*(1+Growth!$L26) -> 0 | L197: =+'Energy Balance'!L26*(1+Growth!$L26) -> 0 | M197: =+'Energy Balance'!M26*(1+Growth!$L26) -> 0 | N197: =+'Energy Balance'!N26*(1+Growth!$L26) -> 0 | O197: =+'Energy Balance'!O26*(1+Growth!$L26) -> 0 | P197: 0
B198: Industry - machinery | D198: =+'Energy Balance'!D27*(1+Growth!$L27) -> 0 | E198: =+'Energy Balance'!E27*(1+Growth!$L27) -> 0 | F198: =+'Energy Balance'!F27*(1+Growth!$L27) -> 0 | G198: =+'Energy Balance'!G27*(1+Growth!$L27) -> 0 | H198: =+'Energy Balance'!H27*(1+Growth!$L27) -> 0 | I198: =+'Energy Balance'!I27*(1+Growth!$L27) -> 0 | J198: =+'Energy Balance'!J27*(1+Growth!$L27) -> 0 | K198: =+'Energy Balance'!K27*(1+Growth!$L27) -> 0 | L198: =+'Energy Balance'!L27*(1+Growth!$L27) -> 0 | M198: =+'Energy Balance'!M27*(1+Growth!$L27) -> 0 | N198: =+'Energy Balance'!N27*(1+Growth!$L27) -> 0 | O198: =+'Energy Balance'!O27*(1+Growth!$L27) -> 0 | P198: 0
B199: Industry - non ferrous metals | D199: =+'Energy Balance'!D28*(1+Growth!$L28) -> 0 | E199: =+'Energy Balance'!E28*(1+Growth!$L28) -> 0 | F199: =+'Energy Balance'!F28*(1+Growth!$L28) -> 0 | G199: =+'Energy Balance'!G28*(1+Growth!$L28) -> 0 | H199: =+'Energy Balance'!H28*(1+Growth!$L28) -> 0 | I199: =+'Energy Balance'!I28*(1+Growth!$L28) -> 0 | J199: =+'Energy Balance'!J28*(1+Growth!$L28) -> 0 | K199: =+'Energy Balance'!K28*(1+Growth!$L28) -> 0 | L199: =+'Energy Balance'!L28*(1+Growth!$L28) -> 0 | M199: =+'Energy Balance'!M28*(1+Growth!$L28) -> 0 | N199: =+'Energy Balance'!N28*(1+Growth!$L28) -> 0 | O199: =+'Energy Balance'!O28*(1+Growth!$L28) -> 0 | P199: 0
B200: Industry - paper and pulp | D200: =+'Energy Balance'!D29*(1+Growth!$L29) -> 0 | E200: =+'Energy Balance'!E29*(1+Growth!$L29) -> 0 | F200: =+'Energy Balance'!F29*(1+Growth!$L29) -> 0 | G200: =+'Energy Balance'!G29*(1+Growth!$L29) -> 0 | H200: =+'Energy Balance'!H29*(1+Growth!$L29) -> 0 | I200: =+'Energy Balance'!I29*(1+Growth!$L29) -> 0 | J200: =+'Energy Balance'!J29*(1+Growth!$L29) -> 0 | K200: =+'Energy Balance'!K29*(1+Growth!$L29) -> 0 | L200: =+'Energy Balance'!L29*(1+Growth!$L29) -> 0 | M200: =+'Energy Balance'!M29*(1+Growth!$L29) -> 0 | N200: =+'Energy Balance'!N29*(1+Growth!$L29) -> 0 | O200: =+'Energy Balance'!O29*(1+Growth!$L29) -> 0 | P200: 0
B201: Industry - transport equipment | D201: =+'Energy Balance'!D30*(1+Growth!$L30) -> 0 | E201: =+'Energy Balance'!E30*(1+Growth!$L30) -> 0 | F201: =+'Energy Balance'!F30*(1+Growth!$L30) -> 0 | G201: =+'Energy Balance'!G30*(1+Growth!$L30) -> 0 | H201: =+'Energy Balance'!H30*(1+Growth!$L30) -> 0 | I201: =+'Energy Balance'!I30*(1+Growth!$L30) -> 0 | J201: =+'Energy Balance'!J30*(1+Growth!$L30) -> 0 | K201: =+'Energy Balance'!K30*(1+Growth!$L30) -> 0 | L201: =+'Energy Balance'!L30*(1+Growth!$L30) -> 0 | M201: =+'Energy Balance'!M30*(1+Growth!$L30) -> 0 | N201: =+'Energy Balance'!N30*(1+Growth!$L30) -> 0 | O201: =+'Energy Balance'!O30*(1+Growth!$L30) -> 0 | P201: 0
B202: Industry - textile and leather | D202: =+'Energy Balance'!D31*(1+Growth!$L31) -> 0 | E202: =+'Energy Balance'!E31*(1+Growth!$L31) -> 0 | F202: =+'Energy Balance'!F31*(1+Growth!$L31) -> 0 | G202: =+'Energy Balance'!G31*(1+Growth!$L31) -> 0 | H202: =+'Energy Balance'!H31*(1+Growth!$L31) -> 0 | I202: =+'Energy Balance'!I31*(1+Growth!$L31) -> 0 | J202: =+'Energy Balance'!J31*(1+Growth!$L31) -> 0 | K202: =+'Energy Balance'!K31*(1+Growth!$L31) -> 0 | L202: =+'Energy Balance'!L31*(1+Growth!$L31) -> 0 | M202: =+'Energy Balance'!M31*(1+Growth!$L31) -> 0 | N202: =+'Energy Balance'!N31*(1+Growth!$L31) -> 0 | O202: =+'Energy Balance'!O31*(1+Growth!$L31) -> 0 | P202: 0
B203: Industry - miscellaneous | D203: =+'Energy Balance'!D32*(1+Growth!$L32) -> 0 | E203: =+'Energy Balance'!E32*(1+Growth!$L32) -> 0 | F203: =+'Energy Balance'!F32*(1+Growth!$L32) -> 0 | G203: =+'Energy Balance'!G32*(1+Growth!$L32) -> 0 | H203: =+'Energy Balance'!H32*(1+Growth!$L32) -> 0 | I203: =+'Energy Balance'!I32*(1+Growth!$L32) -> 0 | J203: =+'Energy Balance'!J32*(1+Growth!$L32) -> 0 | K203: =+'Energy Balance'!K32*(1+Growth!$L32) -> 0 | L203: =+'Energy Balance'!L32*(1+Growth!$L32) -> 0 | M203: =+'Energy Balance'!M32*(1+Growth!$L32) -> 0 | N203: =+'Energy Balance'!N32*(1+Growth!$L32) -> 0 | O203: =+'Energy Balance'!O32*(1+Growth!$L32) -> 0 | P203: 0
B204: Transport - road | D204: =+'Energy Balance'!D33*(1+Growth!$L35) -> 0 | E204: =+'Energy Balance'!E33*(1+Growth!$L35) -> 0 | F204: =+'Energy Balance'!F33*(1+Growth!$L35) -> 0 | G204: =+'Energy Balance'!G33*(1+Growth!$L35) -> 0 | H204: =+'Energy Balance'!H33*(1+Growth!$L35) -> 0 | I204: =+'Energy Balance'!I33*(1+Growth!$L35) -> 0 | J204: =+'Energy Balance'!J33*(1+Growth!$L35) -> 0 | K204: =+'Energy Balance'!K33*(1+Growth!$L35) -> 0 | L204: =+'Energy Balance'!L33*(1+Growth!$L35) -> 0 | M204: =+'Energy Balance'!M33*(1+Growth!$L35) -> 0 | N204: =+'Energy Balance'!N33*(1+Growth!$L35) -> 0 | O204: =+'Energy Balance'!O33*(1+Growth!$L35) -> 0 | P204: 0
B205: Transport - rail | D205: =+'Energy Balance'!D34*(1+Growth!$L36) -> 0 | E205: =+'Energy Balance'!E34*(1+Growth!$L36) -> 0 | F205: =+'Energy Balance'!F34*(1+Growth!$L36) -> 0 | G205: =+'Energy Balance'!G34*(1+Growth!$L36) -> 0 | H205: =+'Energy Balance'!H34*(1+Growth!$L36) -> 0 | I205: =+'Energy Balance'!I34*(1+Growth!$L36) -> 0 | J205: =+'Energy Balance'!J34*(1+Growth!$L36) -> 0 | K205: =+'Energy Balance'!K34*(1+Growth!$L36) -> 0 | L205: =+'Energy Balance'!L34*(1+Growth!$L36) -> 0 | M205: =+'Energy Balance'!M34*(1+Growth!$L36) -> 0 | N205: =+'Energy Balance'!N34*(1+Growth!$L36) -> 0 | O205: =+'Energy Balance'!O34*(1+Growth!$L36) -> 0 | P205: 0
B206: Transport - domestic air | D206: =+'Energy Balance'!D35*(1+Growth!$L37) -> 0 | E206: =+'Energy Balance'!E35*(1+Growth!$L37) -> 0 | F206: =+'Energy Balance'!F35*(1+Growth!$L37) -> 0 | G206: =+'Energy Balance'!G35*(1+Growth!$L37) -> 0 | H206: =+'Energy Balance'!H35*(1+Growth!$L37) -> 0 | I206: =+'Energy Balance'!I35*(1+Growth!$L37) -> 0 | J206: =+'Energy Balance'!J35*(1+Growth!$L37) -> 0 | K206: =+'Energy Balance'!K35*(1+Growth!$L37) -> 0 | L206: =+'Energy Balance'!L35*(1+Growth!$L37) -> 0 | M206: =+'Energy Balance'!M35*(1+Growth!$L37) -> 0 | N206: =+'Energy Balance'!N35*(1+Growth!$L37) -> 0 | O206: =+'Energy Balance'!O35*(1+Growth!$L37) -> 0 | P206: 0
B207: Transport - navigation | D207: =+'Energy Balance'!D36*(1+Growth!$L38) -> 0 | E207: =+'Energy Balance'!E36*(1+Growth!$L38) -> 0 | F207: =+'Energy Balance'!F36*(1+Growth!$L38) -> 0 | G207: =+'Energy Balance'!G36*(1+Growth!$L38) -> 0 | H207: =+'Energy Balance'!H36*(1+Growth!$L38) -> 0 | I207: =+'Energy Balance'!I36*(1+Growth!$L38) -> 0 | J207: =+'Energy Balance'!J36*(1+Growth!$L38) -> 0 | K207: =+'Energy Balance'!K36*(1+Growth!$L38) -> 0 | L207: =+'Energy Balance'!L36*(1+Growth!$L38) -> 0 | M207: =+'Energy Balance'!M36*(1+Growth!$L38) -> 0 | N207: =+'Energy Balance'!N36*(1+Growth!$L38) -> 0 | O207: =+'Energy Balance'!O36*(1+Growth!$L38) -> 0 | P207: 0
B208: Households | D208: =+'Energy Balance'!D37*(1+Growth!$L42) -> 0 | E208: =+'Energy Balance'!E37*(1+Growth!$L42) -> 0 | F208: =+'Energy Balance'!F37*(1+Growth!$L42) -> 0 | G208: =+'Energy Balance'!G37*(1+Growth!$L42) -> 0 | H208: =+'Energy Balance'!H37*(1+Growth!$L42) -> 0 | I208: =+'Energy Balance'!I37*(1+Growth!$L42) -> 0 | J208: =+'Energy Balance'!J37*(1+Growth!$L42) -> 0 | K208: =+'Energy Balance'!K37*(1+Growth!$L42) -> 0 | L208: =+'Energy Balance'!L37*(1+Growth!$L42) -> 0 | M208: =+'Energy Balance'!M37*(1+Growth!$L42) -> 0 | N208: =+'Energy Balance'!N37*(1+Growth!$L42) -> 0 | O208: =+'Energy Balance'!O37*(1+Growth!$L42) -> 0 | P208: 0
B209: Services | D209: =+'Energy Balance'!D38*(1+Growth!$L46) -> 0 | E209: =+'Energy Balance'!E38*(1+Growth!$L46) -> 0 | F209: =+'Energy Balance'!F38*(1+Growth!$L46) -> 0 | G209: =+'Energy Balance'!G38*(1+Growth!$L46) -> 0 | H209: =+'Energy Balance'!H38*(1+Growth!$L46) -> 0 | I209: =+'Energy Balance'!I38*(1+Growth!$L46) -> 0 | J209: =+'Energy Balance'!J38*(1+Growth!$L46) -> 0 | K209: =+'Energy Balance'!K38*(1+Growth!$L46) -> 0 | L209: =+'Energy Balance'!L38*(1+Growth!$L46) -> 0 | M209: =+'Energy Balance'!M38*(1+Growth!$L46) -> 0 | N209: =+'Energy Balance'!N38*(1+Growth!$L46) -> 0 | O209: =+'Energy Balance'!O38*(1+Growth!$L46) -> 0 | P209: 0
B210: Agriculture & Fishery | D210: =+'Energy Balance'!D39*(1+Growth!$L49) -> 0 | E210: =+'Energy Balance'!E39*(1+Growth!$L49) -> 0 | F210: =+'Energy Balance'!F39*(1+Growth!$L49) -> 0 | G210: =+'Energy Balance'!G39*(1+Growth!$L49) -> 0 | H210: =+'Energy Balance'!H39*(1+Growth!$L49) -> 0 | I210: =+'Energy Balance'!I39*(1+Growth!$L49) -> 0 | J210: =+'Energy Balance'!J39*(1+Growth!$L49) -> 0 | K210: =+'Energy Balance'!K39*(1+Growth!$L49) -> 0 | L210: =+'Energy Balance'!L39*(1+Growth!$L49) -> 0 | M210: =+'Energy Balance'!M39*(1+Growth!$L49) -> 0 | N210: =+'Energy Balance'!N39*(1+Growth!$L49) -> 0 | O210: =+'Energy Balance'!O39*(1+Growth!$L49) -> 0 | P210: 0
B211: Non energy uses | D211: =+'Energy Balance'!D40*(1+Growth!$L74) -> 0 | E211: =+'Energy Balance'!E40*(1+Growth!$L74) -> 0 | F211: =+'Energy Balance'!F40*(1+Growth!$L74) -> 0 | G211: =+'Energy Balance'!G40*(1+Growth!$L74) -> 0 | H211: =+'Energy Balance'!H40*(1+Growth!$L74) -> 0 | I211: =+'Energy Balance'!I40*(1+Growth!$L74) -> 0 | J211: =+'Energy Balance'!J40*(1+Growth!$L74) -> 0 | K211: =+'Energy Balance'!K40*(1+Growth!$L74) -> 0 | L211: =+'Energy Balance'!L40*(1+Growth!$L74) -> 0 | M211: =+'Energy Balance'!M40*(1+Growth!$L74) -> 0 | N211: =+'Energy Balance'!N40*(1+Growth!$L74) -> 0 | O211: =+'Energy Balance'!O40*(1+Growth!$L74) -> 0 | P211: 0
E213: 0.02388458966 | F213: 0.02388458966 | G213: 0.02388458966 | H213: 0.02388458966 | I213: 0.02388458966 | J213: 0.02388458966 | L213: 0.02388458966 | M213: 0.02388458966 | N213: 0.02388458966 | O213: 0.02388458966 | P213: 0.02388458966
B215: ="Fossil fuel balance - 2035 - "&Assumptions!C9 -> Fossil fuel balance - 2035 -
B216: ktoe units | D216: LPG | E216: Gasoline | F216: Jet Fuel | G216: Diesel | H216: Fueloil | I216: Kerosene and other | J216: Total oil products | K216: Coal | L216: Lignite | M216: Gas | N216: Coke | O216: Petrocoke | P216: Total
B217: Unit | D217: ktoe | E217: ktoe | F217: ktoe | G217: ktoe | H217: ktoe | I217: ktoe | J217: ktoe | K217: ktoe | L217: ktoe | M217: ktoe | N217: ktoe | O217: ktoe | P217: ktoe
B218: Total consumption | D218: =+D219+D220 -> 0 | E218: 0 | F218: 0 | G218: 0 | H218: 0 | I218: 0 | J218: 0 | K218: 0 | L218: 0 | M218: 0 | N218: 0 | O218: 0 | P218: 0
B219: Fossil power plants | D219: =IFERROR(IF($G247=0,0,$J219*IF('Energy Balance'!$J76>0,'Energy Balance'!D76/'Energy Balance'!$J76,0)),0) -> 0 | E219: =IFERROR(IF($G247=0,0,$J219*IF('Energy Balance'!$J76>0,'Energy Balance'!E76/'Energy Balance'!$J76,0)),0) -> 0 | F219: =IFERROR(IF($G247=0,0,$J219*IF('Energy Balance'!$J76>0,'Energy Balance'!F76/'Energy Balance'!$J76,0)),0) -> 0 | G219: =IFERROR(IF($G247=0,0,$J219*IF('Energy Balance'!$J76>0,'Energy Balance'!G76/'Energy Balance'!$J76,0)),0) -> 0 | H219: =IFERROR(IF($G247=0,0,$J219*IF('Energy Balance'!$J76>0,'Energy Balance'!H76/'Energy Balance'!$J76,0)),0) -> 0 | I219: =IFERROR(IF($G247=0,0,$J219*IF('Energy Balance'!$J76>0,'Energy Balance'!I76/'Energy Balance'!$J76,0)),0) -> 0 | J219: =IFERROR(IF(G247=0,0,G250/11.63/I250),0) -> 0 | K219: =IF(I249>0,G249/11.63/I249,0) -> 0 | L219: =IF(I248>0,G248/11.63/I248,0) -> 0 | M219: =IF(I251>0,G251/11.63/I251,0) -> 0 | P219: =SUM(J219:O219) -> 0
B220: FINAL CONSUMPTION | D220: =SUM(D221:D240) -> 0 | E220: 0 | F220: 0 | G220: 0 | H220: 0 | I220: 0 | J220: =SUM(D220:I220) -> 0 | K220: =SUM(K221:K240) -> 0 | L220: 0 | M220: 0 | N220: 0 | O220: 0 | P220: 0
B221: Industry - steel | D221: =+'Energy Balance'!D78*(1+Growth!$L21) -> 0 | E221: =+'Energy Balance'!E78*(1+Growth!$L21) -> 0 | F221: =+'Energy Balance'!F78*(1+Growth!$L21) -> 0 | G221: =+'Energy Balance'!G78*(1+Growth!$L21) -> 0 | H221: =+'Energy Balance'!H78*(1+Growth!$L21) -> 0 | I221: =+'Energy Balance'!I78*(1+Growth!$L21) -> 0 | J221: 0 | K221: =+'Energy Balance'!K78*(1+Growth!$L21) -> 0 | L221: =+'Energy Balance'!L78*(1+Growth!$L21) -> 0 | M221: =+'Energy Balance'!M78*(1+Growth!$L21) -> 0 | N221: =+'Energy Balance'!N78*(1+Growth!$L21) -> 0 | O221: =+'Energy Balance'!O78*(1+Growth!$L21) -> 0 | P221: =SUM(J221:O221) -> 0
B222: Industry - chemical | D222: =+'Energy Balance'!D79*(1+Growth!$L22) -> 0 | E222: =+'Energy Balance'!E79*(1+Growth!$L22) -> 0 | F222: =+'Energy Balance'!F79*(1+Growth!$L22) -> 0 | G222: =+'Energy Balance'!G79*(1+Growth!$L22) -> 0 | H222: =+'Energy Balance'!H79*(1+Growth!$L22) -> 0 | I222: =+'Energy Balance'!I79*(1+Growth!$L22) -> 0 | J222: 0 | K222: =+'Energy Balance'!K79*(1+Growth!$L22) -> 0 | L222: =+'Energy Balance'!L79*(1+Growth!$L22) -> 0 | M222: =+'Energy Balance'!M79*(1+Growth!$L22) -> 0 | N222: =+'Energy Balance'!N79*(1+Growth!$L22) -> 0 | O222: =+'Energy Balance'!O79*(1+Growth!$L22) -> 0 | P222: 0
B223: Industry - non metallic mineral | D223: =+'Energy Balance'!D80*(1+Growth!$L23) -> 0 | E223: =+'Energy Balance'!E80*(1+Growth!$L23) -> 0 | F223: =+'Energy Balance'!F80*(1+Growth!$L23) -> 0 | G223: =+'Energy Balance'!G80*(1+Growth!$L23) -> 0 | H223: =+'Energy Balance'!H80*(1+Growth!$L23) -> 0 | I223: =+'Energy Balance'!I80*(1+Growth!$L23) -> 0 | J223: 0 | K223: =+'Energy Balance'!K80*(1+Growth!$L23) -> 0 | L223: =+'Energy Balance'!L80*(1+Growth!$L23) -> 0 | M223: =+'Energy Balance'!M80*(1+Growth!$L23) -> 0 | N223: =+'Energy Balance'!N80*(1+Growth!$L23) -> 0 | O223: =+'Energy Balance'!O80*(1+Growth!$L23) -> 0 | P223: 0
B224: Industry - food processing and beverage | D224: =+'Energy Balance'!D81*(1+Growth!$L24) -> 0 | E224: =+'Energy Balance'!E81*(1+Growth!$L24) -> 0 | F224: =+'Energy Balance'!F81*(1+Growth!$L24) -> 0 | G224: =+'Energy Balance'!G81*(1+Growth!$L24) -> 0 | H224: =+'Energy Balance'!H81*(1+Growth!$L24) -> 0 | I224: =+'Energy Balance'!I81*(1+Growth!$L24) -> 0 | J224: 0 | K224: =+'Energy Balance'!K81*(1+Growth!$L24) -> 0 | L224: =+'Energy Balance'!L81*(1+Growth!$L24) -> 0 | M224: =+'Energy Balance'!M81*(1+Growth!$L24) -> 0 | N224: =+'Energy Balance'!N81*(1+Growth!$L24) -> 0 | O224: =+'Energy Balance'!O81*(1+Growth!$L24) -> 0 | P224: 0
B225: Industry - construction | D225: =+'Energy Balance'!D82*(1+Growth!$L25) -> 0 | E225: =+'Energy Balance'!E82*(1+Growth!$L25) -> 0 | F225: =+'Energy Balance'!F82*(1+Growth!$L25) -> 0 | G225: =+'Energy Balance'!G82*(1+Growth!$L25) -> 0 | H225: =+'Energy Balance'!H82*(1+Growth!$L25) -> 0 | I225: =+'Energy Balance'!I82*(1+Growth!$L25) -> 0 | J225: 0 | K225: =+'Energy Balance'!K82*(1+Growth!$L25) -> 0 | L225: =+'Energy Balance'!L82*(1+Growth!$L25) -> 0 | M225: =+'Energy Balance'!M82*(1+Growth!$L25) -> 0 | N225: =+'Energy Balance'!N82*(1+Growth!$L25) -> 0 | O225: =+'Energy Balance'!O82*(1+Growth!$L25) -> 0 | P225: 0
B226: Industry - mining | D226: =+'Energy Balance'!D83*(1+Growth!$L26) -> 0 | E226: =+'Energy Balance'!E83*(1+Growth!$L26) -> 0 | F226: =+'Energy Balance'!F83*(1+Growth!$L26) -> 0 | G226: =+'Energy Balance'!G83*(1+Growth!$L26) -> 0 | H226: =+'Energy Balance'!H83*(1+Growth!$L26) -> 0 | I226: =+'Energy Balance'!I83*(1+Growth!$L26) -> 0 | J226: 0 | K226: =+'Energy Balance'!K83*(1+Growth!$L26) -> 0 | L226: =+'Energy Balance'!L83*(1+Growth!$L26) -> 0 | M226: =+'Energy Balance'!M83*(1+Growth!$L26) -> 0 | N226: =+'Energy Balance'!N83*(1+Growth!$L26) -> 0 | O226: =+'Energy Balance'!O83*(1+Growth!$L26) -> 0 | P226: 0
B227: Industry - machinery | D227: =+'Energy Balance'!D84*(1+Growth!$L27) -> 0 | E227: =+'Energy Balance'!E84*(1+Growth!$L27) -> 0 | F227: =+'Energy Balance'!F84*(1+Growth!$L27) -> 0 | G227: =+'Energy Balance'!G84*(1+Growth!$L27) -> 0 | H227: =+'Energy Balance'!H84*(1+Growth!$L27) -> 0 | I227: =+'Energy Balance'!I84*(1+Growth!$L27) -> 0 | J227: 0 | K227: =+'Energy Balance'!K84*(1+Growth!$L27) -> 0 | L227: =+'Energy Balance'!L84*(1+Growth!$L27) -> 0 | M227: =+'Energy Balance'!M84*(1+Growth!$L27) -> 0 | N227: =+'Energy Balance'!N84*(1+Growth!$L27) -> 0 | O227: =+'Energy Balance'!O84*(1+Growth!$L27) -> 0 | P227: 0
B228: Industry - non ferrous metals | D228: =+'Energy Balance'!D85*(1+Growth!$L28) -> 0 | E228: =+'Energy Balance'!E85*(1+Growth!$L28) -> 0 | F228: =+'Energy Balance'!F85*(1+Growth!$L28) -> 0 | G228: =+'Energy Balance'!G85*(1+Growth!$L28) -> 0 | H228: =+'Energy Balance'!H85*(1+Growth!$L28) -> 0 | I228: =+'Energy Balance'!I85*(1+Growth!$L28) -> 0 | J228: 0 | K228: =+'Energy Balance'!K85*(1+Growth!$L28) -> 0 | L228: =+'Energy Balance'!L85*(1+Growth!$L28) -> 0 | M228: =+'Energy Balance'!M85*(1+Growth!$L28) -> 0 | N228: =+'Energy Balance'!N85*(1+Growth!$L28) -> 0 | O228: =+'Energy Balance'!O85*(1+Growth!$L28) -> 0 | P228: 0
B229: Industry - paper and pulp | D229: =+'Energy Balance'!D86*(1+Growth!$L29) -> 0 | E229: =+'Energy Balance'!E86*(1+Growth!$L29) -> 0 | F229: =+'Energy Balance'!F86*(1+Growth!$L29) -> 0 | G229: =+'Energy Balance'!G86*(1+Growth!$L29) -> 0 | H229: =+'Energy Balance'!H86*(1+Growth!$L29) -> 0 | I229: =+'Energy Balance'!I86*(1+Growth!$L29) -> 0 | J229: 0 | K229: =+'Energy Balance'!K86*(1+Growth!$L29) -> 0 | L229: =+'Energy Balance'!L86*(1+Growth!$L29) -> 0 | M229: =+'Energy Balance'!M86*(1+Growth!$L29) -> 0 | N229: =+'Energy Balance'!N86*(1+Growth!$L29) -> 0 | O229: =+'Energy Balance'!O86*(1+Growth!$L29) -> 0 | P229: 0
B230: Industry - transport equipment | D230: =+'Energy Balance'!D87*(1+Growth!$L30) -> 0 | E230: =+'Energy Balance'!E87*(1+Growth!$L30) -> 0 | F230: =+'Energy Balance'!F87*(1+Growth!$L30) -> 0 | G230: =+'Energy Balance'!G87*(1+Growth!$L30) -> 0 | H230: =+'Energy Balance'!H87*(1+Growth!$L30) -> 0 | I230: =+'Energy Balance'!I87*(1+Growth!$L30) -> 0 | J230: 0 | K230: =+'Energy Balance'!K87*(1+Growth!$L30) -> 0 | L230: =+'Energy Balance'!L87*(1+Growth!$L30) -> 0 | M230: =+'Energy Balance'!M87*(1+Growth!$L30) -> 0 | N230: =+'Energy Balance'!N87*(1+Growth!$L30) -> 0 | O230: =+'Energy Balance'!O87*(1+Growth!$L30) -> 0 | P230: 0
... 261 more rows

Sheet BAU projected GHG Balances (hidden)
B2: Step 6: BAU projected GHG Balances for year 2025, 2030, 2035, 2040, 2045 and 2050
T3: 2025
B4: Select year to display: | E4: The BAU projected GHG balances sheet includes the future greenhouse gas emissions balances for the years 2025, 2030, 2035, 2040, 2045 and 2050. The data in this sheet are automatically calculated by GACMO. The user should not modify any of the data in the tables CO2 balance and Non-CO2 emissions, non-fuel combustion sectors. However, a user may exceptionally decide to modify a specific data in one of these tables in the case that the user would like to reflect a change in the greenhouse gas balance which is not taken into account by the projections made by GACMO. The user should only make such a change if he/she is completely familiar with those types of data as the change will have an impact on the emissions scenarios and results obtained. Please refer to the Guidance for further details on the data included in this sheet and on how to fill it in. Once you have reviewed the tables of the BAU projected GHG Balances sheet, you can click “Go to step 7: Mitigation options”. | T4: 2030
T5: 2050
T7: TJ
B8: Selected year: | C8: 2025 | T8: ktoe
B14: ="CO2 emissions from fuel combustion- 2025 - "&Assumptions!C9 -> CO2 emissions from fuel combustion- 2025 -
B15: ktCO2 | D15: LPG | E15: Gasoline | F15: Jet Fuel | G15: Diesel | H15: Fueloil | I15: Kerosene and other | J15: Total oil products | K15: Coal | L15: Lignite | M15: Gas | N15: Coke | O15: Petrocoke | P15: Total
B16: Unit | D16: kt | E16: kt | F16: kt | G16: kt | H16: kt | I16: kt | J16: kt | K16: kt | L16: kt | M16: kt | N16: kt | O16: kt | P16: kt
B17: Total | D17: =+D18+D19 -> 0 | E17: 0 | F17: 0 | G17: 0 | H17: 0 | I17: 0 | J17: 0 | K17: 0 | L17: 0 | M17: 0 | N17: 0 | O17: 0 | P17: 0
B18: Fossil power plants | D18: ='GHG Balance'!D14*'BAU projected Energy Balances'!D47 -> 0 | E18: ='GHG Balance'!E14*'BAU projected Energy Balances'!E47 -> 0 | F18: ='GHG Balance'!F14*'BAU projected Energy Balances'!F47 -> 0 | G18: ='GHG Balance'!G14*'BAU projected Energy Balances'!G47 -> 0 | H18: ='GHG Balance'!H14*'BAU projected Energy Balances'!H47 -> 0 | I18: ='GHG Balance'!I14*'BAU projected Energy Balances'!I47 -> 0 | J18: =SUM(D18:I18) -> 0 | K18: ='GHG Balance'!K14*'BAU projected Energy Balances'!K47 -> 0 | L18: ='GHG Balance'!L14*'BAU projected Energy Balances'!L47 -> 0 | M18: ='GHG Balance'!M14*'BAU projected Energy Balances'!M47 -> 0 | N18: ='GHG Balance'!N14*'BAU projected Energy Balances'!N47 -> 0 | O18: ='GHG Balance'!O14*'BAU projected Energy Balances'!O47 -> 0 | P18: =SUM(J18:O18) -> 0
B19: FINAL CONSUMPTION | D19: =SUM(D20:D39) -> 0 | E19: 0 | F19: 0 | G19: 0 | H19: 0 | I19: 0 | J19: 0 | K19: =SUM(K20:K39) -> 0 | L19: =SUM(L20:L39) -> 0 | M19: 0 | N19: 0 | O19: 0 | P19: 0
B20: Industry - steel | D20: =+'GHG Balance'!D18*(1+Growth!$J21) -> 0 | E20: =+'GHG Balance'!E18*(1+Growth!$J21) -> 0 | F20: =+'GHG Balance'!F18*(1+Growth!$J21) -> 0 | G20: =+'GHG Balance'!G18*(1+Growth!$J21) -> 0 | H20: =+'GHG Balance'!H18*(1+Growth!$J21) -> 0 | I20: =+'GHG Balance'!I18*(1+Growth!$J21) -> 0 | J20: 0 | K20: =+'GHG Balance'!K18*(1+Growth!$J21) -> 0 | L20: =+'GHG Balance'!L18*(1+Growth!$J21) -> 0 | M20: =+'GHG Balance'!M18*(1+Growth!$J21) -> 0 | N20: =+'GHG Balance'!N18*(1+Growth!$J21) -> 0 | O20: =+'GHG Balance'!O18*(1+Growth!$J21) -> 0 | P20: =SUM(J20:O20) -> 0
B21: Industry - chemical | D21: =+'GHG Balance'!D19*(1+Growth!$J22) -> 0 | E21: =+'GHG Balance'!E19*(1+Growth!$J22) -> 0 | F21: =+'GHG Balance'!F19*(1+Growth!$J22) -> 0 | G21: =+'GHG Balance'!G19*(1+Growth!$J22) -> 0 | H21: =+'GHG Balance'!H19*(1+Growth!$J22) -> 0 | I21: =+'GHG Balance'!I19*(1+Growth!$J22) -> 0 | J21: 0 | K21: =+'GHG Balance'!K19*(1+Growth!$J22) -> 0 | L21: =+'GHG Balance'!L19*(1+Growth!$J22) -> 0 | M21: =+'GHG Balance'!M19*(1+Growth!$J22) -> 0 | N21: =+'GHG Balance'!N19*(1+Growth!$J22) -> 0 | O21: =+'GHG Balance'!O19*(1+Growth!$J22) -> 0 | P21: 0
B22: Industry - non metallic mineral | D22: =+'GHG Balance'!D20*(1+Growth!$J23) -> 0 | E22: =+'GHG Balance'!E20*(1+Growth!$J23) -> 0 | F22: =+'GHG Balance'!F20*(1+Growth!$J23) -> 0 | G22: =+'GHG Balance'!G20*(1+Growth!$J23) -> 0 | H22: =+'GHG Balance'!H20*(1+Growth!$J23) -> 0 | I22: =+'GHG Balance'!I20*(1+Growth!$J23) -> 0 | J22: 0 | K22: =+'GHG Balance'!K20*(1+Growth!$J23) -> 0 | L22: =+'GHG Balance'!L20*(1+Growth!$J23) -> 0 | M22: =+'GHG Balance'!M20*(1+Growth!$J23) -> 0 | N22: =+'GHG Balance'!N20*(1+Growth!$J23) -> 0 | O22: =+'GHG Balance'!O20*(1+Growth!$J23) -> 0 | P22: 0
B23: Industry - food processing and beverage | D23: =+'GHG Balance'!D21*(1+Growth!$J24) -> 0 | E23: =+'GHG Balance'!E21*(1+Growth!$J24) -> 0 | F23: =+'GHG Balance'!F21*(1+Growth!$J24) -> 0 | G23: =+'GHG Balance'!G21*(1+Growth!$J24) -> 0 | H23: =+'GHG Balance'!H21*(1+Growth!$J24) -> 0 | I23: =+'GHG Balance'!I21*(1+Growth!$J24) -> 0 | J23: 0 | K23: =+'GHG Balance'!K21*(1+Growth!$J24) -> 0 | L23: =+'GHG Balance'!L21*(1+Growth!$J24) -> 0 | M23: =+'GHG Balance'!M21*(1+Growth!$J24) -> 0 | N23: =+'GHG Balance'!N21*(1+Growth!$J24) -> 0 | O23: =+'GHG Balance'!O21*(1+Growth!$J24) -> 0 | P23: 0
B24: Industry - construction | D24: =+'GHG Balance'!D22*(1+Growth!$J25) -> 0 | E24: =+'GHG Balance'!E22*(1+Growth!$J25) -> 0 | F24: =+'GHG Balance'!F22*(1+Growth!$J25) -> 0 | G24: =+'GHG Balance'!G22*(1+Growth!$J25) -> 0 | H24: =+'GHG Balance'!H22*(1+Growth!$J25) -> 0 | I24: =+'GHG Balance'!I22*(1+Growth!$J25) -> 0 | J24: 0 | K24: =+'GHG Balance'!K22*(1+Growth!$J25) -> 0 | L24: =+'GHG Balance'!L22*(1+Growth!$J25) -> 0 | M24: =+'GHG Balance'!M22*(1+Growth!$J25) -> 0 | N24: =+'GHG Balance'!N22*(1+Growth!$J25) -> 0 | O24: =+'GHG Balance'!O22*(1+Growth!$J25) -> 0 | P24: 0
B25: Industry - mining | D25: =+'GHG Balance'!D23*(1+Growth!$J26) -> 0 | E25: =+'GHG Balance'!E23*(1+Growth!$J26) -> 0 | F25: =+'GHG Balance'!F23*(1+Growth!$J26) -> 0 | G25: =+'GHG Balance'!G23*(1+Growth!$J26) -> 0 | H25: =+'GHG Balance'!H23*(1+Growth!$J26) -> 0 | I25: =+'GHG Balance'!I23*(1+Growth!$J26) -> 0 | J25: 0 | K25: =+'GHG Balance'!K23*(1+Growth!$J26) -> 0 | L25: =+'GHG Balance'!L23*(1+Growth!$J26) -> 0 | M25: =+'GHG Balance'!M23*(1+Growth!$J26) -> 0 | N25: =+'GHG Balance'!N23*(1+Growth!$J26) -> 0 | O25: =+'GHG Balance'!O23*(1+Growth!$J26) -> 0 | P25: 0
B26: Industry - machinery | D26: =+'GHG Balance'!D24*(1+Growth!$J27) -> 0 | E26: =+'GHG Balance'!E24*(1+Growth!$J27) -> 0 | F26: =+'GHG Balance'!F24*(1+Growth!$J27) -> 0 | G26: =+'GHG Balance'!G24*(1+Growth!$J27) -> 0 | H26: =+'GHG Balance'!H24*(1+Growth!$J27) -> 0 | I26: =+'GHG Balance'!I24*(1+Growth!$J27) -> 0 | J26: 0 | K26: =+'GHG Balance'!K24*(1+Growth!$J27) -> 0 | L26: =+'GHG Balance'!L24*(1+Growth!$J27) -> 0 | M26: =+'GHG Balance'!M24*(1+Growth!$J27) -> 0 | N26: =+'GHG Balance'!N24*(1+Growth!$J27) -> 0 | O26: =+'GHG Balance'!O24*(1+Growth!$J27) -> 0 | P26: 0
B27: Industry - non ferrous metals | D27: =+'GHG Balance'!D25*(1+Growth!$J28) -> 0 | E27: =+'GHG Balance'!E25*(1+Growth!$J28) -> 0 | F27: =+'GHG Balance'!F25*(1+Growth!$J28) -> 0 | G27: =+'GHG Balance'!G25*(1+Growth!$J28) -> 0 | H27: =+'GHG Balance'!H25*(1+Growth!$J28) -> 0 | I27: =+'GHG Balance'!I25*(1+Growth!$J28) -> 0 | J27: 0 | K27: =+'GHG Balance'!K25*(1+Growth!$J28) -> 0 | L27: =+'GHG Balance'!L25*(1+Growth!$J28) -> 0 | M27: =+'GHG Balance'!M25*(1+Growth!$J28) -> 0 | N27: =+'GHG Balance'!N25*(1+Growth!$J28) -> 0 | O27: =+'GHG Balance'!O25*(1+Growth!$J28) -> 0 | P27: 0
B28: Industry - paper and pulp | D28: =+'GHG Balance'!D26*(1+Growth!$J29) -> 0 | E28: =+'GHG Balance'!E26*(1+Growth!$J29) -> 0 | F28: =+'GHG Balance'!F26*(1+Growth!$J29) -> 0 | G28: =+'GHG Balance'!G26*(1+Growth!$J29) -> 0 | H28: =+'GHG Balance'!H26*(1+Growth!$J29) -> 0 | I28: =+'GHG Balance'!I26*(1+Growth!$J29) -> 0 | J28: 0 | K28: =+'GHG Balance'!K26*(1+Growth!$J29) -> 0 | L28: =+'GHG Balance'!L26*(1+Growth!$J29) -> 0 | M28: =+'GHG Balance'!M26*(1+Growth!$J29) -> 0 | N28: =+'GHG Balance'!N26*(1+Growth!$J29) -> 0 | O28: =+'GHG Balance'!O26*(1+Growth!$J29) -> 0 | P28: 0
B29: Industry - transport equipment | D29: =+'GHG Balance'!D27*(1+Growth!$J30) -> 0 | E29: =+'GHG Balance'!E27*(1+Growth!$J30) -> 0 | F29: =+'GHG Balance'!F27*(1+Growth!$J30) -> 0 | G29: =+'GHG Balance'!G27*(1+Growth!$J30) -> 0 | H29: =+'GHG Balance'!H27*(1+Growth!$J30) -> 0 | I29: =+'GHG Balance'!I27*(1+Growth!$J30) -> 0 | J29: 0 | K29: =+'GHG Balance'!K27*(1+Growth!$J30) -> 0 | L29: =+'GHG Balance'!L27*(1+Growth!$J30) -> 0 | M29: =+'GHG Balance'!M27*(1+Growth!$J30) -> 0 | N29: =+'GHG Balance'!N27*(1+Growth!$J30) -> 0 | O29: =+'GHG Balance'!O27*(1+Growth!$J30) -> 0 | P29: 0
B30: Industry - textile and leather | D30: =+'GHG Balance'!D28*(1+Growth!$J31) -> 0 | E30: =+'GHG Balance'!E28*(1+Growth!$J31) -> 0 | F30: =+'GHG Balance'!F28*(1+Growth!$J31) -> 0 | G30: =+'GHG Balance'!G28*(1+Growth!$J31) -> 0 | H30: =+'GHG Balance'!H28*(1+Growth!$J31) -> 0 | I30: =+'GHG Balance'!I28*(1+Growth!$J31) -> 0 | J30: 0 | K30: =+'GHG Balance'!K28*(1+Growth!$J31) -> 0 | L30: =+'GHG Balance'!L28*(1+Growth!$J31) -> 0 | M30: =+'GHG Balance'!M28*(1+Growth!$J31) -> 0 | N30: =+'GHG Balance'!N28*(1+Growth!$J31) -> 0 | O30: =+'GHG Balance'!O28*(1+Growth!$J31) -> 0 | P30: 0
B31: Industry - miscellaneous | D31: =+'GHG Balance'!D29*(1+Growth!$J32) -> 0 | E31: =+'GHG Balance'!E29*(1+Growth!$J32) -> 0 | F31: =+'GHG Balance'!F29*(1+Growth!$J32) -> 0 | G31: =+'GHG Balance'!G29*(1+Growth!$J32) -> 0 | H31: =+'GHG Balance'!H29*(1+Growth!$J32) -> 0 | I31: =+'GHG Balance'!I29*(1+Growth!$J32) -> 0 | J31: 0 | K31: =+'GHG Balance'!K29*(1+Growth!$J32) -> 0 | L31: =+'GHG Balance'!L29*(1+Growth!$J32) -> 0 | M31: =+'GHG Balance'!M29*(1+Growth!$J32) -> 0 | N31: =+'GHG Balance'!N29*(1+Growth!$J32) -> 0 | O31: =+'GHG Balance'!O29*(1+Growth!$J32) -> 0 | P31: 0
B32: Transport - road | D32: =+'GHG Balance'!D30*(1+Growth!$J35) -> 0 | E32: =+'GHG Balance'!E30*(1+Growth!$J35) -> 0 | F32: =+'GHG Balance'!F30*(1+Growth!$J35) -> 0 | G32: =+'GHG Balance'!G30*(1+Growth!$J35) -> 0 | H32: =+'GHG Balance'!H30*(1+Growth!$J35) -> 0 | I32: =+'GHG Balance'!I30*(1+Growth!$J35) -> 0 | J32: 0 | K32: =+'GHG Balance'!K30*(1+Growth!$J35) -> 0 | L32: =+'GHG Balance'!L30*(1+Growth!$J35) -> 0 | M32: =+'GHG Balance'!M30*(1+Growth!$J35) -> 0 | N32: =+'GHG Balance'!N30*(1+Growth!$J35) -> 0 | O32: =+'GHG Balance'!O30*(1+Growth!$J35) -> 0 | P32: 0
B33: Transport - rail | D33: =+'GHG Balance'!D31*(1+Growth!$J36) -> 0 | E33: =+'GHG Balance'!E31*(1+Growth!$J36) -> 0 | F33: =+'GHG Balance'!F31*(1+Growth!$J36) -> 0 | G33: =+'GHG Balance'!G31*(1+Growth!$J36) -> 0 | H33: =+'GHG Balance'!H31*(1+Growth!$J36) -> 0 | I33: =+'GHG Balance'!I31*(1+Growth!$J36) -> 0 | J33: 0 | K33: =+'GHG Balance'!K31*(1+Growth!$J36) -> 0 | L33: =+'GHG Balance'!L31*(1+Growth!$J36) -> 0 | M33: =+'GHG Balance'!M31*(1+Growth!$J36) -> 0 | N33: =+'GHG Balance'!N31*(1+Growth!$J36) -> 0 | O33: =+'GHG Balance'!O31*(1+Growth!$J36) -> 0 | P33: 0
B34: Transport - domestic air | D34: =+'GHG Balance'!D32*(1+Growth!$J37) -> 0 | E34: =+'GHG Balance'!E32*(1+Growth!$J37) -> 0 | F34: =+'GHG Balance'!F32*(1+Growth!$J37) -> 0 | G34: =+'GHG Balance'!G32*(1+Growth!$J37) -> 0 | H34: =+'GHG Balance'!H32*(1+Growth!$J37) -> 0 | I34: =+'GHG Balance'!I32*(1+Growth!$J37) -> 0 | J34: 0 | K34: =+'GHG Balance'!K32*(1+Growth!$J37) -> 0 | L34: =+'GHG Balance'!L32*(1+Growth!$J37) -> 0 | M34: =+'GHG Balance'!M32*(1+Growth!$J37) -> 0 | N34: =+'GHG Balance'!N32*(1+Growth!$J37) -> 0 | O34: =+'GHG Balance'!O32*(1+Growth!$J37) -> 0 | P34: 0
B35: Transport - navigation | D35: =+'GHG Balance'!D33*(1+Growth!$J38) -> 0 | E35: =+'GHG Balance'!E33*(1+Growth!$J38) -> 0 | F35: =+'GHG Balance'!F33*(1+Growth!$J38) -> 0 | G35: =+'GHG Balance'!G33*(1+Growth!$J38) -> 0 | H35: =+'GHG Balance'!H33*(1+Growth!$J38) -> 0 | I35: =+'GHG Balance'!I33*(1+Growth!$J38) -> 0 | J35: 0 | K35: =+'GHG Balance'!K33*(1+Growth!$J38) -> 0 | L35: =+'GHG Balance'!L33*(1+Growth!$J38) -> 0 | M35: =+'GHG Balance'!M33*(1+Growth!$J38) -> 0 | N35: =+'GHG Balance'!N33*(1+Growth!$J38) -> 0 | O35: =+'GHG Balance'!O33*(1+Growth!$J38) -> 0 | P35: 0
B36: Households | D36: =+'GHG Balance'!D34*(1+Growth!$J42) -> 0 | E36: =+'GHG Balance'!E34*(1+Growth!$J42) -> 0 | F36: =+'GHG Balance'!F34*(1+Growth!$J42) -> 0 | G36: =+'GHG Balance'!G34*(1+Growth!$J42) -> 0 | H36: =+'GHG Balance'!H34*(1+Growth!$J42) -> 0 | I36: =+'GHG Balance'!I34*(1+Growth!$J43) -> 0 | J36: 0 | K36: =+'GHG Balance'!K34*(1+Growth!$J42) -> 0 | L36: =+'GHG Balance'!L34*(1+Growth!$J42) -> 0 | M36: =+'GHG Balance'!M34*(1+Growth!$J42) -> 0 | N36: =+'GHG Balance'!N34*(1+Growth!$J42) -> 0 | O36: =+'GHG Balance'!O34*(1+Growth!$J42) -> 0 | P36: 0
B37: Services | D37: =+'GHG Balance'!D35*(1+Growth!$J46) -> 0 | E37: =+'GHG Balance'!E35*(1+Growth!$J46) -> 0 | F37: =+'GHG Balance'!F35*(1+Growth!$J46) -> 0 | G37: =+'GHG Balance'!G35*(1+Growth!$J46) -> 0 | H37: =+'GHG Balance'!H35*(1+Growth!$J46) -> 0 | I37: =+'GHG Balance'!I35*(1+Growth!$J46) -> 0 | J37: 0 | K37: =+'GHG Balance'!K35*(1+Growth!$J46) -> 0 | L37: =+'GHG Balance'!L35*(1+Growth!$J46) -> 0 | M37: =+'GHG Balance'!M35*(1+Growth!$J46) -> 0 | N37: =+'GHG Balance'!N35*(1+Growth!$J46) -> 0 | O37: =+'GHG Balance'!O35*(1+Growth!$J46) -> 0 | P37: 0
B38: Agriculture & Fishery | D38: =+'GHG Balance'!D36*(1+Growth!$J49) -> 0 | E38: =+'GHG Balance'!E36*(1+Growth!$J49) -> 0 | F38: =+'GHG Balance'!F36*(1+Growth!$J49) -> 0 | G38: =+'GHG Balance'!G36*(1+Growth!$J49) -> 0 | H38: =+'GHG Balance'!H36*(1+Growth!$J49) -> 0 | I38: =+'GHG Balance'!I36*(1+Growth!$J49) -> 0 | J38: 0 | K38: =+'GHG Balance'!K36*(1+Growth!$J49) -> 0 | L38: =+'GHG Balance'!L36*(1+Growth!$J49) -> 0 | M38: =+'GHG Balance'!M36*(1+Growth!$J49) -> 0 | N38: =+'GHG Balance'!N36*(1+Growth!$J49) -> 0 | O38: =+'GHG Balance'!O36*(1+Growth!$J49) -> 0 | P38: 0
B39: Non energy uses | D39: =+'GHG Balance'!D37*(1+Growth!$J74) -> 0 | E39: =+'GHG Balance'!E37*(1+Growth!$J74) -> 0 | F39: =+'GHG Balance'!F37*(1+Growth!$J74) -> 0 | G39: =+'GHG Balance'!G37*(1+Growth!$J74) -> 0 | H39: =+'GHG Balance'!H37*(1+Growth!$J74) -> 0 | I39: =+'GHG Balance'!I37*(1+Growth!$J74) -> 0 | J39: 0 | K39: =+'GHG Balance'!K37*(1+Growth!$J74) -> 0 | L39: =+'GHG Balance'!L37*(1+Growth!$J74) -> 0 | M39: =+'GHG Balance'!M37*(1+Growth!$J74) -> 0 | N39: =+'GHG Balance'!N37*(1+Growth!$J74) -> 0 | O39: =+'GHG Balance'!O37*(1+Growth!$J74) -> 0 | P39: 0
B41: Emissions by sectors and by gases
B42: Unit : ktCO2-equivalent | D42: CO2 | E42: CH4 | F42: N2O | G42: Total GHG emissions
B43: 1. Energy | D43: =D44+D45 -> 0 | E43: =E44+E45 -> 0 | F43: =F44+F45 -> 0 | G43: =D43+E43+F43 -> 0
B44: 1.A. Fuel combustion | D44: =P17 -> 0 | E44: =IF(P17=0,0,+'GHG Balance'!E$43*'BAU projected GHG Balances'!P19/'GHG Balance'!P17) -> 0 | F44: =IF(P17=0,0,+'GHG Balance'!F$43*'BAU projected GHG Balances'!P19/'GHG Balance'!P17) -> 0 | G44: =SUM(D44:F44) -> 0
B45: 1.B. Fugitive emissions from fuels | D45: =IF('GHG Balance'!M$15=0,0,'GHG Balance'!D$44*'BAU projected GHG Balances'!M17/'GHG Balance'!M$15) -> 0 | E45: =IF('GHG Balance'!M$15=0,0,'GHG Balance'!E$44*'BAU projected GHG Balances'!M17/'GHG Balance'!M$15) -> 0 | F45: =IF('GHG Balance'!M$15=0,0,'GHG Balance'!F$44*'BAU projected GHG Balances'!M17/'GHG Balance'!M$15) -> 0 | G45: =SUM(D45:F45) -> 0
B46: 2. Industrial processes and product use | D46: =SUM(D47:D51) -> 0 | E46: =SUM(E47:E51) -> 0 | F46: 0 | G46: 0
B47: 2.A. Mineral industry | D47: =+'GHG Balance'!D$46*(1+Growth!$J$52) -> 0 | E47: =+'GHG Balance'!E$46*(1+Growth!$J$52) -> 0 | F47: =+'GHG Balance'!F$46*(1+Growth!$J$52) -> 0 | G47: 0
B48: 2.B. Chemical industry | D48: =+'GHG Balance'!D$47*(1+Growth!$J$53) -> 0 | E48: =+'GHG Balance'!E$47*(1+Growth!$J$53) -> 0 | F48: =+'GHG Balance'!F$47*(1+Growth!$J$53) -> 0 | G48: 0
B49: 2.C. Metal industry | D49: =+'GHG Balance'!D$48*(1+Growth!$J$54) -> 0 | E49: =+'GHG Balance'!E$48*(1+Growth!$J$54) -> 0 | F49: =+'GHG Balance'!F$48*(1+Growth!$J$54) -> 0 | G49: 0
B50: 2.F. Product uses as ODS substitutes | D50: =+'GHG Balance'!D$49*(1+Growth!$J$55) -> 0 | E50: =+'GHG Balance'!E$49*(1+Growth!$J$55) -> 0 | F50: =+'GHG Balance'!F$49*(1+Growth!$J$55) -> 0 | G50: 0
B51: Other (2.D, 2.E, 2.G. 2.H) | D51: =+'GHG Balance'!D$50*(1+Growth!$J$56) -> 0 | E51: =+'GHG Balance'!E$50*(1+Growth!$J$56) -> 0 | F51: =+'GHG Balance'!F$50*(1+Growth!$J$56) -> 0 | G51: 0
B52: 3. Agriculture | D52: =SUM(D53:D56) -> 0 | E52: =SUM(E53:E56) -> 0 | F52: =SUM(F53:F56) -> 0 | G52: 0
B53: 3.A. Enteric fermentation | D53: =+'GHG Balance'!D$52*(1+Growth!$J$58) -> 0 | E53: =+'GHG Balance'!E$52*(1+Growth!$J$58) -> 0 | F53: =+'GHG Balance'!F$52*(1+Growth!$J$58) -> 0 | G53: 0
B54: 3.B. Manure management | D54: =+'GHG Balance'!D$53*(1+Growth!$J$59) -> 0 | E54: =+'GHG Balance'!E$53*(1+Growth!$J$59) -> 0 | F54: =+'GHG Balance'!F$53*(1+Growth!$J$59) -> 0 | G54: 0
B55: 3.D. Agricultural soils | D55: =+'GHG Balance'!D$54*(1+Growth!$J$60) -> 0 | E55: =+'GHG Balance'!E$54*(1+Growth!$J$60) -> 0 | F55: =+'GHG Balance'!F$54*(1+Growth!$J$60) -> 0 | G55: 0
B56: Other (3.C, 3.E-3.J) | D56: =+'GHG Balance'!D$55*(1+Growth!$J$61) -> 0 | E56: =+'GHG Balance'!E$55*(1+Growth!$J$61) -> 0 | F56: =+'GHG Balance'!F$55*(1+Growth!$J$61) -> 0 | G56: 0
B57: 4. Land use, land-use change and forestry | D57: =SUM(D58:D62) -> 0 | E57: =SUM(E58:E62) -> 0 | F57: =SUM(F58:F62) -> 0 | G57: 0
B58: 4.A. Forest land | D58: =+'GHG Balance'!D$57*(1+Growth!$J$63) -> 0 | E58: =+'GHG Balance'!E$57*(1+Growth!$J$63) -> 0 | F58: =+'GHG Balance'!F$57*(1+Growth!$J$63) -> 0 | G58: 0
B59: 4.B. Cropland | D59: =+'GHG Balance'!D$58*(1+Growth!$J$64) -> 0 | E59: =+'GHG Balance'!E$58*(1+Growth!$J$64) -> 0 | F59: =+'GHG Balance'!F$58*(1+Growth!$J$64) -> 0 | G59: 0
B60: 4.C. Grassland | D60: =+'GHG Balance'!D$59*(1+Growth!$J$65) -> 0 | E60: =+'GHG Balance'!E$59*(1+Growth!$J$65) -> 0 | F60: =+'GHG Balance'!F$59*(1+Growth!$J$65) -> 0 | G60: 0
B61: 4.G. Harvested wood products | D61: =+'GHG Balance'!D$60*(1+Growth!$J$66) -> 0 | E61: =+'GHG Balance'!E$60*(1+Growth!$J$66) -> 0 | F61: =+'GHG Balance'!F$60*(1+Growth!$J$66) -> 0 | G61: 0
B62: Other (4.D, 4.E, 4.F, 4.H) | D62: =+'GHG Balance'!D$61*(1+Growth!$J$67) -> 0 | E62: =+'GHG Balance'!E$61*(1+Growth!$J$67) -> 0 | F62: =+'GHG Balance'!F$61*(1+Growth!$J$67) -> 0 | G62: 0
B63: 5. Waste | D63: =SUM(D64:D67) -> 0 | E63: =SUM(E64:E67) -> 0 | F63: =SUM(F64:F67) -> 0 | G63: 0
B64: 5.A. Solid waste disposal | D64: =+'GHG Balance'!D$63*(1+Growth!$J$69) -> 0 | E64: =+'GHG Balance'!E$63*(1+Growth!$J$69) -> 0 | F64: =+'GHG Balance'!F$63*(1+Growth!$J$69) -> 0 | G64: 0
B65: 5.B. Biological treatment of solid waste | D65: =+'GHG Balance'!D$64*(1+Growth!$J$70) -> 0 | E65: =+'GHG Balance'!E$64*(1+Growth!$J$70) -> 0 | F65: =+'GHG Balance'!F$64*(1+Growth!$J$70) -> 0 | G65: 0
B66: 5.D. Waste water treatment and discharge | D66: =+'GHG Balance'!D$65*(1+Growth!$J$71) -> 0 | E66: =+'GHG Balance'!E$65*(1+Growth!$J$71) -> 0 | F66: =+'GHG Balance'!F$65*(1+Growth!$J$71) -> 0 | G66: 0
B67: Other (5.C, 5.E) | D67: =+'GHG Balance'!D$66*(1+Growth!$J$72) -> 0 | E67: =+'GHG Balance'!E$66*(1+Growth!$J$72) -> 0 | F67: =+'GHG Balance'!F$66*(1+Growth!$J$72) -> 0 | G67: 0
B68: Total (including LULUCF) | D68: =D43+D46+D52+D57+D63 -> 0 | E68: =E43+E46+E52+E57+E63 -> 0 | F68: =F43+F46+F52+F57+F63 -> 0 | G68: =SUM(D68:F68) -> 0
B69: Total (excluding LULUCF) | D69: =D68-D57 -> 0 | E69: =E68-E57 -> 0 | F69: =F68-F57 -> 0 | G69: =G68-G57 -> 0
B84: ="CO2 emissions from fuel combustion - 2030 - "&Assumptions!C9 -> CO2 emissions from fuel combustion - 2030 -
B85: ktCO2 | D85: LPG | E85: Gasoline | F85: Jet Fuel | G85: Diesel | H85: Fueloil | I85: Kerosene and other | J85: Total oil products | K85: Coal | L85: Lignite | M85: Gas | N85: Coke | O85: Petrocoke | P85: Total
B86: Unit | D86: kt | E86: kt | F86: kt | G86: kt | H86: kt | I86: kt | J86: kt | K86: kt | L86: kt | M86: kt | N86: kt | O86: kt | P86: kt
B87: Total | D87: =+D88+D89 -> 0 | E87: 0 | F87: 0 | G87: 0 | H87: 0 | I87: 0 | J87: 0 | K87: 0 | L87: 0 | M87: 0 | N87: =+N88+N89 -> 0 | O87: =+O88+O89 -> 0 | P87: =+P88+P89 -> 0
B88: Fossil power plants | D88: ='GHG Balance'!D14*'BAU projected Energy Balances'!D133 -> 0 | E88: ='GHG Balance'!E14*'BAU projected Energy Balances'!E133 -> 0 | F88: ='GHG Balance'!F14*'BAU projected Energy Balances'!F133 -> 0 | G88: ='GHG Balance'!G14*'BAU projected Energy Balances'!G133 -> 0 | H88: ='GHG Balance'!H14*'BAU projected Energy Balances'!H133 -> 0 | I88: ='GHG Balance'!I14*'BAU projected Energy Balances'!I133 -> 0 | J88: =SUM(D88:I88) -> 0 | K88: ='GHG Balance'!K14*'BAU projected Energy Balances'!K133 -> 0 | L88: ='GHG Balance'!L14*'BAU projected Energy Balances'!L133 -> 0 | M88: ='GHG Balance'!M14*'BAU projected Energy Balances'!M133 -> 0 | N88: ='GHG Balance'!N14*'BAU projected Energy Balances'!N133 -> 0 | O88: ='GHG Balance'!O14*'BAU projected Energy Balances'!O133 -> 0 | P88: =SUM(J88:O88) -> 0
B89: FINAL CONSUMPTION | D89: =SUM(D90:D109) -> 0 | E89: 0 | F89: 0 | G89: 0 | H89: 0 | I89: 0 | J89: =SUM(D89:I89) -> 0 | K89: =SUM(K90:K109) -> 0 | L89: 0 | M89: 0 | N89: 0 | O89: 0 | P89: 0
B90: Industry - steel | D90: =+'GHG Balance'!D18*(1+Growth!$K21) -> 0 | E90: =+'GHG Balance'!E18*(1+Growth!$K21) -> 0 | F90: =+'GHG Balance'!F18*(1+Growth!$K21) -> 0 | G90: =+'GHG Balance'!G18*(1+Growth!$K21) -> 0 | H90: =+'GHG Balance'!H18*(1+Growth!$K21) -> 0 | I90: =+'GHG Balance'!I18*(1+Growth!$K21) -> 0 | J90: =SUM(D90:I90) -> 0 | K90: =+'GHG Balance'!K18*(1+Growth!$K21) -> 0 | L90: =+'GHG Balance'!L18*(1+Growth!$K21) -> 0 | M90: =+'GHG Balance'!M18*(1+Growth!$K21) -> 0 | N90: =+'GHG Balance'!N18*(1+Growth!$K21) -> 0 | O90: =+'GHG Balance'!O18*(1+Growth!$K21) -> 0 | P90: =SUM(J90:O90) -> 0
B91: Industry - chemical | D91: =+'GHG Balance'!D19*(1+Growth!$K22) -> 0 | E91: =+'GHG Balance'!E19*(1+Growth!$K22) -> 0 | F91: =+'GHG Balance'!F19*(1+Growth!$K22) -> 0 | G91: =+'GHG Balance'!G19*(1+Growth!$K22) -> 0 | H91: =+'GHG Balance'!H19*(1+Growth!$K22) -> 0 | I91: =+'GHG Balance'!I19*(1+Growth!$K22) -> 0 | J91: 0 | K91: =+'GHG Balance'!K19*(1+Growth!$K22) -> 0 | L91: =+'GHG Balance'!L19*(1+Growth!$K22) -> 0 | M91: =+'GHG Balance'!M19*(1+Growth!$K22) -> 0 | N91: =+'GHG Balance'!N19*(1+Growth!$K22) -> 0 | O91: =+'GHG Balance'!O19*(1+Growth!$K22) -> 0 | P91: 0
B92: Industry - non metallic mineral | D92: =+'GHG Balance'!D20*(1+Growth!$K23) -> 0 | E92: =+'GHG Balance'!E20*(1+Growth!$K23) -> 0 | F92: =+'GHG Balance'!F20*(1+Growth!$K23) -> 0 | G92: =+'GHG Balance'!G20*(1+Growth!$K23) -> 0 | H92: =+'GHG Balance'!H20*(1+Growth!$K23) -> 0 | I92: =+'GHG Balance'!I20*(1+Growth!$K23) -> 0 | J92: 0 | K92: =+'GHG Balance'!K20*(1+Growth!$K23) -> 0 | L92: =+'GHG Balance'!L20*(1+Growth!$K23) -> 0 | M92: =+'GHG Balance'!M20*(1+Growth!$K23) -> 0 | N92: =+'GHG Balance'!N20*(1+Growth!$K23) -> 0 | O92: =+'GHG Balance'!O20*(1+Growth!$K23) -> 0 | P92: 0
B93: Industry - food processing and beverage | D93: =+'GHG Balance'!D21*(1+Growth!$K24) -> 0 | E93: =+'GHG Balance'!E21*(1+Growth!$K24) -> 0 | F93: =+'GHG Balance'!F21*(1+Growth!$K24) -> 0 | G93: =+'GHG Balance'!G21*(1+Growth!$K24) -> 0 | H93: =+'GHG Balance'!H21*(1+Growth!$K24) -> 0 | I93: =+'GHG Balance'!I21*(1+Growth!$K24) -> 0 | J93: 0 | K93: =+'GHG Balance'!K21*(1+Growth!$K24) -> 0 | L93: =+'GHG Balance'!L21*(1+Growth!$K24) -> 0 | M93: =+'GHG Balance'!M21*(1+Growth!$K24) -> 0 | N93: =+'GHG Balance'!N21*(1+Growth!$K24) -> 0 | O93: =+'GHG Balance'!O21*(1+Growth!$K24) -> 0 | P93: 0
B94: Industry - construction | D94: =+'GHG Balance'!D22*(1+Growth!$K25) -> 0 | E94: =+'GHG Balance'!E22*(1+Growth!$K25) -> 0 | F94: =+'GHG Balance'!F22*(1+Growth!$K25) -> 0 | G94: =+'GHG Balance'!G22*(1+Growth!$K25) -> 0 | H94: =+'GHG Balance'!H22*(1+Growth!$K25) -> 0 | I94: =+'GHG Balance'!I22*(1+Growth!$K25) -> 0 | J94: 0 | K94: =+'GHG Balance'!K22*(1+Growth!$K25) -> 0 | L94: =+'GHG Balance'!L22*(1+Growth!$K25) -> 0 | M94: =+'GHG Balance'!M22*(1+Growth!$K25) -> 0 | N94: =+'GHG Balance'!N22*(1+Growth!$K25) -> 0 | O94: =+'GHG Balance'!O22*(1+Growth!$K25) -> 0 | P94: 0
B95: Industry - mining | D95: =+'GHG Balance'!D23*(1+Growth!$K26) -> 0 | E95: =+'GHG Balance'!E23*(1+Growth!$K26) -> 0 | F95: =+'GHG Balance'!F23*(1+Growth!$K26) -> 0 | G95: =+'GHG Balance'!G23*(1+Growth!$K26) -> 0 | H95: =+'GHG Balance'!H23*(1+Growth!$K26) -> 0 | I95: =+'GHG Balance'!I23*(1+Growth!$K26) -> 0 | J95: 0 | K95: =+'GHG Balance'!K23*(1+Growth!$K26) -> 0 | L95: =+'GHG Balance'!L23*(1+Growth!$K26) -> 0 | M95: =+'GHG Balance'!M23*(1+Growth!$K26) -> 0 | N95: =+'GHG Balance'!N23*(1+Growth!$K26) -> 0 | O95: =+'GHG Balance'!O23*(1+Growth!$K26) -> 0 | P95: 0
B96: Industry - machinery | D96: =+'GHG Balance'!D24*(1+Growth!$K27) -> 0 | E96: =+'GHG Balance'!E24*(1+Growth!$K27) -> 0 | F96: =+'GHG Balance'!F24*(1+Growth!$K27) -> 0 | G96: =+'GHG Balance'!G24*(1+Growth!$K27) -> 0 | H96: =+'GHG Balance'!H24*(1+Growth!$K27) -> 0 | I96: =+'GHG Balance'!I24*(1+Growth!$K27) -> 0 | J96: 0 | K96: =+'GHG Balance'!K24*(1+Growth!$K27) -> 0 | L96: =+'GHG Balance'!L24*(1+Growth!$K27) -> 0 | M96: =+'GHG Balance'!M24*(1+Growth!$K27) -> 0 | N96: =+'GHG Balance'!N24*(1+Growth!$K27) -> 0 | O96: =+'GHG Balance'!O24*(1+Growth!$K27) -> 0 | P96: 0
B97: Industry - non ferrous metals | D97: =+'GHG Balance'!D25*(1+Growth!$K28) -> 0 | E97: =+'GHG Balance'!E25*(1+Growth!$K28) -> 0 | F97: =+'GHG Balance'!F25*(1+Growth!$K28) -> 0 | G97: =+'GHG Balance'!G25*(1+Growth!$K28) -> 0 | H97: =+'GHG Balance'!H25*(1+Growth!$K28) -> 0 | I97: =+'GHG Balance'!I25*(1+Growth!$K28) -> 0 | J97: 0 | K97: =+'GHG Balance'!K25*(1+Growth!$K28) -> 0 | L97: =+'GHG Balance'!L25*(1+Growth!$K28) -> 0 | M97: =+'GHG Balance'!M25*(1+Growth!$K28) -> 0 | N97: =+'GHG Balance'!N25*(1+Growth!$K28) -> 0 | O97: =+'GHG Balance'!O25*(1+Growth!$K28) -> 0 | P97: 0
B98: Industry - paper and pulp | D98: =+'GHG Balance'!D26*(1+Growth!$K29) -> 0 | E98: =+'GHG Balance'!E26*(1+Growth!$K29) -> 0 | F98: =+'GHG Balance'!F26*(1+Growth!$K29) -> 0 | G98: =+'GHG Balance'!G26*(1+Growth!$K29) -> 0 | H98: =+'GHG Balance'!H26*(1+Growth!$K29) -> 0 | I98: =+'GHG Balance'!I26*(1+Growth!$K29) -> 0 | J98: 0 | K98: =+'GHG Balance'!K26*(1+Growth!$K29) -> 0 | L98: =+'GHG Balance'!L26*(1+Growth!$K29) -> 0 | M98: =+'GHG Balance'!M26*(1+Growth!$K29) -> 0 | N98: =+'GHG Balance'!N26*(1+Growth!$K29) -> 0 | O98: =+'GHG Balance'!O26*(1+Growth!$K29) -> 0 | P98: 0
B99: Industry - transport equipment | D99: =+'GHG Balance'!D27*(1+Growth!$K30) -> 0 | E99: =+'GHG Balance'!E27*(1+Growth!$K30) -> 0 | F99: =+'GHG Balance'!F27*(1+Growth!$K30) -> 0 | G99: =+'GHG Balance'!G27*(1+Growth!$K30) -> 0 | H99: =+'GHG Balance'!H27*(1+Growth!$K30) -> 0 | I99: =+'GHG Balance'!I27*(1+Growth!$K30) -> 0 | J99: 0 | K99: =+'GHG Balance'!K27*(1+Growth!$K30) -> 0 | L99: =+'GHG Balance'!L27*(1+Growth!$K30) -> 0 | M99: =+'GHG Balance'!M27*(1+Growth!$K30) -> 0 | N99: =+'GHG Balance'!N27*(1+Growth!$K30) -> 0 | O99: =+'GHG Balance'!O27*(1+Growth!$K30) -> 0 | P99: 0
B100: Industry - textile and leather | D100: =+'GHG Balance'!D28*(1+Growth!$K31) -> 0 | E100: =+'GHG Balance'!E28*(1+Growth!$K31) -> 0 | F100: =+'GHG Balance'!F28*(1+Growth!$K31) -> 0 | G100: =+'GHG Balance'!G28*(1+Growth!$K31) -> 0 | H100: =+'GHG Balance'!H28*(1+Growth!$K31) -> 0 | I100: =+'GHG Balance'!I28*(1+Growth!$K31) -> 0 | J100: 0 | K100: =+'GHG Balance'!K28*(1+Growth!$K31) -> 0 | L100: =+'GHG Balance'!L28*(1+Growth!$K31) -> 0 | M100: =+'GHG Balance'!M28*(1+Growth!$K31) -> 0 | N100: =+'GHG Balance'!N28*(1+Growth!$K31) -> 0 | O100: =+'GHG Balance'!O28*(1+Growth!$K31) -> 0 | P100: 0
B101: Industry - miscellaneous | D101: =+'GHG Balance'!D29*(1+Growth!$K32) -> 0 | E101: =+'GHG Balance'!E29*(1+Growth!$K32) -> 0 | F101: =+'GHG Balance'!F29*(1+Growth!$K32) -> 0 | G101: =+'GHG Balance'!G29*(1+Growth!$K32) -> 0 | H101: =+'GHG Balance'!H29*(1+Growth!$K32) -> 0 | I101: =+'GHG Balance'!I29*(1+Growth!$K32) -> 0 | J101: 0 | K101: =+'GHG Balance'!K29*(1+Growth!$K32) -> 0 | L101: =+'GHG Balance'!L29*(1+Growth!$K32) -> 0 | M101: =+'GHG Balance'!M29*(1+Growth!$K32) -> 0 | N101: =+'GHG Balance'!N29*(1+Growth!$K32) -> 0 | O101: =+'GHG Balance'!O29*(1+Growth!$K32) -> 0 | P101: 0
B102: Transport - road | D102: =+'GHG Balance'!D30*(1+Growth!$K35) -> 0 | E102: =+'GHG Balance'!E30*(1+Growth!$K35) -> 0 | F102: =+'GHG Balance'!F30*(1+Growth!$K35) -> 0 | G102: =+'GHG Balance'!G30*(1+Growth!$K35) -> 0 | H102: =+'GHG Balance'!H30*(1+Growth!$K35) -> 0 | I102: =+'GHG Balance'!I30*(1+Growth!$K35) -> 0 | J102: 0 | K102: =+'GHG Balance'!K30*(1+Growth!$K35) -> 0 | L102: =+'GHG Balance'!L30*(1+Growth!$K35) -> 0 | M102: =+'GHG Balance'!M30*(1+Growth!$K35) -> 0 | N102: =+'GHG Balance'!N30*(1+Growth!$K35) -> 0 | O102: =+'GHG Balance'!O30*(1+Growth!$K35) -> 0 | P102: 0
B103: Transport - rail | D103: =+'GHG Balance'!D31*(1+Growth!$K36) -> 0 | E103: =+'GHG Balance'!E31*(1+Growth!$K36) -> 0 | F103: =+'GHG Balance'!F31*(1+Growth!$K36) -> 0 | G103: =+'GHG Balance'!G31*(1+Growth!$K36) -> 0 | H103: =+'GHG Balance'!H31*(1+Growth!$K36) -> 0 | I103: =+'GHG Balance'!I31*(1+Growth!$K36) -> 0 | J103: 0 | K103: =+'GHG Balance'!K31*(1+Growth!$K36) -> 0 | L103: =+'GHG Balance'!L31*(1+Growth!$K36) -> 0 | M103: =+'GHG Balance'!M31*(1+Growth!$K36) -> 0 | N103: =+'GHG Balance'!N31*(1+Growth!$K36) -> 0 | O103: =+'GHG Balance'!O31*(1+Growth!$K36) -> 0 | P103: 0
B104: Transport - domestic air | D104: =+'GHG Balance'!D32*(1+Growth!$K37) -> 0 | E104: =+'GHG Balance'!E32*(1+Growth!$K37) -> 0 | F104: =+'GHG Balance'!F32*(1+Growth!$K37) -> 0 | G104: =+'GHG Balance'!G32*(1+Growth!$K37) -> 0 | H104: =+'GHG Balance'!H32*(1+Growth!$K37) -> 0 | I104: =+'GHG Balance'!I32*(1+Growth!$K37) -> 0 | J104: 0 | K104: =+'GHG Balance'!K32*(1+Growth!$K37) -> 0 | L104: =+'GHG Balance'!L32*(1+Growth!$K37) -> 0 | M104: =+'GHG Balance'!M32*(1+Growth!$K37) -> 0 | N104: =+'GHG Balance'!N32*(1+Growth!$K37) -> 0 | O104: =+'GHG Balance'!O32*(1+Growth!$K37) -> 0 | P104: 0
B105: Transport - navigation | D105: =+'GHG Balance'!D33*(1+Growth!$K38) -> 0 | E105: =+'GHG Balance'!E33*(1+Growth!$K38) -> 0 | F105: =+'GHG Balance'!F33*(1+Growth!$K38) -> 0 | G105: =+'GHG Balance'!G33*(1+Growth!$K38) -> 0 | H105: =+'GHG Balance'!H33*(1+Growth!$K38) -> 0 | I105: =+'GHG Balance'!I33*(1+Growth!$K38) -> 0 | J105: 0 | K105: =+'GHG Balance'!K33*(1+Growth!$K38) -> 0 | L105: =+'GHG Balance'!L33*(1+Growth!$K38) -> 0 | M105: =+'GHG Balance'!M33*(1+Growth!$K38) -> 0 | N105: =+'GHG Balance'!N33*(1+Growth!$K38) -> 0 | O105: =+'GHG Balance'!O33*(1+Growth!$K38) -> 0 | P105: 0
B106: Households | D106: =+'GHG Balance'!D34*(1+Growth!$K42) -> 0 | E106: =+'GHG Balance'!E34*(1+Growth!$K42) -> 0 | F106: =+'GHG Balance'!F34*(1+Growth!$K42) -> 0 | G106: =+'GHG Balance'!G34*(1+Growth!$K42) -> 0 | H106: =+'GHG Balance'!H34*(1+Growth!$K42) -> 0 | I106: =+'GHG Balance'!I34*(1+Growth!$K43) -> 0 | J106: 0 | K106: =+'GHG Balance'!K34*(1+Growth!$K42) -> 0 | L106: =+'GHG Balance'!L34*(1+Growth!$K42) -> 0 | M106: =+'GHG Balance'!M34*(1+Growth!$K42) -> 0 | N106: =+'GHG Balance'!N34*(1+Growth!$K42) -> 0 | O106: =+'GHG Balance'!O34*(1+Growth!$K42) -> 0 | P106: 0
B107: Services | D107: =+'GHG Balance'!D35*(1+Growth!$K46) -> 0 | E107: =+'GHG Balance'!E35*(1+Growth!$K46) -> 0 | F107: =+'GHG Balance'!F35*(1+Growth!$K46) -> 0 | G107: =+'GHG Balance'!G35*(1+Growth!$K46) -> 0 | H107: =+'GHG Balance'!H35*(1+Growth!$K46) -> 0 | I107: =+'GHG Balance'!I35*(1+Growth!$K46) -> 0 | J107: 0 | K107: =+'GHG Balance'!K35*(1+Growth!$K46) -> 0 | L107: =+'GHG Balance'!L35*(1+Growth!$K46) -> 0 | M107: =+'GHG Balance'!M35*(1+Growth!$K46) -> 0 | N107: =+'GHG Balance'!N35*(1+Growth!$K46) -> 0 | O107: =+'GHG Balance'!O35*(1+Growth!$K46) -> 0 | P107: 0
B108: Agriculture & Fishery | D108: =+'GHG Balance'!D36*(1+Growth!$K49) -> 0 | E108: =+'GHG Balance'!E36*(1+Growth!$K49) -> 0 | F108: =+'GHG Balance'!F36*(1+Growth!$K49) -> 0 | G108: =+'GHG Balance'!G36*(1+Growth!$K49) -> 0 | H108: =+'GHG Balance'!H36*(1+Growth!$K49) -> 0 | I108: =+'GHG Balance'!I36*(1+Growth!$K49) -> 0 | J108: 0 | K108: =+'GHG Balance'!K36*(1+Growth!$K49) -> 0 | L108: =+'GHG Balance'!L36*(1+Growth!$K49) -> 0 | M108: =+'GHG Balance'!M36*(1+Growth!$K49) -> 0 | N108: =+'GHG Balance'!N36*(1+Growth!$K49) -> 0 | O108: =+'GHG Balance'!O36*(1+Growth!$K49) -> 0 | P108: 0
B109: Non energy uses | D109: =+'GHG Balance'!D37*(1+Growth!$K74) -> 0 | E109: =+'GHG Balance'!E37*(1+Growth!$K74) -> 0 | F109: =+'GHG Balance'!F37*(1+Growth!$K74) -> 0 | G109: =+'GHG Balance'!G37*(1+Growth!$K74) -> 0 | H109: =+'GHG Balance'!H37*(1+Growth!$K74) -> 0 | I109: =+'GHG Balance'!I37*(1+Growth!$K74) -> 0 | J109: 0 | K109: =+'GHG Balance'!K37*(1+Growth!$K74) -> 0 | L109: =+'GHG Balance'!L37*(1+Growth!$K74) -> 0 | M109: =+'GHG Balance'!M37*(1+Growth!$K74) -> 0 | N109: =+'GHG Balance'!N37*(1+Growth!$K74) -> 0 | O109: =+'GHG Balance'!O37*(1+Growth!$K74) -> 0 | P109: 0
B111: Emissions by sectors and by gases
B112: Unit : ktCO2-equivalent | D112: CO2 | E112: CH4 | F112: N2O | G112: Total GHG emissions
B113: 1. Energy | D113: =D114+D115 -> 0 | E113: =E114+E115 -> 0 | F113: =F114+F115 -> 0 | G113: =D113+E113+F113 -> 0
B114: 1.A. Fuel combustion | D114: =P87 -> 0 | E114: =IF(P87=0,0,+'GHG Balance'!E$43*'BAU projected GHG Balances'!P89/'GHG Balance'!P$17) -> 0 | F114: =IF(P87=0,0,+'GHG Balance'!F$43*'BAU projected GHG Balances'!P89/'GHG Balance'!P$17) -> 0 | G114: =SUM(D114:F114) -> 0
B115: 1.B. Fugitive emissions from fuels | D115: =IF('GHG Balance'!M$15=0,0,'GHG Balance'!D$44*'BAU projected GHG Balances'!M87/'GHG Balance'!M$15) -> 0 | E115: =IF('GHG Balance'!M$15=0,0,'GHG Balance'!E$44*'BAU projected GHG Balances'!M87/'GHG Balance'!M$15) -> 0 | F115: =IF('GHG Balance'!M$15=0,0,'GHG Balance'!F$44*'BAU projected GHG Balances'!M87/'GHG Balance'!M$15) -> 0 | G115: =SUM(D115:F115) -> 0
B116: 2. Industrial processes and product use | D116: =SUM(D117:D121) -> 0 | E116: =SUM(E117:E121) -> 0 | F116: 0 | G116: =SUM(D116:F116) -> 0
B117: 2.A. Mineral industry | D117: =+'GHG Balance'!D$46*(1+Growth!$K$52) -> 0 | E117: =+'GHG Balance'!E$46*(1+Growth!$K$52) -> 0 | F117: =+'GHG Balance'!F$46*(1+Growth!$K$52) -> 0 | G117: 0
B118: 2.B. Chemical industry | D118: =+'GHG Balance'!D$47*(1+Growth!$K$53) -> 0 | E118: =+'GHG Balance'!E$47*(1+Growth!$K$53) -> 0 | F118: =+'GHG Balance'!F$47*(1+Growth!$K$53) -> 0 | G118: 0
B119: 2.C. Metal industry | D119: =+'GHG Balance'!D$48*(1+Growth!$K$54) -> 0 | E119: =+'GHG Balance'!E$48*(1+Growth!$K$54) -> 0 | F119: =+'GHG Balance'!F$48*(1+Growth!$K$54) -> 0 | G119: 0
B120: 2.F. Product uses as ODS substitutes | D120: =+'GHG Balance'!D$49*(1+Growth!$K$55) -> 0 | E120: =+'GHG Balance'!E$49*(1+Growth!$K$55) -> 0 | F120: =+'GHG Balance'!F$49*(1+Growth!$K$55) -> 0 | G120: 0
B121: Other (2.D, 2.E, 2.G. 2.H) | D121: =+'GHG Balance'!D$50*(1+Growth!$K$56) -> 0 | E121: =+'GHG Balance'!E$50*(1+Growth!$K$56) -> 0 | F121: =+'GHG Balance'!F$50*(1+Growth!$K$56) -> 0 | G121: 0
B122: 3. Agriculture | D122: =SUM(D123:D126) -> 0 | E122: =SUM(E123:E126) -> 0 | F122: =SUM(F123:F126) -> 0 | G122: 0
B123: 3.A. Enteric fermentation | D123: =+'GHG Balance'!D$52*(1+Growth!$K$58) -> 0 | E123: =+'GHG Balance'!E$52*(1+Growth!$K$58) -> 0 | F123: =+'GHG Balance'!F$52*(1+Growth!$K$58) -> 0 | G123: 0
B124: 3.B. Manure management | D124: =+'GHG Balance'!D$53*(1+Growth!$K$59) -> 0 | E124: =+'GHG Balance'!E$53*(1+Growth!$K$59) -> 0 | F124: =+'GHG Balance'!F$53*(1+Growth!$K$59) -> 0 | G124: 0
B125: 3.D. Agricultural soils | D125: =+'GHG Balance'!D$54*(1+Growth!$K$60) -> 0 | E125: =+'GHG Balance'!E$54*(1+Growth!$K$60) -> 0 | F125: =+'GHG Balance'!F$54*(1+Growth!$K$60) -> 0 | G125: 0
B126: Other (3.C, 3.E-3.J) | D126: =+'GHG Balance'!D$55*(1+Growth!$K$61) -> 0 | E126: =+'GHG Balance'!E$55*(1+Growth!$K$61) -> 0 | F126: =+'GHG Balance'!F$55*(1+Growth!$K$61) -> 0 | G126: 0
B127: 4. Land use, land-use change and forestry | D127: =SUM(D128:D132) -> 0 | E127: =SUM(E128:E132) -> 0 | F127: =SUM(F128:F132) -> 0 | G127: 0
B128: 4.A. Forest land | D128: =+'GHG Balance'!D$57*(1+Growth!$K$63) -> 0 | E128: =+'GHG Balance'!E$57*(1+Growth!$K$63) -> 0 | F128: =+'GHG Balance'!F$57*(1+Growth!$K$63) -> 0 | G128: 0
B129: 4.B. Cropland | D129: =+'GHG Balance'!D$58*(1+Growth!$K$64) -> 0 | E129: =+'GHG Balance'!E$58*(1+Growth!$K$64) -> 0 | F129: =+'GHG Balance'!F$58*(1+Growth!$K$64) -> 0 | G129: 0
B130: 4.C. Grassland | D130: =+'GHG Balance'!D$59*(1+Growth!$K$65) -> 0 | E130: =+'GHG Balance'!E$59*(1+Growth!$K$65) -> 0 | F130: =+'GHG Balance'!F$59*(1+Growth!$K$65) -> 0 | G130: 0
B131: 4.G. Harvested wood products | D131: =+'GHG Balance'!D$60*(1+Growth!$K$66) -> 0 | E131: =+'GHG Balance'!E$60*(1+Growth!$K$66) -> 0 | F131: =+'GHG Balance'!F$60*(1+Growth!$K$66) -> 0 | G131: 0
B132: Other (4.D, 4.E, 4.F, 4.H) | D132: =+'GHG Balance'!D$61*(1+Growth!$K$67) -> 0 | E132: =+'GHG Balance'!E$61*(1+Growth!$K$67) -> 0 | F132: =+'GHG Balance'!F$61*(1+Growth!$K$67) -> 0 | G132: 0
B133: 5. Waste | D133: =SUM(D134:D137) -> 0 | E133: =SUM(E134:E137) -> 0 | F133: =SUM(F134:F137) -> 0 | G133: 0
B134: 5.A. Solid waste disposal | D134: =+'GHG Balance'!D$63*(1+Growth!$K$69) -> 0 | E134: =+'GHG Balance'!E$63*(1+Growth!$K$69) -> 0 | F134: =+'GHG Balance'!F$63*(1+Growth!$K$69) -> 0 | G134: 0
B135: 5.B. Biological treatment of solid waste | D135: =+'GHG Balance'!D$64*(1+Growth!$K$70) -> 0 | E135: =+'GHG Balance'!E$64*(1+Growth!$K$70) -> 0 | F135: =+'GHG Balance'!F$64*(1+Growth!$K$70) -> 0 | G135: 0
B136: 5.D. Waste water treatment and discharge | D136: =+'GHG Balance'!D$65*(1+Growth!$K$71) -> 0 | E136: =+'GHG Balance'!E$65*(1+Growth!$K$71) -> 0 | F136: =+'GHG Balance'!F$65*(1+Growth!$K$71) -> 0 | G136: 0
B137: Other (5.C, 5.E) | D137: =+'GHG Balance'!D$66*(1+Growth!$K$72) -> 0 | E137: =+'GHG Balance'!E$66*(1+Growth!$K$72) -> 0 | F137: =+'GHG Balance'!F$66*(1+Growth!$K$72) -> 0 | G137: 0
B138: Total (including LULUCF) | D138: =D113+D116+D122+D127+D133 -> 0 | E138: =E113+E116+E122+E127+E133 -> 0 | F138: =F113+F116+F122+F127+F133 -> 0 | G138: =SUM(D138:F138) -> 0
B139: Total (excluding LULUCF) | D139: =D138-D127 -> 0 | E139: =E138-E127 -> 0 | F139: =F138-F127 -> 0 | G139: =G138-G127 -> 0
B152: ="CO2 emissions from fuel combustion - 2035 - "&Assumptions!C9 -> CO2 emissions from fuel combustion - 2035 -
B153: ktCO2 | D153: LPG | E153: Gasoline | F153: Jet Fuel | G153: Diesel | H153: Fueloil | I153: Kerosene and other | J153: Total oil products | K153: Coal | L153: Lignite | M153: Gas | N153: Coke | O153: Petrocoke | P153: Total
B154: Unit | D154: kt | E154: kt | F154: kt | G154: kt | H154: kt | I154: kt | J154: kt | K154: kt | L154: kt | M154: kt | N154: kt | O154: kt | P154: kt
B155: Total | D155: =+D156+D157 -> 0 | E155: 0 | F155: 0 | G155: 0 | H155: 0 | I155: 0 | J155: 0 | K155: 0 | L155: 0 | M155: 0 | N155: 0 | O155: 0 | P155: 0
B156: Fossil power plants | D156: ='GHG Balance'!D14*'BAU projected Energy Balances'!D219 -> 0 | E156: ='GHG Balance'!E14*'BAU projected Energy Balances'!E219 -> 0 | F156: ='GHG Balance'!F14*'BAU projected Energy Balances'!F219 -> 0 | G156: ='GHG Balance'!G14*'BAU projected Energy Balances'!G219 -> 0 | H156: ='GHG Balance'!H14*'BAU projected Energy Balances'!H219 -> 0 | I156: ='GHG Balance'!I14*'BAU projected Energy Balances'!I219 -> 0 | J156: =SUM(D156:I156) -> 0 | K156: ='GHG Balance'!K14*'BAU projected Energy Balances'!K219 -> 0 | L156: ='GHG Balance'!L14*'BAU projected Energy Balances'!L219 -> 0 | M156: ='GHG Balance'!M14*'BAU projected Energy Balances'!M219 -> 0 | N156: ='GHG Balance'!N14*'BAU projected Energy Balances'!N219 -> 0 | O156: ='GHG Balance'!O14*'BAU projected Energy Balances'!O219 -> 0 | P156: =SUM(J156:O156) -> 0
B157: FINAL CONSUMPTION | D157: =SUM(D158:D177) -> 0 | E157: 0 | F157: 0 | G157: 0 | H157: 0 | I157: 0 | J157: =SUM(D157:I157) -> 0 | K157: =SUM(K158:K177) -> 0 | L157: =SUM(L158:L177) -> 0 | M157: 0 | N157: 0 | O157: 0 | P157: =SUM(P158:P177) -> 0
B158: Industry - steel | D158: =+'GHG Balance'!D18*(1+Growth!$L21) -> 0 | E158: =+'GHG Balance'!E18*(1+Growth!$L21) -> 0 | F158: =+'GHG Balance'!F18*(1+Growth!$L21) -> 0 | G158: =+'GHG Balance'!G18*(1+Growth!$L21) -> 0 | H158: =+'GHG Balance'!H18*(1+Growth!$L21) -> 0 | I158: =+'GHG Balance'!I18*(1+Growth!$L21) -> 0 | J158: 0 | K158: =+'GHG Balance'!K18*(1+Growth!$L21) -> 0 | L158: =+'GHG Balance'!L18*(1+Growth!$L21) -> 0 | M158: =+'GHG Balance'!M18*(1+Growth!$L21) -> 0 | N158: =+'GHG Balance'!N18*(1+Growth!$L21) -> 0 | O158: =+'GHG Balance'!O18*(1+Growth!$L21) -> 0 | P158: =SUM(J158:O158) -> 0
B159: Industry - chemical | D159: =+'GHG Balance'!D19*(1+Growth!$L22) -> 0 | E159: =+'GHG Balance'!E19*(1+Growth!$L22) -> 0 | F159: =+'GHG Balance'!F19*(1+Growth!$L22) -> 0 | G159: =+'GHG Balance'!G19*(1+Growth!$L22) -> 0 | H159: =+'GHG Balance'!H19*(1+Growth!$L22) -> 0 | I159: =+'GHG Balance'!I19*(1+Growth!$L22) -> 0 | J159: 0 | K159: =+'GHG Balance'!K19*(1+Growth!$L22) -> 0 | L159: =+'GHG Balance'!L19*(1+Growth!$L22) -> 0 | M159: =+'GHG Balance'!M19*(1+Growth!$L22) -> 0 | N159: =+'GHG Balance'!N19*(1+Growth!$L22) -> 0 | O159: =+'GHG Balance'!O19*(1+Growth!$L22) -> 0 | P159: =SUM(J159:O159) -> 0
B160: Industry - non metallic mineral | D160: =+'GHG Balance'!D20*(1+Growth!$L23) -> 0 | E160: =+'GHG Balance'!E20*(1+Growth!$L23) -> 0 | F160: =+'GHG Balance'!F20*(1+Growth!$L23) -> 0 | G160: =+'GHG Balance'!G20*(1+Growth!$L23) -> 0 | H160: =+'GHG Balance'!H20*(1+Growth!$L23) -> 0 | I160: =+'GHG Balance'!I20*(1+Growth!$L23) -> 0 | J160: 0 | K160: =+'GHG Balance'!K20*(1+Growth!$L23) -> 0 | L160: =+'GHG Balance'!L20*(1+Growth!$L23) -> 0 | M160: =+'GHG Balance'!M20*(1+Growth!$L23) -> 0 | N160: =+'GHG Balance'!N20*(1+Growth!$L23) -> 0 | O160: =+'GHG Balance'!O20*(1+Growth!$L23) -> 0 | P160: 0
B161: Industry - food processing and beverage | D161: =+'GHG Balance'!D21*(1+Growth!$L24) -> 0 | E161: =+'GHG Balance'!E21*(1+Growth!$L24) -> 0 | F161: =+'GHG Balance'!F21*(1+Growth!$L24) -> 0 | G161: =+'GHG Balance'!G21*(1+Growth!$L24) -> 0 | H161: =+'GHG Balance'!H21*(1+Growth!$L24) -> 0 | I161: =+'GHG Balance'!I21*(1+Growth!$L24) -> 0 | J161: 0 | K161: =+'GHG Balance'!K21*(1+Growth!$L24) -> 0 | L161: =+'GHG Balance'!L21*(1+Growth!$L24) -> 0 | M161: =+'GHG Balance'!M21*(1+Growth!$L24) -> 0 | N161: =+'GHG Balance'!N21*(1+Growth!$L24) -> 0 | O161: =+'GHG Balance'!O21*(1+Growth!$L24) -> 0 | P161: 0
B162: Industry - construction | D162: =+'GHG Balance'!D22*(1+Growth!$L25) -> 0 | E162: =+'GHG Balance'!E22*(1+Growth!$L25) -> 0 | F162: =+'GHG Balance'!F22*(1+Growth!$L25) -> 0 | G162: =+'GHG Balance'!G22*(1+Growth!$L25) -> 0 | H162: =+'GHG Balance'!H22*(1+Growth!$L25) -> 0 | I162: =+'GHG Balance'!I22*(1+Growth!$L25) -> 0 | J162: 0 | K162: =+'GHG Balance'!K22*(1+Growth!$L25) -> 0 | L162: =+'GHG Balance'!L22*(1+Growth!$L25) -> 0 | M162: =+'GHG Balance'!M22*(1+Growth!$L25) -> 0 | N162: =+'GHG Balance'!N22*(1+Growth!$L25) -> 0 | O162: =+'GHG Balance'!O22*(1+Growth!$L25) -> 0 | P162: 0
B163: Industry - mining | D163: =+'GHG Balance'!D23*(1+Growth!$L26) -> 0 | E163: =+'GHG Balance'!E23*(1+Growth!$L26) -> 0 | F163: =+'GHG Balance'!F23*(1+Growth!$L26) -> 0 | G163: =+'GHG Balance'!G23*(1+Growth!$L26) -> 0 | H163: =+'GHG Balance'!H23*(1+Growth!$L26) -> 0 | I163: =+'GHG Balance'!I23*(1+Growth!$L26) -> 0 | J163: 0 | K163: =+'GHG Balance'!K23*(1+Growth!$L26) -> 0 | L163: =+'GHG Balance'!L23*(1+Growth!$L26) -> 0 | M163: =+'GHG Balance'!M23*(1+Growth!$L26) -> 0 | N163: =+'GHG Balance'!N23*(1+Growth!$L26) -> 0 | O163: =+'GHG Balance'!O23*(1+Growth!$L26) -> 0 | P163: 0
B164: Industry - machinery | D164: =+'GHG Balance'!D24*(1+Growth!$L27) -> 0 | E164: =+'GHG Balance'!E24*(1+Growth!$L27) -> 0 | F164: =+'GHG Balance'!F24*(1+Growth!$L27) -> 0 | G164: =+'GHG Balance'!G24*(1+Growth!$L27) -> 0 | H164: =+'GHG Balance'!H24*(1+Growth!$L27) -> 0 | I164: =+'GHG Balance'!I24*(1+Growth!$L27) -> 0 | J164: 0 | K164: =+'GHG Balance'!K24*(1+Growth!$L27) -> 0 | L164: =+'GHG Balance'!L24*(1+Growth!$L27) -> 0 | M164: =+'GHG Balance'!M24*(1+Growth!$L27) -> 0 | N164: =+'GHG Balance'!N24*(1+Growth!$L27) -> 0 | O164: =+'GHG Balance'!O24*(1+Growth!$L27) -> 0 | P164: 0
B165: Industry - non ferrous metals | D165: =+'GHG Balance'!D25*(1+Growth!$L28) -> 0 | E165: =+'GHG Balance'!E25*(1+Growth!$L28) -> 0 | F165: =+'GHG Balance'!F25*(1+Growth!$L28) -> 0 | G165: =+'GHG Balance'!G25*(1+Growth!$L28) -> 0 | H165: =+'GHG Balance'!H25*(1+Growth!$L28) -> 0 | I165: =+'GHG Balance'!I25*(1+Growth!$L28) -> 0 | J165: 0 | K165: =+'GHG Balance'!K25*(1+Growth!$L28) -> 0 | L165: =+'GHG Balance'!L25*(1+Growth!$L28) -> 0 | M165: =+'GHG Balance'!M25*(1+Growth!$L28) -> 0 | N165: =+'GHG Balance'!N25*(1+Growth!$L28) -> 0 | O165: =+'GHG Balance'!O25*(1+Growth!$L28) -> 0 | P165: 0
B166: Industry - paper and pulp | D166: =+'GHG Balance'!D26*(1+Growth!$L29) -> 0 | E166: =+'GHG Balance'!E26*(1+Growth!$L29) -> 0 | F166: =+'GHG Balance'!F26*(1+Growth!$L29) -> 0 | G166: =+'GHG Balance'!G26*(1+Growth!$L29) -> 0 | H166: =+'GHG Balance'!H26*(1+Growth!$L29) -> 0 | I166: =+'GHG Balance'!I26*(1+Growth!$L29) -> 0 | J166: 0 | K166: =+'GHG Balance'!K26*(1+Growth!$L29) -> 0 | L166: =+'GHG Balance'!L26*(1+Growth!$L29) -> 0 | M166: =+'GHG Balance'!M26*(1+Growth!$L29) -> 0 | N166: =+'GHG Balance'!N26*(1+Growth!$L29) -> 0 | O166: =+'GHG Balance'!O26*(1+Growth!$L29) -> 0 | P166: 0
B167: Industry - transport equipment | D167: =+'GHG Balance'!D27*(1+Growth!$L30) -> 0 | E167: =+'GHG Balance'!E27*(1+Growth!$L30) -> 0 | F167: =+'GHG Balance'!F27*(1+Growth!$L30) -> 0 | G167: =+'GHG Balance'!G27*(1+Growth!$L30) -> 0 | H167: =+'GHG Balance'!H27*(1+Growth!$L30) -> 0 | I167: =+'GHG Balance'!I27*(1+Growth!$L30) -> 0 | J167: 0 | K167: =+'GHG Balance'!K27*(1+Growth!$L30) -> 0 | L167: =+'GHG Balance'!L27*(1+Growth!$L30) -> 0 | M167: =+'GHG Balance'!M27*(1+Growth!$L30) -> 0 | N167: =+'GHG Balance'!N27*(1+Growth!$L30) -> 0 | O167: =+'GHG Balance'!O27*(1+Growth!$L30) -> 0 | P167: 0
B168: Industry - textile and leather | D168: =+'GHG Balance'!D28*(1+Growth!$L31) -> 0 | E168: =+'GHG Balance'!E28*(1+Growth!$L31) -> 0 | F168: =+'GHG Balance'!F28*(1+Growth!$L31) -> 0 | G168: =+'GHG Balance'!G28*(1+Growth!$L31) -> 0 | H168: =+'GHG Balance'!H28*(1+Growth!$L31) -> 0 | I168: =+'GHG Balance'!I28*(1+Growth!$L31) -> 0 | J168: 0 | K168: =+'GHG Balance'!K28*(1+Growth!$L31) -> 0 | L168: =+'GHG Balance'!L28*(1+Growth!$L31) -> 0 | M168: =+'GHG Balance'!M28*(1+Growth!$L31) -> 0 | N168: =+'GHG Balance'!N28*(1+Growth!$L31) -> 0 | O168: =+'GHG Balance'!O28*(1+Growth!$L31) -> 0 | P168: 0
B169: Industry - miscellaneous | D169: =+'GHG Balance'!D29*(1+Growth!$L32) -> 0 | E169: =+'GHG Balance'!E29*(1+Growth!$L32) -> 0 | F169: =+'GHG Balance'!F29*(1+Growth!$L32) -> 0 | G169: =+'GHG Balance'!G29*(1+Growth!$L32) -> 0 | H169: =+'GHG Balance'!H29*(1+Growth!$L32) -> 0 | I169: =+'GHG Balance'!I29*(1+Growth!$L32) -> 0 | J169: 0 | K169: =+'GHG Balance'!K29*(1+Growth!$L32) -> 0 | L169: =+'GHG Balance'!L29*(1+Growth!$L32) -> 0 | M169: =+'GHG Balance'!M29*(1+Growth!$L32) -> 0 | N169: =+'GHG Balance'!N29*(1+Growth!$L32) -> 0 | O169: =+'GHG Balance'!O29*(1+Growth!$L32) -> 0 | P169: 0
B170: Transport - road | D170: =+'GHG Balance'!D30*(1+Growth!$L35) -> 0 | E170: =+'GHG Balance'!E30*(1+Growth!$L35) -> 0 | F170: =+'GHG Balance'!F30*(1+Growth!$L35) -> 0 | G170: =+'GHG Balance'!G30*(1+Growth!$L35) -> 0 | H170: =+'GHG Balance'!H30*(1+Growth!$L35) -> 0 | I170: =+'GHG Balance'!I30*(1+Growth!$L35) -> 0 | J170: 0 | K170: =+'GHG Balance'!K30*(1+Growth!$L35) -> 0 | L170: =+'GHG Balance'!L30*(1+Growth!$L35) -> 0 | M170: =+'GHG Balance'!M30*(1+Growth!$L35) -> 0 | N170: =+'GHG Balance'!N30*(1+Growth!$L35) -> 0 | O170: =+'GHG Balance'!O30*(1+Growth!$L35) -> 0 | P170: 0
B171: Transport - rail | D171: =+'GHG Balance'!D31*(1+Growth!$L36) -> 0 | E171: =+'GHG Balance'!E31*(1+Growth!$L36) -> 0 | F171: =+'GHG Balance'!F31*(1+Growth!$L36) -> 0 | G171: =+'GHG Balance'!G31*(1+Growth!$L36) -> 0 | H171: =+'GHG Balance'!H31*(1+Growth!$L36) -> 0 | I171: =+'GHG Balance'!I31*(1+Growth!$L36) -> 0 | J171: 0 | K171: =+'GHG Balance'!K31*(1+Growth!$L36) -> 0 | L171: =+'GHG Balance'!L31*(1+Growth!$L36) -> 0 | M171: =+'GHG Balance'!M31*(1+Growth!$L36) -> 0 | N171: =+'GHG Balance'!N31*(1+Growth!$L36) -> 0 | O171: =+'GHG Balance'!O31*(1+Growth!$L36) -> 0 | P171: 0
B172: Transport - domestic air | D172: =+'GHG Balance'!D32*(1+Growth!$L37) -> 0 | E172: =+'GHG Balance'!E32*(1+Growth!$L37) -> 0 | F172: =+'GHG Balance'!F32*(1+Growth!$L37) -> 0 | G172: =+'GHG Balance'!G32*(1+Growth!$L37) -> 0 | H172: =+'GHG Balance'!H32*(1+Growth!$L37) -> 0 | I172: =+'GHG Balance'!I32*(1+Growth!$L37) -> 0 | J172: 0 | K172: =+'GHG Balance'!K32*(1+Growth!$L37) -> 0 | L172: =+'GHG Balance'!L32*(1+Growth!$L37) -> 0 | M172: =+'GHG Balance'!M32*(1+Growth!$L37) -> 0 | N172: =+'GHG Balance'!N32*(1+Growth!$L37) -> 0 | O172: =+'GHG Balance'!O32*(1+Growth!$L37) -> 0 | P172: 0
B173: Transport - navigation | D173: =+'GHG Balance'!D33*(1+Growth!$L38) -> 0 | E173: =+'GHG Balance'!E33*(1+Growth!$L38) -> 0 | F173: =+'GHG Balance'!F33*(1+Growth!$L38) -> 0 | G173: =+'GHG Balance'!G33*(1+Growth!$L38) -> 0 | H173: =+'GHG Balance'!H33*(1+Growth!$L38) -> 0 | I173: =+'GHG Balance'!I33*(1+Growth!$L38) -> 0 | J173: 0 | K173: =+'GHG Balance'!K33*(1+Growth!$L38) -> 0 | L173: =+'GHG Balance'!L33*(1+Growth!$L38) -> 0 | M173: =+'GHG Balance'!M33*(1+Growth!$L38) -> 0 | N173: =+'GHG Balance'!N33*(1+Growth!$L38) -> 0 | O173: =+'GHG Balance'!O33*(1+Growth!$L38) -> 0 | P173: 0
B174: Households | D174: =+'GHG Balance'!D34*(1+Growth!$L42) -> 0 | E174: =+'GHG Balance'!E34*(1+Growth!$L42) -> 0 | F174: =+'GHG Balance'!F34*(1+Growth!$L42) -> 0 | G174: =+'GHG Balance'!G34*(1+Growth!$L42) -> 0 | H174: =+'GHG Balance'!H34*(1+Growth!$L42) -> 0 | I174: =+'GHG Balance'!I34*(1+Growth!$L42) -> 0 | J174: 0 | K174: =+'GHG Balance'!K34*(1+Growth!$L42) -> 0 | L174: =+'GHG Balance'!L34*(1+Growth!$L42) -> 0 | M174: =+'GHG Balance'!M34*(1+Growth!$L42) -> 0 | N174: =+'GHG Balance'!N34*(1+Growth!$L42) -> 0 | O174: =+'GHG Balance'!O34*(1+Growth!$L42) -> 0 | P174: 0
B175: Services | D175: =+'GHG Balance'!D35*(1+Growth!$L46) -> 0 | E175: =+'GHG Balance'!E35*(1+Growth!$L46) -> 0 | F175: =+'GHG Balance'!F35*(1+Growth!$L46) -> 0 | G175: =+'GHG Balance'!G35*(1+Growth!$L46) -> 0 | H175: =+'GHG Balance'!H35*(1+Growth!$L46) -> 0 | I175: =+'GHG Balance'!I35*(1+Growth!$L46) -> 0 | J175: 0 | K175: =+'GHG Balance'!K35*(1+Growth!$L46) -> 0 | L175: =+'GHG Balance'!L35*(1+Growth!$L46) -> 0 | M175: =+'GHG Balance'!M35*(1+Growth!$L46) -> 0 | N175: =+'GHG Balance'!N35*(1+Growth!$L46) -> 0 | O175: =+'GHG Balance'!O35*(1+Growth!$L46) -> 0 | P175: 0
B176: Agriculture & Fishery | D176: =+'GHG Balance'!D36*(1+Growth!$L49) -> 0 | E176: =+'GHG Balance'!E36*(1+Growth!$L49) -> 0 | F176: =+'GHG Balance'!F36*(1+Growth!$L49) -> 0 | G176: =+'GHG Balance'!G36*(1+Growth!$L49) -> 0 | H176: =+'GHG Balance'!H36*(1+Growth!$L49) -> 0 | I176: =+'GHG Balance'!I36*(1+Growth!$L49) -> 0 | J176: 0 | K176: =+'GHG Balance'!K36*(1+Growth!$L49) -> 0 | L176: =+'GHG Balance'!L36*(1+Growth!$L49) -> 0 | M176: =+'GHG Balance'!M36*(1+Growth!$L49) -> 0 | N176: =+'GHG Balance'!N36*(1+Growth!$L49) -> 0 | O176: =+'GHG Balance'!O36*(1+Growth!$L49) -> 0 | P176: 0
B177: Non energy uses | D177: =+'GHG Balance'!D37*(1+Growth!$L74) -> 0 | E177: =+'GHG Balance'!E37*(1+Growth!$L74) -> 0 | F177: =+'GHG Balance'!F37*(1+Growth!$L74) -> 0 | G177: =+'GHG Balance'!G37*(1+Growth!$L74) -> 0 | H177: =+'GHG Balance'!H37*(1+Growth!$L74) -> 0 | I177: =+'GHG Balance'!I37*(1+Growth!$L74) -> 0 | J177: 0 | K177: =+'GHG Balance'!K37*(1+Growth!$L74) -> 0 | L177: =+'GHG Balance'!L37*(1+Growth!$L74) -> 0 | M177: =+'GHG Balance'!M37*(1+Growth!$L74) -> 0 | N177: =+'GHG Balance'!N37*(1+Growth!$L74) -> 0 | O177: =+'GHG Balance'!O37*(1+Growth!$L74) -> 0 | P177: 0
B179: Emissions by sectors and by gases
B180: Unit : ktCO2-equivalent | D180: CO2 | E180: CH4 | F180: N2O | G180: Total GHG emissions
B181: 1. Energy | D181: =D182+D183 -> 0 | E181: =E182+E183 -> 0 | F181: =F182+F183 -> 0 | G181: =D181+E181+F181 -> 0
B182: 1.A. Fuel combustion | D182: =P155 -> 0 | E182: =IF(P155=0,0,+'GHG Balance'!E$43*'BAU projected GHG Balances'!P157/'GHG Balance'!P$17) -> 0 | F182: =IF(P155=0,0,+'GHG Balance'!F$43*'BAU projected GHG Balances'!P157/'GHG Balance'!P$17) -> 0 | G182: =SUM(D182:F182) -> 0
B183: 1.B. Fugitive emissions from fuels | D183: =IF('GHG Balance'!M$15=0,0,'GHG Balance'!D$44*'BAU projected GHG Balances'!M155/'GHG Balance'!M$15) -> 0 | E183: =IF('GHG Balance'!M$15=0,0,'GHG Balance'!E$44*'BAU projected GHG Balances'!M155/'GHG Balance'!M$15) -> 0 | F183: =IF('GHG Balance'!M$15=0,0,'GHG Balance'!F$44*'BAU projected GHG Balances'!M155/'GHG Balance'!M$15) -> 0 | G183: =SUM(D183:F183) -> 0
B184: 2. Industrial processes and product use | D184: =SUM(D185:D189) -> 0 | E184: =SUM(E185:E189) -> 0 | F184: 0 | G184: =SUM(D184:F184) -> 0
B185: 2.A. Mineral industry | D185: =+'GHG Balance'!D$46*(1+Growth!$L$52) -> 0 | E185: =+'GHG Balance'!E$46*(1+Growth!$L$52) -> 0 | F185: =+'GHG Balance'!F$46*(1+Growth!$L$52) -> 0 | G185: =SUM(D185:F185) -> 0
B186: 2.B. Chemical industry | D186: =+'GHG Balance'!D$47*(1+Growth!$L$53) -> 0 | E186: =+'GHG Balance'!E$47*(1+Growth!$L$53) -> 0 | F186: =+'GHG Balance'!F$47*(1+Growth!$L$53) -> 0 | G186: 0
B187: 2.C. Metal industry | D187: =+'GHG Balance'!D$48*(1+Growth!$L$54) -> 0 | E187: =+'GHG Balance'!E$48*(1+Growth!$L$54) -> 0 | F187: =+'GHG Balance'!F$48*(1+Growth!$L$54) -> 0 | G187: 0
B188: 2.F. Product uses as ODS substitutes | D188: =+'GHG Balance'!D$49*(1+Growth!$L$55) -> 0 | E188: =+'GHG Balance'!E$49*(1+Growth!$L$55) -> 0 | F188: =+'GHG Balance'!F$49*(1+Growth!$L$55) -> 0 | G188: 0
B189: Other (2.D, 2.E, 2.G. 2.H) | D189: =+'GHG Balance'!D$50*(1+Growth!$L$56) -> 0 | E189: =+'GHG Balance'!E$50*(1+Growth!$L$56) -> 0 | F189: =+'GHG Balance'!F$50*(1+Growth!$L$56) -> 0 | G189: 0
B190: 3. Agriculture | D190: =SUM(D191:D194) -> 0 | E190: =SUM(E191:E194) -> 0 | F190: =SUM(F191:F194) -> 0 | G190: 0
B191: 3.A. Enteric fermentation | D191: =+'GHG Balance'!D$52*(1+Growth!$L$58) -> 0 | E191: =+'GHG Balance'!E$52*(1+Growth!$L$58) -> 0 | F191: =+'GHG Balance'!F$52*(1+Growth!$L$58) -> 0 | G191: 0
B192: 3.B. Manure management | D192: =+'GHG Balance'!D$53*(1+Growth!$L$59) -> 0 | E192: =+'GHG Balance'!E$53*(1+Growth!$L$59) -> 0 | F192: =+'GHG Balance'!F$53*(1+Growth!$L$59) -> 0 | G192: 0
B193: 3.D. Agricultural soils | D193: =+'GHG Balance'!D$54*(1+Growth!$L$60) -> 0 | E193: =+'GHG Balance'!E$54*(1+Growth!$L$60) -> 0 | F193: =+'GHG Balance'!F$54*(1+Growth!$L$60) -> 0 | G193: 0
B194: Other (3.C, 3.E-3.J) | D194: =+'GHG Balance'!D$55*(1+Growth!$L$61) -> 0 | E194: =+'GHG Balance'!E$55*(1+Growth!$L$61) -> 0 | F194: =+'GHG Balance'!F$55*(1+Growth!$L$61) -> 0 | G194: 0
B195: 4. Land use, land-use change and forestry | D195: =SUM(D196:D200) -> 0 | E195: =SUM(E196:E200) -> 0 | F195: =SUM(F196:F200) -> 0 | G195: 0
B196: 4.A. Forest land | D196: =+'GHG Balance'!D$57*(1+Growth!$L$63) -> 0 | E196: =+'GHG Balance'!E$57*(1+Growth!$L$63) -> 0 | F196: =+'GHG Balance'!F$57*(1+Growth!$L$63) -> 0 | G196: 0
B197: 4.B. Cropland | D197: =+'GHG Balance'!D$58*(1+Growth!$L$64) -> 0 | E197: =+'GHG Balance'!E$58*(1+Growth!$L$64) -> 0 | F197: =+'GHG Balance'!F$58*(1+Growth!$L$64) -> 0 | G197: 0
B198: 4.C. Grassland | D198: =+'GHG Balance'!D$59*(1+Growth!$L$65) -> 0 | E198: =+'GHG Balance'!E$59*(1+Growth!$L$65) -> 0 | F198: =+'GHG Balance'!F$59*(1+Growth!$L$65) -> 0 | G198: 0
B199: 4.G. Harvested wood products | D199: =+'GHG Balance'!D$60*(1+Growth!$L$66) -> 0 | E199: =+'GHG Balance'!E$60*(1+Growth!$L$66) -> 0 | F199: =+'GHG Balance'!F$60*(1+Growth!$L$66) -> 0 | G199: 0
B200: Other (4.D, 4.E, 4.F, 4.H) | D200: =+'GHG Balance'!D$61*(1+Growth!$L$67) -> 0 | E200: =+'GHG Balance'!E$61*(1+Growth!$L$67) -> 0 | F200: =+'GHG Balance'!F$61*(1+Growth!$L$67) -> 0 | G200: 0
B201: 5. Waste | D201: =SUM(D202:D205) -> 0 | E201: =SUM(E202:E205) -> 0 | F201: =SUM(F202:F205) -> 0 | G201: 0
B202: 5.A. Solid waste disposal | D202: =+'GHG Balance'!D$63*(1+Growth!$L$69) -> 0 | E202: =+'GHG Balance'!E$63*(1+Growth!$L$69) -> 0 | F202: =+'GHG Balance'!F$63*(1+Growth!$L$69) -> 0 | G202: 0
B203: 5.B. Biological treatment of solid waste | D203: =+'GHG Balance'!D$64*(1+Growth!$L$70) -> 0 | E203: =+'GHG Balance'!E$64*(1+Growth!$L$70) -> 0 | F203: =+'GHG Balance'!F$64*(1+Growth!$L$70) -> 0 | G203: 0
B204: 5.D. Waste water treatment and discharge | D204: =+'GHG Balance'!D$65*(1+Growth!$L$71) -> 0 | E204: =+'GHG Balance'!E$65*(1+Growth!$L$71) -> 0 | F204: =+'GHG Balance'!F$65*(1+Growth!$L$71) -> 0 | G204: 0
B205: Other (5.C, 5.E) | D205: =+'GHG Balance'!D$66*(1+Growth!$L$72) -> 0 | E205: =+'GHG Balance'!E$66*(1+Growth!$L$72) -> 0 | F205: =+'GHG Balance'!F$66*(1+Growth!$L$72) -> 0 | G205: 0
B206: Total (including LULUCF) | D206: =D181+D184+D190+D195+D201 -> 0 | E206: =E181+E184+E190+E195+E201 -> 0 | F206: =F181+F184+F190+F195+F201 -> 0 | G206: =SUM(D206:F206) -> 0
B207: Total (excluding LULUCF) | D207: =D206-D195 -> 0 | E207: =E206-E195 -> 0 | F207: =F206-F195 -> 0 | G207: =G206-G195 -> 0
B221: ="CO2 emissions from fuel combustion - 2040 - "&Assumptions!C9 -> CO2 emissions from fuel combustion - 2040 -
B222: ktCO2 | D222: LPG | E222: Gasoline | F222: Jet Fuel | G222: Diesel | H222: Fueloil | I222: Kerosene and other | J222: Total oil products | K222: Coal | L222: Lignite | M222: Gas | N222: Coke | O222: Petrocoke | P222: Total
B223: Unit | D223: kt | E223: kt | F223: kt | G223: kt | H223: kt | I223: kt | J223: kt | K223: kt | L223: kt | M223: kt | N223: kt | O223: kt | P223: kt
B224: Total | D224: =+D225+D226 -> 0 | E224: 0 | F224: 0 | G224: 0 | H224: 0 | I224: 0 | J224: 0 | K224: 0 | L224: 0 | M224: 0 | N224: 0 | O224: 0 | P224: 0
B225: Fossil power plants | D225: ='GHG Balance'!D14*'BAU projected Energy Balances'!D305 -> 0 | E225: ='GHG Balance'!E14*'BAU projected Energy Balances'!E305 -> 0 | F225: ='GHG Balance'!F14*'BAU projected Energy Balances'!F305 -> 0 | G225: ='GHG Balance'!G14*'BAU projected Energy Balances'!G305 -> 0 | H225: ='GHG Balance'!H14*'BAU projected Energy Balances'!H305 -> 0 | I225: ='GHG Balance'!I14*'BAU projected Energy Balances'!I305 -> 0 | J225: =SUM(D225:I225) -> 0 | K225: ='GHG Balance'!K14*'BAU projected Energy Balances'!K305 -> 0 | L225: ='GHG Balance'!L14*'BAU projected Energy Balances'!L305 -> 0 | M225: ='GHG Balance'!M14*'BAU projected Energy Balances'!M305 -> 0 | N225: ='GHG Balance'!N14*'BAU projected Energy Balances'!N305 -> 0 | O225: ='GHG Balance'!O14*'BAU projected Energy Balances'!O305 -> 0 | P225: =SUM(J225:O225) -> 0
B226: FINAL CONSUMPTION | D226: =SUM(D227:D246) -> 0 | E226: =SUM(E227:E246) -> 0 | F226: 0 | G226: =SUM(G227:G246) -> 0 | H226: 0 | I226: 0 | J226: =SUM(D226:I226) -> 0 | K226: =SUM(K227:K246) -> 0 | L226: =SUM(L227:L246) -> 0 | M226: 0 | N226: =SUM(N227:N246) -> 0 | O226: 0 | P226: =SUM(P227:P246) -> 0
B227: Industry - steel | D227: =+'GHG Balance'!D18*(1+Growth!$M21) -> 0 | E227: =+'GHG Balance'!E18*(1+Growth!$M21) -> 0 | F227: =+'GHG Balance'!F18*(1+Growth!$M21) -> 0 | G227: =+'GHG Balance'!G18*(1+Growth!$M21) -> 0 | H227: =+'GHG Balance'!H18*(1+Growth!$M21) -> 0 | I227: =+'GHG Balance'!I18*(1+Growth!$M21) -> 0 | J227: =SUM(D227:I227) -> 0 | K227: =+'GHG Balance'!K18*(1+Growth!$M21) -> 0 | L227: =+'GHG Balance'!L18*(1+Growth!$M21) -> 0 | M227: =+'GHG Balance'!M18*(1+Growth!$M21) -> 0 | N227: =+'GHG Balance'!N18*(1+Growth!$M21) -> 0 | O227: =+'GHG Balance'!O18*(1+Growth!$M21) -> 0 | P227: =SUM(J227:O227) -> 0
B228: Industry - chemical | D228: =+'GHG Balance'!D19*(1+Growth!$M22) -> 0 | E228: =+'GHG Balance'!E19*(1+Growth!$M22) -> 0 | F228: =+'GHG Balance'!F19*(1+Growth!$M22) -> 0 | G228: =+'GHG Balance'!G19*(1+Growth!$M22) -> 0 | H228: =+'GHG Balance'!H19*(1+Growth!$M22) -> 0 | I228: =+'GHG Balance'!I19*(1+Growth!$M22) -> 0 | J228: 0 | K228: =+'GHG Balance'!K19*(1+Growth!$M22) -> 0 | L228: =+'GHG Balance'!L19*(1+Growth!$M22) -> 0 | M228: =+'GHG Balance'!M19*(1+Growth!$M22) -> 0 | N228: =+'GHG Balance'!N19*(1+Growth!$M22) -> 0 | O228: =+'GHG Balance'!O19*(1+Growth!$M22) -> 0 | P228: 0
B229: Industry - non metallic mineral | D229: =+'GHG Balance'!D20*(1+Growth!$M23) -> 0 | E229: =+'GHG Balance'!E20*(1+Growth!$M23) -> 0 | F229: =+'GHG Balance'!F20*(1+Growth!$M23) -> 0 | G229: =+'GHG Balance'!G20*(1+Growth!$M23) -> 0 | H229: =+'GHG Balance'!H20*(1+Growth!$M23) -> 0 | I229: =+'GHG Balance'!I20*(1+Growth!$M23) -> 0 | J229: 0 | K229: =+'GHG Balance'!K20*(1+Growth!$M23) -> 0 | L229: =+'GHG Balance'!L20*(1+Growth!$M23) -> 0 | M229: =+'GHG Balance'!M20*(1+Growth!$M23) -> 0 | N229: =+'GHG Balance'!N20*(1+Growth!$M23) -> 0 | O229: =+'GHG Balance'!O20*(1+Growth!$M23) -> 0 | P229: 0
B230: Industry - food processing and beverage | D230: =+'GHG Balance'!D21*(1+Growth!$M24) -> 0 | E230: =+'GHG Balance'!E21*(1+Growth!$M24) -> 0 | F230: =+'GHG Balance'!F21*(1+Growth!$M24) -> 0 | G230: =+'GHG Balance'!G21*(1+Growth!$M24) -> 0 | H230: =+'GHG Balance'!H21*(1+Growth!$M24) -> 0 | I230: =+'GHG Balance'!I21*(1+Growth!$M24) -> 0 | J230: 0 | K230: =+'GHG Balance'!K21*(1+Growth!$M24) -> 0 | L230: =+'GHG Balance'!L21*(1+Growth!$M24) -> 0 | M230: =+'GHG Balance'!M21*(1+Growth!$M24) -> 0 | N230: =+'GHG Balance'!N21*(1+Growth!$M24) -> 0 | O230: =+'GHG Balance'!O21*(1+Growth!$M24) -> 0 | P230: 0
B231: Industry - construction | D231: =+'GHG Balance'!D22*(1+Growth!$M25) -> 0 | E231: =+'GHG Balance'!E22*(1+Growth!$M25) -> 0 | F231: =+'GHG Balance'!F22*(1+Growth!$M25) -> 0 | G231: =+'GHG Balance'!G22*(1+Growth!$M25) -> 0 | H231: =+'GHG Balance'!H22*(1+Growth!$M25) -> 0 | I231: =+'GHG Balance'!I22*(1+Growth!$M25) -> 0 | J231: 0 | K231: =+'GHG Balance'!K22*(1+Growth!$M25) -> 0 | L231: =+'GHG Balance'!L22*(1+Growth!$M25) -> 0 | M231: =+'GHG Balance'!M22*(1+Growth!$M25) -> 0 | N231: =+'GHG Balance'!N22*(1+Growth!$M25) -> 0 | O231: =+'GHG Balance'!O22*(1+Growth!$M25) -> 0 | P231: 0
B232: Industry - mining | D232: =+'GHG Balance'!D23*(1+Growth!$M26) -> 0 | E232: =+'GHG Balance'!E23*(1+Growth!$M26) -> 0 | F232: =+'GHG Balance'!F23*(1+Growth!$M26) -> 0 | G232: =+'GHG Balance'!G23*(1+Growth!$M26) -> 0 | H232: =+'GHG Balance'!H23*(1+Growth!$M26) -> 0 | I232: =+'GHG Balance'!I23*(1+Growth!$M26) -> 0 | J232: 0 | K232: =+'GHG Balance'!K23*(1+Growth!$M26) -> 0 | L232: =+'GHG Balance'!L23*(1+Growth!$M26) -> 0 | M232: =+'GHG Balance'!M23*(1+Growth!$M26) -> 0 | N232: =+'GHG Balance'!N23*(1+Growth!$M26) -> 0 | O232: =+'GHG Balance'!O23*(1+Growth!$M26) -> 0 | P232: 0
B233: Industry - machinery | D233: =+'GHG Balance'!D24*(1+Growth!$M27) -> 0 | E233: =+'GHG Balance'!E24*(1+Growth!$M27) -> 0 | F233: =+'GHG Balance'!F24*(1+Growth!$M27) -> 0 | G233: =+'GHG Balance'!G24*(1+Growth!$M27) -> 0 | H233: =+'GHG Balance'!H24*(1+Growth!$M27) -> 0 | I233: =+'GHG Balance'!I24*(1+Growth!$M27) -> 0 | J233: =SUM(D233:I233) -> 0 | K233: =+'GHG Balance'!K24*(1+Growth!$M27) -> 0 | L233: =+'GHG Balance'!L24*(1+Growth!$M27) -> 0 | M233: =+'GHG Balance'!M24*(1+Growth!$M27) -> 0 | N233: =+'GHG Balance'!N24*(1+Growth!$M27) -> 0 | O233: =+'GHG Balance'!O24*(1+Growth!$M27) -> 0 | P233: =SUM(J233:O233) -> 0
B234: Industry - non ferrous metals | D234: =+'GHG Balance'!D25*(1+Growth!$M28) -> 0 | E234: =+'GHG Balance'!E25*(1+Growth!$M28) -> 0 | F234: =+'GHG Balance'!F25*(1+Growth!$M28) -> 0 | G234: =+'GHG Balance'!G25*(1+Growth!$M28) -> 0 | H234: =+'GHG Balance'!H25*(1+Growth!$M28) -> 0 | I234: =+'GHG Balance'!I25*(1+Growth!$M28) -> 0 | J234: 0 | K234: =+'GHG Balance'!K25*(1+Growth!$M28) -> 0 | L234: =+'GHG Balance'!L25*(1+Growth!$M28) -> 0 | M234: =+'GHG Balance'!M25*(1+Growth!$M28) -> 0 | N234: =+'GHG Balance'!N25*(1+Growth!$M28) -> 0 | O234: =+'GHG Balance'!O25*(1+Growth!$M28) -> 0 | P234: 0
B235: Industry - paper and pulp | D235: =+'GHG Balance'!D26*(1+Growth!$M29) -> 0 | E235: =+'GHG Balance'!E26*(1+Growth!$M29) -> 0 | F235: =+'GHG Balance'!F26*(1+Growth!$M29) -> 0 | G235: =+'GHG Balance'!G26*(1+Growth!$M29) -> 0 | H235: =+'GHG Balance'!H26*(1+Growth!$M29) -> 0 | I235: =+'GHG Balance'!I26*(1+Growth!$M29) -> 0 | J235: 0 | K235: =+'GHG Balance'!K26*(1+Growth!$M29) -> 0 | L235: =+'GHG Balance'!L26*(1+Growth!$M29) -> 0 | M235: =+'GHG Balance'!M26*(1+Growth!$M29) -> 0 | N235: =+'GHG Balance'!N26*(1+Growth!$M29) -> 0 | O235: =+'GHG Balance'!O26*(1+Growth!$M29) -> 0 | P235: 0
B236: Industry - transport equipment | D236: =+'GHG Balance'!D27*(1+Growth!$M30) -> 0 | E236: =+'GHG Balance'!E27*(1+Growth!$M30) -> 0 | F236: =+'GHG Balance'!F27*(1+Growth!$M30) -> 0 | G236: =+'GHG Balance'!G27*(1+Growth!$M30) -> 0 | H236: =+'GHG Balance'!H27*(1+Growth!$M30) -> 0 | I236: =+'GHG Balance'!I27*(1+Growth!$M30) -> 0 | J236: 0 | K236: =+'GHG Balance'!K27*(1+Growth!$M30) -> 0 | L236: =+'GHG Balance'!L27*(1+Growth!$M30) -> 0 | M236: =+'GHG Balance'!M27*(1+Growth!$M30) -> 0 | N236: =+'GHG Balance'!N27*(1+Growth!$M30) -> 0 | O236: =+'GHG Balance'!O27*(1+Growth!$M30) -> 0 | P236: 0
B237: Industry - textile and leather | D237: =+'GHG Balance'!D28*(1+Growth!$M31) -> 0 | E237: =+'GHG Balance'!E28*(1+Growth!$M31) -> 0 | F237: =+'GHG Balance'!F28*(1+Growth!$M31) -> 0 | G237: =+'GHG Balance'!G28*(1+Growth!$M31) -> 0 | H237: =+'GHG Balance'!H28*(1+Growth!$M31) -> 0 | I237: =+'GHG Balance'!I28*(1+Growth!$M31) -> 0 | J237: 0 | K237: =+'GHG Balance'!K28*(1+Growth!$M31) -> 0 | L237: =+'GHG Balance'!L28*(1+Growth!$M31) -> 0 | M237: =+'GHG Balance'!M28*(1+Growth!$M31) -> 0 | N237: =+'GHG Balance'!N28*(1+Growth!$M31) -> 0 | O237: =+'GHG Balance'!O28*(1+Growth!$M31) -> 0 | P237: 0
B238: Industry - miscellaneous | D238: =+'GHG Balance'!D29*(1+Growth!$M32) -> 0 | E238: =+'GHG Balance'!E29*(1+Growth!$M32) -> 0 | F238: =+'GHG Balance'!F29*(1+Growth!$M32) -> 0 | G238: =+'GHG Balance'!G29*(1+Growth!$M32) -> 0 | H238: =+'GHG Balance'!H29*(1+Growth!$M32) -> 0 | I238: =+'GHG Balance'!I29*(1+Growth!$M32) -> 0 | J238: 0 | K238: =+'GHG Balance'!K29*(1+Growth!$M32) -> 0 | L238: =+'GHG Balance'!L29*(1+Growth!$M32) -> 0 | M238: =+'GHG Balance'!M29*(1+Growth!$M32) -> 0 | N238: =+'GHG Balance'!N29*(1+Growth!$M32) -> 0 | O238: =+'GHG Balance'!O29*(1+Growth!$M32) -> 0 | P238: 0
B239: Transport - road | D239: =+'GHG Balance'!D30*(1+Growth!$M35) -> 0 | E239: =+'GHG Balance'!E30*(1+Growth!$M35) -> 0 | F239: =+'GHG Balance'!F30*(1+Growth!$M35) -> 0 | G239: =+'GHG Balance'!G30*(1+Growth!$M35) -> 0 | H239: =+'GHG Balance'!H30*(1+Growth!$M35) -> 0 | I239: =+'GHG Balance'!I30*(1+Growth!$M35) -> 0 | J239: 0 | K239: =+'GHG Balance'!K30*(1+Growth!$M35) -> 0 | L239: =+'GHG Balance'!L30*(1+Growth!$M35) -> 0 | M239: =+'GHG Balance'!M30*(1+Growth!$M35) -> 0 | N239: =+'GHG Balance'!N30*(1+Growth!$M35) -> 0 | O239: =+'GHG Balance'!O30*(1+Growth!$M35) -> 0 | P239: 0
B240: Transport - rail | D240: =+'GHG Balance'!D31*(1+Growth!$M36) -> 0 | E240: =+'GHG Balance'!E31*(1+Growth!$M36) -> 0 | F240: =+'GHG Balance'!F31*(1+Growth!$M36) -> 0 | G240: =+'GHG Balance'!G31*(1+Growth!$M36) -> 0 | H240: =+'GHG Balance'!H31*(1+Growth!$M36) -> 0 | I240: =+'GHG Balance'!I31*(1+Growth!$M36) -> 0 | J240: 0 | K240: =+'GHG Balance'!K31*(1+Growth!$M36) -> 0 | L240: =+'GHG Balance'!L31*(1+Growth!$M36) -> 0 | M240: =+'GHG Balance'!M31*(1+Growth!$M36) -> 0 | N240: =+'GHG Balance'!N31*(1+Growth!$M36) -> 0 | O240: =+'GHG Balance'!O31*(1+Growth!$M36) -> 0 | P240: 0
B241: Transport - domestic air | D241: =+'GHG Balance'!D32*(1+Growth!$M37) -> 0 | E241: =+'GHG Balance'!E32*(1+Growth!$M37) -> 0 | F241: =+'GHG Balance'!F32*(1+Growth!$M37) -> 0 | G241: =+'GHG Balance'!G32*(1+Growth!$M37) -> 0 | H241: =+'GHG Balance'!H32*(1+Growth!$M37) -> 0 | I241: =+'GHG Balance'!I32*(1+Growth!$M37) -> 0 | J241: 0 | K241: =+'GHG Balance'!K32*(1+Growth!$M37) -> 0 | L241: =+'GHG Balance'!L32*(1+Growth!$M37) -> 0 | M241: =+'GHG Balance'!M32*(1+Growth!$M37) -> 0 | N241: =+'GHG Balance'!N32*(1+Growth!$M37) -> 0 | O241: =+'GHG Balance'!O32*(1+Growth!$M37) -> 0 | P241: 0
B242: Transport - navigation | D242: =+'GHG Balance'!D33*(1+Growth!$M38) -> 0 | E242: =+'GHG Balance'!E33*(1+Growth!$M38) -> 0 | F242: =+'GHG Balance'!F33*(1+Growth!$M38) -> 0 | G242: =+'GHG Balance'!G33*(1+Growth!$M38) -> 0 | H242: =+'GHG Balance'!H33*(1+Growth!$M38) -> 0 | I242: =+'GHG Balance'!I33*(1+Growth!$M38) -> 0 | J242: 0 | K242: =+'GHG Balance'!K33*(1+Growth!$M38) -> 0 | L242: =+'GHG Balance'!L33*(1+Growth!$M38) -> 0 | M242: =+'GHG Balance'!M33*(1+Growth!$M38) -> 0 | N242: =+'GHG Balance'!N33*(1+Growth!$M38) -> 0 | O242: =+'GHG Balance'!O33*(1+Growth!$M38) -> 0 | P242: 0
B243: Households | D243: =+'GHG Balance'!D34*(1+Growth!$M42) -> 0 | E243: =+'GHG Balance'!E34*(1+Growth!$M42) -> 0 | F243: =+'GHG Balance'!F34*(1+Growth!$M42) -> 0 | G243: =+'GHG Balance'!G34*(1+Growth!$M42) -> 0 | H243: =+'GHG Balance'!H34*(1+Growth!$M42) -> 0 | I243: =+'GHG Balance'!I34*(1+Growth!$M42) -> 0 | J243: 0 | K243: =+'GHG Balance'!K34*(1+Growth!$M42) -> 0 | L243: =+'GHG Balance'!L34*(1+Growth!$M42) -> 0 | M243: =+'GHG Balance'!M34*(1+Growth!$M42) -> 0 | N243: =+'GHG Balance'!N34*(1+Growth!$M42) -> 0 | O243: =+'GHG Balance'!O34*(1+Growth!$M42) -> 0 | P243: 0
B244: Services | D244: =+'GHG Balance'!D35*(1+Growth!$M46) -> 0 | E244: =+'GHG Balance'!E35*(1+Growth!$M46) -> 0 | F244: =+'GHG Balance'!F35*(1+Growth!$M46) -> 0 | G244: =+'GHG Balance'!G35*(1+Growth!$M46) -> 0 | H244: =+'GHG Balance'!H35*(1+Growth!$M46) -> 0 | I244: =+'GHG Balance'!I35*(1+Growth!$M46) -> 0 | J244: 0 | K244: =+'GHG Balance'!K35*(1+Growth!$M46) -> 0 | L244: =+'GHG Balance'!L35*(1+Growth!$M46) -> 0 | M244: =+'GHG Balance'!M35*(1+Growth!$M46) -> 0 | N244: =+'GHG Balance'!N35*(1+Growth!$M46) -> 0 | O244: =+'GHG Balance'!O35*(1+Growth!$M46) -> 0 | P244: 0
B245: Agriculture & Fishery | D245: =+'GHG Balance'!D36*(1+Growth!$M49) -> 0 | E245: =+'GHG Balance'!E36*(1+Growth!$M49) -> 0 | F245: =+'GHG Balance'!F36*(1+Growth!$M49) -> 0 | G245: =+'GHG Balance'!G36*(1+Growth!$M49) -> 0 | H245: =+'GHG Balance'!H36*(1+Growth!$M49) -> 0 | I245: =+'GHG Balance'!I36*(1+Growth!$M49) -> 0 | J245: 0 | K245: =+'GHG Balance'!K36*(1+Growth!$M49) -> 0 | L245: =+'GHG Balance'!L36*(1+Growth!$M49) -> 0 | M245: =+'GHG Balance'!M36*(1+Growth!$M49) -> 0 | N245: =+'GHG Balance'!N36*(1+Growth!$M49) -> 0 | O245: =+'GHG Balance'!O36*(1+Growth!$M49) -> 0 | P245: 0
B246: Non energy uses | D246: =+'GHG Balance'!D37*(1+Growth!$M74) -> 0 | E246: =+'GHG Balance'!E37*(1+Growth!$M74) -> 0 | F246: =+'GHG Balance'!F37*(1+Growth!$M74) -> 0 | G246: =+'GHG Balance'!G37*(1+Growth!$M74) -> 0 | H246: =+'GHG Balance'!H37*(1+Growth!$M74) -> 0 | I246: =+'GHG Balance'!I37*(1+Growth!$M74) -> 0 | J246: =SUM(D246:I246) -> 0 | K246: =+'GHG Balance'!K37*(1+Growth!$M74) -> 0 | L246: =+'GHG Balance'!L37*(1+Growth!$M74) -> 0 | M246: =+'GHG Balance'!M37*(1+Growth!$M74) -> 0 | N246: =+'GHG Balance'!N37*(1+Growth!$M74) -> 0 | O246: =+'GHG Balance'!O37*(1+Growth!$M74) -> 0 | P246: 0
B248: Emissions by sectors and by gases
B249: Unit : ktCO2-equivalent | D249: CO2 | E249: CH4 | F249: N2O | G249: Total GHG emissions
B250: 1. Energy | D250: =D251+D252 -> 0 | E250: =E251+E252 -> 0 | F250: =F251+F252 -> 0 | G250: =D250+E250+F250 -> 0
... 136 more rows

Sheet coordinates (hidden)
A1: xSum: | B1: Sorted values (All values) | H1: xSum (included) | I1: Sorted values (meeting thresholds) | L1: X-coordinates (reduction of CO2) | Q1: Y-coordinates (Cost of reduction option) | X1: Options omitted from graph
A2: =SUM(D3:D100) -> 246822.7015 | B2: Reduction option | C2: US$/tonCO2 | D2: Emission reduction in 2020 per option kt/year | H2: =SUM(K3:K100) -> 219330.6739 | I2: Reduction option | J2: US$/tonCO2 | K2: Emission reduction in 2020 per option kt/year | L2: Point 1 | M2: Point 2 | N2: halfway | O2: Point 3 | P2: Point 4 | Q2: Point 1 | R2: Point 2 | S2: Point 3 | T2: halfway | U2: Point 4 | X2: Reduction option | Y2: US$/tonCO2 | Z2: Emission reduction in 2020 per option kt/year
B3: Hydro power connected to main grid | C3: 358.2033739 | D3: 144229.9125 | F3: count(included) | G3: =COUNTA(I3:I300) -> 8 | I3: Hydro power connected to main grid | J3: 358.2033739 | K3: 144229.9125 | L3: 0 | M3: 0 | N3: 72114.95625 | O3: 144229.9125 | P3: 144229.9125 | Q3: 0 | R3: 358.2033739 | S3: 358.2033739 | T3: 358.2033739 | U3: 0 | X3: 20% Biodiesel blend in all diesel | Y3: -341.3842808 | Z3: 25478.18375
B4: Wind turbines, on-shore | C4: 353.3632118 | D4: 19420 | F4: count(excluded) | G4: =COUNTA(X3:X300) -> 3 | I4: Wind turbines, on-shore | J4: 353.3632118 | K4: 19420 | L4: 144229.9125 | M4: 144229.9125 | N4: 153939.9125 | O4: 163649.9125 | P4: 163649.9125 | Q4: 0 | R4: 353.3632118 | S4: 353.3632118 | T4: 353.3632118 | U4: 0 | X4: 15% Bioethanol blend in all gasoline | Y4: -438.2590844 | Z4: 2013.780074
B5: Solar PVs, large grid | C5: 235.2164681 | D5: 8860.375 | I5: Solar PVs, large grid | J5: 235.2164681 | K5: 8860.375 | L5: 163649.9125 | M5: 163649.9125 | N5: 168080.1 | O5: 172510.2875 | P5: 172510.2875 | Q5: 0 | R5: 235.2164681 | S5: 235.2164681 | T5: 235.2164681 | U5: 0 | X5: Efficient hotel washing machine | Y5: -38248.88709 | Z5: 0.06378414057
B6: New bicycle lanes | C6: 175.207761 | D6: 68.65827118 | I6: New bicycle lanes | J6: 175.207761 | K6: 68.65827118 | L6: 172510.2875 | M6: 172510.2875 | N6: 172544.6166 | O6: 172578.9458 | P6: 172578.9458 | Q6: 0 | R6: 175.207761 | S6: 175.207761 | T6: 175.207761 | U6: 0
B7: Electric cars | C7: 64.33692392 | D7: 753.315 | I7: Electric cars | J7: 64.33692392 | K7: 753.315 | L7: 172578.9458 | M7: 172578.9458 | N7: 172955.6033 | O7: 173332.2608 | P7: 173332.2608 | Q7: 0 | R7: 64.33692392 | S7: 64.33692392 | T7: 64.33692392 | U7: 0
B8: Energy efficiency in industry | C8: -0.9439292574 | D8: 24884.96297 | I8: Energy efficiency in industry | J8: -0.9439292574 | K8: 24884.96297 | L8: 173332.2608 | M8: 173332.2608 | N8: 185774.7423 | O8: 198217.2237 | P8: 198217.2237 | Q8: 0 | R8: -0.9439292574 | S8: -0.9439292574 | T8: -0.9439292574 | U8: 0
B9: Energy efficiency in service | C9: -0.9439292574 | D9: 8004.950146 | I9: Energy efficiency in service | J9: -0.9439292574 | K9: 8004.950146 | L9: 198217.2237 | M9: 198217.2237 | N9: 202219.6988 | O9: 206222.1739 | P9: 206222.1739 | Q9: 0 | R9: -0.9439292574 | S9: -0.9439292574 | T9: -0.9439292574 | U9: 0
B10: Efficient electric grids | C10: -145.23996 | D10: 13108.5 | I10: Efficient electric grids | J10: -145.23996 | K10: 13108.5 | L10: 206222.1739 | M10: 206222.1739 | N10: 212776.4239 | O10: 219330.6739 | P10: 219330.6739 | Q10: 0 | R10: -145.23996 | S10: -145.23996 | T10: -145.23996 | U10: 0
B11: 20% Biodiesel blend in all diesel | C11: -341.3842808 | D11: 25478.18375
B12: 15% Bioethanol blend in all gasoline | C12: -438.2590844 | D12: 2013.780074
B13: Efficient hotel washing machine | C13: -38248.88709 | D13: 0.06378414057

Sheet Mitigation options (hidden)
AJ1: Year: | AK1: 2025 | AL1: =COUNTA(AL2:AL31) -> 25 | AM1: 2025 | AO1: 2030 | AQ1: 2035 | AS1: 2050 | AU1: 2040 | AW1: 2045
B2: Step 7 - Selection of the mitigation options for year 2025, 2030, 2035, 2040, 2045 and 2050 | AK2: Selected | AL2: Select sector/type of emission reduction here | AM2: Start row | AN2: End row | AO2: Start row | AP2: End row | AQ2: Start row | AR2: End row | AS2: Start row | AT2: End row | AU2: Start row | AV2: End row | AW2: Start row | AX2: End row
AJ3: =AN3-AM3+1 -> 7 | AK3: 1 | AL3: Agriculture | AM3: =INDEX($A$18:$A$136,MATCH($AL3,$B$18:$B$136,0)) -> 18 | AN3: =AM4-1 -> 24 | AO3: =INDEX($A$174:$A$292,MATCH($AL3,$B$174:$B$292,0)) -> 174 | AP3: =AO4-1 -> 180 | AQ3: =INDEX($A$330:$A$448,MATCH($AL3,$B$330:$B$448,0)) -> 330 | AR3: =AQ4-1 -> 336 | AS3: =INDEX($A$486:$A$604,MATCH($AL3,$B$486:$B$604,0)) -> 486 | AT3: =AS4-1 -> 492 | AU3: =INDEX($A$642:$A$760,MATCH($AL3,$B$642:$B$760,0)) -> 642 | AV3: =AU4-1 -> 648 | AW3: =INDEX($A$798:$A$916,MATCH($AL3,$B$798:$B$916,0)) -> 798 | AX3: =AW4-1 -> 804
AJ4: =AN4-AM4+1 -> 3 | AK4: 1 | AL4: Biomass energy | AM4: =INDEX($A$18:$A$136,MATCH($AL4,$B$18:$B$136,0)) -> 25 | AN4: =AM5-1 -> 27 | AO4: 181 | AP4: =AO5-1 -> 183 | AQ4: 337 | AR4: =AQ5-1 -> 339 | AS4: =INDEX($A$486:$A$604,MATCH($AL4,$B$486:$B$604,0)) -> 493 | AT4: 495 | AU4: 649 | AV4: =AU5-1 -> 651 | AW4: 805 | AX4: =AW5-1 -> 807
AJ5: 1 | AK5: 1 | AL5: CCS | AM5: 28 | AN5: =AM6-1 -> 28 | AO5: 184 | AP5: 184 | AQ5: 340 | AR5: =AQ6-1 -> 340 | AS5: =INDEX($A$486:$A$604,MATCH($AL5,$B$486:$B$604,0)) -> 496 | AT5: 496 | AU5: 652 | AV5: =AU6-1 -> 652 | AW5: 808 | AX5: =AW6-1 -> 808
AJ6: 1 | AK6: 1 | AL6: Cement | AM6: 29 | AN6: 29 | AO6: 185 | AP6: 185 | AQ6: 341 | AR6: 341 | AS6: 497 | AT6: 497 | AU6: 653 | AV6: 653 | AW6: 809 | AX6: 809
AJ7: 1 | AK7: 1 | AL7: Coal bed mine methane | AM7: 30 | AN7: 30 | AO7: 186 | AP7: 186 | AQ7: 342 | AR7: 342 | AS7: 498 | AT7: 498 | AU7: 654 | AV7: 654 | AW7: 810 | AX7: 810
AJ8: 11 | AK8: 1 | AL8: EE households | AM8: 31 | AN8: 41 | AO8: 187 | AP8: 197 | AQ8: 343 | AR8: 353 | AS8: =INDEX($A$486:$A$604,MATCH($AL8,$B$486:$B$604,0)) -> 499 | AT8: 509 | AU8: 655 | AV8: 665 | AW8: 811 | AX8: 821
AJ9: 3 | AK9: 1 | AL9: EE industry | AM9: =INDEX($A$18:$A$136,MATCH($AL9,$B$18:$B$136,0)) -> 42 | AN9: 44 | AO9: 198 | AP9: 200 | AQ9: 354 | AR9: 356 | AS9: 510 | AT9: 512 | AU9: 666 | AV9: 668 | AW9: 822 | AX9: 824
AJ10: 2 | AK10: 1 | AL10: EE own generation | AM10: 45 | AN10: 46 | AO10: 201 | AP10: 202 | AQ10: 357 | AR10: 358 | AS10: 513 | AT10: 514 | AU10: 669 | AV10: 670 | AW10: 825 | AX10: 826
AJ11: 14 | AK11: 1 | AL11: EE service | AM11: 47 | AN11: =AM12-1 -> 60 | AO11: 203 | AP11: =AO12-1 -> 216 | AQ11: 359 | AR11: =AQ12-1 -> 372 | AS11: 515 | AT11: =AS12-1 -> 528 | AU11: 671 | AV11: =AU12-1 -> 684 | AW11: 827 | AX11: =AW12-1 -> 840
B12: Selected year: | C12: 2025 | AJ12: =AN12-AM12+1 -> 4 | AK12: 1 | AL12: EE supply side | AM12: =INDEX($A$18:$A$136,MATCH($AL12,$B$18:$B$136,0)) -> 61 | AN12: 64 | AO12: 217 | AP12: 220 | AQ12: 373 | AR12: 376 | AS12: 529 | AT12: =AS13-1 -> 532 | AU12: 685 | AV12: =AU13-1 -> 688 | AW12: 841 | AX12: =AW13-1 -> 844
R13: How should this be used: DELETE!!!!! | AJ13: 5 | AK13: 1 | AL13: Energy distribution | AM13: 65 | AN13: 69 | AO13: 221 | AP13: 225 | AQ13: 377 | AR13: 381 | AS13: 533 | AT13: =AS14-1 -> 537 | AU13: 689 | AV13: 693 | AW13: 845 | AX13: 849
B14: Total GHG mitigation in | C14: =+Assumptions!$C$9 -> 0 | R14: Sorted Values - according to revenue potential | AJ14: 5 | AK14: 1 | AL14: Forestry | AM14: 70 | AN14: 74 | AO14: 226 | AP14: 230 | AQ14: 382 | AR14: =AQ15-1 -> 386 | AS14: 538 | AT14: =AS15-1 -> 542 | AU14: 694 | AV14: =AU15-1 -> 698 | AW14: =INDEX($A$798:$A$916,MATCH($AL14,$B$798:$B$916,0)) -> 850 | AX14: =AW15-1 -> 854
F15: Emission | G15: Investment | H15: Annual | I15: Units | J15: Emission reduction in 2025 | M15: Diesel | N15: Gasoline | O15: Electricity | P15: Electricity | R15: Reduction option | S15: US$/ktCO2 (Revenue) | T15: Emission reduction in 2020 per option (ktCO2/yr) | AJ15: 2 | AK15: 1 | AL15: Fossil fuel switch | AM15: 75 | AN15: 76 | AO15: 231 | AP15: 232 | AQ15: 387 | AR15: =AQ16-1 -> 388 | AS15: 543 | AT15: 544 | AU15: 699 | AV15: =AU16-1 -> 700 | AW15: 855 | AX15: =AW16-1 -> 856
F16: reduction | H16: costs | I16: penetrating | J16: Per option | K16: Added | M16: saved | N16: saved | O16: saved | P16: produced | AJ16: 4 | AK16: 1 | AL16: Fugitive | AM16: 77 | AN16: 80 | AO16: 233 | AP16: 236 | AQ16: 389 | AR16: 392 | AS16: 545 | AT16: 548 | AU16: 701 | AV16: 704 | AW16: 857 | AX16: 860
B17: Type | C17: Reduction option | D17: US$/tCO2e | E17: Sub-type unit | F17: tCO2e/unit | G17: Million US$ | H17: MUS$/year | I17: in 2025 | J17: ktCO2e/year | K17: ktCO2e/year | L17: Frac.of total | M17: ktoe | N17: ktoe | O17: GWh | P17: GWh | AJ17: 2 | AK17: 1 | AL17: Geothermal | AM17: 81 | AN17: 82 | AO17: 237 | AP17: 238 | AQ17: 393 | AR17: 394 | AS17: 549 | AT17: 550 | AU17: 705 | AV17: 706 | AW17: 861 | AX17: 862
A18: =ROW(B18) -> 18 | B18: Agriculture | C18: Rice crop CH4 reduction | D18: =Agriculture!E30 -> 1.2 | E18: Rice crop CH4 red.(1000 ha) | F18: =Agriculture!E27 -> 3421.6 | G18: =Agriculture!$E$17*I18/1000000 -> 0 | H18: =Agriculture!$E$22*I18/1000000 -> 0 | J18: =F18*I18/1000 -> 0 | K18: =OFFSET(K18,-1,0)+J18 -> 0 | L18: =K18/TotalEmis2025 ->  | R18: Cogeneration in industry | S18: 846.9416952 | T18: 22.25798031 | AJ18: 1 | AK18: 1 | AL18: HFCs, PFCs, SF6 | AM18: 83 | AN18: 83 | AO18: 239 | AP18: 239 | AQ18: 395 | AR18: 395 | AS18: 551 | AT18: 551 | AU18: 707 | AV18: 707 | AW18: 863 | AX18: 863
C19: Zero tillage | D19: =+Agriculture!E194 -> -157.6154965 | E19: 1000 ha | F19: =+Agriculture!E192 -> 85.7270531 | G19: =Agriculture!$E$182*I19/1000000 -> 0 | H19: =Agriculture!$E$187*I19/1000000 -> 0 | J19: 0 | K19: =OFFSET(K19,-1,0)+J19 -> 0 | R19: Efficient domestic lighting with LEDs | S19: 376.5026462 | T19: 12.00598894 | AJ19: 3 | AK19: 1 | AL19: Hydro | AM19: 84 | AN19: 86 | AO19: 240 | AP19: 242 | AQ19: 396 | AR19: 398 | AS19: 552 | AT19: 554 | AU19: 708 | AV19: 710 | AW19: 864 | AX19: 866
C20: Cover crops | D20: =+Agriculture!E89 -> 81.04026846 | E20: 1000 ha | F20: =+Agriculture!E87 -> 1490 | G20: =Agriculture!$E$77*I20/1000000 -> 0 | H20: =Agriculture!$E$82*I20/1000000 -> 0 | J20: 0 | K20: =OFFSET(K20,-1,0)+J20 -> 0 | AJ20: 7 | AK20: 1 | AL20: Landfills | AM20: 87 | AN20: 93 | AO20: 243 | AP20: 249 | AQ20: 399 | AR20: 405 | AS20: 555 | AT20: 561 | AU20: 711 | AV20: 717 | AW20: 867 | AX20: 873
C21: Nitrification inhibitors (1000 ha) | D21: =+Agriculture!E117 -> 67.68987342 | E21: 1000 ha | F21: =+Agriculture!E115 -> 790 | G21: =Agriculture!$E$105*I21/1000000 -> 0 | H21: =Agriculture!$E$110*I21/1000000 -> 0 | J21: 0 | K21: =OFFSET(K21,-1,0)+J21 -> 0 | AJ21: 2 | AK21: 1 | AL21: Marine | AM21: 94 | AN21: 95 | AO21: 250 | AP21: 251 | AQ21: 406 | AR21: 407 | AS21: 562 | AT21: 563 | AU21: 718 | AV21: 719 | AW21: 874 | AX21: 875
C22: Covering slurry stores (1 slurry store) | D22: =+Agriculture!E143 -> 496.7709886 | E22: 1 slurry store | F22: =+Agriculture!E141 -> 0.2013 | G22: =Agriculture!$E$131*I22/1000000 -> 0 | H22: =Agriculture!$E$136*I22/1000000 -> 0 | J22: 0 | K22: 0 | AJ22: 4 | AK22: 1 | AL22: Methane avoidance | AM22: 96 | AN22: 99 | AO22: 252 | AP22: 255 | AQ22: 408 | AR22: 411 | AS22: 564 | AT22: 567 | AU22: 720 | AV22: 723 | AW22: 876 | AX22: 879
C23: Fat supplementation in ruminants diets (%DM fat added) | D23: =+Agriculture!E168 -> 80.5 | E23: %DM fat added | F23: =+Agriculture!E166 -> 0 | G23: =Agriculture!$E$156*I23/1000000 -> 0 | H23: =Agriculture!$N$161*I23/1000000 -> 0 | J23: 0 | K23: 0 | AJ23: 1 | AK23: 1 | AL23: N2O | AM23: 100 | AN23: 100 | AO23: 256 | AP23: 256 | AQ23: 412 | AR23: 412 | AS23: 568 | AT23: 568 | AU23: 724 | AV23: 724 | AW23: 880 | AX23: 880
C24: Tobacco curing | D24: =+Agriculture!E62 -> -20.9606931 | E24: 100 t tobacco/yr | F24: =+Agriculture!E60 -> 561.969408 | G24: =Agriculture!$E$50*I24/1000000 -> 0 | H24: =Agriculture!$E$55*I24/1000000 -> 0 | J24: 0 | K24: 0 | R24: Efficient domestic lighting with LEDs | S24: 376.5026462 | T24: 60.02994472 | AJ24: 14 | AK24: 1 | AL24: Solar | AM24: 101 | AN24: 114 | AO24: 257 | AP24: 270 | AQ24: 413 | AR24: 426 | AS24: 569 | AT24: 582 | AU24: 725 | AV24: 738 | AW24: 881 | AX24: 894
A25: =ROW(B25) -> 25 | B25: Biomass energy | C25: Rice husk cogeneration plants | D25: =+'Biomass energy'!E24 -> 127.5968724 | E25: 1 MW cogeneration | F25: =+'Biomass energy'!E22 -> 5757.344743 | G25: =+'Biomass energy'!$E$12*I25/1000000 -> 0 | H25: =+'Biomass energy'!$E$17*I25/1000000 -> 0 | J25: 0 | K25: 0 | P25: =+'Biomass energy'!$H$22/'Biomass energy'!$H$19*I25/1000 -> 0 | R25: Geothermal power | S25: 356.5429719 | T25: 131.25 | AJ25: 19 | AK25: 1 | AL25: Transport | AM25: 115 | AN25: 133 | AO25: 271 | AP25: 289 | AQ25: 427 | AR25: 445 | AS25: 583 | AT25: 601 | AU25: 739 | AV25: 757 | AW25: 895 | AX25: 913
C26: Biomass power from biomass residues | D26: =+'Biomass energy'!E57 -> 0 | E26: 1 MW CHP plant | F26: =+'Biomass energy'!E55 -> 0 | G26: =+'Biomass energy'!$E$45*I26/1000000 -> 0 | H26: =+'Biomass energy'!$E$50*I26/1000000 -> 0 | J26: 0 | K26: 0 | P26: =+'Biomass energy'!$H$53*I26/1000 -> 0 | R26: Wind turbines, on-shore | S26: 351.7034642 | T26: 48.4375 | AJ26: 3 | AK26: 1 | AL26: Wind | AM26: 134 | AN26: =AM26+2 -> 136 | AO26: 290 | AP26: =AO26+2 -> 292 | AQ26: 446 | AR26: =AQ26+2 -> 448 | AS26: 602 | AT26: =AS26+2 -> 604 | AU26: 758 | AV26: =AU26+2 -> 760 | AW26: 914 | AX26: =AW26+2 -> 916
C27: Bagasse power | D27: ='Biomass energy'!E88 -> 0 | E27: 100 kt sugar cane/year | F27: ='Biomass energy'!E86 -> 0 | G27: ='Biomass energy'!$E$76*I27/1000000 -> 0 | H27: ='Biomass energy'!$E$81*I27/1000000 -> 0 | J27: 0 | K27: 0 | P27: ='Biomass energy'!$H$87/'Biomass energy'!$H$81*100*I27/1000 -> 0 | R27: Efficient residential airconditioning | S27: 343.000921 | T27: 84.33436629 | AJ27: =SUM(AJ3:AJ26) -> 119
A28: =ROW(B28) -> 28 | B28: CCS | C28: CCS plant | D28: =+CCS!E22 -> 107.9619048 | E28: 1 MW | F28: =+CCS!E20 -> 5412.371134 | G28: =CCS!$E$10*I28/1000000 -> 0 | H28: =CCS!$E$15*I28/1000000 -> 0 | J28: 0 | K28: 0 | P28: =+CCS!H16/CCS!$H$13*I28/1000 -> 0 | R28: Efficient street lights | S28: 331.5529212 | T28: 6.053439803 | AT28: NB!! The end rows on the last Sector need to be adjusted manually!
A29: =ROW(B29) -> 29 | B29: Cement | C29: Clinker replacement | D29: =+Cement!E23 -> -3.328912207 | E29: 1000 tonnes cement/day | F29: =+Cement!E21 -> 164175.3472 | G29: =Cement!$E$10*I29/1000000 -> 0 | H29: =Cement!$E$16*I29/1000000 -> 0 | J29: 0 | K29: 0 | R29: Efficient electric stoves | S29: 320.0969047 | T29: 4.791154791
A30: =ROW(B30) -> 30 | B30: Coal bed mine methane | C30: Coal mine methane | D30: =+'Coal bed mine methane'!E24 -> 7.615668932 | E30: 10 Mm3 CMM/year | F30: =+'Coal bed mine methane'!E22 -> 33818.4 | G30: =+'Coal bed mine methane'!$E$12/1000000*I30 -> 0 | H30: =+'Coal bed mine methane'!$E$17/1000000*I30 -> 0 | J30: 0 | K30: 0 | P30: =+'Coal bed mine methane'!$H$27/'Coal bed mine methane'!$H$22*10*I30/1000 -> 0 | R30: Solar PVs, large grid | S30: 298.3034805 | T30: 76.37625
A31: =ROW(B31) -> 31 | B31: EE households | C31: Efficient residential airconditioning | D31: =+'EE households'!E30 ->  | E31: 1000 Airconditioners | F31: =+'EE households'!E28 ->  | G31: =+'EE households'!$E$18*I31/1000000 -> 0 | H31: =+'EE households'!$E$23*I31/1000000 -> 0 | O31: =+'EE households'!$H$42*I31/1000 -> 0 | R31: Efficient refrigerators | S31: 259.1416914 | T31: 26.36609337
C32: Efficient lighting with CFLs | D32: =+'EE households'!E64 ->  | E32: 1000 Bulps | F32: =+'EE households'!E62 ->  | G32: =+'EE households'!$E$52*I32/1000000 -> 0 | H32: =+'EE households'!$E$57*I32/1000000 -> 0 | O32: ='EE households'!$H$65*I32/1000 -> 0 | R32: Assisted forest regeneration | S32: 14.61993428 | T32: 261.25
C33: Efficient lighting with LEDs | D33: =+'EE households'!E96 ->  | E33: 1000 Bulps | F33: =+'EE households'!E94 ->  | G33: =+'EE households'!$E$84*I33/1000000 -> 0 | H33: =+'EE households'!$E$89*I33/1000000 -> 0 | J33: =F33*I33/1000 ->  | O33: =+'EE households'!$H$101*I33/1000 -> 0 | R33: Biogas at big farms | S33: 9.944730478 | T33: 28.09570149
C34: Efficient lighting with LEDs replacing CFL | D34: =+'EE households'!E122 ->  | E34: 1000 Bulps | F34: =+'EE households'!E120 ->  | G34: ='EE households'!$E$110*I34/1000000 -> 0 | H34: ='EE households'!$E$115*I34/1000000 -> 0 | J34: =F34*I34/1000 ->  | O34: =+'EE households'!$H125*I34/1000 -> 0
C35: Efficient wood stoves | D35: =+'EE households'!E178 -> -939.8090494 | E35: 1000 stoves | F35: =+'EE households'!E176 -> 1338.333333 | G35: =+'EE households'!$E$166*I35/1000000 -> 0 | H35: =+'EE households'!$E$171*I35/1000000 -> 0 | J35: 0 | R35: Composting of Municipal Solid Waste | S35: 7.176657819 | T35: 7.271019
C36: Efficient charcoal stoves | D36: =+'EE households'!E206 -> -71.000934 | E36: 1000 stoves | F36: =+'EE households'!E204 -> 292.9169187 | G36: =+'EE households'!$E$194*I36/1000000 -> 0 | H36: =+'EE households'!$E$199*I36/1000000 -> 0 | J36: 0
C37: LPG stoves replacing wood stoves | D37: =+'EE households'!E238 -> 73.52638617 | E37: 1000 stoves | F37: =+'EE households'!E236 -> 2054.943917 | G37: ='EE households'!$E$226*I37/1000000 -> 0 | H37: ='EE households'!$E$231*I37/1000000 -> 0 | J37: 0 | R37: Biodiesel from MSW | S37: 0.1374728882 | T37: 64.26690086
C38: Efficient electric stoves | D38: =+'EE households'!E267 ->  | E38: 1000 stoves | F38: =+'EE households'!E265 ->  | G38: ='EE households'!$E$255*I38/1000000 -> 0 | H38: ='EE households'!$E$260*I38/1000000 -> 0 | O38: ='EE households'!$H$274*I38/1000 -> 0 | R38: Biogas at rural farms | S38: -1.210737512 | T38: 11.27412
C39: Induction based cooking | D39: =+'EE households'!E293 ->  | E39: 1000 stoves | F39: =+'EE households'!E291 ->  | G39: ='EE households'!$E$281*I39/1000000 -> 0 | H39: ='EE households'!$E$286*I39/1000000 -> 0 | O39: ='EE households'!$H$301*I39/1000 -> 0
C40: New passive home | D40: =+'EE households'!$E$321 ->  | E40: 1000 new homes | F40: =+'EE households'!$E$319 ->  | G40: ='EE households'!$E$309*I40/1000000 -> 0 | H40: =+I40*'EE households'!$E$314/1000000 -> 0 | O40: ='EE households'!$H$326*I40/1000 -> 0
C41: Efficient refrigerators | D41: =+'EE households'!E148 ->  | E41: 1000 refrigerators | F41: =+'EE households'!E146 ->  | G41: =+'EE households'!$E$136*I41/1000000 -> 0 | H41: =+'EE households'!$E$141*I41/1000000 -> 0 | O41: =+'EE households'!$H$159*I41/1000 -> 0 | R41: Charcoal production | S41: -1.733595543 | T41: 21.15072072
A42: =ROW(B42) -> 42 | B42: EE industry | C42: Efficient electric motors | D42: =+'EE industry'!E25 ->  | E42: 1 kW | F42: =+'EE industry'!E23 ->  | G42: =+'EE industry'!$E$13*I42/1000000 -> 0 | H42: =+'EE industry'!$E$18*I42/1000000 -> 0 | O42: =I42*'EE industry'!$H$25/1000000 -> 0 | R42: Efficient wood stoves | S42: -1.812093777 | T42: 206.4156111
C43: Energy efficiency in industry | D43: =+'EE industry'!E84 -> 0 | E43: 10% red. of energy demand | F43: =+'EE industry'!E82 -> 0 | G43: =+'EE industry'!$E$72*I43/1000000 -> 0 | H43: ='EE industry'!$E$77*I43/1000000 -> 0 | J43: 0 | R43: Clinker replacement | S43: -12.67068388 | T43: 111.9303702
C44: Building materials | D44: =+'EE industry'!E55 -> -19.57388982 | E44: 1 million bricks | F44: =+'EE industry'!E53 -> 520.3 | G44: ='EE industry'!$E$43*I44/1000000 -> 0 | H44: ='EE industry'!$E$48*I44/1000000 -> 0 | J44: 0 | R44: LPG stoves replacing wood stoves | S44: -30.54822322 | T44: 353.757635
A45: =ROW(B45) -> 45 | B45: EE own generation | C45: Waste heat recovery at cement plant | D45: =+'EE own generation'!E23 -> 0 | E45: 1 Cement plant | F45: =+'EE own generation'!E21 -> 0 | G45: =+'EE own generation'!$E$11*I45/1000000 -> 0 | H45: =+'EE own generation'!$E$16*I45/1000000 -> 0 | J45: =F45*I45/1000 -> 0 | P45: =+'EE own generation'!$H$17*'Mitigation options'!I45/1000 -> 0 | R45: Efficient electric grids | S45: -131.2927002 | T45: 49
C46: Waste heat recovery at steel plant | D46: =+'EE own generation'!E53 -> 0 | E46: 1 Steel plant | F46: =+'EE own generation'!E51 -> 0 | G46: =+'EE own generation'!$E$41*I46/1000000 -> 0 | H46: =+'EE own generation'!$E$46*I46/1000000 -> 0 | J46: 0 | P46: ='EE own generation'!$H$46*'Mitigation options'!I46/1000 -> 0 | R46: Reforestation | S46: -11574.11464 | T46: 1.32
A47: =ROW(B47) -> 47 | B47: EE service | C47: Efficient electric motors | D47: =+'EE service'!E29 ->  | E47: 1 kW | F47: =+'EE service'!E27 ->  | G47: =+'EE service'!$E$17*I47/1000000 -> 0 | H47: =+'EE service'!$E$22*I47/1000000 -> 0 | O47: =I47*'EE service'!$H$29/1000000 -> 0
C48: Efficient office lighting with CFLs | D48: =+'EE service'!E57 ->  | E48: 1000 lights | F48: =+'EE service'!E55 ->  | G48: =+'EE service'!$E$45*I48/1000000 -> 0 | H48: =+'EE service'!$E$50*I48/1000000 -> 0 | O48: =+'EE service'!$H$57*I48/1000 -> 0
C49: Efficient office lighting with LEDs | D49: =+'EE service'!E89 ->  | E49: 1000 lights | F49: =+'EE service'!E87 ->  | G49: =+'EE service'!$E$77*I49/1000000 -> 0 | H49: =+'EE service'!$E$82*I49/1000000 -> 0 | J49: =F49*I49/1000 ->  | O49: =+'EE service'!$H$89*I49/1000 -> 0
C50: Efficient street lights | D50: =+'EE service'!E123 ->  | E50: 1000 lights | F50: =+'EE service'!E121 ->  | G50: =+'EE service'!$E$111*I50/1000000 -> 0 | H50: =+'EE service'!$E$116*I50/1000000 -> 0 | O50: =+'EE service'!$H$136*I50/1000 -> 0
C51: Efficient water pumping | D51: =+'EE service'!E159 ->  | E51: 4 Million m3 water | F51: =+'EE service'!E157 ->  | G51: =+'EE service'!$E$147*I51/1000000 -> 0 | H51: =+'EE service'!$E$152*I51/1000000 -> 0 | O51: =+'EE service'!$H$158*I51 -> 0
C52: HVAC | D52: =+'EE service'!E248 -> 0 | E52: 100,000 m2 floor area | F52: =+'EE service'!E246 -> 0 | G52: ='EE service'!$E$236*I52/1000000 -> 0 | H52: ='EE service'!$E$241*I52/1000000 -> 0 | J52: 0 | O52: =+'EE service'!$H$254*I52/1000 -> 0
C53: Efficient Chiller > 300 TR | D53: =+'EE service'!E277 -> 22.89666129 | E53: 1 TR | F53: =+'EE service'!E275 -> 1.4267 | G53: ='EE service'!$E$265*I53/1000000 -> 0 | H53: ='EE service'!$E$270*I53/1000000 -> 0 | J53: =F53*I53/1000 -> 0 | L53: =+K53/TotalEmis2025 ->  | O53: =+'EE service'!$H$290*I53/1000000 -> 0
C54: Efficient Chiller < 300 TR | D54: =+'EE service'!E309 -> 42.05509217 | E54: 1 TR | F54: =+'EE service'!E307 -> 0.71335 | G54: ='EE service'!$E$297*I54/1000000 -> 0 | H54: ='EE service'!$E$302*I54/1000000 -> 0 | J54: 0 | O54: =+'EE service'!$H$321*I54/1000000 -> 0
C55: Efficient room airconditioner | D55: =+'EE service'!E341 ->  | E55: 1 Airconditioner | F55: =+'EE service'!E339 ->  | G55: ='EE service'!$E$329*I55/1000000 -> 0 | H55: ='EE service'!$E$334*I55/1000000 -> 0 | O55: =+'EE service'!$H$353*I55/1000000 -> 0
C56: Efficient commercial dishwashing machine | D56: =+'EE service'!E374 -> 0 | E56: 1000 meals/day | F56: =+'EE service'!E372 -> 0 | G56: ='EE service'!$E$362*I56/1000000 -> 0 | H56: ='EE service'!$E$367*I56/1000000 -> 0 | J56: 0 | O56: =+'EE service'!$H$388*I56/1000000 -> 0
C57: Efficient hotel refrigerator | D57: =+'EE service'!E409 ->  | E57: 1 refrigerator | F57: =+'EE service'!E407 ->  | G57: ='EE service'!$E$397*I57/1000000 -> 0 | H57: ='EE service'!$E$402*I57/1000000 -> 0 | O57: =+'EE service'!$H$415*I57/1000000 -> 0
C58: Efficient hotel washing machine | D58: =+'EE service'!E439 ->  | E58: 1000 Guest Nights (GN) | F58: =+'EE service'!E437 ->  | G58: ='EE service'!$E$427*I58/1000000 -> 0 | H58: ='EE service'!$E$432*I58/1000000 -> 0 | O58: =+'EE service'!$H$459*I58/1000000 -> 0
C59: Energy efficiency in service | D59: =+'EE service'!E223 -> 0 | E59: 10% red. of energy demand | F59: =+'EE service'!E221 -> 0 | G59: ='EE service'!$E$211*I59/1000000 -> 0 | H59: ='EE service'!$E$216*I59/1000000 -> 0 | J59: =F59*I59/1000 -> 0 | L59: =K59/TotalEmis2025 -> 
C60: New office building with central cooling | D60: =+'EE service'!E188 ->  | E60: 1000 m2 | F60: =+'EE service'!E186 ->  | G60: =+'EE service'!$E$176*I60/1000000 -> 0 | H60: =+'EE service'!$E$181*I60/1000000 -> 0 | J60: =(F60*I60)/1000 ->  | K60: =OFFSET(K60,-1,0,1,1)+J60 ->  | O60: =+'EE service'!$H$201*I60*1000/1000 -> 0
A61: =ROW(B61) -> 61 | B61: EE supply side | C61: New natural gas power plant | D61: ='EE supply side'!E25 -> -80.71348209 | E61: 1 MW | F61: =+'EE supply side'!E23 -> -2754 | G61: =+'EE supply side'!$E$13/1000000*I61 -> 0 | H61: =+'EE supply side'!$E$18/1000000*I61 -> 0 | J61: =(F61*I61)/1000 -> 0 | L61: =K61/TotalEmis2025 -> 
C62: Switch from fuel oil to natural gas | D62: ='EE supply side'!E172 -> -339.532065 | E62: 1 MW | F62: =+'EE supply side'!E170 -> 1454.357143 | G62: =+'EE supply side'!$E$160/1000000*I62 -> 0 | H62: =+'EE supply side'!$E$165/1000000*I62 -> 0 | J62: 0
C63: Cogeneration in industry | D63: =+'EE supply side'!E113 -> -57.54286186 | E63: 1 MW | F63: =+'EE supply side'!E111 -> -6633.055488 | G63: =+'EE supply side'!$E$102*I63/1000000 -> 0 | H63: =+'EE supply side'!$E$106*I63/1000000 -> 0 | J63: 0 | O63: =+'EE supply side'!$H$112*I63/1000 -> 0
C64: Single cycle to combined cycle | D64: =+'EE supply side'!E83 -> 0 | E64: 100 MW increase | F64: =+'EE supply side'!E81 -> 0 | G64: ='EE supply side'!$E$72*I64/1000000 -> 0 | H64: ='EE supply side'!$E$76*I64/1000000 -> 0 | J64: 0 | O64: =+'EE supply side'!$H$91*I64/1000 -> 0
A65: =ROW(B65) -> 65 | B65: Energy distribution | C65: Efficient electric grids | D65: =+'Energy distribution'!E26 -> 0 | E65: 1 GWh loss reduction | F65: =+'Energy distribution'!E24 -> 0 | G65: =+'Energy distribution'!$E$14*I65/1000000 -> 0 | H65: =+'Energy distribution'!$E$19*I65/1000000 -> 0 | J65: 0 | O65: =+I67*'Energy distribution'!$H$22 -> 
C66: Connection of isolated grid to central grid | D66: =+'Energy distribution'!E55 -> 0 | E66: 1 GWh consumption | F66: =+'Energy distribution'!E53 -> 0 | G66: =+'Energy distribution'!$E$43*I66/1000000 -> 0 | H66: =+'Energy distribution'!$E$48*I66/1000000 -> 0 | J66: 0
C67: Power factor increase | D67: =+'Energy distribution'!E85 -> 0 | E67: 1000 commerce/industry buildings | F67: =+'Energy distribution'!E83 -> 0 | G67: ='Energy distribution'!$E$73*I67/1000000 -> 0 | H67: ='Energy distribution'!$E$78*I67/1000000 -> 0 | J67: 0 | O67: =I69*'Energy distribution'!$H$92 -> 0
C68: District heating network rehabilitation (100,000 flats supplied) | D68: =+'Energy distribution'!E114 -> -158.0540863 | E68: 100,000 flats supplied | F68: =+'Energy distribution'!E112 -> 33649.05341 | G68: ='Energy distribution'!$E$101*I68/1000000 -> 0 | H68: ='Energy distribution'!$E$107*I68/1000000 -> 0 | J68: 0 | L68: =+K68/TotalEmis2025 -> 
C69: District cooling network (1 million m2 new city area covered) | D69: =+'Energy distribution'!E153 -> -189.154027 | E69: 1 million m2 new city area covered | F69: =+'Energy distribution'!E151 -> 13725.62313 | G69: ='Energy distribution'!$E$141*I69/1000000 -> 0 | H69: ='Energy distribution'!$E$146*I69/1000000 -> 0 | J69: 0 | L69: =+K69/TotalEmis2025 -> 
A70: =ROW(B70) -> 70 | B70: Forestry | C70: Reforestation | D70: =+Forestry!E28 -> 8.181818182 | E70: Reforestation of 1000 ha | F70: =Forestry!E26 -> 3666.666667 | G70: =Forestry!$E$15*I70/1000000 -> 0 | H70: =Forestry!$E$21/1000000*I70 -> 0 | J70: 0 | L70: =K70/TotalEmis2025 -> 
C71: REDD: Avoided deforestation | D71: =+Forestry!E56 -> -5.5 | E71: No deforestation for 1000 ha | F71: =Forestry!E54 -> 3666.666667 | G71: =Forestry!$E$44*I71/1000000 -> 0 | H71: =Forestry!$E$49/1000000*I71 -> 0 | J71: 0
C72: Assisted forest regeneration | D72: =Forestry!E84 -> -2.045454545 | E72: Reforestation of 1000 ha | F72: =Forestry!E82 -> 3666.666667 | G72: =Forestry!$E$72/1000000*I72 -> 0 | H72: =Forestry!$E$77/1000000*I72 -> 0 | J72: 0
C73: Reforestation with agroforestry | D73: =Forestry!E113 -> -0.2727272727 | E73: Reforestation of 1000 ha | F73: =Forestry!E111 -> 3666.666667 | G73: =Forestry!$E$100/1000000*I73 -> 0 | H73: =Forestry!$E$106/1000000*I73 -> 0 | J73: 0
C74: Reforestation with Silvopasture | D74: =Forestry!E143 -> -0.2727272727 | E74: Reforestation of 1000 ha | F74: =Forestry!E141 -> 3666.666667 | G74: =Forestry!$E$130/1000000*I74 -> 0 | H74: =Forestry!$E$136/1000000*I74 -> 0 | J74: 0
A75: =ROW(B75) -> 75 | B75: Fossil fuel switch | C75: Switch from coal to natural gas in industry | D75: =+'Fossil fuel switch'!E24 -> 29.64835434 | E75: 100 TJ fuel use/year | F75: =+'Fossil fuel switch'!E22 -> 3850 | G75: ='Fossil fuel switch'!$E$12/1000000*I75 -> 0 | H75: ='Fossil fuel switch'!$E$17/1000000*I75 -> 0 | J75: 0
C76: Switch from fuel oil to natural gas in industry | D76: ='Fossil fuel switch'!E53 -> -136.8754396 | E76: 100 TJ fuel use/year | F76: ='Fossil fuel switch'!E51 -> 2126.666667 | G76: ='Fossil fuel switch'!$E$41/1000000*I76 -> 0 | H76: ='Fossil fuel switch'!$E$46/1000000*I76 -> 0 | J76: 0
A77: =ROW(B77) -> 77 | B77: Fugitive | C77: Reduced flaring at oil field | D77: =+Fugitive!E25 -> -11.66616215 | E77: 1 MMSCF/day | F77: =+Fugitive!E23 -> 22613.49991 | G77: =+Fugitive!$E$13*I77/1000000 -> 0 | H77: =+Fugitive!$E$18*I77/1000000 -> 0 | J77: 0
C78: Reduced flaring at oil refineries | D78: =+Fugitive!E54 -> 159.985329 | E78: 1 MMSCF/day | F78: =+Fugitive!E52 -> 20797.218 | G78: =+Fugitive!$E$42*I78/1000000 -> 0 | H78: =+Fugitive!$E$47*I78/1000000 -> 0 | J78: 0
C79: Leak reduction in natural gas pipelines | D79: =Fugitive!E81 -> -4.734060328 | E79: 1 Mm3 CH/year leaking | F79: =+Fugitive!E79 -> 20104 | G79: =Fugitive!$E$69*I79/1000000 -> 0 | H79: =Fugitive!$E$74*I79/1000000 -> 0 | J79: 0
C80: Charcoal production | D80: =+Fugitive!E108 -> 0.7672398565 | E80: 100,000 ton charcoal/yr | F80: =+Fugitive!E106 -> 156404.8048 | G80: =Fugitive!$E$97*I80/1000000 -> 0 | H80: =Fugitive!$E$101*I80/1000000 -> 0 | J80: 0
A81: =ROW(B81) -> 81 | B81: Geothermal | C81: Geothermal power | D81: =+Geothermal!E22 -> 0 | E81: 1 MW | F81: =+Geothermal!E20 -> 0 | G81: =+Geothermal!$E$10*I81/1000000 -> 0 | H81: =+Geothermal!$E$15*I81/1000000 -> 0 | J81: 0 | P81: =+Geothermal!$H$18*I83/1000 -> 0
C82: Geothermal heat | D82: =+Geothermal!E50 -> -12.72414474 | E82: 1000 m2 heated area | F82: =+Geothermal!E48 -> 17.05628571 | G82: =Geothermal!$E$38*I82/1000000 -> 0 | H82: =Geothermal!$E$43*I82/1000000 -> 0 | J82: 0
A83: =ROW(B83) -> 83 | B83: HFCs, PFCs, SF6 | C83: Reduced PFCs from aluminum production | D83: =+'HFCs, PFCs, SF6'!E22 -> -0.0340848923 | E83: 100,000 ton Aluminium/yr | F83: =+'HFCs, PFCs, SF6'!E20 -> -64696 | G83: =+'HFCs, PFCs, SF6'!$E$10*I83/1000000 -> 0 | H83: =+'HFCs, PFCs, SF6'!$E$15*I83/1000000 -> 0 | J83: 0
A84: =ROW(B84) -> 84 | B84: Hydro | C84: Hydro power connected to main grid | D84: =+Hydro!E25 -> 0 | E84: 1 MW | F84: =+Hydro!E23 -> 0 | G84: =+Hydro!$E$13*I84/1000000 -> 0 | H84: =+Hydro!$E$18*I84/1000000 -> 0 | J84: 0 | P84: =+Hydro!$H$21*I86/1000 -> 0
